Workbook

Sheet Filtro
A1: Mes | B1: (Todas)
A2: Comuna /Hospital | B2: (Todas)
A4: Etiquetas de fila | B4: Suma de Col01 | C4: Suma de Col02 | D4: Suma de Col03 | E4: Suma de Col04 | F4: Suma de Col05 | G4: Suma de Col06 | H4: Suma de Col07 | I4: Suma de Col08 | J4: Suma de Col09 | K4: Suma de Col10 | L4: Suma de Col11 | M4: Suma de Col12 | N4: Suma de Col13 | O4: Suma de Col14 | P4: Suma de Col15 | Q4: Suma de Col16 | R4: Suma de Col17 | S4: Suma de Col18 | T4: Suma de Col19 | U4: Suma de Col20 | V4: Suma de Col21 | W4: Suma de Col22 | X4: Suma de Col23 | Y4: Suma de Col24 | Z4: Suma de Col25 | AA4: Suma de Col26 | AB4: Suma de Col27 | AC4: Suma de Col28 | AD4: Suma de Col29 | AE4: Suma de Col30 | AF4: Cuenta de Col31 | AG4: Suma de Col32 | AH4: Suma de Col33 | AI4: Suma de Col34 | AJ4: Suma de Col35 | AK4: Suma de Col36 | AL4: Cuenta de Col37 | AM4: Cuenta de Col38 | AN4: Cuenta de Col39 | AO4: Cuenta de Col40 | AP4: Cuenta de Col41 | AQ4: Cuenta de col42 | AR4: Cuenta de col43 | AS4: Cuenta de col44 | AT4: Cuenta de col45
A5: 01010001 | B5: 217717 | C5: 217709 | D5: 217709 | E5: 0 | F5: 8 | Z5: 0 | AA5: 96110 | AB5: 89091 | AJ5: 640200 | AK5: 1055888650
A6: 01010002 | B6: 41077 | C6: 41026 | D6: 41026 | F6: 51 | Z6: 0 | AA6: 40410 | AB6: 667 | AJ6: 806520 | AK6: 250668860
A7: 01010003 | B7: 191297 | C7: 187668 | D7: 187668 | E7: 0 | F7: 3629 | Z7: 0 | AA7: 16541 | AB7: 174756 | AJ7: 1727880 | AK7: 2456574120
A8: 01010004 | B8: 0 | C8: 0 | AJ8: 1032240 | AK8: 0
A9: 01010005 | B9: 30295 | C9: 30130 | D9: 30130 | E9: 0 | F9: 165 | Z9: 0 | AA9: 0 | AB9: 30295 | AJ9: 1132560 | AK9: 258515400
A10: 01010006 | B10: 0 | C10: 0 | AJ10: 2166120 | AK10: 0
A11: 01010007 | B11: 9573 | C11: 7093 | D11: 6305 | E11: 788 | F11: 2480 | Z11: 6858 | AA11: 2645 | AB11: 70 | AJ11: 2166120 | AK11: 103465050
A12: 01010008 | B12: 109 | C12: 109 | D12: 109 | AA12: 109 | AJ12: 872520 | AK12: 720490
A13: 01010009 | B13: 0 | C13: 0 | AJ13: 1048080 | AK13: 0
A14: 01010010 | B14: 0 | C14: 0 | AJ14: 1298880 | AK14: 0
A15: 01010011 | B15: 100897 | C15: 100425 | D15: 100425 | E15: 0 | F15: 472 | Z15: 0 | AA15: 100520 | AB15: 55 | AC15: 2214 | AJ15: 872520 | AK15: 663809250
A16: 01010012 | B16: 92305 | C16: 91974 | D16: 91974 | E16: 0 | F16: 331 | Z16: 0 | AA16: 93097 | AB16: 0 | AC16: 598 | AJ16: 1048080 | AK16: 730273560
A17: 01010013 | B17: 169880 | C17: 168230 | D17: 168230 | E17: 0 | F17: 1650 | Z17: 0 | AA17: 168684 | AB17: 0 | AC17: 684 | AJ17: 1298880 | AK17: 1655383200
A18: 01010014 | B18: 86345 | C18: 86345 | D18: 86345 | AA18: 74319
A19: 01010015 | B19: 106879 | C19: 106879 | D19: 106879 | AA19: 2064 | AB19: 84848
A20: 01010016 | B20: 2909 | C20: 2909 | D20: 2909 | AA20: 2909
A21: 01010017 | B21: 166 | C21: 166 | D21: 166 | AA21: 166
A22: 01010018 | B22: 2549 | C22: 2549 | D22: 2549 | E22: 0 | F22: 0 | Z22: 0 | AA22: 0 | AB22: 2549 | AE22: 216
A23: 01010019 | B23: 181210 | C23: 179664 | D23: 179664 | E23: 0 | F23: 1546 | Z23: 642 | AA23: 156083 | AB23: 14245 | AC23: 498 | AG23: 162 | AJ23: 170280 | AK23: 231766560
A24: 01010020 | B24: 2155 | C24: 2155 | D24: 2155 | F24: 0 | AA24: 1632 | AJ24: 290400 | AK24: 4741000
A25: 01010021 | B25: 51768 | C25: 51768 | D25: 51768 | F25: 0 | AA25: 47129 | AB25: 4523 | AJ25: 93720 | AK25: 36755280
A26: 01010022 | B26: 9049 | C26: 9040 | D26: 9040 | E26: 0 | F26: 9 | Z26: 0 | AA26: 8860 | AB26: 0 | AJ26: 231000 | AK26: 15820000
A27: 01010023 | B27: 55820 | C27: 55715 | D27: 55715 | E27: 0 | F27: 105 | Z27: 841 | AA27: 54449 | AB27: 0 | AJ27: 186120 | AK27: 78558150
A28: 01010024 | B28: 845 | C28: 843 | D28: 843 | E28: 0 | F28: 2 | Z28: 0 | AA28: 1009 | AB28: 0 | AJ28: 170280 | AK28: 1087470
A29: 01010025 | B29: 7565 | C29: 7565 | D29: 7565 | E29: 0 | F29: 0 | Z29: 2203 | AA29: 4914 | AB29: 0
A30: 01010026 | B30: 13619 | C30: 13619 | D30: 13619 | E30: 0 | F30: 0 | Z30: 0 | AA30: 12060 | AB30: 0
A31: 01010027 | B31: 32952 | C31: 32952 | D31: 32952 | F31: 0 | AA31: 32729 | AC31: 319
A32: 01010028 | B32: 7647 | C32: 7647 | D32: 7647 | F32: 0 | Z32: 168 | AA32: 4236 | AB32: 958 | AC32: 59
A33: 01010029 | B33: 13 | C33: 13 | D33: 13 | Z33: 5 | AA33: 8 | AJ33: 558360 | AK33: 54990
A34: 01010030 | B34: 4562 | C34: 4562 | D34: 3810 | E34: 752 | F34: 0 | Z34: 2855 | AA34: 1693 | AB34: 0 | AJ34: 307560 | AK34: 8877300
A35: 01010031 | B35: 697 | C35: 697 | D35: 697 | AA35: 697 | AC35: 51 | AJ35: 307560 | AK35: 1624010
A36: 01010032 | B36: 8 | C36: 8 | D36: 8 | E36: 0 | Z36: 8 | AJ36: 93720 | AK36: 5680
A37: 01010033 | B37: 286 | C37: 286 | D37: 286 | AA37: 134
A38: 01010034 | B38: 16734 | C38: 16718 | D38: 16718 | E38: 0 | F38: 16 | Z38: 1844 | AA38: 15331 | AB38: 0 | AJ38: 266640 | AK38: 33770360
A39: 01010035 | B39: 2582 | C39: 2582 | D39: 2582 | E39: 0 | F39: 0 | Z39: 0 | AA39: 2493 | AB39: 0 | AC39: 27 | AJ39: 266640 | AK39: 5215640
A40: 01010036 | B40: 1238 | C40: 1238 | D40: 1238 | AA40: 1150 | AJ40: 153120 | AK40: 1436080
A41: 01010037 | B41: 755 | C41: 755 | D41: 755 | AA41: 398
A42: 01010038 | B42: 298 | C42: 298 | D42: 298 | AA42: 227
A43: 01010039 | B43: 37555 | C43: 37555 | D43: 37555 | E43: 0 | F43: 0 | Z43: 2838 | AA43: 28741 | AB43: 1286 | AJ43: 116160 | AK43: 33048400
A44: 01010040 | B44: 0 | C44: 0 | AJ44: 13200 | AK44: 0
A45: 01010041 | B45: 0 | C45: 0 | AJ45: 13200 | AK45: 0
A46: 01010042 | B46: 32989 | C46: 32852 | D46: 32849 | E46: 3 | F46: 137 | Z46: 551 | AA46: 24628 | AB46: 5567 | AJ46: 101640 | AK46: 25293730
A47: 01010043 | B47: 14523 | C47: 14523 | D47: 14523 | Z47: 0 | AA47: 14504 | AB47: 0 | AJ47: 2308680 | AK47: 254007270
A48: 01010044 | B48: 534 | C48: 534 | D48: 534 | Z48: 0 | AA48: 425 | AB48: 0 | AJ48: 5302440 | AK48: 21450780
A49: 01010045 | B49: 469142 | C49: 469142 | D49: 469142 | E49: 0 | F49: 0 | Z49: 0 | AA49: 443374 | AB49: 0 | AJ49: 307560 | AK49: 1093100860
A50: 01010046 | B50: 351 | C50: 351 | D50: 351 | AA50: 351 | AJ50: 207240 | AK50: 551070
A51: 01010047 | B51: 1182 | C51: 1182 | D51: 1182 | Z51: 0 | AA51: 1182 | AB51: 0
A52: 01010048 | B52: 191837 | C52: 191837 | D52: 191834 | E52: 3 | Z52: 61860 | AA52: 111234 | AB52: 18743
A53: 01010050 | B53: 92 | C53: 92 | D53: 92 | AA53: 92
A54: 01010055 | B54: 9553 | C54: 9549 | D54: 9531 | E54: 18 | F54: 4 | Z54: 723 | AA54: 7667 | AB54: 1037
A55: 01010061 | B55: 468 | C55: 468 | D55: 468 | AA55: 355
A56: 01010065 | B56: 452 | C56: 452 | D56: 452 | Z56: 0 | AA56: 452 | AB56: 0
A57: 01010068 | B57: 21729 | C57: 21729 | D57: 21719 | E57: 10 | Z57: 822 | AA57: 17116 | AB57: 0
A58: 01010069 | B58: 2000 | C58: 2000 | D58: 2000 | Z58: 0 | AA58: 1999 | AB58: 0
A59: 01010071 | B59: 13 | C59: 13 | D59: 13 | E59: 0 | Z59: 13
A60: 01010072 | B60: 2 | C60: 2 | D60: 2 | Z60: 2
A61: 01010073 | B61: 9 | C61: 9 | D61: 9 | E61: 0 | F61: 0 | Z61: 9 | AA61: 0 | AB61: 0
A62: 01010082 | B62: 11 | C62: 11 | D62: 11 | Z62: 4 | AA62: 4 | AB62: 3
A63: 01010083 | B63: 195667 | C63: 189761 | D63: 186678 | E63: 3083 | F63: 5906 | Z63: 133692 | AA63: 6821 | AB63: 0 | AJ63: 5072760 | AK63: 7174035540
A64: 01010084 | B64: 10300 | C64: 10168 | D64: 10003 | E64: 165 | F64: 132 | Z64: 9752 | AA64: 0 | AB64: 548 | AJ64: 4670160 | AK64: 353906140
A65: 01010085 | B65: 22165 | C65: 22150 | D65: 22150 | E65: 0 | F65: 15 | Z65: 17040 | AA65: 1250 | AB65: 613 | AJ65: 3892680 | AK65: 653203500
A66: 01010086 | B66: 7107 | C66: 6994 | D66: 6994 | E66: 0 | F66: 113 | Z66: 3965 | AA66: 223 | AB66: 0 | AJ66: 21088320 | AK66: 1117361440
A67: 01010087 | B67: 679 | C67: 645 | D67: 645 | E67: 0 | F67: 34 | Z67: 576 | AA67: 103 | AB67: 0 | AJ67: 21088320 | AK67: 103045200
A68: 01010088 | B68: 2915 | C68: 2905 | D68: 2905 | F68: 10 | Z68: 959 | AJ68: 21088320 | AK68: 464102800
A69: 01010089 | B69: 14682 | C69: 14584 | D69: 14584 | E69: 0 | F69: 98 | Z69: 9642 | AA69: 334 | AB69: 0 | AJ69: 10186440 | AK69: 1125447280
A70: 01010090 | B70: 3487 | C70: 3345 | D70: 3345 | E70: 0 | F70: 142 | Z70: 2514 | AA70: 159 | AB70: 0 | AJ70: 10186440 | AK70: 258133650
A71: 01010091 | B71: 5430 | C71: 5368 | D71: 5368 | F71: 62 | Z71: 1985 | AJ71: 10186440 | AK71: 414248560
A72: 01010092 | B72: 1141 | C72: 1138 | D72: 1138 | E72: 0 | F72: 3 | Z72: 1051 | AA72: 90 | AB72: 0 | AJ72: 9138360 | AK72: 78783740
A73: 01010093 | B73: 240 | C73: 240 | D73: 240 | Z73: 240 | AJ73: 2592480 | AK73: 4713600
A74: 01010094 | B74: 2720 | C74: 2694 | D74: 2694 | F74: 26 | Z74: 2232 | AA74: 488 | AB74: 0 | AJ74: 4064280 | AK74: 82948260
A75: 01010095 | B75: 0 | C75: 0 | Z75: 0 | AJ75: 4229280 | AK75: 0
A76: 01010096 | B76: 9704 | C76: 9704 | D76: 9704 | Z76: 3518 | AA76: 6186 | AJ76: 1705440 | AK76: 125375680
A77: 01010097 | B77: 0 | C77: 0 | AJ77: 4095960 | AK77: 0
A78: 01010098 | B78: 8308 | C78: 8273 | D78: 7982 | E78: 291 | F78: 35 | Z78: 58 | AA78: 7756 | AB78: 494 | AJ78: 1705440 | AK78: 103127440
A79: 01010099 | B79: 48955 | C79: 48927 | D79: 48927 | E79: 0 | F79: 28 | Z79: 788 | AA79: 5187 | AB79: 42951 | AJ79: 752400 | AK79: 278883900
A80: 01010100 | B80: 0 | C80: 0 | AJ80: 5072760 | AK80: 0
A81: 01010101 | B81: 0 | C81: 0 | AJ81: 13713480 | AK81: 0
A82: 01010102 | B82: 2412 | C82: 2412 | D82: 2412 | Z82: 1382 | AA82: 1024 | AB82: 0 | AJ82: 1619640 | AK82: 29595240
A83: 01010103 | B83: 5403 | C83: 2986 | D83: 2675 | E83: 311 | F83: 2417 | Z83: 5403 | AJ83: 984720 | AK83: 19955500
A84: 01010104 | B84: 0 | C84: 0 | AJ84: 7108200 | AK84: 0
A85: 01010105 | B85: 3382 | C85: 3382 | D85: 3382 | Z85: 1345 | AA85: 2037 | AJ85: 1247400 | AK85: 31959900
A86: 01010106 | B86: 267 | C86: 255 | D86: 0 | E86: 255 | F86: 12 | Z86: 259 | AB86: 8
A87: 01010108 | B87: 1134 | C87: 1133 | D87: 1132 | E87: 1 | F87: 1 | Z87: 95 | AA87: 1028 | AB87: 11 | AG87: 2 | AH87: 165 | AI87: 0 | AJ87: 538560 | AK87: 4618560
A88: 01010109 | B88: 0 | C88: 0 | D88: 0 | E88: 0 | F88: 0 | Z88: 0 | AA88: 0 | AB88: 0 | AH88: 0 | AI88: 0 | AJ88: 669240 | AK88: 0
A89: 01010111 | B89: 0 | C89: 0 | D89: 0 | E89: 0 | F89: 0 | Z89: 0 | AA89: 0 | AB89: 0 | AH89: 0 | AI89: 0 | AJ89: 480480 | AK89: 0
A90: 01010112 | B90: 0 | C90: 0 | D90: 0 | E90: 0 | F90: 0 | Z90: 0 | AA90: 0 | AB90: 0 | AH90: 0 | AI90: 0 | AJ90: 480480 | AK90: 0
A91: 01010113 | B91: 53 | C91: 52 | D91: 52 | E91: 0 | F91: 1 | Z91: 6 | AA91: 46 | AB91: 1 | AH91: 10 | AI91: 0 | AJ91: 480480 | AK91: 189280
A92: 01010114 | B92: 554 | C92: 554 | D92: 553 | E92: 1 | F92: 0 | Z92: 454 | AA92: 0 | AB92: 100 | AH92: 0 | AI92: 0 | AJ92: 480480 | AK92: 2012920
A93: 01010117 | B93: 27 | C93: 27 | D93: 27 | E93: 0 | F93: 0 | Z93: 1 | AA93: 26 | AB93: 0 | AH93: 0 | AI93: 0 | AJ93: 166320 | AK93: 34020
A94: 01010119 | B94: 0 | C94: 0 | D94: 0 | E94: 0 | F94: 0 | Z94: 0 | AA94: 0 | AB94: 0 | AH94: 0 | AI94: 0 | AJ94: 63360 | AK94: 0
A95: 01010120 | B95: 5148 | C95: 5137 | D95: 5125 | E95: 12 | F95: 11 | Z95: 4772 | AA95: 313 | AB95: 63 | AH95: 0 | AI95: 0 | AJ95: 130680 | AK95: 5073750
A96: 01010121 | B96: 5847 | C96: 5583 | D96: 5501 | E96: 82 | F96: 264 | Z96: 1423 | AA96: 3935 | AB96: 489 | AE96: 199 | AH96: 0 | AI96: 294 | AJ96: 238920 | AK96: 9956810
A97: 01010123 | B97: 3 | C97: 3 | D97: 3 | E97: 0 | F97: 0 | Z97: 1 | AA97: 2 | AB97: 0 | AH97: 5 | AI97: 0 | AJ97: 502920 | AK97: 11430
A98: 01010126 | B98: 0 | C98: 0 | D98: 0 | E98: 0 | F98: 0 | Z98: 0 | AA98: 0 | AB98: 0 | AH98: 0 | AI98: 0 | AJ98: 166320 | AK98: 0
A99: 01010127 | B99: 940 | C99: 934 | D99: 932 | E99: 2 | F99: 6 | Z99: 222 | AA99: 489 | AB99: 229 | AH99: 31 | AI99: 0 | AJ99: 238920 | AK99: 1686920
A100: 01010128 | B100: 0 | C100: 0 | D100: 0 | E100: 0 | F100: 0 | Z100: 0 | AA100: 0 | AB100: 0 | AH100: 1 | AI100: 0 | AJ100: 480480 | AK100: 0
A101: 01010130 | B101: 0 | C101: 0 | D101: 0 | E101: 0 | F101: 0 | Z101: 0 | AA101: 0 | AB101: 0 | AH101: 0 | AI101: 0 | AJ101: 238920 | AK101: 0
A102: 01010131 | B102: 19 | C102: 19 | D102: 5 | E102: 14 | F102: 0 | Z102: 15 | AA102: 4 | AB102: 0 | AH102: 9 | AI102: 0 | AJ102: 502920 | AK102: 19050
A103: 01010132 | B103: 1483 | C103: 1446 | D103: 1445 | E103: 1 | F103: 37 | Z103: 132 | AA103: 1337 | AB103: 14 | AG103: 2 | AH103: 165 | AI103: 4 | AJ103: 612480 | AK103: 6704800
A104: 01010133 | B104: 1261 | C104: 1261 | D104: 1260 | E104: 1 | F104: 0 | Z104: 103 | AA104: 290 | AB104: 868 | AH104: 0 | AI104: 0 | AJ104: 502920 | AK104: 4800600
A105: 01010134 | B105: 1127 | C105: 1119 | D105: 1119 | E105: 0 | F105: 8 | Z105: 10 | AA105: 1114 | AB105: 3 | AH105: 8 | AI105: 8 | AJ105: 238920 | AK105: 2025390
A106: 01010135 | B106: 71 | C106: 38 | D106: 36 | E106: 2 | F106: 33 | Z106: 12 | AA106: 59 | AB106: 0 | AH106: 70 | AI106: 0 | AJ106: 502920 | AK106: 137160
A107: 01010136 | B107: 812 | C107: 802 | D107: 801 | E107: 1 | F107: 10 | Z107: 150 | AA107: 639 | AB107: 23 | AH107: 115 | AI107: 8 | AJ107: 612480 | AK107: 3716640
A108: 01010139 | B108: 12 | C108: 12 | D108: 0 | E108: 12 | F108: 0 | Z108: 12 | AA108: 0 | AB108: 0 | AH108: 0 | AI108: 0 | AJ108: 297000 | AK108: 0
A109: 01010140 | B109: 78496 | C109: 77698 | D109: 76874 | E109: 824 | F109: 798 | Z109: 53030 | AA109: 19970 | AB109: 5445 | AE109: 256 | AH109: 0 | AI109: 377 | AJ109: 271920 | AK109: 158360440
A110: 01010141 | B110: 19 | C110: 19 | D110: 5 | E110: 14 | F110: 0 | Z110: 16 | AA110: 3 | AB110: 0 | AH110: 4 | AI110: 0 | AJ110: 452760 | AK110: 17150
A111: 01010142 | B111: 32532 | C111: 30863 | D111: 30491 | E111: 372 | F111: 1669 | Z111: 16308 | AA111: 5213 | AB111: 10988 | AH111: 0 | AI111: 1835 | AJ111: 75240 | AK111: 17379870
A112: 01010144 | B112: 35561 | C112: 34547 | D112: 33947 | E112: 600 | F112: 1014 | Z112: 16898 | AA112: 7705 | AB112: 10958 | AH112: 0 | AI112: 777 | AJ112: 75240 | AK112: 19349790
A113: 01010145 | B113: 14 | C113: 14 | D113: 0 | E113: 14 | F113: 0 | Z113: 14 | AA113: 0 | AB113: 0 | AH113: 0 | AI113: 0 | AJ113: 75240 | AK113: 0
A114: 01010146 | B114: 14 | C114: 14 | D114: 0 | E114: 14 | F114: 0 | Z114: 14 | AA114: 0 | AB114: 0 | AH114: 0 | AI114: 0 | AJ114: 502920 | AK114: 0
A115: 01010147 | B115: 27775 | C115: 25722 | D115: 25610 | E115: 112 | F115: 2053 | Z115: 2504 | AA115: 25107 | AB115: 164 | AG115: 632 | AH115: 0 | AI115: 3334 | AJ115: 524040 | AK115: 101671700
A116: 01010148 | B116: 0 | C116: 0 | D116: 0 | E116: 0 | F116: 0 | Z116: 0 | AA116: 0 | AB116: 0 | AH116: 0 | AI116: 0 | AJ116: 101640 | AK116: 0
A117: 01010150 | B117: 0 | C117: 0 | D117: 0 | E117: 0 | F117: 0 | Z117: 0 | AA117: 0 | AB117: 0 | AH117: 0 | AI117: 0 | AJ117: 538560 | AK117: 0
A118: 01010151 | B118: 213345 | C118: 207376 | D118: 206249 | E118: 1127 | F118: 5969 | Z118: 52300 | AA118: 106004 | AB118: 55011 | AH118: 0 | AI118: 8012 | AJ118: 344520 | AK118: 538309890
A119: 01010154 | B119: 0 | C119: 0 | D119: 0 | E119: 0 | F119: 0 | Z119: 0 | AA119: 0 | AB119: 0 | AH119: 0 | AI119: 0 | AJ119: 101640 | AK119: 0
A120: 01010155 | B120: 0 | C120: 0 | D120: 0 | E120: 0 | F120: 0 | Z120: 0 | AA120: 0 | AB120: 0 | AH120: 0 | AI120: 0 | AJ120: 502920 | AK120: 0
A121: 01010156 | B121: 14612 | C121: 14464 | D121: 14195 | E121: 269 | F121: 148 | Z121: 11164 | AA121: 1992 | AB121: 1453 | AH121: 12 | AI121: 0 | AJ121: 369600 | AK121: 39746000
A122: 01010157 | B122: 920 | C122: 920 | D122: 859 | E122: 61 | F122: 0 | Z122: 764 | AA122: 42 | AB122: 114 | AH122: 0 | AI122: 0 | AJ122: 502920 | AK122: 3272790
A123: 01010160 | B123: 5882 | C123: 5849 | D123: 5827 | E123: 22 | F123: 33 | Z123: 4317 | AA123: 212 | AB123: 1353 | AH123: 0 | AI123: 0 | AJ123: 130680 | AK123: 5768730
A124: 01010165 | B124: 141130 | C124: 140501 | D124: 139548 | E124: 953 | F124: 629 | Z124: 39530 | AA124: 68409 | AB124: 33192 | AH124: 0 | AI124: 1010 | AJ124: 166320 | AK124: 175830480
A125: 01010166 | B125: 48200 | C125: 45962 | D125: 45842 | E125: 120 | F125: 2238 | Z125: 10633 | AA125: 21365 | AB125: 16202 | AH125: 0 | AI125: 2238 | AJ125: 101640 | AK125: 35298340
A126: 01010167 | B126: 48234 | C126: 45996 | D126: 45876 | E126: 120 | F126: 2238 | Z126: 10667 | AA126: 21365 | AB126: 16202 | AH126: 0 | AI126: 2238 | AJ126: 101640 | AK126: 35324520
A127: 01010168 | B127: 22201 | C127: 22135 | D127: 21849 | E127: 286 | F127: 66 | Z127: 8064 | AA127: 3502 | AB127: 10635 | AH127: 0 | AI127: 0 | AJ127: 75240 | AK127: 12453930
A128: 01010169 | B128: 30143 | C128: 30069 | D128: 29741 | E128: 328 | F128: 74 | Z128: 14301 | AA128: 3661 | AB128: 12181 | AH128: 0 | AI128: 6 | AJ128: 75240 | AK128: 16952370
A129: 01010170 | B129: 48234 | C129: 45996 | D129: 45876 | E129: 120 | F129: 2238 | Z129: 10667 | AA129: 21365 | AB129: 16202 | AH129: 0 | AI129: 2238 | AJ129: 130680 | AK129: 45417240
A130: 01010171 | B130: 91094 | C130: 88781 | D130: 88330 | E130: 451 | F130: 2313 | Z130: 25655 | AA130: 33933 | AB130: 31476 | AH130: 0 | AI130: 2247 | AJ130: 130680 | AK130: 87446700
A131: 01010172 | B131: 958 | C131: 892 | D131: 886 | E131: 6 | F131: 66 | Z131: 304 | AA131: 464 | AB131: 190 | AH131: 0 | AI131: 65 | AJ131: 101640 | AK131: 682220
A132: 01010173 | B132: 22421 | C132: 22355 | D132: 22018 | E132: 337 | F132: 66 | Z132: 8133 | AA132: 3633 | AB132: 10655 | AH132: 0 | AI132: 0 | AJ132: 205920 | AK132: 34348080
A133: 01010174 | B133: 0 | C133: 0 | D133: 0 | E133: 0 | F133: 0 | Z133: 0 | AA133: 0 | AB133: 0 | AH133: 0 | AI133: 0 | AJ133: 336600 | AK133: 0
A134: 01010176 | B134: 128 | C134: 128 | D134: 128 | E134: 0 | F134: 0 | Z134: 34 | AA134: 87 | AB134: 7 | AH134: 0 | AI134: 0 | AJ134: 166320 | AK134: 161280
A135: 01010178 | B135: 4477 | C135: 4470 | D135: 4426 | E135: 44 | F135: 7 | Z135: 1430 | AA135: 1415 | AB135: 1632 | AH135: 0 | AI135: 0 | AJ135: 297000 | AK135: 9958500
A136: 01010185 | B136: 1098 | C136: 1098 | D136: 1098 | E136: 0 | F136: 0 | Z136: 18 | AA136: 1079 | AB136: 1 | AG136: 1 | AH136: 15 | AI136: 0 | AJ136: 595320 | AK136: 4951980
A137: 01010186 | B137: 43 | C137: 43 | D137: 43 | E137: 0 | F137: 0 | Z137: 5 | AA137: 28 | AB137: 10 | AH137: 0 | AI137: 0 | AJ137: 205920 | AK137: 67080
A138: 01010188 | B138: 96600 | C138: 96013 | D138: 95179 | E138: 834 | F138: 587 | Z138: 34989 | AA138: 30506 | AB138: 31105 | AH138: 5 | AI138: 498 | AJ138: 262680 | AK138: 189406210
A139: 01010189 | B139: 33267 | C139: 31199 | D139: 31147 | E139: 52 | F139: 2068 | Z139: 4004 | AA139: 26425 | AB139: 2838 | AH139: 71 | AI139: 2252 | AJ139: 62040 | AK139: 14639090
A140: 01010192 | B140: 0 | C140: 0 | D140: 0 | E140: 0 | F140: 0 | Z140: 0 | AA140: 0 | AB140: 0 | AH140: 0 | AI140: 0 | AJ140: 964920 | AK140: 0
A141: 01010193 | B141: 0 | C141: 0 | D141: 0 | E141: 0 | F141: 0 | Z141: 0 | AA141: 0 | AB141: 0 | AH141: 0 | AI141: 0 | AJ141: 964920 | AK141: 0
A142: 01010194 | B142: 2 | C142: 2 | D142: 2 | E142: 0 | F142: 0 | Z142: 1 | AA142: 0 | AB142: 1 | AH142: 1 | AI142: 0 | AJ142: 3311880 | AK142: 50180
A143: 01010195 | B143: 10 | C143: 10 | D143: 7 | E143: 3 | F143: 0 | Z143: 7 | AA143: 1 | AB143: 2 | AH143: 8 | AI143: 0 | AJ143: 3607560 | AK143: 191310
A144: 01010196 | B144: 555 | C144: 545 | D144: 544 | E144: 1 | F144: 10 | Z144: 222 | AA144: 131 | AB144: 473 | AH144: 1 | AI144: 4 | AJ144: 2365440 | AK144: 9748480
A145: 01010197 | B145: 0 | C145: 0 | D145: 0 | E145: 0 | F145: 0 | Z145: 0 | AA145: 0 | AB145: 0 | AH145: 0 | AI145: 0 | AJ145: 5107080 | AK145: 0
A146: 01010198 | B146: 2702 | C146: 2699 | D146: 2689 | E146: 10 | F146: 3 | Z146: 370 | AA146: 257 | AB146: 2075 | AH146: 0 | AI146: 1 | AJ146: 1122000 | AK146: 22856500
A147: 01010199 | B147: 511 | C147: 510 | D147: 510 | E147: 0 | F147: 1 | Z147: 78 | AA147: 176 | AB147: 257 | AG147: 2 | AH147: 4 | AI147: 1 | AJ147: 92400 | AK147: 357000
A148: 01010200 | B148: 4 | C148: 4 | D148: 4 | E148: 0 | F148: 0 | Z148: 4 | AA148: 0 | AB148: 0 | AH148: 0 | AI148: 1 | AJ148: 261360 | AK148: 7920
A149: 01010201 | B149: 21539 | C149: 21491 | D149: 21415 | E149: 76 | F149: 48 | Z149: 11010 | AA149: 2742 | AB149: 7787 | AH149: 0 | AI149: 14 | AJ149: 427680 | AK149: 69384600
A150: 01010202 | B150: 35531 | C150: 33630 | D150: 33365 | E150: 265 | F150: 1901 | Z150: 6432 | AA150: 27836 | AB150: 1263 | AH150: 0 | AI150: 2457 | AJ150: 180840 | AK150: 45710050
A151: 01010204 | B151: 14530 | C151: 14470 | D151: 14405 | E151: 65 | F151: 60 | Z151: 2116 | AA151: 3740 | AB151: 8663 | AC151: 11 | AH151: 0 | AI151: 17 | AJ151: 266640 | AK151: 29098100
A152: 01010205 | B152: 1 | C152: 1 | D152: 1 | E152: 0 | F152: 0 | Z152: 1 | AA152: 0 | AB152: 0 | AH152: 1 | AI152: 0 | AJ152: 632280 | AK152: 4790
A153: 01010206 | B153: 1290 | C153: 1290 | D153: 1285 | E153: 5 | F153: 0 | Z153: 236 | AA153: 874 | AB153: 180 | AH153: 0 | AI153: 0 | AJ153: 238920 | AK153: 2325850
A154: 01010207 | B154: 0 | C154: 0 | D154: 0 | E154: 0 | F154: 0 | Z154: 0 | AA154: 0 | AB154: 0 | AH154: 0 | AI154: 0 | AJ154: 736560 | AK154: 0
A155: 01010208 | B155: 1 | C155: 1 | D155: 1 | E155: 0 | F155: 0 | Z155: 0 | AA155: 1 | AB155: 0 | AH155: 0 | AI155: 0 | AJ155: 75240 | AK155: 570
A156: 01010209 | B156: 9208 | C156: 8608 | D156: 8605 | E156: 3 | F156: 600 | Z156: 1333 | AA156: 6012 | AB156: 1863 | AH156: 0 | AI156: 591 | AJ156: 149160 | AK156: 9723650
A157: 01010210 | B157: 37002 | C157: 36258 | D157: 36132 | E157: 126 | F157: 744 | Z157: 8581 | AA157: 18020 | AB157: 10712 | AH157: 0 | AI157: 2002 | AJ157: 166320 | AK157: 45526320
A158: 01010212 | B158: 46972 | C158: 46351 | D158: 45870 | E158: 481 | F158: 621 | Z158: 17696 | AA158: 15789 | AB158: 13487 | AG158: 252 | AH158: 0 | AI158: 62 | AJ158: 130680 | AK158: 45411300
A159: 01010214 | B159: 0 | C159: 0 | D159: 0 | E159: 0 | F159: 0 | Z159: 0 | AA159: 0 | AB159: 0 | AH159: 0 | AI159: 0 | AJ159: 238920 | AK159: 0
A160: 01010215 | B160: 1 | C160: 1 | D160: 1 | E160: 0 | F160: 0 | Z160: 0 | AA160: 1 | AB160: 0 | AH160: 4 | AI160: 0 | AJ160: 538560 | AK160: 4080
A161: 01010216 | B161: 9 | C161: 9 | D161: 9 | E161: 0 | F161: 0 | Z161: 2 | AA161: 7 | AB161: 0 | AH161: 9 | AI161: 0 | AJ161: 368280 | AK161: 25110
A162: 01010217 | B162: 2 | C162: 2 | D162: 2 | E162: 0 | F162: 0 | Z162: 1 | AA162: 1 | AB162: 0 | AH162: 2 | AI162: 0 | AJ162: 175560 | AK162: 2660
A163: 01010218 | B163: 36901 | C163: 31169 | D163: 31106 | E163: 63 | F163: 5732 | Z163: 771 | AA163: 35537 | AB163: 594 | AH163: 0 | AI163: 9981 | AJ163: 155760 | AK163: 36705080
A164: 01010219 | B164: 29912 | C164: 26708 | D164: 26697 | E164: 11 | F164: 3204 | Z164: 536 | AA164: 28998 | AB164: 378 | AH164: 0 | AI164: 7493 | AJ164: 231000 | AK164: 46719750
A165: 01010220 | B165: 206 | C165: 206 | D165: 206 | E165: 0 | F165: 0 | Z165: 2 | AA165: 193 | AB165: 11 | AH165: 0 | AI165: 0 | AJ165: 335280 | AK165: 523240
A166: 01010222 | B166: 197275 | C166: 189846 | D166: 188457 | E166: 1389 | F166: 7429 | Z166: 52652 | AA166: 95805 | AB166: 48818 | AH166: 0 | AI166: 10234 | AJ166: 151800 | AK166: 216725550
A167: 01010223 | B167: 6641 | C167: 6500 | D167: 6461 | E167: 39 | F167: 141 | Z167: 837 | AA167: 5776 | AB167: 28 | AH167: 0 | AI167: 147 | AJ167: 335280 | AK167: 16410940
A168: 01010224 | B168: 17121 | C168: 17056 | D168: 17015 | E168: 41 | F168: 65 | Z168: 4129 | AA168: 3642 | AB168: 9341 | AH168: 0 | AI168: 12 | AJ168: 538560 | AK168: 69421200
A169: 01010225 | B169: 20792 | C169: 20701 | D169: 20632 | E169: 69 | F169: 91 | Z169: 4809 | AA169: 6052 | AB169: 9941 | AH169: 0 | AI169: 16 | AJ169: 411840 | AK169: 64371840
A170: 01010226 | B170: 20154 | C170: 20119 | D170: 20081 | E170: 38 | F170: 35 | Z170: 4702 | AA170: 422 | AB170: 15030 | AG170: 12 | AH170: 0 | AI170: 4 | AJ170: 1122000 | AK170: 170688500
A171: 01010229 | B171: 16631 | C171: 16557 | D171: 16446 | E171: 111 | F171: 74 | Z171: 5823 | AA171: 7941 | AB171: 2867 | AG171: 34 | AH171: 0 | AI171: 50 | AJ171: 245520 | AK171: 30589560
A172: 01010230 | B172: 0 | C172: 0 | D172: 0 | E172: 0 | F172: 0 | Z172: 0 | AA172: 0 | AB172: 0 | AH172: 0 | AI172: 0 | AJ172: 669240 | AK172: 0
A173: 01010231 | B173: 448661 | C173: 436373 | D173: 433032 | E173: 3341 | F173: 12288 | Z173: 167123 | AA173: 136884 | AB173: 144654 | AH173: 0 | AI173: 11506 | AJ173: 141240 | AK173: 463344240
A174: 01010232 | B174: 5 | C174: 5 | D174: 4 | E174: 1 | F174: 0 | Z174: 1 | AA174: 3 | AB174: 1 | AH174: 0 | AI174: 0 | AJ174: 669240 | AK174: 20280
A175: 01010233 | B175: 54265 | C175: 49484 | D175: 49224 | E175: 260 | F175: 4781 | Z175: 8989 | AA175: 44198 | AB175: 1079 | AH175: 0 | AI175: 4543 | AJ175: 712800 | AK175: 265809600
A176: 01010234 | B176: 809 | C176: 798 | D176: 795 | E176: 3 | F176: 11 | Z176: 89 | AA176: 576 | AB176: 144 | AH176: 257 | AI176: 9 | AJ176: 640200 | AK176: 3855750
A177: 01010235 | B177: 0 | C177: 0 | D177: 0 | E177: 0 | F177: 0 | Z177: 0 | AA177: 0 | AB177: 0 | AH177: 0 | AI177: 0 | AJ177: 238920 | AK177: 0
A178: 01010238 | B178: 412 | C178: 366 | D178: 366 | E178: 0 | F178: 46 | Z178: 36 | AA178: 352 | AB178: 24 | AH178: 0 | AI178: 46 | AJ178: 650760 | AK178: 1804380
A179: 01010239 | B179: 30552 | C179: 29835 | D179: 29722 | E179: 113 | F179: 717 | Z179: 4952 | AA179: 16380 | AB179: 9220 | AG179: 8 | AH179: 0 | AI179: 1168 | AJ179: 153120 | AK179: 34477520
A180: 01010241 | B180: 39377 | C180: 38787 | D180: 38419 | E180: 368 | F180: 590 | Z180: 15105 | AA180: 13122 | AB180: 11150 | AG180: 147 | AH180: 0 | AI180: 40 | AJ180: 198000 | AK180: 57628500
A181: 01010242 | B181: 17 | C181: 17 | D181: 11 | E181: 6 | F181: 0 | Z181: 7 | AA181: 6 | AB181: 4 | AG181: 2 | AH181: 0 | AI181: 0 | AJ181: 75240 | AK181: 6270
A182: 01010244 | B182: 21906 | C182: 21435 | D182: 21410 | E182: 25 | F182: 471 | Z182: 4358 | AA182: 10021 | AB182: 7527 | AG182: 14 | AH182: 0 | AI182: 455 | AJ182: 254760 | AK182: 41321300
A183: 01010245 | B183: 56372 | C183: 56243 | D183: 55986 | E183: 257 | F183: 129 | Z183: 29050 | AA183: 4324 | AB183: 22998 | AH183: 0 | AI183: 2 | AJ183: 425040 | AK183: 180274920
A184: 01010246 | B184: 138738 | C184: 127413 | D184: 126778 | E184: 635 | F184: 11325 | Z184: 20632 | AA184: 96860 | AB184: 21246 | AH184: 1 | AI184: 15054 | AJ184: 151800 | AK184: 145794700
A185: 01010247 | B185: 7656 | C185: 6190 | D185: 6190 | E185: 0 | F185: 1466 | Z185: 347 | AA185: 7129 | AB185: 180 | AH185: 0 | AI185: 1623 | AJ185: 683760 | AK185: 32064200
A186: 01010248 | B186: 484 | C186: 471 | D186: 470 | E186: 1 | F186: 13 | Z186: 76 | AA186: 343 | AB186: 65 | AG186: 14 | AH186: 0 | AI186: 0 | AJ186: 502920 | AK186: 1790700
A187: 01010250 | B187: 0 | C187: 0 | D187: 0 | E187: 0 | F187: 0 | Z187: 0 | AA187: 0 | AB187: 0 | AH187: 0 | AI187: 0 | AJ187: 238920 | AK187: 0
A188: 01010251 | B188: 15159 | C188: 14773 | D188: 14715 | E188: 58 | F188: 386 | Z188: 2021 | AA188: 4602 | AB188: 8536 | AG188: 10 | AH188: 0 | AI188: 338 | AJ188: 261360 | AK188: 29135700
A189: 01010254 | B189: 276 | C189: 275 | D189: 275 | E189: 0 | F189: 1 | Z189: 5 | AA189: 262 | AB189: 8 | AH189: 37 | AI189: 1 | AJ189: 335280 | AK189: 698500
A190: 01010255 | B190: 2927 | C190: 2596 | D190: 2593 | E190: 3 | F190: 331 | Z190: 396 | AA190: 2476 | AB190: 55 | AG190: 1 | AH190: 0 | AI190: 328 | AJ190: 335280 | AK190: 6586220
A191: 01010256 | B191: 165641 | C191: 161996 | D191: 161065 | E191: 931 | F191: 3645 | Z191: 49947 | AA191: 65849 | AB191: 49554 | AH191: 0 | AI191: 5264 | AJ191: 151800 | AK191: 185224750
A192: 01010257 | B192: 19 | C192: 19 | D192: 19 | E192: 0 | F192: 0 | Z192: 8 | AA192: 6 | AB192: 5 | AH192: 0 | AI192: 0 | AJ192: 192720 | AK192: 27740
A193: 01010258 | B193: 8763 | C193: 8386 | D193: 8366 | E193: 20 | F193: 377 | Z193: 1930 | AA193: 5042 | AB193: 1791 | AH193: 0 | AI193: 358 | AJ193: 964920 | AK193: 61155460
A194: 01010260 | B194: 59771 | C194: 59104 | D194: 57094 | E194: 2010 | F194: 667 | Z194: 19730 | AA194: 34659 | AB194: 5382 | AH194: 5 | AI194: 612 | AJ194: 165000 | AK194: 71367500
A195: 01010261 | B195: 112 | C195: 111 | D195: 110 | E195: 1 | F195: 1 | Z195: 20 | AA195: 89 | AB195: 3 | AH195: 210 | AI195: 0 | AJ195: 699600 | AK195: 583000
A196: 01010262 | B196: 79919 | C196: 78801 | D196: 78350 | E196: 451 | F196: 1118 | Z196: 18045 | AA196: 45161 | AB196: 16713 | AH196: 0 | AI196: 843 | AJ196: 1213080 | AK196: 720036500
A197: 01010263 | B197: 68588 | C197: 67217 | D197: 67130 | E197: 87 | F197: 1371 | Z197: 11576 | AA197: 36066 | AB197: 20946 | AH197: 0 | AI197: 3708 | AJ197: 219120 | AK197: 111435800
A198: 01010264 | B198: 32132 | C198: 28569 | D198: 28555 | E198: 14 | F198: 3563 | Z198: 816 | AA198: 30700 | AB198: 616 | AH198: 0 | AI198: 7801 | AJ198: 199320 | AK198: 43118050
A199: 01010266 | B199: 0 | C199: 0 | D199: 0 | E199: 0 | F199: 0 | Z199: 0 | AA199: 0 | AB199: 0 | AH199: 0 | AI199: 0 | AJ199: 356400 | AK199: 0
A200: 01010267 | B200: 974 | C200: 963 | D200: 958 | E200: 5 | F200: 11 | Z200: 120 | AA200: 841 | AB200: 13 | AG200: 8 | AH200: 258 | AI200: 7 | AJ200: 814440 | AK200: 5910860
A201: 01010268 | B201: 495 | C201: 492 | D201: 492 | E201: 0 | F201: 3 | Z201: 18 | AA201: 477 | AB201: 0 | AG201: 13 | AH201: 3 | AI201: 3 | AJ201: 1622280 | AK201: 6046680
... 2232 more rows

Sheet B
D1: TOTAL | E1: ACTIVIDADES | I1: INTERVENCIONES QUIRÚRGICAS | P1: INTERVENCIONES QUIRÚRGICAS MAYORES NO AMBULATORIAS ELECTIVAS | S1: INTERVENCIONES QUIRÚRGICAS MAYORES AMBULATORIAS ELECTIVA | V1: INTERVENCIONES QUIRÚRGICAS MAYORES AMBULATORIAS URGENCIA | Y1: INTERVENCIONES QUIRÚRGICAS MAYORES NO AMBULATORIAS URGENCIA | AB1: PROCEDENCIA | AE1: PRODUCCION INTRA HOSPITAL | AH1: OPERATIVO | AI1: COMPRAS REALIZADAS | AK1: VENTAS DE SERVICIOS | AL1: TRANSFERENCIA 2019 | AM1: TOTAL FACTURADO
B2: CODIGO | C2: GLOSA | E2: TOTAL BENEFI-CIARIOS | F2: BENEFICIARIOS | H2: NO BENEFI-CIARIOS | I2: TOTAL BENEFICIARIOS | J2: PRINCIPAL | M2: SECUNDARIA | S2: < 15 AÑOS | V2: < 15 AÑOS | Y2: < 15 AÑOS
F3: MAI | G3: MLE | J3: MAI | K3: MLE | L3: NO BENEFI-CIARIO | M3: MAI | N3: MLE | O3: NO BENEFI-CIARIO | P3: TOTAL | Q3: < 15 AÑOS | R3: 15 AÑOS Y MÁS | S3: TOTAL | T3: < 15 AÑOS | U3: 15 AÑOS Y MÁS | V3: TOTAL | W3: < 15 AÑOS | X3: 15 AÑOS Y MÁS | Y3: TOTAL | Z3: < 15 AÑOS | AA3: 15 AÑOS Y MÁS | AB3: ATENCION CERRADA | AC3: ATENCION ABIERTA | AD3: EMERGENCIA | AE3: POR HONO- RARIOS | AF3: POR CONVENIOS | AG3: POR CONSULTO- RES DE LLAMADA | AI3: AL SISTEMA | AJ3: EXTRA-SISTEMA
C4: CONSULTAS Y ATENCION MEDICA
A5: 01010001 | B5: 0101101 | C5: Consulta o control médico integral en atención primaria | D5: =IFERROR(VLOOKUP($A5,Filtro!$A$4:$AT$2433,2,FALSE),0) -> 217717 | E5: =IFERROR(VLOOKUP($A5,Filtro!$A$4:$AT$2433,3,FALSE),0) -> 217709 | F5: =IFERROR(VLOOKUP($A5,Filtro!$A$4:$AT$2433,4,FALSE),0) -> 217709 | G5: =IFERROR(VLOOKUP($A5,Filtro!$A$4:$AT$2433,5,FALSE),0) -> 0 | H5: =IFERROR(VLOOKUP($A5,Filtro!$A$4:$AT$2433,6,FALSE),0) -> 8 | I5: =IFERROR(VLOOKUP($A5,Filtro!$A$4:$AT$2433,7,FALSE),0) -> 0 | J5: =IFERROR(VLOOKUP($A5,Filtro!$A$4:$AT$2433,8,FALSE),0) -> 0 | K5: =IFERROR(VLOOKUP($A5,Filtro!$A$4:$AT$2433,9,FALSE),0) -> 0 | L5: =IFERROR(VLOOKUP($A5,Filtro!$A$4:$AT$2433,10,FALSE),0) -> 0 | M5: =IFERROR(VLOOKUP($A5,Filtro!$A$4:$AT$2433,11,FALSE),0) -> 0 | N5: =IFERROR(VLOOKUP($A5,Filtro!$A$4:$AT$2433,12,FALSE),0) -> 0 | O5: =IFERROR(VLOOKUP($A5,Filtro!$A$4:$AT$2433,13,FALSE),0) -> 0 | P5: =IFERROR(VLOOKUP($A5,Filtro!$A$4:$AT$2433,14,FALSE),0) -> 0 | Q5: =IFERROR(VLOOKUP($A5,Filtro!$A$4:$AT$2433,15,FALSE),0) -> 0 | R5: =IFERROR(VLOOKUP($A5,Filtro!$A$4:$AT$2433,16,FALSE),0) -> 0 | S5: =IFERROR(VLOOKUP($A5,Filtro!$A$4:$AT$2433,17,FALSE),0) -> 0 | T5: =IFERROR(VLOOKUP($A5,Filtro!$A$4:$AT$2433,18,FALSE),0) -> 0 | U5: =IFERROR(VLOOKUP($A5,Filtro!$A$4:$AT$2433,19,FALSE),0) -> 0 | V5: =IFERROR(VLOOKUP($A5,Filtro!$A$4:$AT$2433,20,FALSE),0) -> 0 | W5: =IFERROR(VLOOKUP($A5,Filtro!$A$4:$AT$2433,21,FALSE),0) -> 0 | X5: =IFERROR(VLOOKUP($A5,Filtro!$A$4:$AT$2433,22,FALSE),0) -> 0 | Y5: =IFERROR(VLOOKUP($A5,Filtro!$A$4:$AT$2433,23,FALSE),0) -> 0 | Z5: =IFERROR(VLOOKUP($A5,Filtro!$A$4:$AT$2433,24,FALSE),0) -> 0 | AA5: =IFERROR(VLOOKUP($A5,Filtro!$A$4:$AT$2433,25,FALSE),0) -> 0 | AB5: =IFERROR(VLOOKUP($A5,Filtro!$A$4:$AT$2433,26,FALSE),0) -> 0 | AC5: =IFERROR(VLOOKUP($A5,Filtro!$A$4:$AT$2433,27,FALSE),0) -> 96110 | AD5: =IFERROR(VLOOKUP($A5,Filtro!$A$4:$AT$2433,28,FALSE),0) -> 89091 | AE5: =IFERROR(VLOOKUP($A5,Filtro!$A$4:$AT$2433,29,FALSE),0) -> 0 | AF5: =IFERROR(VLOOKUP($A5,Filtro!$A$4:$AT$2433,30,FALSE),0) -> 0 | AG5: =IFERROR(VLOOKUP($A5,Filtro!$A$4:$AT$2433,31,FALSE),0) -> 0 | AH5: =IFERROR(VLOOKUP($A5,Filtro!$A$4:$AT$2433,32,FALSE),0) -> 0 | AI5: =IFERROR(VLOOKUP($A5,Filtro!$A$4:$AT$2433,33,FALSE),0) -> 0 | AJ5: =IFERROR(VLOOKUP($A5,Filtro!$A$4:$AT$2433,34,FALSE),0) -> 0 | AK5: =IFERROR(VLOOKUP($A5,Filtro!$A$4:$AT$2433,35,FALSE),0) -> 0 | AL5: =IFERROR(VLOOKUP($A5,Filtro!$A$4:$AT$2433,36,FALSE),0) -> 640,200 | AM5: =IFERROR(VLOOKUP($A5,Filtro!$A$4:$AT$2433,37,FALSE),0) -> 1055888650
A6: 01010002 | B6: 0101102 | C6: Consulta o control médico integral en especialidades (Hosp. Mediana Complejidad) | D6: =IFERROR(VLOOKUP($A6,Filtro!$A$4:$AT$2433,2,FALSE),0) -> 41077 | E6: =IFERROR(VLOOKUP($A6,Filtro!$A$4:$AT$2433,3,FALSE),0) -> 41026 | F6: =IFERROR(VLOOKUP($A6,Filtro!$A$4:$AT$2433,4,FALSE),0) -> 41026 | G6: =IFERROR(VLOOKUP($A6,Filtro!$A$4:$AT$2433,5,FALSE),0) -> 0 | H6: =IFERROR(VLOOKUP($A6,Filtro!$A$4:$AT$2433,6,FALSE),0) -> 51 | I6: =IFERROR(VLOOKUP($A6,Filtro!$A$4:$AT$2433,7,FALSE),0) -> 0 | J6: =IFERROR(VLOOKUP($A6,Filtro!$A$4:$AT$2433,8,FALSE),0) -> 0 | K6: =IFERROR(VLOOKUP($A6,Filtro!$A$4:$AT$2433,9,FALSE),0) -> 0 | L6: =IFERROR(VLOOKUP($A6,Filtro!$A$4:$AT$2433,10,FALSE),0) -> 0 | M6: =IFERROR(VLOOKUP($A6,Filtro!$A$4:$AT$2433,11,FALSE),0) -> 0 | N6: =IFERROR(VLOOKUP($A6,Filtro!$A$4:$AT$2433,12,FALSE),0) -> 0 | O6: =IFERROR(VLOOKUP($A6,Filtro!$A$4:$AT$2433,13,FALSE),0) -> 0 | P6: =IFERROR(VLOOKUP($A6,Filtro!$A$4:$AT$2433,14,FALSE),0) -> 0 | Q6: =IFERROR(VLOOKUP($A6,Filtro!$A$4:$AT$2433,15,FALSE),0) -> 0 | R6: =IFERROR(VLOOKUP($A6,Filtro!$A$4:$AT$2433,16,FALSE),0) -> 0 | S6: =IFERROR(VLOOKUP($A6,Filtro!$A$4:$AT$2433,17,FALSE),0) -> 0 | T6: =IFERROR(VLOOKUP($A6,Filtro!$A$4:$AT$2433,18,FALSE),0) -> 0 | U6: =IFERROR(VLOOKUP($A6,Filtro!$A$4:$AT$2433,19,FALSE),0) -> 0 | V6: =IFERROR(VLOOKUP($A6,Filtro!$A$4:$AT$2433,20,FALSE),0) -> 0 | W6: =IFERROR(VLOOKUP($A6,Filtro!$A$4:$AT$2433,21,FALSE),0) -> 0 | X6: =IFERROR(VLOOKUP($A6,Filtro!$A$4:$AT$2433,22,FALSE),0) -> 0 | Y6: =IFERROR(VLOOKUP($A6,Filtro!$A$4:$AT$2433,23,FALSE),0) -> 0 | Z6: =IFERROR(VLOOKUP($A6,Filtro!$A$4:$AT$2433,24,FALSE),0) -> 0 | AA6: =IFERROR(VLOOKUP($A6,Filtro!$A$4:$AT$2433,25,FALSE),0) -> 0 | AB6: =IFERROR(VLOOKUP($A6,Filtro!$A$4:$AT$2433,26,FALSE),0) -> 0 | AC6: =IFERROR(VLOOKUP($A6,Filtro!$A$4:$AT$2433,27,FALSE),0) -> 40410 | AD6: =IFERROR(VLOOKUP($A6,Filtro!$A$4:$AT$2433,28,FALSE),0) -> 667 | AE6: =IFERROR(VLOOKUP($A6,Filtro!$A$4:$AT$2433,29,FALSE),0) -> 0 | AF6: =IFERROR(VLOOKUP($A6,Filtro!$A$4:$AT$2433,30,FALSE),0) -> 0 | AG6: =IFERROR(VLOOKUP($A6,Filtro!$A$4:$AT$2433,31,FALSE),0) -> 0 | AH6: =IFERROR(VLOOKUP($A6,Filtro!$A$4:$AT$2433,32,FALSE),0) -> 0 | AI6: =IFERROR(VLOOKUP($A6,Filtro!$A$4:$AT$2433,33,FALSE),0) -> 0 | AJ6: =IFERROR(VLOOKUP($A6,Filtro!$A$4:$AT$2433,34,FALSE),0) -> 0 | AK6: =IFERROR(VLOOKUP($A6,Filtro!$A$4:$AT$2433,35,FALSE),0) -> 0 | AL6: =IFERROR(VLOOKUP($A6,Filtro!$A$4:$AT$2433,36,FALSE),0) -> 806,520 | AM6: =IFERROR(VLOOKUP($A6,Filtro!$A$4:$AT$2433,37,FALSE),0) -> 250668860
A7: 01010003 | B7: 0101103 | C7: Consulta médica integral en servicio de urgencia (Hosp. Alta Complejidad) | D7: =IFERROR(VLOOKUP($A7,Filtro!$A$4:$AT$2433,2,FALSE),0) -> 191297 | E7: =IFERROR(VLOOKUP($A7,Filtro!$A$4:$AT$2433,3,FALSE),0) -> 187668 | F7: =IFERROR(VLOOKUP($A7,Filtro!$A$4:$AT$2433,4,FALSE),0) -> 187668 | G7: =IFERROR(VLOOKUP($A7,Filtro!$A$4:$AT$2433,5,FALSE),0) -> 0 | H7: =IFERROR(VLOOKUP($A7,Filtro!$A$4:$AT$2433,6,FALSE),0) -> 3629 | I7: =IFERROR(VLOOKUP($A7,Filtro!$A$4:$AT$2433,7,FALSE),0) -> 0 | J7: =IFERROR(VLOOKUP($A7,Filtro!$A$4:$AT$2433,8,FALSE),0) -> 0 | K7: =IFERROR(VLOOKUP($A7,Filtro!$A$4:$AT$2433,9,FALSE),0) -> 0 | L7: =IFERROR(VLOOKUP($A7,Filtro!$A$4:$AT$2433,10,FALSE),0) -> 0 | M7: =IFERROR(VLOOKUP($A7,Filtro!$A$4:$AT$2433,11,FALSE),0) -> 0 | N7: =IFERROR(VLOOKUP($A7,Filtro!$A$4:$AT$2433,12,FALSE),0) -> 0 | O7: =IFERROR(VLOOKUP($A7,Filtro!$A$4:$AT$2433,13,FALSE),0) -> 0 | P7: =IFERROR(VLOOKUP($A7,Filtro!$A$4:$AT$2433,14,FALSE),0) -> 0 | Q7: =IFERROR(VLOOKUP($A7,Filtro!$A$4:$AT$2433,15,FALSE),0) -> 0 | R7: =IFERROR(VLOOKUP($A7,Filtro!$A$4:$AT$2433,16,FALSE),0) -> 0 | S7: =IFERROR(VLOOKUP($A7,Filtro!$A$4:$AT$2433,17,FALSE),0) -> 0 | T7: =IFERROR(VLOOKUP($A7,Filtro!$A$4:$AT$2433,18,FALSE),0) -> 0 | U7: =IFERROR(VLOOKUP($A7,Filtro!$A$4:$AT$2433,19,FALSE),0) -> 0 | V7: =IFERROR(VLOOKUP($A7,Filtro!$A$4:$AT$2433,20,FALSE),0) -> 0 | W7: =IFERROR(VLOOKUP($A7,Filtro!$A$4:$AT$2433,21,FALSE),0) -> 0 | X7: =IFERROR(VLOOKUP($A7,Filtro!$A$4:$AT$2433,22,FALSE),0) -> 0 | Y7: =IFERROR(VLOOKUP($A7,Filtro!$A$4:$AT$2433,23,FALSE),0) -> 0 | Z7: =IFERROR(VLOOKUP($A7,Filtro!$A$4:$AT$2433,24,FALSE),0) -> 0 | AA7: =IFERROR(VLOOKUP($A7,Filtro!$A$4:$AT$2433,25,FALSE),0) -> 0 | AB7: =IFERROR(VLOOKUP($A7,Filtro!$A$4:$AT$2433,26,FALSE),0) -> 0 | AC7: =IFERROR(VLOOKUP($A7,Filtro!$A$4:$AT$2433,27,FALSE),0) -> 16541 | AD7: =IFERROR(VLOOKUP($A7,Filtro!$A$4:$AT$2433,28,FALSE),0) -> 174756 | AE7: =IFERROR(VLOOKUP($A7,Filtro!$A$4:$AT$2433,29,FALSE),0) -> 0 | AF7: =IFERROR(VLOOKUP($A7,Filtro!$A$4:$AT$2433,30,FALSE),0) -> 0 | AG7: =IFERROR(VLOOKUP($A7,Filtro!$A$4:$AT$2433,31,FALSE),0) -> 0 | AH7: =IFERROR(VLOOKUP($A7,Filtro!$A$4:$AT$2433,32,FALSE),0) -> 0 | AI7: =IFERROR(VLOOKUP($A7,Filtro!$A$4:$AT$2433,33,FALSE),0) -> 0 | AJ7: =IFERROR(VLOOKUP($A7,Filtro!$A$4:$AT$2433,34,FALSE),0) -> 0 | AK7: =IFERROR(VLOOKUP($A7,Filtro!$A$4:$AT$2433,35,FALSE),0) -> 0 | AL7: =IFERROR(VLOOKUP($A7,Filtro!$A$4:$AT$2433,36,FALSE),0) -> 1,727,880 | AM7: =IFERROR(VLOOKUP($A7,Filtro!$A$4:$AT$2433,37,FALSE),0) -> 2456574120
A8: 01010004 | B8: 0101104 | C8: Consulta médica integral en C.R.S. | D8: =IFERROR(VLOOKUP($A8,Filtro!$A$4:$AT$2433,2,FALSE),0) -> 0 | E8: =IFERROR(VLOOKUP($A8,Filtro!$A$4:$AT$2433,3,FALSE),0) -> 0 | F8: =IFERROR(VLOOKUP($A8,Filtro!$A$4:$AT$2433,4,FALSE),0) -> 0 | G8: =IFERROR(VLOOKUP($A8,Filtro!$A$4:$AT$2433,5,FALSE),0) -> 0 | H8: =IFERROR(VLOOKUP($A8,Filtro!$A$4:$AT$2433,6,FALSE),0) -> 0 | I8: =IFERROR(VLOOKUP($A8,Filtro!$A$4:$AT$2433,7,FALSE),0) -> 0 | J8: =IFERROR(VLOOKUP($A8,Filtro!$A$4:$AT$2433,8,FALSE),0) -> 0 | K8: =IFERROR(VLOOKUP($A8,Filtro!$A$4:$AT$2433,9,FALSE),0) -> 0 | L8: =IFERROR(VLOOKUP($A8,Filtro!$A$4:$AT$2433,10,FALSE),0) -> 0 | M8: =IFERROR(VLOOKUP($A8,Filtro!$A$4:$AT$2433,11,FALSE),0) -> 0 | N8: =IFERROR(VLOOKUP($A8,Filtro!$A$4:$AT$2433,12,FALSE),0) -> 0 | O8: =IFERROR(VLOOKUP($A8,Filtro!$A$4:$AT$2433,13,FALSE),0) -> 0 | P8: =IFERROR(VLOOKUP($A8,Filtro!$A$4:$AT$2433,14,FALSE),0) -> 0 | Q8: =IFERROR(VLOOKUP($A8,Filtro!$A$4:$AT$2433,15,FALSE),0) -> 0 | R8: =IFERROR(VLOOKUP($A8,Filtro!$A$4:$AT$2433,16,FALSE),0) -> 0 | S8: =IFERROR(VLOOKUP($A8,Filtro!$A$4:$AT$2433,17,FALSE),0) -> 0 | T8: =IFERROR(VLOOKUP($A8,Filtro!$A$4:$AT$2433,18,FALSE),0) -> 0 | U8: =IFERROR(VLOOKUP($A8,Filtro!$A$4:$AT$2433,19,FALSE),0) -> 0 | V8: =IFERROR(VLOOKUP($A8,Filtro!$A$4:$AT$2433,20,FALSE),0) -> 0 | W8: =IFERROR(VLOOKUP($A8,Filtro!$A$4:$AT$2433,21,FALSE),0) -> 0 | X8: =IFERROR(VLOOKUP($A8,Filtro!$A$4:$AT$2433,22,FALSE),0) -> 0 | Y8: =IFERROR(VLOOKUP($A8,Filtro!$A$4:$AT$2433,23,FALSE),0) -> 0 | Z8: =IFERROR(VLOOKUP($A8,Filtro!$A$4:$AT$2433,24,FALSE),0) -> 0 | AA8: =IFERROR(VLOOKUP($A8,Filtro!$A$4:$AT$2433,25,FALSE),0) -> 0 | AB8: =IFERROR(VLOOKUP($A8,Filtro!$A$4:$AT$2433,26,FALSE),0) -> 0 | AC8: =IFERROR(VLOOKUP($A8,Filtro!$A$4:$AT$2433,27,FALSE),0) -> 0 | AD8: =IFERROR(VLOOKUP($A8,Filtro!$A$4:$AT$2433,28,FALSE),0) -> 0 | AE8: =IFERROR(VLOOKUP($A8,Filtro!$A$4:$AT$2433,29,FALSE),0) -> 0 | AF8: =IFERROR(VLOOKUP($A8,Filtro!$A$4:$AT$2433,30,FALSE),0) -> 0 | AG8: =IFERROR(VLOOKUP($A8,Filtro!$A$4:$AT$2433,31,FALSE),0) -> 0 | AH8: =IFERROR(VLOOKUP($A8,Filtro!$A$4:$AT$2433,32,FALSE),0) -> 0 | AI8: =IFERROR(VLOOKUP($A8,Filtro!$A$4:$AT$2433,33,FALSE),0) -> 0 | AJ8: =IFERROR(VLOOKUP($A8,Filtro!$A$4:$AT$2433,34,FALSE),0) -> 0 | AK8: =IFERROR(VLOOKUP($A8,Filtro!$A$4:$AT$2433,35,FALSE),0) -> 0 | AL8: =IFERROR(VLOOKUP($A8,Filtro!$A$4:$AT$2433,36,FALSE),0) -> 1,032,240 | AM8: =IFERROR(VLOOKUP($A8,Filtro!$A$4:$AT$2433,37,FALSE),0) -> 0
A9: 01010005 | B9: 0101105 | C9: Consulta médica integral en servicio de urgencia (Hosp. Mediana Complejidad) | D9: =IFERROR(VLOOKUP($A9,Filtro!$A$4:$AT$2433,2,FALSE),0) -> 30295 | E9: =IFERROR(VLOOKUP($A9,Filtro!$A$4:$AT$2433,3,FALSE),0) -> 30130 | F9: =IFERROR(VLOOKUP($A9,Filtro!$A$4:$AT$2433,4,FALSE),0) -> 30130 | G9: =IFERROR(VLOOKUP($A9,Filtro!$A$4:$AT$2433,5,FALSE),0) -> 0 | H9: =IFERROR(VLOOKUP($A9,Filtro!$A$4:$AT$2433,6,FALSE),0) -> 165 | I9: =IFERROR(VLOOKUP($A9,Filtro!$A$4:$AT$2433,7,FALSE),0) -> 0 | J9: =IFERROR(VLOOKUP($A9,Filtro!$A$4:$AT$2433,8,FALSE),0) -> 0 | K9: =IFERROR(VLOOKUP($A9,Filtro!$A$4:$AT$2433,9,FALSE),0) -> 0 | L9: =IFERROR(VLOOKUP($A9,Filtro!$A$4:$AT$2433,10,FALSE),0) -> 0 | M9: =IFERROR(VLOOKUP($A9,Filtro!$A$4:$AT$2433,11,FALSE),0) -> 0 | N9: =IFERROR(VLOOKUP($A9,Filtro!$A$4:$AT$2433,12,FALSE),0) -> 0 | O9: =IFERROR(VLOOKUP($A9,Filtro!$A$4:$AT$2433,13,FALSE),0) -> 0 | P9: =IFERROR(VLOOKUP($A9,Filtro!$A$4:$AT$2433,14,FALSE),0) -> 0 | Q9: =IFERROR(VLOOKUP($A9,Filtro!$A$4:$AT$2433,15,FALSE),0) -> 0 | R9: =IFERROR(VLOOKUP($A9,Filtro!$A$4:$AT$2433,16,FALSE),0) -> 0 | S9: =IFERROR(VLOOKUP($A9,Filtro!$A$4:$AT$2433,17,FALSE),0) -> 0 | T9: =IFERROR(VLOOKUP($A9,Filtro!$A$4:$AT$2433,18,FALSE),0) -> 0 | U9: =IFERROR(VLOOKUP($A9,Filtro!$A$4:$AT$2433,19,FALSE),0) -> 0 | V9: =IFERROR(VLOOKUP($A9,Filtro!$A$4:$AT$2433,20,FALSE),0) -> 0 | W9: =IFERROR(VLOOKUP($A9,Filtro!$A$4:$AT$2433,21,FALSE),0) -> 0 | X9: =IFERROR(VLOOKUP($A9,Filtro!$A$4:$AT$2433,22,FALSE),0) -> 0 | Y9: =IFERROR(VLOOKUP($A9,Filtro!$A$4:$AT$2433,23,FALSE),0) -> 0 | Z9: =IFERROR(VLOOKUP($A9,Filtro!$A$4:$AT$2433,24,FALSE),0) -> 0 | AA9: =IFERROR(VLOOKUP($A9,Filtro!$A$4:$AT$2433,25,FALSE),0) -> 0 | AB9: =IFERROR(VLOOKUP($A9,Filtro!$A$4:$AT$2433,26,FALSE),0) -> 0 | AC9: =IFERROR(VLOOKUP($A9,Filtro!$A$4:$AT$2433,27,FALSE),0) -> 0 | AD9: =IFERROR(VLOOKUP($A9,Filtro!$A$4:$AT$2433,28,FALSE),0) -> 30295 | AE9: =IFERROR(VLOOKUP($A9,Filtro!$A$4:$AT$2433,29,FALSE),0) -> 0 | AF9: =IFERROR(VLOOKUP($A9,Filtro!$A$4:$AT$2433,30,FALSE),0) -> 0 | AG9: =IFERROR(VLOOKUP($A9,Filtro!$A$4:$AT$2433,31,FALSE),0) -> 0 | AH9: =IFERROR(VLOOKUP($A9,Filtro!$A$4:$AT$2433,32,FALSE),0) -> 0 | AI9: =IFERROR(VLOOKUP($A9,Filtro!$A$4:$AT$2433,33,FALSE),0) -> 0 | AJ9: =IFERROR(VLOOKUP($A9,Filtro!$A$4:$AT$2433,34,FALSE),0) -> 0 | AK9: =IFERROR(VLOOKUP($A9,Filtro!$A$4:$AT$2433,35,FALSE),0) -> 0 | AL9: =IFERROR(VLOOKUP($A9,Filtro!$A$4:$AT$2433,36,FALSE),0) -> 1,132,560 | AM9: =IFERROR(VLOOKUP($A9,Filtro!$A$4:$AT$2433,37,FALSE),0) -> 258515400
A10: 01010006 | B10: 0101106 | C10: Asistencia de cardiólogo a cirugías no cardíacas | D10: =IFERROR(VLOOKUP($A10,Filtro!$A$4:$AT$2433,2,FALSE),0) -> 0 | E10: =IFERROR(VLOOKUP($A10,Filtro!$A$4:$AT$2433,3,FALSE),0) -> 0 | F10: =IFERROR(VLOOKUP($A10,Filtro!$A$4:$AT$2433,4,FALSE),0) -> 0 | G10: =IFERROR(VLOOKUP($A10,Filtro!$A$4:$AT$2433,5,FALSE),0) -> 0 | H10: =IFERROR(VLOOKUP($A10,Filtro!$A$4:$AT$2433,6,FALSE),0) -> 0 | I10: =IFERROR(VLOOKUP($A10,Filtro!$A$4:$AT$2433,7,FALSE),0) -> 0 | J10: =IFERROR(VLOOKUP($A10,Filtro!$A$4:$AT$2433,8,FALSE),0) -> 0 | K10: =IFERROR(VLOOKUP($A10,Filtro!$A$4:$AT$2433,9,FALSE),0) -> 0 | L10: =IFERROR(VLOOKUP($A10,Filtro!$A$4:$AT$2433,10,FALSE),0) -> 0 | M10: =IFERROR(VLOOKUP($A10,Filtro!$A$4:$AT$2433,11,FALSE),0) -> 0 | N10: =IFERROR(VLOOKUP($A10,Filtro!$A$4:$AT$2433,12,FALSE),0) -> 0 | O10: =IFERROR(VLOOKUP($A10,Filtro!$A$4:$AT$2433,13,FALSE),0) -> 0 | P10: =IFERROR(VLOOKUP($A10,Filtro!$A$4:$AT$2433,14,FALSE),0) -> 0 | Q10: =IFERROR(VLOOKUP($A10,Filtro!$A$4:$AT$2433,15,FALSE),0) -> 0 | R10: =IFERROR(VLOOKUP($A10,Filtro!$A$4:$AT$2433,16,FALSE),0) -> 0 | S10: =IFERROR(VLOOKUP($A10,Filtro!$A$4:$AT$2433,17,FALSE),0) -> 0 | T10: =IFERROR(VLOOKUP($A10,Filtro!$A$4:$AT$2433,18,FALSE),0) -> 0 | U10: =IFERROR(VLOOKUP($A10,Filtro!$A$4:$AT$2433,19,FALSE),0) -> 0 | V10: =IFERROR(VLOOKUP($A10,Filtro!$A$4:$AT$2433,20,FALSE),0) -> 0 | W10: =IFERROR(VLOOKUP($A10,Filtro!$A$4:$AT$2433,21,FALSE),0) -> 0 | X10: =IFERROR(VLOOKUP($A10,Filtro!$A$4:$AT$2433,22,FALSE),0) -> 0 | Y10: =IFERROR(VLOOKUP($A10,Filtro!$A$4:$AT$2433,23,FALSE),0) -> 0 | Z10: =IFERROR(VLOOKUP($A10,Filtro!$A$4:$AT$2433,24,FALSE),0) -> 0 | AA10: =IFERROR(VLOOKUP($A10,Filtro!$A$4:$AT$2433,25,FALSE),0) -> 0 | AB10: =IFERROR(VLOOKUP($A10,Filtro!$A$4:$AT$2433,26,FALSE),0) -> 0 | AC10: =IFERROR(VLOOKUP($A10,Filtro!$A$4:$AT$2433,27,FALSE),0) -> 0 | AD10: =IFERROR(VLOOKUP($A10,Filtro!$A$4:$AT$2433,28,FALSE),0) -> 0 | AE10: =IFERROR(VLOOKUP($A10,Filtro!$A$4:$AT$2433,29,FALSE),0) -> 0 | AF10: =IFERROR(VLOOKUP($A10,Filtro!$A$4:$AT$2433,30,FALSE),0) -> 0 | AG10: =IFERROR(VLOOKUP($A10,Filtro!$A$4:$AT$2433,31,FALSE),0) -> 0 | AH10: =IFERROR(VLOOKUP($A10,Filtro!$A$4:$AT$2433,32,FALSE),0) -> 0 | AI10: =IFERROR(VLOOKUP($A10,Filtro!$A$4:$AT$2433,33,FALSE),0) -> 0 | AJ10: =IFERROR(VLOOKUP($A10,Filtro!$A$4:$AT$2433,34,FALSE),0) -> 0 | AK10: =IFERROR(VLOOKUP($A10,Filtro!$A$4:$AT$2433,35,FALSE),0) -> 0 | AL10: =IFERROR(VLOOKUP($A10,Filtro!$A$4:$AT$2433,36,FALSE),0) -> 2,166,120 | AM10: =IFERROR(VLOOKUP($A10,Filtro!$A$4:$AT$2433,37,FALSE),0) -> 0
A11: 01010007 | B11: 0101107 | C11: Atención médica del recién nacido | D11: =IFERROR(VLOOKUP($A11,Filtro!$A$4:$AT$2433,2,FALSE),0) -> 9573 | E11: =IFERROR(VLOOKUP($A11,Filtro!$A$4:$AT$2433,3,FALSE),0) -> 7093 | F11: =IFERROR(VLOOKUP($A11,Filtro!$A$4:$AT$2433,4,FALSE),0) -> 6305 | G11: =IFERROR(VLOOKUP($A11,Filtro!$A$4:$AT$2433,5,FALSE),0) -> 788 | H11: =IFERROR(VLOOKUP($A11,Filtro!$A$4:$AT$2433,6,FALSE),0) -> 2480 | I11: =IFERROR(VLOOKUP($A11,Filtro!$A$4:$AT$2433,7,FALSE),0) -> 0 | J11: =IFERROR(VLOOKUP($A11,Filtro!$A$4:$AT$2433,8,FALSE),0) -> 0 | K11: =IFERROR(VLOOKUP($A11,Filtro!$A$4:$AT$2433,9,FALSE),0) -> 0 | L11: =IFERROR(VLOOKUP($A11,Filtro!$A$4:$AT$2433,10,FALSE),0) -> 0 | M11: =IFERROR(VLOOKUP($A11,Filtro!$A$4:$AT$2433,11,FALSE),0) -> 0 | N11: =IFERROR(VLOOKUP($A11,Filtro!$A$4:$AT$2433,12,FALSE),0) -> 0 | O11: =IFERROR(VLOOKUP($A11,Filtro!$A$4:$AT$2433,13,FALSE),0) -> 0 | P11: =IFERROR(VLOOKUP($A11,Filtro!$A$4:$AT$2433,14,FALSE),0) -> 0 | Q11: =IFERROR(VLOOKUP($A11,Filtro!$A$4:$AT$2433,15,FALSE),0) -> 0 | R11: =IFERROR(VLOOKUP($A11,Filtro!$A$4:$AT$2433,16,FALSE),0) -> 0 | S11: =IFERROR(VLOOKUP($A11,Filtro!$A$4:$AT$2433,17,FALSE),0) -> 0 | T11: =IFERROR(VLOOKUP($A11,Filtro!$A$4:$AT$2433,18,FALSE),0) -> 0 | U11: =IFERROR(VLOOKUP($A11,Filtro!$A$4:$AT$2433,19,FALSE),0) -> 0 | V11: =IFERROR(VLOOKUP($A11,Filtro!$A$4:$AT$2433,20,FALSE),0) -> 0 | W11: =IFERROR(VLOOKUP($A11,Filtro!$A$4:$AT$2433,21,FALSE),0) -> 0 | X11: =IFERROR(VLOOKUP($A11,Filtro!$A$4:$AT$2433,22,FALSE),0) -> 0 | Y11: =IFERROR(VLOOKUP($A11,Filtro!$A$4:$AT$2433,23,FALSE),0) -> 0 | Z11: =IFERROR(VLOOKUP($A11,Filtro!$A$4:$AT$2433,24,FALSE),0) -> 0 | AA11: =IFERROR(VLOOKUP($A11,Filtro!$A$4:$AT$2433,25,FALSE),0) -> 0 | AB11: =IFERROR(VLOOKUP($A11,Filtro!$A$4:$AT$2433,26,FALSE),0) -> 6858 | AC11: =IFERROR(VLOOKUP($A11,Filtro!$A$4:$AT$2433,27,FALSE),0) -> 2645 | AD11: =IFERROR(VLOOKUP($A11,Filtro!$A$4:$AT$2433,28,FALSE),0) -> 70 | AE11: =IFERROR(VLOOKUP($A11,Filtro!$A$4:$AT$2433,29,FALSE),0) -> 0 | AF11: =IFERROR(VLOOKUP($A11,Filtro!$A$4:$AT$2433,30,FALSE),0) -> 0 | AG11: =IFERROR(VLOOKUP($A11,Filtro!$A$4:$AT$2433,31,FALSE),0) -> 0 | AH11: =IFERROR(VLOOKUP($A11,Filtro!$A$4:$AT$2433,32,FALSE),0) -> 0 | AI11: =IFERROR(VLOOKUP($A11,Filtro!$A$4:$AT$2433,33,FALSE),0) -> 0 | AJ11: =IFERROR(VLOOKUP($A11,Filtro!$A$4:$AT$2433,34,FALSE),0) -> 0 | AK11: =IFERROR(VLOOKUP($A11,Filtro!$A$4:$AT$2433,35,FALSE),0) -> 0 | AL11: =IFERROR(VLOOKUP($A11,Filtro!$A$4:$AT$2433,36,FALSE),0) -> 2,166,120 | AM11: =IFERROR(VLOOKUP($A11,Filtro!$A$4:$AT$2433,37,FALSE),0) -> 103465050
A12: 01010008 | B12: 0101108 | C12: Consulta integral de especialidades en Cirugía, Ginecología y Obstetricia, Ortopedia y Traumatología (en CDT) | D12: =IFERROR(VLOOKUP($A12,Filtro!$A$4:$AT$2433,2,FALSE),0) -> 109 | E12: =IFERROR(VLOOKUP($A12,Filtro!$A$4:$AT$2433,3,FALSE),0) -> 109 | F12: =IFERROR(VLOOKUP($A12,Filtro!$A$4:$AT$2433,4,FALSE),0) -> 109 | G12: =IFERROR(VLOOKUP($A12,Filtro!$A$4:$AT$2433,5,FALSE),0) -> 0 | H12: =IFERROR(VLOOKUP($A12,Filtro!$A$4:$AT$2433,6,FALSE),0) -> 0 | I12: =IFERROR(VLOOKUP($A12,Filtro!$A$4:$AT$2433,7,FALSE),0) -> 0 | J12: =IFERROR(VLOOKUP($A12,Filtro!$A$4:$AT$2433,8,FALSE),0) -> 0 | K12: =IFERROR(VLOOKUP($A12,Filtro!$A$4:$AT$2433,9,FALSE),0) -> 0 | L12: =IFERROR(VLOOKUP($A12,Filtro!$A$4:$AT$2433,10,FALSE),0) -> 0 | M12: =IFERROR(VLOOKUP($A12,Filtro!$A$4:$AT$2433,11,FALSE),0) -> 0 | N12: =IFERROR(VLOOKUP($A12,Filtro!$A$4:$AT$2433,12,FALSE),0) -> 0 | O12: =IFERROR(VLOOKUP($A12,Filtro!$A$4:$AT$2433,13,FALSE),0) -> 0 | P12: =IFERROR(VLOOKUP($A12,Filtro!$A$4:$AT$2433,14,FALSE),0) -> 0 | Q12: =IFERROR(VLOOKUP($A12,Filtro!$A$4:$AT$2433,15,FALSE),0) -> 0 | R12: =IFERROR(VLOOKUP($A12,Filtro!$A$4:$AT$2433,16,FALSE),0) -> 0 | S12: =IFERROR(VLOOKUP($A12,Filtro!$A$4:$AT$2433,17,FALSE),0) -> 0 | T12: =IFERROR(VLOOKUP($A12,Filtro!$A$4:$AT$2433,18,FALSE),0) -> 0 | U12: =IFERROR(VLOOKUP($A12,Filtro!$A$4:$AT$2433,19,FALSE),0) -> 0 | V12: =IFERROR(VLOOKUP($A12,Filtro!$A$4:$AT$2433,20,FALSE),0) -> 0 | W12: =IFERROR(VLOOKUP($A12,Filtro!$A$4:$AT$2433,21,FALSE),0) -> 0 | X12: =IFERROR(VLOOKUP($A12,Filtro!$A$4:$AT$2433,22,FALSE),0) -> 0 | Y12: =IFERROR(VLOOKUP($A12,Filtro!$A$4:$AT$2433,23,FALSE),0) -> 0 | Z12: =IFERROR(VLOOKUP($A12,Filtro!$A$4:$AT$2433,24,FALSE),0) -> 0 | AA12: =IFERROR(VLOOKUP($A12,Filtro!$A$4:$AT$2433,25,FALSE),0) -> 0 | AB12: =IFERROR(VLOOKUP($A12,Filtro!$A$4:$AT$2433,26,FALSE),0) -> 0 | AC12: =IFERROR(VLOOKUP($A12,Filtro!$A$4:$AT$2433,27,FALSE),0) -> 109 | AD12: =IFERROR(VLOOKUP($A12,Filtro!$A$4:$AT$2433,28,FALSE),0) -> 0 | AE12: =IFERROR(VLOOKUP($A12,Filtro!$A$4:$AT$2433,29,FALSE),0) -> 0 | AF12: =IFERROR(VLOOKUP($A12,Filtro!$A$4:$AT$2433,30,FALSE),0) -> 0 | AG12: =IFERROR(VLOOKUP($A12,Filtro!$A$4:$AT$2433,31,FALSE),0) -> 0 | AH12: =IFERROR(VLOOKUP($A12,Filtro!$A$4:$AT$2433,32,FALSE),0) -> 0 | AI12: =IFERROR(VLOOKUP($A12,Filtro!$A$4:$AT$2433,33,FALSE),0) -> 0 | AJ12: =IFERROR(VLOOKUP($A12,Filtro!$A$4:$AT$2433,34,FALSE),0) -> 0 | AK12: =IFERROR(VLOOKUP($A12,Filtro!$A$4:$AT$2433,35,FALSE),0) -> 0 | AL12: =IFERROR(VLOOKUP($A12,Filtro!$A$4:$AT$2433,36,FALSE),0) -> 872,520 | AM12: =IFERROR(VLOOKUP($A12,Filtro!$A$4:$AT$2433,37,FALSE),0) -> 720490
A13: 01010009 | B13: 0101109 | C13: Consulta integral de especialidades en Urología, Otorrinolaringología, Medicina Fisica y Rehabilitación, Dermatología, Pediatría y Subespecialidades (en CDT) | D13: =IFERROR(VLOOKUP($A13,Filtro!$A$4:$AT$2433,2,FALSE),0) -> 0 | E13: =IFERROR(VLOOKUP($A13,Filtro!$A$4:$AT$2433,3,FALSE),0) -> 0 | F13: =IFERROR(VLOOKUP($A13,Filtro!$A$4:$AT$2433,4,FALSE),0) -> 0 | G13: =IFERROR(VLOOKUP($A13,Filtro!$A$4:$AT$2433,5,FALSE),0) -> 0 | H13: =IFERROR(VLOOKUP($A13,Filtro!$A$4:$AT$2433,6,FALSE),0) -> 0 | I13: =IFERROR(VLOOKUP($A13,Filtro!$A$4:$AT$2433,7,FALSE),0) -> 0 | J13: =IFERROR(VLOOKUP($A13,Filtro!$A$4:$AT$2433,8,FALSE),0) -> 0 | K13: =IFERROR(VLOOKUP($A13,Filtro!$A$4:$AT$2433,9,FALSE),0) -> 0 | L13: =IFERROR(VLOOKUP($A13,Filtro!$A$4:$AT$2433,10,FALSE),0) -> 0 | M13: =IFERROR(VLOOKUP($A13,Filtro!$A$4:$AT$2433,11,FALSE),0) -> 0 | N13: =IFERROR(VLOOKUP($A13,Filtro!$A$4:$AT$2433,12,FALSE),0) -> 0 | O13: =IFERROR(VLOOKUP($A13,Filtro!$A$4:$AT$2433,13,FALSE),0) -> 0 | P13: =IFERROR(VLOOKUP($A13,Filtro!$A$4:$AT$2433,14,FALSE),0) -> 0 | Q13: =IFERROR(VLOOKUP($A13,Filtro!$A$4:$AT$2433,15,FALSE),0) -> 0 | R13: =IFERROR(VLOOKUP($A13,Filtro!$A$4:$AT$2433,16,FALSE),0) -> 0 | S13: =IFERROR(VLOOKUP($A13,Filtro!$A$4:$AT$2433,17,FALSE),0) -> 0 | T13: =IFERROR(VLOOKUP($A13,Filtro!$A$4:$AT$2433,18,FALSE),0) -> 0 | U13: =IFERROR(VLOOKUP($A13,Filtro!$A$4:$AT$2433,19,FALSE),0) -> 0 | V13: =IFERROR(VLOOKUP($A13,Filtro!$A$4:$AT$2433,20,FALSE),0) -> 0 | W13: =IFERROR(VLOOKUP($A13,Filtro!$A$4:$AT$2433,21,FALSE),0) -> 0 | X13: =IFERROR(VLOOKUP($A13,Filtro!$A$4:$AT$2433,22,FALSE),0) -> 0 | Y13: =IFERROR(VLOOKUP($A13,Filtro!$A$4:$AT$2433,23,FALSE),0) -> 0 | Z13: =IFERROR(VLOOKUP($A13,Filtro!$A$4:$AT$2433,24,FALSE),0) -> 0 | AA13: =IFERROR(VLOOKUP($A13,Filtro!$A$4:$AT$2433,25,FALSE),0) -> 0 | AB13: =IFERROR(VLOOKUP($A13,Filtro!$A$4:$AT$2433,26,FALSE),0) -> 0 | AC13: =IFERROR(VLOOKUP($A13,Filtro!$A$4:$AT$2433,27,FALSE),0) -> 0 | AD13: =IFERROR(VLOOKUP($A13,Filtro!$A$4:$AT$2433,28,FALSE),0) -> 0 | AE13: =IFERROR(VLOOKUP($A13,Filtro!$A$4:$AT$2433,29,FALSE),0) -> 0 | AF13: =IFERROR(VLOOKUP($A13,Filtro!$A$4:$AT$2433,30,FALSE),0) -> 0 | AG13: =IFERROR(VLOOKUP($A13,Filtro!$A$4:$AT$2433,31,FALSE),0) -> 0 | AH13: =IFERROR(VLOOKUP($A13,Filtro!$A$4:$AT$2433,32,FALSE),0) -> 0 | AI13: =IFERROR(VLOOKUP($A13,Filtro!$A$4:$AT$2433,33,FALSE),0) -> 0 | AJ13: =IFERROR(VLOOKUP($A13,Filtro!$A$4:$AT$2433,34,FALSE),0) -> 0 | AK13: =IFERROR(VLOOKUP($A13,Filtro!$A$4:$AT$2433,35,FALSE),0) -> 0 | AL13: =IFERROR(VLOOKUP($A13,Filtro!$A$4:$AT$2433,36,FALSE),0) -> 1,048,080 | AM13: =IFERROR(VLOOKUP($A13,Filtro!$A$4:$AT$2433,37,FALSE),0) -> 0
A14: 01010010 | B14: 0101110 | C14: Consulta integral de especialidades en Medicina Interna y Subespecialidades, Oftalmología, Neurología, Oncología (en CDT) | D14: =IFERROR(VLOOKUP($A14,Filtro!$A$4:$AT$2433,2,FALSE),0) -> 0 | E14: =IFERROR(VLOOKUP($A14,Filtro!$A$4:$AT$2433,3,FALSE),0) -> 0 | F14: =IFERROR(VLOOKUP($A14,Filtro!$A$4:$AT$2433,4,FALSE),0) -> 0 | G14: =IFERROR(VLOOKUP($A14,Filtro!$A$4:$AT$2433,5,FALSE),0) -> 0 | H14: =IFERROR(VLOOKUP($A14,Filtro!$A$4:$AT$2433,6,FALSE),0) -> 0 | I14: =IFERROR(VLOOKUP($A14,Filtro!$A$4:$AT$2433,7,FALSE),0) -> 0 | J14: =IFERROR(VLOOKUP($A14,Filtro!$A$4:$AT$2433,8,FALSE),0) -> 0 | K14: =IFERROR(VLOOKUP($A14,Filtro!$A$4:$AT$2433,9,FALSE),0) -> 0 | L14: =IFERROR(VLOOKUP($A14,Filtro!$A$4:$AT$2433,10,FALSE),0) -> 0 | M14: =IFERROR(VLOOKUP($A14,Filtro!$A$4:$AT$2433,11,FALSE),0) -> 0 | N14: =IFERROR(VLOOKUP($A14,Filtro!$A$4:$AT$2433,12,FALSE),0) -> 0 | O14: =IFERROR(VLOOKUP($A14,Filtro!$A$4:$AT$2433,13,FALSE),0) -> 0 | P14: =IFERROR(VLOOKUP($A14,Filtro!$A$4:$AT$2433,14,FALSE),0) -> 0 | Q14: =IFERROR(VLOOKUP($A14,Filtro!$A$4:$AT$2433,15,FALSE),0) -> 0 | R14: =IFERROR(VLOOKUP($A14,Filtro!$A$4:$AT$2433,16,FALSE),0) -> 0 | S14: =IFERROR(VLOOKUP($A14,Filtro!$A$4:$AT$2433,17,FALSE),0) -> 0 | T14: =IFERROR(VLOOKUP($A14,Filtro!$A$4:$AT$2433,18,FALSE),0) -> 0 | U14: =IFERROR(VLOOKUP($A14,Filtro!$A$4:$AT$2433,19,FALSE),0) -> 0 | V14: =IFERROR(VLOOKUP($A14,Filtro!$A$4:$AT$2433,20,FALSE),0) -> 0 | W14: =IFERROR(VLOOKUP($A14,Filtro!$A$4:$AT$2433,21,FALSE),0) -> 0 | X14: =IFERROR(VLOOKUP($A14,Filtro!$A$4:$AT$2433,22,FALSE),0) -> 0 | Y14: =IFERROR(VLOOKUP($A14,Filtro!$A$4:$AT$2433,23,FALSE),0) -> 0 | Z14: =IFERROR(VLOOKUP($A14,Filtro!$A$4:$AT$2433,24,FALSE),0) -> 0 | AA14: =IFERROR(VLOOKUP($A14,Filtro!$A$4:$AT$2433,25,FALSE),0) -> 0 | AB14: =IFERROR(VLOOKUP($A14,Filtro!$A$4:$AT$2433,26,FALSE),0) -> 0 | AC14: =IFERROR(VLOOKUP($A14,Filtro!$A$4:$AT$2433,27,FALSE),0) -> 0 | AD14: =IFERROR(VLOOKUP($A14,Filtro!$A$4:$AT$2433,28,FALSE),0) -> 0 | AE14: =IFERROR(VLOOKUP($A14,Filtro!$A$4:$AT$2433,29,FALSE),0) -> 0 | AF14: =IFERROR(VLOOKUP($A14,Filtro!$A$4:$AT$2433,30,FALSE),0) -> 0 | AG14: =IFERROR(VLOOKUP($A14,Filtro!$A$4:$AT$2433,31,FALSE),0) -> 0 | AH14: =IFERROR(VLOOKUP($A14,Filtro!$A$4:$AT$2433,32,FALSE),0) -> 0 | AI14: =IFERROR(VLOOKUP($A14,Filtro!$A$4:$AT$2433,33,FALSE),0) -> 0 | AJ14: =IFERROR(VLOOKUP($A14,Filtro!$A$4:$AT$2433,34,FALSE),0) -> 0 | AK14: =IFERROR(VLOOKUP($A14,Filtro!$A$4:$AT$2433,35,FALSE),0) -> 0 | AL14: =IFERROR(VLOOKUP($A14,Filtro!$A$4:$AT$2433,36,FALSE),0) -> 1,298,880 | AM14: =IFERROR(VLOOKUP($A14,Filtro!$A$4:$AT$2433,37,FALSE),0) -> 0
A15: 01010011 | B15: 0101111 | C15: Consulta integral de especialidades en Cirugía, Ginecología y Obstetricia, Ortopedia y Traumatología (Hosp. Alta Complejidad) | D15: =IFERROR(VLOOKUP($A15,Filtro!$A$4:$AT$2433,2,FALSE),0) -> 100897 | E15: =IFERROR(VLOOKUP($A15,Filtro!$A$4:$AT$2433,3,FALSE),0) -> 100425 | F15: =IFERROR(VLOOKUP($A15,Filtro!$A$4:$AT$2433,4,FALSE),0) -> 100425 | G15: =IFERROR(VLOOKUP($A15,Filtro!$A$4:$AT$2433,5,FALSE),0) -> 0 | H15: =IFERROR(VLOOKUP($A15,Filtro!$A$4:$AT$2433,6,FALSE),0) -> 472 | I15: =IFERROR(VLOOKUP($A15,Filtro!$A$4:$AT$2433,7,FALSE),0) -> 0 | J15: =IFERROR(VLOOKUP($A15,Filtro!$A$4:$AT$2433,8,FALSE),0) -> 0 | K15: =IFERROR(VLOOKUP($A15,Filtro!$A$4:$AT$2433,9,FALSE),0) -> 0 | L15: =IFERROR(VLOOKUP($A15,Filtro!$A$4:$AT$2433,10,FALSE),0) -> 0 | M15: =IFERROR(VLOOKUP($A15,Filtro!$A$4:$AT$2433,11,FALSE),0) -> 0 | N15: =IFERROR(VLOOKUP($A15,Filtro!$A$4:$AT$2433,12,FALSE),0) -> 0 | O15: =IFERROR(VLOOKUP($A15,Filtro!$A$4:$AT$2433,13,FALSE),0) -> 0 | P15: =IFERROR(VLOOKUP($A15,Filtro!$A$4:$AT$2433,14,FALSE),0) -> 0 | Q15: =IFERROR(VLOOKUP($A15,Filtro!$A$4:$AT$2433,15,FALSE),0) -> 0 | R15: =IFERROR(VLOOKUP($A15,Filtro!$A$4:$AT$2433,16,FALSE),0) -> 0 | S15: =IFERROR(VLOOKUP($A15,Filtro!$A$4:$AT$2433,17,FALSE),0) -> 0 | T15: =IFERROR(VLOOKUP($A15,Filtro!$A$4:$AT$2433,18,FALSE),0) -> 0 | U15: =IFERROR(VLOOKUP($A15,Filtro!$A$4:$AT$2433,19,FALSE),0) -> 0 | V15: =IFERROR(VLOOKUP($A15,Filtro!$A$4:$AT$2433,20,FALSE),0) -> 0 | W15: =IFERROR(VLOOKUP($A15,Filtro!$A$4:$AT$2433,21,FALSE),0) -> 0 | X15: =IFERROR(VLOOKUP($A15,Filtro!$A$4:$AT$2433,22,FALSE),0) -> 0 | Y15: =IFERROR(VLOOKUP($A15,Filtro!$A$4:$AT$2433,23,FALSE),0) -> 0 | Z15: =IFERROR(VLOOKUP($A15,Filtro!$A$4:$AT$2433,24,FALSE),0) -> 0 | AA15: =IFERROR(VLOOKUP($A15,Filtro!$A$4:$AT$2433,25,FALSE),0) -> 0 | AB15: =IFERROR(VLOOKUP($A15,Filtro!$A$4:$AT$2433,26,FALSE),0) -> 0 | AC15: =IFERROR(VLOOKUP($A15,Filtro!$A$4:$AT$2433,27,FALSE),0) -> 100520 | AD15: =IFERROR(VLOOKUP($A15,Filtro!$A$4:$AT$2433,28,FALSE),0) -> 55 | AE15: =IFERROR(VLOOKUP($A15,Filtro!$A$4:$AT$2433,29,FALSE),0) -> 2214 | AF15: =IFERROR(VLOOKUP($A15,Filtro!$A$4:$AT$2433,30,FALSE),0) -> 0 | AG15: =IFERROR(VLOOKUP($A15,Filtro!$A$4:$AT$2433,31,FALSE),0) -> 0 | AH15: =IFERROR(VLOOKUP($A15,Filtro!$A$4:$AT$2433,32,FALSE),0) -> 0 | AI15: =IFERROR(VLOOKUP($A15,Filtro!$A$4:$AT$2433,33,FALSE),0) -> 0 | AJ15: =IFERROR(VLOOKUP($A15,Filtro!$A$4:$AT$2433,34,FALSE),0) -> 0 | AK15: =IFERROR(VLOOKUP($A15,Filtro!$A$4:$AT$2433,35,FALSE),0) -> 0 | AL15: =IFERROR(VLOOKUP($A15,Filtro!$A$4:$AT$2433,36,FALSE),0) -> 872,520 | AM15: =IFERROR(VLOOKUP($A15,Filtro!$A$4:$AT$2433,37,FALSE),0) -> 663809250
A16: 01010012 | B16: 0101112 | C16: Consulta integral de especialidades en Urología, Otorrinolaringología, Medicina Física y Rehabilitación, Dermatología, Pediatría y Subespecialidades (Hosp. Alta Complejidad) | D16: =IFERROR(VLOOKUP($A16,Filtro!$A$4:$AT$2433,2,FALSE),0) -> 92305 | E16: =IFERROR(VLOOKUP($A16,Filtro!$A$4:$AT$2433,3,FALSE),0) -> 91974 | F16: =IFERROR(VLOOKUP($A16,Filtro!$A$4:$AT$2433,4,FALSE),0) -> 91974 | G16: =IFERROR(VLOOKUP($A16,Filtro!$A$4:$AT$2433,5,FALSE),0) -> 0 | H16: =IFERROR(VLOOKUP($A16,Filtro!$A$4:$AT$2433,6,FALSE),0) -> 331 | I16: =IFERROR(VLOOKUP($A16,Filtro!$A$4:$AT$2433,7,FALSE),0) -> 0 | J16: =IFERROR(VLOOKUP($A16,Filtro!$A$4:$AT$2433,8,FALSE),0) -> 0 | K16: =IFERROR(VLOOKUP($A16,Filtro!$A$4:$AT$2433,9,FALSE),0) -> 0 | L16: =IFERROR(VLOOKUP($A16,Filtro!$A$4:$AT$2433,10,FALSE),0) -> 0 | M16: =IFERROR(VLOOKUP($A16,Filtro!$A$4:$AT$2433,11,FALSE),0) -> 0 | N16: =IFERROR(VLOOKUP($A16,Filtro!$A$4:$AT$2433,12,FALSE),0) -> 0 | O16: =IFERROR(VLOOKUP($A16,Filtro!$A$4:$AT$2433,13,FALSE),0) -> 0 | P16: =IFERROR(VLOOKUP($A16,Filtro!$A$4:$AT$2433,14,FALSE),0) -> 0 | Q16: =IFERROR(VLOOKUP($A16,Filtro!$A$4:$AT$2433,15,FALSE),0) -> 0 | R16: =IFERROR(VLOOKUP($A16,Filtro!$A$4:$AT$2433,16,FALSE),0) -> 0 | S16: =IFERROR(VLOOKUP($A16,Filtro!$A$4:$AT$2433,17,FALSE),0) -> 0 | T16: =IFERROR(VLOOKUP($A16,Filtro!$A$4:$AT$2433,18,FALSE),0) -> 0 | U16: =IFERROR(VLOOKUP($A16,Filtro!$A$4:$AT$2433,19,FALSE),0) -> 0 | V16: =IFERROR(VLOOKUP($A16,Filtro!$A$4:$AT$2433,20,FALSE),0) -> 0 | W16: =IFERROR(VLOOKUP($A16,Filtro!$A$4:$AT$2433,21,FALSE),0) -> 0 | X16: =IFERROR(VLOOKUP($A16,Filtro!$A$4:$AT$2433,22,FALSE),0) -> 0 | Y16: =IFERROR(VLOOKUP($A16,Filtro!$A$4:$AT$2433,23,FALSE),0) -> 0 | Z16: =IFERROR(VLOOKUP($A16,Filtro!$A$4:$AT$2433,24,FALSE),0) -> 0 | AA16: =IFERROR(VLOOKUP($A16,Filtro!$A$4:$AT$2433,25,FALSE),0) -> 0 | AB16: =IFERROR(VLOOKUP($A16,Filtro!$A$4:$AT$2433,26,FALSE),0) -> 0 | AC16: =IFERROR(VLOOKUP($A16,Filtro!$A$4:$AT$2433,27,FALSE),0) -> 93097 | AD16: =IFERROR(VLOOKUP($A16,Filtro!$A$4:$AT$2433,28,FALSE),0) -> 0 | AE16: =IFERROR(VLOOKUP($A16,Filtro!$A$4:$AT$2433,29,FALSE),0) -> 598 | AF16: =IFERROR(VLOOKUP($A16,Filtro!$A$4:$AT$2433,30,FALSE),0) -> 0 | AG16: =IFERROR(VLOOKUP($A16,Filtro!$A$4:$AT$2433,31,FALSE),0) -> 0 | AH16: =IFERROR(VLOOKUP($A16,Filtro!$A$4:$AT$2433,32,FALSE),0) -> 0 | AI16: =IFERROR(VLOOKUP($A16,Filtro!$A$4:$AT$2433,33,FALSE),0) -> 0 | AJ16: =IFERROR(VLOOKUP($A16,Filtro!$A$4:$AT$2433,34,FALSE),0) -> 0 | AK16: =IFERROR(VLOOKUP($A16,Filtro!$A$4:$AT$2433,35,FALSE),0) -> 0 | AL16: =IFERROR(VLOOKUP($A16,Filtro!$A$4:$AT$2433,36,FALSE),0) -> 1,048,080 | AM16: =IFERROR(VLOOKUP($A16,Filtro!$A$4:$AT$2433,37,FALSE),0) -> 730273560
A17: 01010013 | B17: 0101113 | C17: Consulta integral de especialidades en Medicina Interna y Subespecialidades, Oftalmología, Neurología, Oncología (Hosp. Alta Complejidad) | D17: =IFERROR(VLOOKUP($A17,Filtro!$A$4:$AT$2433,2,FALSE),0) -> 169880 | E17: =IFERROR(VLOOKUP($A17,Filtro!$A$4:$AT$2433,3,FALSE),0) -> 168230 | F17: =IFERROR(VLOOKUP($A17,Filtro!$A$4:$AT$2433,4,FALSE),0) -> 168230 | G17: =IFERROR(VLOOKUP($A17,Filtro!$A$4:$AT$2433,5,FALSE),0) -> 0 | H17: =IFERROR(VLOOKUP($A17,Filtro!$A$4:$AT$2433,6,FALSE),0) -> 1650 | I17: =IFERROR(VLOOKUP($A17,Filtro!$A$4:$AT$2433,7,FALSE),0) -> 0 | J17: =IFERROR(VLOOKUP($A17,Filtro!$A$4:$AT$2433,8,FALSE),0) -> 0 | K17: =IFERROR(VLOOKUP($A17,Filtro!$A$4:$AT$2433,9,FALSE),0) -> 0 | L17: =IFERROR(VLOOKUP($A17,Filtro!$A$4:$AT$2433,10,FALSE),0) -> 0 | M17: =IFERROR(VLOOKUP($A17,Filtro!$A$4:$AT$2433,11,FALSE),0) -> 0 | N17: =IFERROR(VLOOKUP($A17,Filtro!$A$4:$AT$2433,12,FALSE),0) -> 0 | O17: =IFERROR(VLOOKUP($A17,Filtro!$A$4:$AT$2433,13,FALSE),0) -> 0 | P17: =IFERROR(VLOOKUP($A17,Filtro!$A$4:$AT$2433,14,FALSE),0) -> 0 | Q17: =IFERROR(VLOOKUP($A17,Filtro!$A$4:$AT$2433,15,FALSE),0) -> 0 | R17: =IFERROR(VLOOKUP($A17,Filtro!$A$4:$AT$2433,16,FALSE),0) -> 0 | S17: =IFERROR(VLOOKUP($A17,Filtro!$A$4:$AT$2433,17,FALSE),0) -> 0 | T17: =IFERROR(VLOOKUP($A17,Filtro!$A$4:$AT$2433,18,FALSE),0) -> 0 | U17: =IFERROR(VLOOKUP($A17,Filtro!$A$4:$AT$2433,19,FALSE),0) -> 0 | V17: =IFERROR(VLOOKUP($A17,Filtro!$A$4:$AT$2433,20,FALSE),0) -> 0 | W17: =IFERROR(VLOOKUP($A17,Filtro!$A$4:$AT$2433,21,FALSE),0) -> 0 | X17: =IFERROR(VLOOKUP($A17,Filtro!$A$4:$AT$2433,22,FALSE),0) -> 0 | Y17: =IFERROR(VLOOKUP($A17,Filtro!$A$4:$AT$2433,23,FALSE),0) -> 0 | Z17: =IFERROR(VLOOKUP($A17,Filtro!$A$4:$AT$2433,24,FALSE),0) -> 0 | AA17: =IFERROR(VLOOKUP($A17,Filtro!$A$4:$AT$2433,25,FALSE),0) -> 0 | AB17: =IFERROR(VLOOKUP($A17,Filtro!$A$4:$AT$2433,26,FALSE),0) -> 0 | AC17: =IFERROR(VLOOKUP($A17,Filtro!$A$4:$AT$2433,27,FALSE),0) -> 168684 | AD17: =IFERROR(VLOOKUP($A17,Filtro!$A$4:$AT$2433,28,FALSE),0) -> 0 | AE17: =IFERROR(VLOOKUP($A17,Filtro!$A$4:$AT$2433,29,FALSE),0) -> 684 | AF17: =IFERROR(VLOOKUP($A17,Filtro!$A$4:$AT$2433,30,FALSE),0) -> 0 | AG17: =IFERROR(VLOOKUP($A17,Filtro!$A$4:$AT$2433,31,FALSE),0) -> 0 | AH17: =IFERROR(VLOOKUP($A17,Filtro!$A$4:$AT$2433,32,FALSE),0) -> 0 | AI17: =IFERROR(VLOOKUP($A17,Filtro!$A$4:$AT$2433,33,FALSE),0) -> 0 | AJ17: =IFERROR(VLOOKUP($A17,Filtro!$A$4:$AT$2433,34,FALSE),0) -> 0 | AK17: =IFERROR(VLOOKUP($A17,Filtro!$A$4:$AT$2433,35,FALSE),0) -> 0 | AL17: =IFERROR(VLOOKUP($A17,Filtro!$A$4:$AT$2433,36,FALSE),0) -> 1,298,880 | AM17: =IFERROR(VLOOKUP($A17,Filtro!$A$4:$AT$2433,37,FALSE),0) -> 1655383200
A18: 01013100 | B18: 0108001 | C18: Consulta por Telemedicina | D18: =IFERROR(VLOOKUP($A18,Filtro!$A$4:$AT$2433,2,FALSE),0) -> 543 | E18: =IFERROR(VLOOKUP($A18,Filtro!$A$4:$AT$2433,3,FALSE),0) -> 543 | F18: =IFERROR(VLOOKUP($A18,Filtro!$A$4:$AT$2433,4,FALSE),0) -> 543 | G18: =IFERROR(VLOOKUP($A18,Filtro!$A$4:$AT$2433,5,FALSE),0) -> 0 | H18: =IFERROR(VLOOKUP($A18,Filtro!$A$4:$AT$2433,6,FALSE),0) -> 0 | I18: =IFERROR(VLOOKUP($A18,Filtro!$A$4:$AT$2433,7,FALSE),0) -> 0 | J18: =IFERROR(VLOOKUP($A18,Filtro!$A$4:$AT$2433,8,FALSE),0) -> 0 | K18: =IFERROR(VLOOKUP($A18,Filtro!$A$4:$AT$2433,9,FALSE),0) -> 0 | L18: =IFERROR(VLOOKUP($A18,Filtro!$A$4:$AT$2433,10,FALSE),0) -> 0 | M18: =IFERROR(VLOOKUP($A18,Filtro!$A$4:$AT$2433,11,FALSE),0) -> 0 | N18: =IFERROR(VLOOKUP($A18,Filtro!$A$4:$AT$2433,12,FALSE),0) -> 0 | O18: =IFERROR(VLOOKUP($A18,Filtro!$A$4:$AT$2433,13,FALSE),0) -> 0 | P18: =IFERROR(VLOOKUP($A18,Filtro!$A$4:$AT$2433,14,FALSE),0) -> 0 | Q18: =IFERROR(VLOOKUP($A18,Filtro!$A$4:$AT$2433,15,FALSE),0) -> 0 | R18: =IFERROR(VLOOKUP($A18,Filtro!$A$4:$AT$2433,16,FALSE),0) -> 0 | S18: =IFERROR(VLOOKUP($A18,Filtro!$A$4:$AT$2433,17,FALSE),0) -> 0 | T18: =IFERROR(VLOOKUP($A18,Filtro!$A$4:$AT$2433,18,FALSE),0) -> 0 | U18: =IFERROR(VLOOKUP($A18,Filtro!$A$4:$AT$2433,19,FALSE),0) -> 0 | V18: =IFERROR(VLOOKUP($A18,Filtro!$A$4:$AT$2433,20,FALSE),0) -> 0 | W18: =IFERROR(VLOOKUP($A18,Filtro!$A$4:$AT$2433,21,FALSE),0) -> 0 | X18: =IFERROR(VLOOKUP($A18,Filtro!$A$4:$AT$2433,22,FALSE),0) -> 0 | Y18: =IFERROR(VLOOKUP($A18,Filtro!$A$4:$AT$2433,23,FALSE),0) -> 0 | Z18: =IFERROR(VLOOKUP($A18,Filtro!$A$4:$AT$2433,24,FALSE),0) -> 0 | AA18: =IFERROR(VLOOKUP($A18,Filtro!$A$4:$AT$2433,25,FALSE),0) -> 0 | AB18: =IFERROR(VLOOKUP($A18,Filtro!$A$4:$AT$2433,26,FALSE),0) -> 15 | AC18: =IFERROR(VLOOKUP($A18,Filtro!$A$4:$AT$2433,27,FALSE),0) -> 422 | AD18: =IFERROR(VLOOKUP($A18,Filtro!$A$4:$AT$2433,28,FALSE),0) -> 114 | AE18: =IFERROR(VLOOKUP($A18,Filtro!$A$4:$AT$2433,29,FALSE),0) -> 0 | AF18: =IFERROR(VLOOKUP($A18,Filtro!$A$4:$AT$2433,30,FALSE),0) -> 0 | AG18: =IFERROR(VLOOKUP($A18,Filtro!$A$4:$AT$2433,31,FALSE),0) -> 0 | AH18: =IFERROR(VLOOKUP($A18,Filtro!$A$4:$AT$2433,32,FALSE),0) -> 0 | AI18: =IFERROR(VLOOKUP($A18,Filtro!$A$4:$AT$2433,33,FALSE),0) -> 0 | AJ18: =IFERROR(VLOOKUP($A18,Filtro!$A$4:$AT$2433,34,FALSE),0) -> 0 | AK18: =IFERROR(VLOOKUP($A18,Filtro!$A$4:$AT$2433,35,FALSE),0) -> 0 | AL18: =IFERROR(VLOOKUP($A18,Filtro!$A$4:$AT$2433,36,FALSE),0) -> 1,949,640 | AM18: =IFERROR(VLOOKUP($A18,Filtro!$A$4:$AT$2433,37,FALSE),0) -> 7990570
C19: TOTAL ARANCEL MAI | D19: =SUM(D5:D18) -> 853693 | E19: =SUM(E5:E18) -> 844907 | F19: =SUM(F5:F18) -> 844119 | G19: =SUM(G5:G18) -> 788 | H19: =SUM(H5:H18) -> 8786 | AB19: =SUM(AB5:AB18) -> 6873 | AC19: =SUM(AC5:AC18) -> 518538 | AD19: 295048 | AE19: 3496 | AF19: 0 | AG19: 0 | AH19: 0 | AI19: 0 | AJ19: 0 | AK19: 0 | AL19: =SUM(AL5:AL18) -> 18,060,240 | AM19: =SUM(AM5:AM18) -> 7,183,289,150
A20: 01010014 | B20: 0101001 | C20: Consulta médica general | D20: =IFERROR(VLOOKUP($A20,Filtro!$A$4:$AT$2433,2,FALSE),0) -> 86345 | E20: =IFERROR(VLOOKUP($A20,Filtro!$A$4:$AT$2433,3,FALSE),0) -> 86345 | F20: =IFERROR(VLOOKUP($A20,Filtro!$A$4:$AT$2433,4,FALSE),0) -> 86345 | G20: =IFERROR(VLOOKUP($A20,Filtro!$A$4:$AT$2433,5,FALSE),0) -> 0 | H20: =IFERROR(VLOOKUP($A20,Filtro!$A$4:$AT$2433,6,FALSE),0) -> 0 | I20: =IFERROR(VLOOKUP($A20,Filtro!$A$4:$AT$2433,7,FALSE),0) -> 0 | J20: =IFERROR(VLOOKUP($A20,Filtro!$A$4:$AT$2433,8,FALSE),0) -> 0 | K20: =IFERROR(VLOOKUP($A20,Filtro!$A$4:$AT$2433,9,FALSE),0) -> 0 | L20: =IFERROR(VLOOKUP($A20,Filtro!$A$4:$AT$2433,10,FALSE),0) -> 0 | M20: =IFERROR(VLOOKUP($A20,Filtro!$A$4:$AT$2433,11,FALSE),0) -> 0 | N20: =IFERROR(VLOOKUP($A20,Filtro!$A$4:$AT$2433,12,FALSE),0) -> 0 | O20: =IFERROR(VLOOKUP($A20,Filtro!$A$4:$AT$2433,13,FALSE),0) -> 0 | P20: =IFERROR(VLOOKUP($A20,Filtro!$A$4:$AT$2433,14,FALSE),0) -> 0 | Q20: =IFERROR(VLOOKUP($A20,Filtro!$A$4:$AT$2433,15,FALSE),0) -> 0 | R20: =IFERROR(VLOOKUP($A20,Filtro!$A$4:$AT$2433,16,FALSE),0) -> 0 | S20: =IFERROR(VLOOKUP($A20,Filtro!$A$4:$AT$2433,17,FALSE),0) -> 0 | T20: =IFERROR(VLOOKUP($A20,Filtro!$A$4:$AT$2433,18,FALSE),0) -> 0 | U20: =IFERROR(VLOOKUP($A20,Filtro!$A$4:$AT$2433,19,FALSE),0) -> 0 | V20: =IFERROR(VLOOKUP($A20,Filtro!$A$4:$AT$2433,20,FALSE),0) -> 0 | W20: =IFERROR(VLOOKUP($A20,Filtro!$A$4:$AT$2433,21,FALSE),0) -> 0 | X20: =IFERROR(VLOOKUP($A20,Filtro!$A$4:$AT$2433,22,FALSE),0) -> 0 | Y20: =IFERROR(VLOOKUP($A20,Filtro!$A$4:$AT$2433,23,FALSE),0) -> 0 | Z20: =IFERROR(VLOOKUP($A20,Filtro!$A$4:$AT$2433,24,FALSE),0) -> 0 | AA20: =IFERROR(VLOOKUP($A20,Filtro!$A$4:$AT$2433,25,FALSE),0) -> 0 | AB20: =IFERROR(VLOOKUP($A20,Filtro!$A$4:$AT$2433,26,FALSE),0) -> 0 | AC20: =IFERROR(VLOOKUP($A20,Filtro!$A$4:$AT$2433,27,FALSE),0) -> 74319 | AD20: =IFERROR(VLOOKUP($A20,Filtro!$A$4:$AT$2433,28,FALSE),0) -> 0 | AE20: =IFERROR(VLOOKUP($A20,Filtro!$A$4:$AT$2433,29,FALSE),0) -> 0 | AF20: =IFERROR(VLOOKUP($A20,Filtro!$A$4:$AT$2433,30,FALSE),0) -> 0 | AG20: =IFERROR(VLOOKUP($A20,Filtro!$A$4:$AT$2433,31,FALSE),0) -> 0 | AH20: =IFERROR(VLOOKUP($A20,Filtro!$A$4:$AT$2433,32,FALSE),0) -> 0 | AI20: =IFERROR(VLOOKUP($A20,Filtro!$A$4:$AT$2433,33,FALSE),0) -> 0 | AJ20: =IFERROR(VLOOKUP($A20,Filtro!$A$4:$AT$2433,34,FALSE),0) -> 0 | AK20: =IFERROR(VLOOKUP($A20,Filtro!$A$4:$AT$2433,35,FALSE),0) -> 0 | AL20: =IFERROR(VLOOKUP($A20,Filtro!$A$4:$AT$2433,36,FALSE),0) -> 0 | AM20: =IFERROR(VLOOKUP($A20,Filtro!$A$4:$AT$2433,37,FALSE),0) -> 0
A21: 01010015 | C21: Consultas de urgencia en Hospitales de baja complejidad | D21: =IFERROR(VLOOKUP($A21,Filtro!$A$4:$AT$2433,2,FALSE),0) -> 106879 | E21: =IFERROR(VLOOKUP($A21,Filtro!$A$4:$AT$2433,3,FALSE),0) -> 106879 | F21: =IFERROR(VLOOKUP($A21,Filtro!$A$4:$AT$2433,4,FALSE),0) -> 106879 | G21: =IFERROR(VLOOKUP($A21,Filtro!$A$4:$AT$2433,5,FALSE),0) -> 0 | H21: =IFERROR(VLOOKUP($A21,Filtro!$A$4:$AT$2433,6,FALSE),0) -> 0 | I21: =IFERROR(VLOOKUP($A21,Filtro!$A$4:$AT$2433,7,FALSE),0) -> 0 | J21: =IFERROR(VLOOKUP($A21,Filtro!$A$4:$AT$2433,8,FALSE),0) -> 0 | K21: =IFERROR(VLOOKUP($A21,Filtro!$A$4:$AT$2433,9,FALSE),0) -> 0 | L21: =IFERROR(VLOOKUP($A21,Filtro!$A$4:$AT$2433,10,FALSE),0) -> 0 | M21: =IFERROR(VLOOKUP($A21,Filtro!$A$4:$AT$2433,11,FALSE),0) -> 0 | N21: =IFERROR(VLOOKUP($A21,Filtro!$A$4:$AT$2433,12,FALSE),0) -> 0 | O21: =IFERROR(VLOOKUP($A21,Filtro!$A$4:$AT$2433,13,FALSE),0) -> 0 | P21: =IFERROR(VLOOKUP($A21,Filtro!$A$4:$AT$2433,14,FALSE),0) -> 0 | Q21: =IFERROR(VLOOKUP($A21,Filtro!$A$4:$AT$2433,15,FALSE),0) -> 0 | R21: =IFERROR(VLOOKUP($A21,Filtro!$A$4:$AT$2433,16,FALSE),0) -> 0 | S21: =IFERROR(VLOOKUP($A21,Filtro!$A$4:$AT$2433,17,FALSE),0) -> 0 | T21: =IFERROR(VLOOKUP($A21,Filtro!$A$4:$AT$2433,18,FALSE),0) -> 0 | U21: =IFERROR(VLOOKUP($A21,Filtro!$A$4:$AT$2433,19,FALSE),0) -> 0 | V21: =IFERROR(VLOOKUP($A21,Filtro!$A$4:$AT$2433,20,FALSE),0) -> 0 | W21: =IFERROR(VLOOKUP($A21,Filtro!$A$4:$AT$2433,21,FALSE),0) -> 0 | X21: =IFERROR(VLOOKUP($A21,Filtro!$A$4:$AT$2433,22,FALSE),0) -> 0 | Y21: =IFERROR(VLOOKUP($A21,Filtro!$A$4:$AT$2433,23,FALSE),0) -> 0 | Z21: =IFERROR(VLOOKUP($A21,Filtro!$A$4:$AT$2433,24,FALSE),0) -> 0 | AA21: =IFERROR(VLOOKUP($A21,Filtro!$A$4:$AT$2433,25,FALSE),0) -> 0 | AB21: =IFERROR(VLOOKUP($A21,Filtro!$A$4:$AT$2433,26,FALSE),0) -> 0 | AC21: =IFERROR(VLOOKUP($A21,Filtro!$A$4:$AT$2433,27,FALSE),0) -> 2064 | AD21: =IFERROR(VLOOKUP($A21,Filtro!$A$4:$AT$2433,28,FALSE),0) -> 84848 | AE21: =IFERROR(VLOOKUP($A21,Filtro!$A$4:$AT$2433,29,FALSE),0) -> 0 | AF21: =IFERROR(VLOOKUP($A21,Filtro!$A$4:$AT$2433,30,FALSE),0) -> 0 | AG21: =IFERROR(VLOOKUP($A21,Filtro!$A$4:$AT$2433,31,FALSE),0) -> 0 | AH21: =IFERROR(VLOOKUP($A21,Filtro!$A$4:$AT$2433,32,FALSE),0) -> 0 | AI21: =IFERROR(VLOOKUP($A21,Filtro!$A$4:$AT$2433,33,FALSE),0) -> 0 | AJ21: =IFERROR(VLOOKUP($A21,Filtro!$A$4:$AT$2433,34,FALSE),0) -> 0 | AK21: =IFERROR(VLOOKUP($A21,Filtro!$A$4:$AT$2433,35,FALSE),0) -> 0 | AL21: =IFERROR(VLOOKUP($A21,Filtro!$A$4:$AT$2433,36,FALSE),0) -> 0 | AM21: =IFERROR(VLOOKUP($A21,Filtro!$A$4:$AT$2433,37,FALSE),0) -> 0
A22: 01010016 | C22: Consultas de especialidad en hospitales de baja complejidad y establecimientos de APS | D22: =IFERROR(VLOOKUP($A22,Filtro!$A$4:$AT$2433,2,FALSE),0) -> 2909 | E22: =IFERROR(VLOOKUP($A22,Filtro!$A$4:$AT$2433,3,FALSE),0) -> 2909 | F22: =IFERROR(VLOOKUP($A22,Filtro!$A$4:$AT$2433,4,FALSE),0) -> 2909 | G22: =IFERROR(VLOOKUP($A22,Filtro!$A$4:$AT$2433,5,FALSE),0) -> 0 | H22: =IFERROR(VLOOKUP($A22,Filtro!$A$4:$AT$2433,6,FALSE),0) -> 0 | I22: =IFERROR(VLOOKUP($A22,Filtro!$A$4:$AT$2433,7,FALSE),0) -> 0 | J22: =IFERROR(VLOOKUP($A22,Filtro!$A$4:$AT$2433,8,FALSE),0) -> 0 | K22: =IFERROR(VLOOKUP($A22,Filtro!$A$4:$AT$2433,9,FALSE),0) -> 0 | L22: =IFERROR(VLOOKUP($A22,Filtro!$A$4:$AT$2433,10,FALSE),0) -> 0 | M22: =IFERROR(VLOOKUP($A22,Filtro!$A$4:$AT$2433,11,FALSE),0) -> 0 | N22: =IFERROR(VLOOKUP($A22,Filtro!$A$4:$AT$2433,12,FALSE),0) -> 0 | O22: =IFERROR(VLOOKUP($A22,Filtro!$A$4:$AT$2433,13,FALSE),0) -> 0 | P22: =IFERROR(VLOOKUP($A22,Filtro!$A$4:$AT$2433,14,FALSE),0) -> 0 | Q22: =IFERROR(VLOOKUP($A22,Filtro!$A$4:$AT$2433,15,FALSE),0) -> 0 | R22: =IFERROR(VLOOKUP($A22,Filtro!$A$4:$AT$2433,16,FALSE),0) -> 0 | S22: =IFERROR(VLOOKUP($A22,Filtro!$A$4:$AT$2433,17,FALSE),0) -> 0 | T22: =IFERROR(VLOOKUP($A22,Filtro!$A$4:$AT$2433,18,FALSE),0) -> 0 | U22: =IFERROR(VLOOKUP($A22,Filtro!$A$4:$AT$2433,19,FALSE),0) -> 0 | V22: =IFERROR(VLOOKUP($A22,Filtro!$A$4:$AT$2433,20,FALSE),0) -> 0 | W22: =IFERROR(VLOOKUP($A22,Filtro!$A$4:$AT$2433,21,FALSE),0) -> 0 | X22: =IFERROR(VLOOKUP($A22,Filtro!$A$4:$AT$2433,22,FALSE),0) -> 0 | Y22: =IFERROR(VLOOKUP($A22,Filtro!$A$4:$AT$2433,23,FALSE),0) -> 0 | Z22: =IFERROR(VLOOKUP($A22,Filtro!$A$4:$AT$2433,24,FALSE),0) -> 0 | AA22: =IFERROR(VLOOKUP($A22,Filtro!$A$4:$AT$2433,25,FALSE),0) -> 0 | AB22: =IFERROR(VLOOKUP($A22,Filtro!$A$4:$AT$2433,26,FALSE),0) -> 0 | AC22: =IFERROR(VLOOKUP($A22,Filtro!$A$4:$AT$2433,27,FALSE),0) -> 2909 | AD22: =IFERROR(VLOOKUP($A22,Filtro!$A$4:$AT$2433,28,FALSE),0) -> 0 | AE22: =IFERROR(VLOOKUP($A22,Filtro!$A$4:$AT$2433,29,FALSE),0) -> 0 | AF22: =IFERROR(VLOOKUP($A22,Filtro!$A$4:$AT$2433,30,FALSE),0) -> 0 | AG22: =IFERROR(VLOOKUP($A22,Filtro!$A$4:$AT$2433,31,FALSE),0) -> 0 | AH22: =IFERROR(VLOOKUP($A22,Filtro!$A$4:$AT$2433,32,FALSE),0) -> 0 | AI22: =IFERROR(VLOOKUP($A22,Filtro!$A$4:$AT$2433,33,FALSE),0) -> 0 | AJ22: =IFERROR(VLOOKUP($A22,Filtro!$A$4:$AT$2433,34,FALSE),0) -> 0 | AK22: =IFERROR(VLOOKUP($A22,Filtro!$A$4:$AT$2433,35,FALSE),0) -> 0 | AL22: =IFERROR(VLOOKUP($A22,Filtro!$A$4:$AT$2433,36,FALSE),0) -> 0 | AM22: =IFERROR(VLOOKUP($A22,Filtro!$A$4:$AT$2433,37,FALSE),0) -> 0
A23: 01010017 | C23: Otras consulta médica de especialidades | D23: =IFERROR(VLOOKUP($A23,Filtro!$A$4:$AT$2433,2,FALSE),0) -> 166 | E23: =IFERROR(VLOOKUP($A23,Filtro!$A$4:$AT$2433,3,FALSE),0) -> 166 | F23: =IFERROR(VLOOKUP($A23,Filtro!$A$4:$AT$2433,4,FALSE),0) -> 166 | G23: =IFERROR(VLOOKUP($A23,Filtro!$A$4:$AT$2433,5,FALSE),0) -> 0 | H23: =IFERROR(VLOOKUP($A23,Filtro!$A$4:$AT$2433,6,FALSE),0) -> 0 | I23: =IFERROR(VLOOKUP($A23,Filtro!$A$4:$AT$2433,7,FALSE),0) -> 0 | J23: =IFERROR(VLOOKUP($A23,Filtro!$A$4:$AT$2433,8,FALSE),0) -> 0 | K23: =IFERROR(VLOOKUP($A23,Filtro!$A$4:$AT$2433,9,FALSE),0) -> 0 | L23: =IFERROR(VLOOKUP($A23,Filtro!$A$4:$AT$2433,10,FALSE),0) -> 0 | M23: =IFERROR(VLOOKUP($A23,Filtro!$A$4:$AT$2433,11,FALSE),0) -> 0 | N23: =IFERROR(VLOOKUP($A23,Filtro!$A$4:$AT$2433,12,FALSE),0) -> 0 | O23: =IFERROR(VLOOKUP($A23,Filtro!$A$4:$AT$2433,13,FALSE),0) -> 0 | P23: =IFERROR(VLOOKUP($A23,Filtro!$A$4:$AT$2433,14,FALSE),0) -> 0 | Q23: =IFERROR(VLOOKUP($A23,Filtro!$A$4:$AT$2433,15,FALSE),0) -> 0 | R23: =IFERROR(VLOOKUP($A23,Filtro!$A$4:$AT$2433,16,FALSE),0) -> 0 | S23: =IFERROR(VLOOKUP($A23,Filtro!$A$4:$AT$2433,17,FALSE),0) -> 0 | T23: =IFERROR(VLOOKUP($A23,Filtro!$A$4:$AT$2433,18,FALSE),0) -> 0 | U23: =IFERROR(VLOOKUP($A23,Filtro!$A$4:$AT$2433,19,FALSE),0) -> 0 | V23: =IFERROR(VLOOKUP($A23,Filtro!$A$4:$AT$2433,20,FALSE),0) -> 0 | W23: =IFERROR(VLOOKUP($A23,Filtro!$A$4:$AT$2433,21,FALSE),0) -> 0 | X23: =IFERROR(VLOOKUP($A23,Filtro!$A$4:$AT$2433,22,FALSE),0) -> 0 | Y23: =IFERROR(VLOOKUP($A23,Filtro!$A$4:$AT$2433,23,FALSE),0) -> 0 | Z23: =IFERROR(VLOOKUP($A23,Filtro!$A$4:$AT$2433,24,FALSE),0) -> 0 | AA23: =IFERROR(VLOOKUP($A23,Filtro!$A$4:$AT$2433,25,FALSE),0) -> 0 | AB23: =IFERROR(VLOOKUP($A23,Filtro!$A$4:$AT$2433,26,FALSE),0) -> 0 | AC23: =IFERROR(VLOOKUP($A23,Filtro!$A$4:$AT$2433,27,FALSE),0) -> 166 | AD23: =IFERROR(VLOOKUP($A23,Filtro!$A$4:$AT$2433,28,FALSE),0) -> 0 | AE23: =IFERROR(VLOOKUP($A23,Filtro!$A$4:$AT$2433,29,FALSE),0) -> 0 | AF23: =IFERROR(VLOOKUP($A23,Filtro!$A$4:$AT$2433,30,FALSE),0) -> 0 | AG23: =IFERROR(VLOOKUP($A23,Filtro!$A$4:$AT$2433,31,FALSE),0) -> 0 | AH23: =IFERROR(VLOOKUP($A23,Filtro!$A$4:$AT$2433,32,FALSE),0) -> 0 | AI23: =IFERROR(VLOOKUP($A23,Filtro!$A$4:$AT$2433,33,FALSE),0) -> 0 | AJ23: =IFERROR(VLOOKUP($A23,Filtro!$A$4:$AT$2433,34,FALSE),0) -> 0 | AK23: =IFERROR(VLOOKUP($A23,Filtro!$A$4:$AT$2433,35,FALSE),0) -> 0 | AL23: =IFERROR(VLOOKUP($A23,Filtro!$A$4:$AT$2433,36,FALSE),0) -> 0 | AM23: =IFERROR(VLOOKUP($A23,Filtro!$A$4:$AT$2433,37,FALSE),0) -> 0
A24: 01010018 | C24: Consulta médica de especialidad en servicio de urgencia | D24: =IFERROR(VLOOKUP($A24,Filtro!$A$4:$AT$2433,2,FALSE),0) -> 2549 | E24: =IFERROR(VLOOKUP($A24,Filtro!$A$4:$AT$2433,3,FALSE),0) -> 2549 | F24: =IFERROR(VLOOKUP($A24,Filtro!$A$4:$AT$2433,4,FALSE),0) -> 2549 | G24: =IFERROR(VLOOKUP($A24,Filtro!$A$4:$AT$2433,5,FALSE),0) -> 0 | H24: =IFERROR(VLOOKUP($A24,Filtro!$A$4:$AT$2433,6,FALSE),0) -> 0 | I24: =IFERROR(VLOOKUP($A24,Filtro!$A$4:$AT$2433,7,FALSE),0) -> 0 | J24: =IFERROR(VLOOKUP($A24,Filtro!$A$4:$AT$2433,8,FALSE),0) -> 0 | K24: =IFERROR(VLOOKUP($A24,Filtro!$A$4:$AT$2433,9,FALSE),0) -> 0 | L24: =IFERROR(VLOOKUP($A24,Filtro!$A$4:$AT$2433,10,FALSE),0) -> 0 | M24: =IFERROR(VLOOKUP($A24,Filtro!$A$4:$AT$2433,11,FALSE),0) -> 0 | N24: =IFERROR(VLOOKUP($A24,Filtro!$A$4:$AT$2433,12,FALSE),0) -> 0 | O24: =IFERROR(VLOOKUP($A24,Filtro!$A$4:$AT$2433,13,FALSE),0) -> 0 | P24: =IFERROR(VLOOKUP($A24,Filtro!$A$4:$AT$2433,14,FALSE),0) -> 0 | Q24: =IFERROR(VLOOKUP($A24,Filtro!$A$4:$AT$2433,15,FALSE),0) -> 0 | R24: =IFERROR(VLOOKUP($A24,Filtro!$A$4:$AT$2433,16,FALSE),0) -> 0 | S24: =IFERROR(VLOOKUP($A24,Filtro!$A$4:$AT$2433,17,FALSE),0) -> 0 | T24: =IFERROR(VLOOKUP($A24,Filtro!$A$4:$AT$2433,18,FALSE),0) -> 0 | U24: =IFERROR(VLOOKUP($A24,Filtro!$A$4:$AT$2433,19,FALSE),0) -> 0 | V24: =IFERROR(VLOOKUP($A24,Filtro!$A$4:$AT$2433,20,FALSE),0) -> 0 | W24: =IFERROR(VLOOKUP($A24,Filtro!$A$4:$AT$2433,21,FALSE),0) -> 0 | X24: =IFERROR(VLOOKUP($A24,Filtro!$A$4:$AT$2433,22,FALSE),0) -> 0 | Y24: =IFERROR(VLOOKUP($A24,Filtro!$A$4:$AT$2433,23,FALSE),0) -> 0 | Z24: =IFERROR(VLOOKUP($A24,Filtro!$A$4:$AT$2433,24,FALSE),0) -> 0 | AA24: =IFERROR(VLOOKUP($A24,Filtro!$A$4:$AT$2433,25,FALSE),0) -> 0 | AB24: =IFERROR(VLOOKUP($A24,Filtro!$A$4:$AT$2433,26,FALSE),0) -> 0 | AC24: =IFERROR(VLOOKUP($A24,Filtro!$A$4:$AT$2433,27,FALSE),0) -> 0 | AD24: =IFERROR(VLOOKUP($A24,Filtro!$A$4:$AT$2433,28,FALSE),0) -> 2549 | AE24: =IFERROR(VLOOKUP($A24,Filtro!$A$4:$AT$2433,29,FALSE),0) -> 0 | AF24: =IFERROR(VLOOKUP($A24,Filtro!$A$4:$AT$2433,30,FALSE),0) -> 0 | AG24: =IFERROR(VLOOKUP($A24,Filtro!$A$4:$AT$2433,31,FALSE),0) -> 216 | AH24: =IFERROR(VLOOKUP($A24,Filtro!$A$4:$AT$2433,32,FALSE),0) -> 0 | AI24: =IFERROR(VLOOKUP($A24,Filtro!$A$4:$AT$2433,33,FALSE),0) -> 0 | AJ24: =IFERROR(VLOOKUP($A24,Filtro!$A$4:$AT$2433,34,FALSE),0) -> 0 | AK24: =IFERROR(VLOOKUP($A24,Filtro!$A$4:$AT$2433,35,FALSE),0) -> 0 | AL24: =IFERROR(VLOOKUP($A24,Filtro!$A$4:$AT$2433,36,FALSE),0) -> 0 | AM24: =IFERROR(VLOOKUP($A24,Filtro!$A$4:$AT$2433,37,FALSE),0) -> 0
A25: 01012816 | B25: 0101308 | C25: Consulta Médica de Especialidad en Obstetricia y Ginecología | D25: =IFERROR(VLOOKUP($A25,Filtro!$A$4:$AT$2433,2,FALSE),0) -> 2601 | E25: =IFERROR(VLOOKUP($A25,Filtro!$A$4:$AT$2433,3,FALSE),0) -> 2601 | F25: =IFERROR(VLOOKUP($A25,Filtro!$A$4:$AT$2433,4,FALSE),0) -> 2601 | G25: =IFERROR(VLOOKUP($A25,Filtro!$A$4:$AT$2433,5,FALSE),0) -> 0 | H25: =IFERROR(VLOOKUP($A25,Filtro!$A$4:$AT$2433,6,FALSE),0) -> 0 | I25: =IFERROR(VLOOKUP($A25,Filtro!$A$4:$AT$2433,7,FALSE),0) -> 0 | J25: =IFERROR(VLOOKUP($A25,Filtro!$A$4:$AT$2433,8,FALSE),0) -> 0 | K25: =IFERROR(VLOOKUP($A25,Filtro!$A$4:$AT$2433,9,FALSE),0) -> 0 | L25: =IFERROR(VLOOKUP($A25,Filtro!$A$4:$AT$2433,10,FALSE),0) -> 0 | M25: =IFERROR(VLOOKUP($A25,Filtro!$A$4:$AT$2433,11,FALSE),0) -> 0 | N25: =IFERROR(VLOOKUP($A25,Filtro!$A$4:$AT$2433,12,FALSE),0) -> 0 | O25: =IFERROR(VLOOKUP($A25,Filtro!$A$4:$AT$2433,13,FALSE),0) -> 0 | P25: =IFERROR(VLOOKUP($A25,Filtro!$A$4:$AT$2433,14,FALSE),0) -> 0 | Q25: =IFERROR(VLOOKUP($A25,Filtro!$A$4:$AT$2433,15,FALSE),0) -> 0 | R25: =IFERROR(VLOOKUP($A25,Filtro!$A$4:$AT$2433,16,FALSE),0) -> 0 | S25: =IFERROR(VLOOKUP($A25,Filtro!$A$4:$AT$2433,17,FALSE),0) -> 0 | T25: =IFERROR(VLOOKUP($A25,Filtro!$A$4:$AT$2433,18,FALSE),0) -> 0 | U25: =IFERROR(VLOOKUP($A25,Filtro!$A$4:$AT$2433,19,FALSE),0) -> 0 | V25: =IFERROR(VLOOKUP($A25,Filtro!$A$4:$AT$2433,20,FALSE),0) -> 0 | W25: =IFERROR(VLOOKUP($A25,Filtro!$A$4:$AT$2433,21,FALSE),0) -> 0 | X25: =IFERROR(VLOOKUP($A25,Filtro!$A$4:$AT$2433,22,FALSE),0) -> 0 | Y25: =IFERROR(VLOOKUP($A25,Filtro!$A$4:$AT$2433,23,FALSE),0) -> 0 | Z25: =IFERROR(VLOOKUP($A25,Filtro!$A$4:$AT$2433,24,FALSE),0) -> 0 | AA25: =IFERROR(VLOOKUP($A25,Filtro!$A$4:$AT$2433,25,FALSE),0) -> 0 | AB25: =IFERROR(VLOOKUP($A25,Filtro!$A$4:$AT$2433,26,FALSE),0) -> 0 | AC25: =IFERROR(VLOOKUP($A25,Filtro!$A$4:$AT$2433,27,FALSE),0) -> 2575 | AD25: =IFERROR(VLOOKUP($A25,Filtro!$A$4:$AT$2433,28,FALSE),0) -> 26 | AE25: =IFERROR(VLOOKUP($A25,Filtro!$A$4:$AT$2433,29,FALSE),0) -> 0 | AF25: =IFERROR(VLOOKUP($A25,Filtro!$A$4:$AT$2433,30,FALSE),0) -> 0 | AG25: =IFERROR(VLOOKUP($A25,Filtro!$A$4:$AT$2433,31,FALSE),0) -> 0 | AH25: =IFERROR(VLOOKUP($A25,Filtro!$A$4:$AT$2433,32,FALSE),0) -> 0 | AI25: =IFERROR(VLOOKUP($A25,Filtro!$A$4:$AT$2433,33,FALSE),0) -> 0 | AJ25: =IFERROR(VLOOKUP($A25,Filtro!$A$4:$AT$2433,34,FALSE),0) -> 0 | AK25: =IFERROR(VLOOKUP($A25,Filtro!$A$4:$AT$2433,35,FALSE),0) -> 0 | AL25: =IFERROR(VLOOKUP($A25,Filtro!$A$4:$AT$2433,36,FALSE),0) -> 0 | AM25: =IFERROR(VLOOKUP($A25,Filtro!$A$4:$AT$2433,37,FALSE),0) -> 0
C26: TOTAL ARANCEL MLE Y NO ARANCELADO | D26: =SUM(D20:D25) -> 201449 | E26: =SUM(E20:E25) -> 201449 | F26: =SUM(F20:F25) -> 201449 | G26: =SUM(G20:G25) -> 0 | H26: =SUM(H20:H25) -> 0 | AB26: =SUM(AB20:AB25) -> 0 | AC26: =SUM(AC20:AC25) -> 82033 | AD26: 87423 | AE26: 0 | AF26: 0 | AG26: 216 | AH26: 0 | AI26: 0 | AJ26: 0 | AK26: 0
C27: TOTAL PRODUCCION | D27: =SUM(D19,D26) -> 1055142 | E27: =SUM(E19,E26) -> 1046356 | F27: =SUM(F19,F26) -> 1045568 | G27: =SUM(G19,G26) -> 788 | H27: =SUM(H19,H26) -> 8786 | AB27: =SUM(AB19,AB26) -> 6873 | AC27: 600571 | AD27: 382471 | AE27: 3496 | AF27: 0 | AG27: 216 | AH27: 0 | AI27: 0 | AJ27: 0 | AK27: 0 | AL27: 18,060,240 | AM27: 7183289150
C28: CONSULTAS POR OTROS PROFESIONALES DE LA SALUD
A29: 01010019 | B29: 0102001 | C29: Consulta o control por enfermera, matrona o nutricionista | D29: =IFERROR(VLOOKUP($A29,Filtro!$A$4:$AT$2433,2,FALSE),0) -> 181210 | E29: =IFERROR(VLOOKUP($A29,Filtro!$A$4:$AT$2433,3,FALSE),0) -> 179664 | F29: =IFERROR(VLOOKUP($A29,Filtro!$A$4:$AT$2433,4,FALSE),0) -> 179664 | G29: =IFERROR(VLOOKUP($A29,Filtro!$A$4:$AT$2433,5,FALSE),0) -> 0 | H29: =IFERROR(VLOOKUP($A29,Filtro!$A$4:$AT$2433,6,FALSE),0) -> 1546 | I29: =IFERROR(VLOOKUP($A29,Filtro!$A$4:$AT$2433,7,FALSE),0) -> 0 | J29: =IFERROR(VLOOKUP($A29,Filtro!$A$4:$AT$2433,8,FALSE),0) -> 0 | K29: =IFERROR(VLOOKUP($A29,Filtro!$A$4:$AT$2433,9,FALSE),0) -> 0 | L29: =IFERROR(VLOOKUP($A29,Filtro!$A$4:$AT$2433,10,FALSE),0) -> 0 | M29: =IFERROR(VLOOKUP($A29,Filtro!$A$4:$AT$2433,11,FALSE),0) -> 0 | N29: =IFERROR(VLOOKUP($A29,Filtro!$A$4:$AT$2433,12,FALSE),0) -> 0 | O29: =IFERROR(VLOOKUP($A29,Filtro!$A$4:$AT$2433,13,FALSE),0) -> 0 | P29: =IFERROR(VLOOKUP($A29,Filtro!$A$4:$AT$2433,14,FALSE),0) -> 0 | Q29: =IFERROR(VLOOKUP($A29,Filtro!$A$4:$AT$2433,15,FALSE),0) -> 0 | R29: =IFERROR(VLOOKUP($A29,Filtro!$A$4:$AT$2433,16,FALSE),0) -> 0 | S29: =IFERROR(VLOOKUP($A29,Filtro!$A$4:$AT$2433,17,FALSE),0) -> 0 | T29: =IFERROR(VLOOKUP($A29,Filtro!$A$4:$AT$2433,18,FALSE),0) -> 0 | U29: =IFERROR(VLOOKUP($A29,Filtro!$A$4:$AT$2433,19,FALSE),0) -> 0 | V29: =IFERROR(VLOOKUP($A29,Filtro!$A$4:$AT$2433,20,FALSE),0) -> 0 | W29: =IFERROR(VLOOKUP($A29,Filtro!$A$4:$AT$2433,21,FALSE),0) -> 0 | X29: =IFERROR(VLOOKUP($A29,Filtro!$A$4:$AT$2433,22,FALSE),0) -> 0 | Y29: =IFERROR(VLOOKUP($A29,Filtro!$A$4:$AT$2433,23,FALSE),0) -> 0 | Z29: =IFERROR(VLOOKUP($A29,Filtro!$A$4:$AT$2433,24,FALSE),0) -> 0 | AA29: =IFERROR(VLOOKUP($A29,Filtro!$A$4:$AT$2433,25,FALSE),0) -> 0 | AB29: =IFERROR(VLOOKUP($A29,Filtro!$A$4:$AT$2433,26,FALSE),0) -> 642 | AC29: =IFERROR(VLOOKUP($A29,Filtro!$A$4:$AT$2433,27,FALSE),0) -> 156083 | AD29: =IFERROR(VLOOKUP($A29,Filtro!$A$4:$AT$2433,28,FALSE),0) -> 14245 | AE29: =IFERROR(VLOOKUP($A29,Filtro!$A$4:$AT$2433,29,FALSE),0) -> 498 | AF29: =IFERROR(VLOOKUP($A29,Filtro!$A$4:$AT$2433,30,FALSE),0) -> 0 | AG29: =IFERROR(VLOOKUP($A29,Filtro!$A$4:$AT$2433,31,FALSE),0) -> 0 | AH29: =IFERROR(VLOOKUP($A29,Filtro!$A$4:$AT$2433,32,FALSE),0) -> 0 | AI29: =IFERROR(VLOOKUP($A29,Filtro!$A$4:$AT$2433,33,FALSE),0) -> 162 | AJ29: =IFERROR(VLOOKUP($A29,Filtro!$A$4:$AT$2433,34,FALSE),0) -> 0 | AK29: =IFERROR(VLOOKUP($A29,Filtro!$A$4:$AT$2433,35,FALSE),0) -> 0 | AL29: =IFERROR(VLOOKUP($A29,Filtro!$A$4:$AT$2433,36,FALSE),0) -> 170,280 | AM29: =IFERROR(VLOOKUP($A29,Filtro!$A$4:$AT$2433,37,FALSE),0) -> 231766560
A30: 01010020 | B30: 0102002 | C30: Control de salud niño con EDP por enfermera | D30: =IFERROR(VLOOKUP($A30,Filtro!$A$4:$AT$2433,2,FALSE),0) -> 2155 | E30: =IFERROR(VLOOKUP($A30,Filtro!$A$4:$AT$2433,3,FALSE),0) -> 2155 | F30: =IFERROR(VLOOKUP($A30,Filtro!$A$4:$AT$2433,4,FALSE),0) -> 2155 | G30: =IFERROR(VLOOKUP($A30,Filtro!$A$4:$AT$2433,5,FALSE),0) -> 0 | H30: =IFERROR(VLOOKUP($A30,Filtro!$A$4:$AT$2433,6,FALSE),0) -> 0 | I30: =IFERROR(VLOOKUP($A30,Filtro!$A$4:$AT$2433,7,FALSE),0) -> 0 | J30: =IFERROR(VLOOKUP($A30,Filtro!$A$4:$AT$2433,8,FALSE),0) -> 0 | K30: =IFERROR(VLOOKUP($A30,Filtro!$A$4:$AT$2433,9,FALSE),0) -> 0 | L30: =IFERROR(VLOOKUP($A30,Filtro!$A$4:$AT$2433,10,FALSE),0) -> 0 | M30: =IFERROR(VLOOKUP($A30,Filtro!$A$4:$AT$2433,11,FALSE),0) -> 0 | N30: =IFERROR(VLOOKUP($A30,Filtro!$A$4:$AT$2433,12,FALSE),0) -> 0 | O30: =IFERROR(VLOOKUP($A30,Filtro!$A$4:$AT$2433,13,FALSE),0) -> 0 | P30: =IFERROR(VLOOKUP($A30,Filtro!$A$4:$AT$2433,14,FALSE),0) -> 0 | Q30: =IFERROR(VLOOKUP($A30,Filtro!$A$4:$AT$2433,15,FALSE),0) -> 0 | R30: =IFERROR(VLOOKUP($A30,Filtro!$A$4:$AT$2433,16,FALSE),0) -> 0 | S30: =IFERROR(VLOOKUP($A30,Filtro!$A$4:$AT$2433,17,FALSE),0) -> 0 | T30: =IFERROR(VLOOKUP($A30,Filtro!$A$4:$AT$2433,18,FALSE),0) -> 0 | U30: =IFERROR(VLOOKUP($A30,Filtro!$A$4:$AT$2433,19,FALSE),0) -> 0 | V30: =IFERROR(VLOOKUP($A30,Filtro!$A$4:$AT$2433,20,FALSE),0) -> 0 | W30: =IFERROR(VLOOKUP($A30,Filtro!$A$4:$AT$2433,21,FALSE),0) -> 0 | X30: =IFERROR(VLOOKUP($A30,Filtro!$A$4:$AT$2433,22,FALSE),0) -> 0 | Y30: =IFERROR(VLOOKUP($A30,Filtro!$A$4:$AT$2433,23,FALSE),0) -> 0 | Z30: =IFERROR(VLOOKUP($A30,Filtro!$A$4:$AT$2433,24,FALSE),0) -> 0 | AA30: =IFERROR(VLOOKUP($A30,Filtro!$A$4:$AT$2433,25,FALSE),0) -> 0 | AB30: =IFERROR(VLOOKUP($A30,Filtro!$A$4:$AT$2433,26,FALSE),0) -> 0 | AC30: =IFERROR(VLOOKUP($A30,Filtro!$A$4:$AT$2433,27,FALSE),0) -> 1632 | AD30: =IFERROR(VLOOKUP($A30,Filtro!$A$4:$AT$2433,28,FALSE),0) -> 0 | AE30: =IFERROR(VLOOKUP($A30,Filtro!$A$4:$AT$2433,29,FALSE),0) -> 0 | AF30: =IFERROR(VLOOKUP($A30,Filtro!$A$4:$AT$2433,30,FALSE),0) -> 0 | AG30: =IFERROR(VLOOKUP($A30,Filtro!$A$4:$AT$2433,31,FALSE),0) -> 0 | AH30: =IFERROR(VLOOKUP($A30,Filtro!$A$4:$AT$2433,32,FALSE),0) -> 0 | AI30: =IFERROR(VLOOKUP($A30,Filtro!$A$4:$AT$2433,33,FALSE),0) -> 0 | AJ30: =IFERROR(VLOOKUP($A30,Filtro!$A$4:$AT$2433,34,FALSE),0) -> 0 | AK30: =IFERROR(VLOOKUP($A30,Filtro!$A$4:$AT$2433,35,FALSE),0) -> 0 | AL30: =IFERROR(VLOOKUP($A30,Filtro!$A$4:$AT$2433,36,FALSE),0) -> 290,400 | AM30: =IFERROR(VLOOKUP($A30,Filtro!$A$4:$AT$2433,37,FALSE),0) -> 4741000
A31: 01010021 | B31: 0102003 | C31: Consulta o control por auxiliar de enfermería | D31: =IFERROR(VLOOKUP($A31,Filtro!$A$4:$AT$2433,2,FALSE),0) -> 51768 | E31: =IFERROR(VLOOKUP($A31,Filtro!$A$4:$AT$2433,3,FALSE),0) -> 51768 | F31: =IFERROR(VLOOKUP($A31,Filtro!$A$4:$AT$2433,4,FALSE),0) -> 51768 | G31: =IFERROR(VLOOKUP($A31,Filtro!$A$4:$AT$2433,5,FALSE),0) -> 0 | H31: =IFERROR(VLOOKUP($A31,Filtro!$A$4:$AT$2433,6,FALSE),0) -> 0 | I31: =IFERROR(VLOOKUP($A31,Filtro!$A$4:$AT$2433,7,FALSE),0) -> 0 | J31: =IFERROR(VLOOKUP($A31,Filtro!$A$4:$AT$2433,8,FALSE),0) -> 0 | K31: =IFERROR(VLOOKUP($A31,Filtro!$A$4:$AT$2433,9,FALSE),0) -> 0 | L31: =IFERROR(VLOOKUP($A31,Filtro!$A$4:$AT$2433,10,FALSE),0) -> 0 | M31: =IFERROR(VLOOKUP($A31,Filtro!$A$4:$AT$2433,11,FALSE),0) -> 0 | N31: =IFERROR(VLOOKUP($A31,Filtro!$A$4:$AT$2433,12,FALSE),0) -> 0 | O31: =IFERROR(VLOOKUP($A31,Filtro!$A$4:$AT$2433,13,FALSE),0) -> 0 | P31: =IFERROR(VLOOKUP($A31,Filtro!$A$4:$AT$2433,14,FALSE),0) -> 0 | Q31: =IFERROR(VLOOKUP($A31,Filtro!$A$4:$AT$2433,15,FALSE),0) -> 0 | R31: =IFERROR(VLOOKUP($A31,Filtro!$A$4:$AT$2433,16,FALSE),0) -> 0 | S31: =IFERROR(VLOOKUP($A31,Filtro!$A$4:$AT$2433,17,FALSE),0) -> 0 | T31: =IFERROR(VLOOKUP($A31,Filtro!$A$4:$AT$2433,18,FALSE),0) -> 0 | U31: =IFERROR(VLOOKUP($A31,Filtro!$A$4:$AT$2433,19,FALSE),0) -> 0 | V31: =IFERROR(VLOOKUP($A31,Filtro!$A$4:$AT$2433,20,FALSE),0) -> 0 | W31: =IFERROR(VLOOKUP($A31,Filtro!$A$4:$AT$2433,21,FALSE),0) -> 0 | X31: =IFERROR(VLOOKUP($A31,Filtro!$A$4:$AT$2433,22,FALSE),0) -> 0 | Y31: =IFERROR(VLOOKUP($A31,Filtro!$A$4:$AT$2433,23,FALSE),0) -> 0 | Z31: =IFERROR(VLOOKUP($A31,Filtro!$A$4:$AT$2433,24,FALSE),0) -> 0 | AA31: =IFERROR(VLOOKUP($A31,Filtro!$A$4:$AT$2433,25,FALSE),0) -> 0 | AB31: =IFERROR(VLOOKUP($A31,Filtro!$A$4:$AT$2433,26,FALSE),0) -> 0 | AC31: =IFERROR(VLOOKUP($A31,Filtro!$A$4:$AT$2433,27,FALSE),0) -> 47129 | AD31: =IFERROR(VLOOKUP($A31,Filtro!$A$4:$AT$2433,28,FALSE),0) -> 4523 | AE31: =IFERROR(VLOOKUP($A31,Filtro!$A$4:$AT$2433,29,FALSE),0) -> 0 | AF31: =IFERROR(VLOOKUP($A31,Filtro!$A$4:$AT$2433,30,FALSE),0) -> 0 | AG31: =IFERROR(VLOOKUP($A31,Filtro!$A$4:$AT$2433,31,FALSE),0) -> 0 | AH31: =IFERROR(VLOOKUP($A31,Filtro!$A$4:$AT$2433,32,FALSE),0) -> 0 | AI31: =IFERROR(VLOOKUP($A31,Filtro!$A$4:$AT$2433,33,FALSE),0) -> 0 | AJ31: =IFERROR(VLOOKUP($A31,Filtro!$A$4:$AT$2433,34,FALSE),0) -> 0 | AK31: =IFERROR(VLOOKUP($A31,Filtro!$A$4:$AT$2433,35,FALSE),0) -> 0 | AL31: =IFERROR(VLOOKUP($A31,Filtro!$A$4:$AT$2433,36,FALSE),0) -> 93,720 | AM31: =IFERROR(VLOOKUP($A31,Filtro!$A$4:$AT$2433,37,FALSE),0) -> 36755280
A32: 01010022 | B32: 0102005 | C32: Consulta por fonoaudiólogo | D32: =IFERROR(VLOOKUP($A32,Filtro!$A$4:$AT$2433,2,FALSE),0) -> 9049 | E32: =IFERROR(VLOOKUP($A32,Filtro!$A$4:$AT$2433,3,FALSE),0) -> 9040 | F32: =IFERROR(VLOOKUP($A32,Filtro!$A$4:$AT$2433,4,FALSE),0) -> 9040 | G32: =IFERROR(VLOOKUP($A32,Filtro!$A$4:$AT$2433,5,FALSE),0) -> 0 | H32: =IFERROR(VLOOKUP($A32,Filtro!$A$4:$AT$2433,6,FALSE),0) -> 9 | I32: =IFERROR(VLOOKUP($A32,Filtro!$A$4:$AT$2433,7,FALSE),0) -> 0 | J32: =IFERROR(VLOOKUP($A32,Filtro!$A$4:$AT$2433,8,FALSE),0) -> 0 | K32: =IFERROR(VLOOKUP($A32,Filtro!$A$4:$AT$2433,9,FALSE),0) -> 0 | L32: =IFERROR(VLOOKUP($A32,Filtro!$A$4:$AT$2433,10,FALSE),0) -> 0 | M32: =IFERROR(VLOOKUP($A32,Filtro!$A$4:$AT$2433,11,FALSE),0) -> 0 | N32: =IFERROR(VLOOKUP($A32,Filtro!$A$4:$AT$2433,12,FALSE),0) -> 0 | O32: =IFERROR(VLOOKUP($A32,Filtro!$A$4:$AT$2433,13,FALSE),0) -> 0 | P32: =IFERROR(VLOOKUP($A32,Filtro!$A$4:$AT$2433,14,FALSE),0) -> 0 | Q32: =IFERROR(VLOOKUP($A32,Filtro!$A$4:$AT$2433,15,FALSE),0) -> 0 | R32: =IFERROR(VLOOKUP($A32,Filtro!$A$4:$AT$2433,16,FALSE),0) -> 0 | S32: =IFERROR(VLOOKUP($A32,Filtro!$A$4:$AT$2433,17,FALSE),0) -> 0 | T32: =IFERROR(VLOOKUP($A32,Filtro!$A$4:$AT$2433,18,FALSE),0) -> 0 | U32: =IFERROR(VLOOKUP($A32,Filtro!$A$4:$AT$2433,19,FALSE),0) -> 0 | V32: =IFERROR(VLOOKUP($A32,Filtro!$A$4:$AT$2433,20,FALSE),0) -> 0 | W32: =IFERROR(VLOOKUP($A32,Filtro!$A$4:$AT$2433,21,FALSE),0) -> 0 | X32: =IFERROR(VLOOKUP($A32,Filtro!$A$4:$AT$2433,22,FALSE),0) -> 0 | Y32: =IFERROR(VLOOKUP($A32,Filtro!$A$4:$AT$2433,23,FALSE),0) -> 0 | Z32: =IFERROR(VLOOKUP($A32,Filtro!$A$4:$AT$2433,24,FALSE),0) -> 0 | AA32: =IFERROR(VLOOKUP($A32,Filtro!$A$4:$AT$2433,25,FALSE),0) -> 0 | AB32: =IFERROR(VLOOKUP($A32,Filtro!$A$4:$AT$2433,26,FALSE),0) -> 0 | AC32: =IFERROR(VLOOKUP($A32,Filtro!$A$4:$AT$2433,27,FALSE),0) -> 8860 | AD32: =IFERROR(VLOOKUP($A32,Filtro!$A$4:$AT$2433,28,FALSE),0) -> 0 | AE32: =IFERROR(VLOOKUP($A32,Filtro!$A$4:$AT$2433,29,FALSE),0) -> 0 | AF32: =IFERROR(VLOOKUP($A32,Filtro!$A$4:$AT$2433,30,FALSE),0) -> 0 | AG32: =IFERROR(VLOOKUP($A32,Filtro!$A$4:$AT$2433,31,FALSE),0) -> 0 | AH32: =IFERROR(VLOOKUP($A32,Filtro!$A$4:$AT$2433,32,FALSE),0) -> 0 | AI32: =IFERROR(VLOOKUP($A32,Filtro!$A$4:$AT$2433,33,FALSE),0) -> 0 | AJ32: =IFERROR(VLOOKUP($A32,Filtro!$A$4:$AT$2433,34,FALSE),0) -> 0 | AK32: =IFERROR(VLOOKUP($A32,Filtro!$A$4:$AT$2433,35,FALSE),0) -> 0 | AL32: =IFERROR(VLOOKUP($A32,Filtro!$A$4:$AT$2433,36,FALSE),0) -> 231,000 | AM32: =IFERROR(VLOOKUP($A32,Filtro!$A$4:$AT$2433,37,FALSE),0) -> 15820000
A33: 01010023 | B33: 0102006 | C33: Atención kinesiológica integral ambulatoria | D33: =IFERROR(VLOOKUP($A33,Filtro!$A$4:$AT$2433,2,FALSE),0) -> 55820 | E33: =IFERROR(VLOOKUP($A33,Filtro!$A$4:$AT$2433,3,FALSE),0) -> 55715 | F33: =IFERROR(VLOOKUP($A33,Filtro!$A$4:$AT$2433,4,FALSE),0) -> 55715 | G33: =IFERROR(VLOOKUP($A33,Filtro!$A$4:$AT$2433,5,FALSE),0) -> 0 | H33: =IFERROR(VLOOKUP($A33,Filtro!$A$4:$AT$2433,6,FALSE),0) -> 105 | I33: =IFERROR(VLOOKUP($A33,Filtro!$A$4:$AT$2433,7,FALSE),0) -> 0 | J33: =IFERROR(VLOOKUP($A33,Filtro!$A$4:$AT$2433,8,FALSE),0) -> 0 | K33: =IFERROR(VLOOKUP($A33,Filtro!$A$4:$AT$2433,9,FALSE),0) -> 0 | L33: =IFERROR(VLOOKUP($A33,Filtro!$A$4:$AT$2433,10,FALSE),0) -> 0 | M33: =IFERROR(VLOOKUP($A33,Filtro!$A$4:$AT$2433,11,FALSE),0) -> 0 | N33: =IFERROR(VLOOKUP($A33,Filtro!$A$4:$AT$2433,12,FALSE),0) -> 0 | O33: =IFERROR(VLOOKUP($A33,Filtro!$A$4:$AT$2433,13,FALSE),0) -> 0 | P33: =IFERROR(VLOOKUP($A33,Filtro!$A$4:$AT$2433,14,FALSE),0) -> 0 | Q33: =IFERROR(VLOOKUP($A33,Filtro!$A$4:$AT$2433,15,FALSE),0) -> 0 | R33: =IFERROR(VLOOKUP($A33,Filtro!$A$4:$AT$2433,16,FALSE),0) -> 0 | S33: =IFERROR(VLOOKUP($A33,Filtro!$A$4:$AT$2433,17,FALSE),0) -> 0 | T33: =IFERROR(VLOOKUP($A33,Filtro!$A$4:$AT$2433,18,FALSE),0) -> 0 | U33: =IFERROR(VLOOKUP($A33,Filtro!$A$4:$AT$2433,19,FALSE),0) -> 0 | V33: =IFERROR(VLOOKUP($A33,Filtro!$A$4:$AT$2433,20,FALSE),0) -> 0 | W33: =IFERROR(VLOOKUP($A33,Filtro!$A$4:$AT$2433,21,FALSE),0) -> 0 | X33: =IFERROR(VLOOKUP($A33,Filtro!$A$4:$AT$2433,22,FALSE),0) -> 0 | Y33: =IFERROR(VLOOKUP($A33,Filtro!$A$4:$AT$2433,23,FALSE),0) -> 0 | Z33: =IFERROR(VLOOKUP($A33,Filtro!$A$4:$AT$2433,24,FALSE),0) -> 0 | AA33: =IFERROR(VLOOKUP($A33,Filtro!$A$4:$AT$2433,25,FALSE),0) -> 0 | AB33: =IFERROR(VLOOKUP($A33,Filtro!$A$4:$AT$2433,26,FALSE),0) -> 841 | AC33: =IFERROR(VLOOKUP($A33,Filtro!$A$4:$AT$2433,27,FALSE),0) -> 54449 | AD33: =IFERROR(VLOOKUP($A33,Filtro!$A$4:$AT$2433,28,FALSE),0) -> 0 | AE33: =IFERROR(VLOOKUP($A33,Filtro!$A$4:$AT$2433,29,FALSE),0) -> 0 | AF33: =IFERROR(VLOOKUP($A33,Filtro!$A$4:$AT$2433,30,FALSE),0) -> 0 | AG33: =IFERROR(VLOOKUP($A33,Filtro!$A$4:$AT$2433,31,FALSE),0) -> 0 | AH33: =IFERROR(VLOOKUP($A33,Filtro!$A$4:$AT$2433,32,FALSE),0) -> 0 | AI33: =IFERROR(VLOOKUP($A33,Filtro!$A$4:$AT$2433,33,FALSE),0) -> 0 | AJ33: =IFERROR(VLOOKUP($A33,Filtro!$A$4:$AT$2433,34,FALSE),0) -> 0 | AK33: =IFERROR(VLOOKUP($A33,Filtro!$A$4:$AT$2433,35,FALSE),0) -> 0 | AL33: =IFERROR(VLOOKUP($A33,Filtro!$A$4:$AT$2433,36,FALSE),0) -> 186,120 | AM33: =IFERROR(VLOOKUP($A33,Filtro!$A$4:$AT$2433,37,FALSE),0) -> 78558150
A34: 01010024 | B34: 0102007 | C34: Atención integral por terapeuta ocupacional | D34: =IFERROR(VLOOKUP($A34,Filtro!$A$4:$AT$2433,2,FALSE),0) -> 845 | E34: =IFERROR(VLOOKUP($A34,Filtro!$A$4:$AT$2433,3,FALSE),0) -> 843 | F34: =IFERROR(VLOOKUP($A34,Filtro!$A$4:$AT$2433,4,FALSE),0) -> 843 | G34: =IFERROR(VLOOKUP($A34,Filtro!$A$4:$AT$2433,5,FALSE),0) -> 0 | H34: =IFERROR(VLOOKUP($A34,Filtro!$A$4:$AT$2433,6,FALSE),0) -> 2 | I34: =IFERROR(VLOOKUP($A34,Filtro!$A$4:$AT$2433,7,FALSE),0) -> 0 | J34: =IFERROR(VLOOKUP($A34,Filtro!$A$4:$AT$2433,8,FALSE),0) -> 0 | K34: =IFERROR(VLOOKUP($A34,Filtro!$A$4:$AT$2433,9,FALSE),0) -> 0 | L34: =IFERROR(VLOOKUP($A34,Filtro!$A$4:$AT$2433,10,FALSE),0) -> 0 | M34: =IFERROR(VLOOKUP($A34,Filtro!$A$4:$AT$2433,11,FALSE),0) -> 0 | N34: =IFERROR(VLOOKUP($A34,Filtro!$A$4:$AT$2433,12,FALSE),0) -> 0 | O34: =IFERROR(VLOOKUP($A34,Filtro!$A$4:$AT$2433,13,FALSE),0) -> 0 | P34: =IFERROR(VLOOKUP($A34,Filtro!$A$4:$AT$2433,14,FALSE),0) -> 0 | Q34: =IFERROR(VLOOKUP($A34,Filtro!$A$4:$AT$2433,15,FALSE),0) -> 0 | R34: =IFERROR(VLOOKUP($A34,Filtro!$A$4:$AT$2433,16,FALSE),0) -> 0 | S34: =IFERROR(VLOOKUP($A34,Filtro!$A$4:$AT$2433,17,FALSE),0) -> 0 | T34: =IFERROR(VLOOKUP($A34,Filtro!$A$4:$AT$2433,18,FALSE),0) -> 0 | U34: =IFERROR(VLOOKUP($A34,Filtro!$A$4:$AT$2433,19,FALSE),0) -> 0 | V34: =IFERROR(VLOOKUP($A34,Filtro!$A$4:$AT$2433,20,FALSE),0) -> 0 | W34: =IFERROR(VLOOKUP($A34,Filtro!$A$4:$AT$2433,21,FALSE),0) -> 0 | X34: =IFERROR(VLOOKUP($A34,Filtro!$A$4:$AT$2433,22,FALSE),0) -> 0 | Y34: =IFERROR(VLOOKUP($A34,Filtro!$A$4:$AT$2433,23,FALSE),0) -> 0 | Z34: =IFERROR(VLOOKUP($A34,Filtro!$A$4:$AT$2433,24,FALSE),0) -> 0 | AA34: =IFERROR(VLOOKUP($A34,Filtro!$A$4:$AT$2433,25,FALSE),0) -> 0 | AB34: =IFERROR(VLOOKUP($A34,Filtro!$A$4:$AT$2433,26,FALSE),0) -> 0 | AC34: =IFERROR(VLOOKUP($A34,Filtro!$A$4:$AT$2433,27,FALSE),0) -> 1009 | AD34: =IFERROR(VLOOKUP($A34,Filtro!$A$4:$AT$2433,28,FALSE),0) -> 0 | AE34: =IFERROR(VLOOKUP($A34,Filtro!$A$4:$AT$2433,29,FALSE),0) -> 0 | AF34: =IFERROR(VLOOKUP($A34,Filtro!$A$4:$AT$2433,30,FALSE),0) -> 0 | AG34: =IFERROR(VLOOKUP($A34,Filtro!$A$4:$AT$2433,31,FALSE),0) -> 0 | AH34: =IFERROR(VLOOKUP($A34,Filtro!$A$4:$AT$2433,32,FALSE),0) -> 0 | AI34: =IFERROR(VLOOKUP($A34,Filtro!$A$4:$AT$2433,33,FALSE),0) -> 0 | AJ34: =IFERROR(VLOOKUP($A34,Filtro!$A$4:$AT$2433,34,FALSE),0) -> 0 | AK34: =IFERROR(VLOOKUP($A34,Filtro!$A$4:$AT$2433,35,FALSE),0) -> 0 | AL34: =IFERROR(VLOOKUP($A34,Filtro!$A$4:$AT$2433,36,FALSE),0) -> 170,280 | AM34: =IFERROR(VLOOKUP($A34,Filtro!$A$4:$AT$2433,37,FALSE),0) -> 1087470
C35: TOTAL ARANCEL MAI | D35: =SUM(D29:D34) -> 300847 | E35: =SUM(E29:E34) -> 299185 | F35: =SUM(F29:F34) -> 299185 | G35: =SUM(G29:G34) -> 0 | H35: =SUM(H29:H34) -> 1662 | AB35: =SUM(AB29:AB34) -> 1483 | AC35: 269162 | AD35: 18768 | AE35: 498 | AF35: 0 | AG35: 0 | AH35: 0 | AI35: 162 | AJ35: 0 | AK35: 0 | AL35: =SUM(AL29:AL34) -> 1,141,800 | AM35: =SUM(AM29:AM34) -> 368728460
A36: 01010025 | C36: Consulta por otros profesionales | D36: =IFERROR(VLOOKUP($A36,Filtro!$A$4:$AT$2433,2,FALSE),0) -> 7565 | E36: =IFERROR(VLOOKUP($A36,Filtro!$A$4:$AT$2433,3,FALSE),0) -> 7565 | F36: =IFERROR(VLOOKUP($A36,Filtro!$A$4:$AT$2433,4,FALSE),0) -> 7565 | G36: =IFERROR(VLOOKUP($A36,Filtro!$A$4:$AT$2433,5,FALSE),0) -> 0 | H36: =IFERROR(VLOOKUP($A36,Filtro!$A$4:$AT$2433,6,FALSE),0) -> 0 | I36: =IFERROR(VLOOKUP($A36,Filtro!$A$4:$AT$2433,7,FALSE),0) -> 0 | J36: =IFERROR(VLOOKUP($A36,Filtro!$A$4:$AT$2433,8,FALSE),0) -> 0 | K36: =IFERROR(VLOOKUP($A36,Filtro!$A$4:$AT$2433,9,FALSE),0) -> 0 | L36: =IFERROR(VLOOKUP($A36,Filtro!$A$4:$AT$2433,10,FALSE),0) -> 0 | M36: =IFERROR(VLOOKUP($A36,Filtro!$A$4:$AT$2433,11,FALSE),0) -> 0 | N36: =IFERROR(VLOOKUP($A36,Filtro!$A$4:$AT$2433,12,FALSE),0) -> 0 | O36: =IFERROR(VLOOKUP($A36,Filtro!$A$4:$AT$2433,13,FALSE),0) -> 0 | P36: =IFERROR(VLOOKUP($A36,Filtro!$A$4:$AT$2433,14,FALSE),0) -> 0 | Q36: =IFERROR(VLOOKUP($A36,Filtro!$A$4:$AT$2433,15,FALSE),0) -> 0 | R36: =IFERROR(VLOOKUP($A36,Filtro!$A$4:$AT$2433,16,FALSE),0) -> 0 | S36: =IFERROR(VLOOKUP($A36,Filtro!$A$4:$AT$2433,17,FALSE),0) -> 0 | T36: =IFERROR(VLOOKUP($A36,Filtro!$A$4:$AT$2433,18,FALSE),0) -> 0 | U36: =IFERROR(VLOOKUP($A36,Filtro!$A$4:$AT$2433,19,FALSE),0) -> 0 | V36: =IFERROR(VLOOKUP($A36,Filtro!$A$4:$AT$2433,20,FALSE),0) -> 0 | W36: =IFERROR(VLOOKUP($A36,Filtro!$A$4:$AT$2433,21,FALSE),0) -> 0 | X36: =IFERROR(VLOOKUP($A36,Filtro!$A$4:$AT$2433,22,FALSE),0) -> 0 | Y36: =IFERROR(VLOOKUP($A36,Filtro!$A$4:$AT$2433,23,FALSE),0) -> 0 | Z36: =IFERROR(VLOOKUP($A36,Filtro!$A$4:$AT$2433,24,FALSE),0) -> 0 | AA36: =IFERROR(VLOOKUP($A36,Filtro!$A$4:$AT$2433,25,FALSE),0) -> 0 | AB36: =IFERROR(VLOOKUP($A36,Filtro!$A$4:$AT$2433,26,FALSE),0) -> 2203 | AC36: =IFERROR(VLOOKUP($A36,Filtro!$A$4:$AT$2433,27,FALSE),0) -> 4914 | AD36: =IFERROR(VLOOKUP($A36,Filtro!$A$4:$AT$2433,28,FALSE),0) -> 0 | AE36: =IFERROR(VLOOKUP($A36,Filtro!$A$4:$AT$2433,29,FALSE),0) -> 0 | AF36: =IFERROR(VLOOKUP($A36,Filtro!$A$4:$AT$2433,30,FALSE),0) -> 0 | AG36: =IFERROR(VLOOKUP($A36,Filtro!$A$4:$AT$2433,31,FALSE),0) -> 0 | AH36: =IFERROR(VLOOKUP($A36,Filtro!$A$4:$AT$2433,32,FALSE),0) -> 0 | AI36: =IFERROR(VLOOKUP($A36,Filtro!$A$4:$AT$2433,33,FALSE),0) -> 0 | AJ36: =IFERROR(VLOOKUP($A36,Filtro!$A$4:$AT$2433,34,FALSE),0) -> 0 | AK36: =IFERROR(VLOOKUP($A36,Filtro!$A$4:$AT$2433,35,FALSE),0) -> 0 | AL36: =IFERROR(VLOOKUP($A36,Filtro!$A$4:$AT$2433,36,FALSE),0) -> 0 | AM36: =IFERROR(VLOOKUP($A36,Filtro!$A$4:$AT$2433,37,FALSE),0) -> 0
A37: 01012817 | C37: Consulta por Asistente Social | D37: =IFERROR(VLOOKUP($A37,Filtro!$A$4:$AT$2433,2,FALSE),0) -> 17326 | E37: =IFERROR(VLOOKUP($A37,Filtro!$A$4:$AT$2433,3,FALSE),0) -> 16688 | F37: =IFERROR(VLOOKUP($A37,Filtro!$A$4:$AT$2433,4,FALSE),0) -> 16688 | G37: =IFERROR(VLOOKUP($A37,Filtro!$A$4:$AT$2433,5,FALSE),0) -> 0 | H37: =IFERROR(VLOOKUP($A37,Filtro!$A$4:$AT$2433,6,FALSE),0) -> 638 | I37: =IFERROR(VLOOKUP($A37,Filtro!$A$4:$AT$2433,7,FALSE),0) -> 0 | J37: =IFERROR(VLOOKUP($A37,Filtro!$A$4:$AT$2433,8,FALSE),0) -> 0 | K37: =IFERROR(VLOOKUP($A37,Filtro!$A$4:$AT$2433,9,FALSE),0) -> 0 | L37: =IFERROR(VLOOKUP($A37,Filtro!$A$4:$AT$2433,10,FALSE),0) -> 0 | M37: =IFERROR(VLOOKUP($A37,Filtro!$A$4:$AT$2433,11,FALSE),0) -> 0 | N37: =IFERROR(VLOOKUP($A37,Filtro!$A$4:$AT$2433,12,FALSE),0) -> 0 | O37: =IFERROR(VLOOKUP($A37,Filtro!$A$4:$AT$2433,13,FALSE),0) -> 0 | P37: =IFERROR(VLOOKUP($A37,Filtro!$A$4:$AT$2433,14,FALSE),0) -> 0 | Q37: =IFERROR(VLOOKUP($A37,Filtro!$A$4:$AT$2433,15,FALSE),0) -> 0 | R37: =IFERROR(VLOOKUP($A37,Filtro!$A$4:$AT$2433,16,FALSE),0) -> 0 | S37: =IFERROR(VLOOKUP($A37,Filtro!$A$4:$AT$2433,17,FALSE),0) -> 0 | T37: =IFERROR(VLOOKUP($A37,Filtro!$A$4:$AT$2433,18,FALSE),0) -> 0 | U37: =IFERROR(VLOOKUP($A37,Filtro!$A$4:$AT$2433,19,FALSE),0) -> 0 | V37: =IFERROR(VLOOKUP($A37,Filtro!$A$4:$AT$2433,20,FALSE),0) -> 0 | W37: =IFERROR(VLOOKUP($A37,Filtro!$A$4:$AT$2433,21,FALSE),0) -> 0 | X37: =IFERROR(VLOOKUP($A37,Filtro!$A$4:$AT$2433,22,FALSE),0) -> 0 | Y37: =IFERROR(VLOOKUP($A37,Filtro!$A$4:$AT$2433,23,FALSE),0) -> 0 | Z37: =IFERROR(VLOOKUP($A37,Filtro!$A$4:$AT$2433,24,FALSE),0) -> 0 | AA37: =IFERROR(VLOOKUP($A37,Filtro!$A$4:$AT$2433,25,FALSE),0) -> 0 | AB37: =IFERROR(VLOOKUP($A37,Filtro!$A$4:$AT$2433,26,FALSE),0) -> 615 | AC37: =IFERROR(VLOOKUP($A37,Filtro!$A$4:$AT$2433,27,FALSE),0) -> 16217 | AD37: =IFERROR(VLOOKUP($A37,Filtro!$A$4:$AT$2433,28,FALSE),0) -> 0 | AE37: =IFERROR(VLOOKUP($A37,Filtro!$A$4:$AT$2433,29,FALSE),0) -> 203 | AF37: =IFERROR(VLOOKUP($A37,Filtro!$A$4:$AT$2433,30,FALSE),0) -> 0 | AG37: =IFERROR(VLOOKUP($A37,Filtro!$A$4:$AT$2433,31,FALSE),0) -> 0 | AH37: =IFERROR(VLOOKUP($A37,Filtro!$A$4:$AT$2433,32,FALSE),0) -> 0 | AI37: =IFERROR(VLOOKUP($A37,Filtro!$A$4:$AT$2433,33,FALSE),0) -> 0 | AJ37: =IFERROR(VLOOKUP($A37,Filtro!$A$4:$AT$2433,34,FALSE),0) -> 0 | AK37: =IFERROR(VLOOKUP($A37,Filtro!$A$4:$AT$2433,35,FALSE),0) -> 0 | AL37: =IFERROR(VLOOKUP($A37,Filtro!$A$4:$AT$2433,36,FALSE),0) -> 0 | AM37: =IFERROR(VLOOKUP($A37,Filtro!$A$4:$AT$2433,37,FALSE),0) -> 0
A38: 01010026 | C38: Consultas/ Controles de Especialidades Odontológica | D38: =IFERROR(VLOOKUP($A38,Filtro!$A$4:$AT$2433,2,FALSE),0) -> 13619 | E38: =IFERROR(VLOOKUP($A38,Filtro!$A$4:$AT$2433,3,FALSE),0) -> 13619 | F38: =IFERROR(VLOOKUP($A38,Filtro!$A$4:$AT$2433,4,FALSE),0) -> 13619 | G38: =IFERROR(VLOOKUP($A38,Filtro!$A$4:$AT$2433,5,FALSE),0) -> 0 | H38: =IFERROR(VLOOKUP($A38,Filtro!$A$4:$AT$2433,6,FALSE),0) -> 0 | I38: =IFERROR(VLOOKUP($A38,Filtro!$A$4:$AT$2433,7,FALSE),0) -> 0 | J38: =IFERROR(VLOOKUP($A38,Filtro!$A$4:$AT$2433,8,FALSE),0) -> 0 | K38: =IFERROR(VLOOKUP($A38,Filtro!$A$4:$AT$2433,9,FALSE),0) -> 0 | L38: =IFERROR(VLOOKUP($A38,Filtro!$A$4:$AT$2433,10,FALSE),0) -> 0 | M38: =IFERROR(VLOOKUP($A38,Filtro!$A$4:$AT$2433,11,FALSE),0) -> 0 | N38: =IFERROR(VLOOKUP($A38,Filtro!$A$4:$AT$2433,12,FALSE),0) -> 0 | O38: =IFERROR(VLOOKUP($A38,Filtro!$A$4:$AT$2433,13,FALSE),0) -> 0 | P38: =IFERROR(VLOOKUP($A38,Filtro!$A$4:$AT$2433,14,FALSE),0) -> 0 | Q38: =IFERROR(VLOOKUP($A38,Filtro!$A$4:$AT$2433,15,FALSE),0) -> 0 | R38: =IFERROR(VLOOKUP($A38,Filtro!$A$4:$AT$2433,16,FALSE),0) -> 0 | S38: =IFERROR(VLOOKUP($A38,Filtro!$A$4:$AT$2433,17,FALSE),0) -> 0 | T38: =IFERROR(VLOOKUP($A38,Filtro!$A$4:$AT$2433,18,FALSE),0) -> 0 | U38: =IFERROR(VLOOKUP($A38,Filtro!$A$4:$AT$2433,19,FALSE),0) -> 0 | V38: =IFERROR(VLOOKUP($A38,Filtro!$A$4:$AT$2433,20,FALSE),0) -> 0 | W38: =IFERROR(VLOOKUP($A38,Filtro!$A$4:$AT$2433,21,FALSE),0) -> 0 | X38: =IFERROR(VLOOKUP($A38,Filtro!$A$4:$AT$2433,22,FALSE),0) -> 0 | Y38: =IFERROR(VLOOKUP($A38,Filtro!$A$4:$AT$2433,23,FALSE),0) -> 0 | Z38: =IFERROR(VLOOKUP($A38,Filtro!$A$4:$AT$2433,24,FALSE),0) -> 0 | AA38: =IFERROR(VLOOKUP($A38,Filtro!$A$4:$AT$2433,25,FALSE),0) -> 0 | AB38: =IFERROR(VLOOKUP($A38,Filtro!$A$4:$AT$2433,26,FALSE),0) -> 0 | AC38: =IFERROR(VLOOKUP($A38,Filtro!$A$4:$AT$2433,27,FALSE),0) -> 12060 | AD38: =IFERROR(VLOOKUP($A38,Filtro!$A$4:$AT$2433,28,FALSE),0) -> 0 | AE38: =IFERROR(VLOOKUP($A38,Filtro!$A$4:$AT$2433,29,FALSE),0) -> 0 | AF38: =IFERROR(VLOOKUP($A38,Filtro!$A$4:$AT$2433,30,FALSE),0) -> 0 | AG38: =IFERROR(VLOOKUP($A38,Filtro!$A$4:$AT$2433,31,FALSE),0) -> 0 | AH38: =IFERROR(VLOOKUP($A38,Filtro!$A$4:$AT$2433,32,FALSE),0) -> 0 | AI38: =IFERROR(VLOOKUP($A38,Filtro!$A$4:$AT$2433,33,FALSE),0) -> 0 | AJ38: =IFERROR(VLOOKUP($A38,Filtro!$A$4:$AT$2433,34,FALSE),0) -> 0 | AK38: =IFERROR(VLOOKUP($A38,Filtro!$A$4:$AT$2433,35,FALSE),0) -> 0 | AL38: =IFERROR(VLOOKUP($A38,Filtro!$A$4:$AT$2433,36,FALSE),0) -> 0 | AM38: =IFERROR(VLOOKUP($A38,Filtro!$A$4:$AT$2433,37,FALSE),0) -> 0
A39: 01010027 | C39: Consultas/Controles de morbilidad odontológica | D39: =IFERROR(VLOOKUP($A39,Filtro!$A$4:$AT$2433,2,FALSE),0) -> 32952 | E39: =IFERROR(VLOOKUP($A39,Filtro!$A$4:$AT$2433,3,FALSE),0) -> 32952 | F39: =IFERROR(VLOOKUP($A39,Filtro!$A$4:$AT$2433,4,FALSE),0) -> 32952 | G39: =IFERROR(VLOOKUP($A39,Filtro!$A$4:$AT$2433,5,FALSE),0) -> 0 | H39: =IFERROR(VLOOKUP($A39,Filtro!$A$4:$AT$2433,6,FALSE),0) -> 0 | I39: =IFERROR(VLOOKUP($A39,Filtro!$A$4:$AT$2433,7,FALSE),0) -> 0 | J39: =IFERROR(VLOOKUP($A39,Filtro!$A$4:$AT$2433,8,FALSE),0) -> 0 | K39: =IFERROR(VLOOKUP($A39,Filtro!$A$4:$AT$2433,9,FALSE),0) -> 0 | L39: =IFERROR(VLOOKUP($A39,Filtro!$A$4:$AT$2433,10,FALSE),0) -> 0 | M39: =IFERROR(VLOOKUP($A39,Filtro!$A$4:$AT$2433,11,FALSE),0) -> 0 | N39: =IFERROR(VLOOKUP($A39,Filtro!$A$4:$AT$2433,12,FALSE),0) -> 0 | O39: =IFERROR(VLOOKUP($A39,Filtro!$A$4:$AT$2433,13,FALSE),0) -> 0 | P39: =IFERROR(VLOOKUP($A39,Filtro!$A$4:$AT$2433,14,FALSE),0) -> 0 | Q39: =IFERROR(VLOOKUP($A39,Filtro!$A$4:$AT$2433,15,FALSE),0) -> 0 | R39: =IFERROR(VLOOKUP($A39,Filtro!$A$4:$AT$2433,16,FALSE),0) -> 0 | S39: =IFERROR(VLOOKUP($A39,Filtro!$A$4:$AT$2433,17,FALSE),0) -> 0 | T39: =IFERROR(VLOOKUP($A39,Filtro!$A$4:$AT$2433,18,FALSE),0) -> 0 | U39: =IFERROR(VLOOKUP($A39,Filtro!$A$4:$AT$2433,19,FALSE),0) -> 0 | V39: =IFERROR(VLOOKUP($A39,Filtro!$A$4:$AT$2433,20,FALSE),0) -> 0 | W39: =IFERROR(VLOOKUP($A39,Filtro!$A$4:$AT$2433,21,FALSE),0) -> 0 | X39: =IFERROR(VLOOKUP($A39,Filtro!$A$4:$AT$2433,22,FALSE),0) -> 0 | Y39: =IFERROR(VLOOKUP($A39,Filtro!$A$4:$AT$2433,23,FALSE),0) -> 0 | Z39: =IFERROR(VLOOKUP($A39,Filtro!$A$4:$AT$2433,24,FALSE),0) -> 0 | AA39: =IFERROR(VLOOKUP($A39,Filtro!$A$4:$AT$2433,25,FALSE),0) -> 0 | AB39: =IFERROR(VLOOKUP($A39,Filtro!$A$4:$AT$2433,26,FALSE),0) -> 0 | AC39: =IFERROR(VLOOKUP($A39,Filtro!$A$4:$AT$2433,27,FALSE),0) -> 32729 | AD39: =IFERROR(VLOOKUP($A39,Filtro!$A$4:$AT$2433,28,FALSE),0) -> 0 | AE39: =IFERROR(VLOOKUP($A39,Filtro!$A$4:$AT$2433,29,FALSE),0) -> 319 | AF39: =IFERROR(VLOOKUP($A39,Filtro!$A$4:$AT$2433,30,FALSE),0) -> 0 | AG39: =IFERROR(VLOOKUP($A39,Filtro!$A$4:$AT$2433,31,FALSE),0) -> 0 | AH39: =IFERROR(VLOOKUP($A39,Filtro!$A$4:$AT$2433,32,FALSE),0) -> 0 | AI39: =IFERROR(VLOOKUP($A39,Filtro!$A$4:$AT$2433,33,FALSE),0) -> 0 | AJ39: =IFERROR(VLOOKUP($A39,Filtro!$A$4:$AT$2433,34,FALSE),0) -> 0 | AK39: =IFERROR(VLOOKUP($A39,Filtro!$A$4:$AT$2433,35,FALSE),0) -> 0 | AL39: =IFERROR(VLOOKUP($A39,Filtro!$A$4:$AT$2433,36,FALSE),0) -> 0 | AM39: =IFERROR(VLOOKUP($A39,Filtro!$A$4:$AT$2433,37,FALSE),0) -> 0
A40: 01010028 | C40: Consultas de urgencia odontológica | D40: =IFERROR(VLOOKUP($A40,Filtro!$A$4:$AT$2433,2,FALSE),0) -> 7647 | E40: =IFERROR(VLOOKUP($A40,Filtro!$A$4:$AT$2433,3,FALSE),0) -> 7647 | F40: =IFERROR(VLOOKUP($A40,Filtro!$A$4:$AT$2433,4,FALSE),0) -> 7647 | G40: =IFERROR(VLOOKUP($A40,Filtro!$A$4:$AT$2433,5,FALSE),0) -> 0 | H40: =IFERROR(VLOOKUP($A40,Filtro!$A$4:$AT$2433,6,FALSE),0) -> 0 | I40: =IFERROR(VLOOKUP($A40,Filtro!$A$4:$AT$2433,7,FALSE),0) -> 0 | J40: =IFERROR(VLOOKUP($A40,Filtro!$A$4:$AT$2433,8,FALSE),0) -> 0 | K40: =IFERROR(VLOOKUP($A40,Filtro!$A$4:$AT$2433,9,FALSE),0) -> 0 | L40: =IFERROR(VLOOKUP($A40,Filtro!$A$4:$AT$2433,10,FALSE),0) -> 0 | M40: =IFERROR(VLOOKUP($A40,Filtro!$A$4:$AT$2433,11,FALSE),0) -> 0 | N40: =IFERROR(VLOOKUP($A40,Filtro!$A$4:$AT$2433,12,FALSE),0) -> 0 | O40: =IFERROR(VLOOKUP($A40,Filtro!$A$4:$AT$2433,13,FALSE),0) -> 0 | P40: =IFERROR(VLOOKUP($A40,Filtro!$A$4:$AT$2433,14,FALSE),0) -> 0 | Q40: =IFERROR(VLOOKUP($A40,Filtro!$A$4:$AT$2433,15,FALSE),0) -> 0 | R40: =IFERROR(VLOOKUP($A40,Filtro!$A$4:$AT$2433,16,FALSE),0) -> 0 | S40: =IFERROR(VLOOKUP($A40,Filtro!$A$4:$AT$2433,17,FALSE),0) -> 0 | T40: =IFERROR(VLOOKUP($A40,Filtro!$A$4:$AT$2433,18,FALSE),0) -> 0 | U40: =IFERROR(VLOOKUP($A40,Filtro!$A$4:$AT$2433,19,FALSE),0) -> 0 | V40: =IFERROR(VLOOKUP($A40,Filtro!$A$4:$AT$2433,20,FALSE),0) -> 0 | W40: =IFERROR(VLOOKUP($A40,Filtro!$A$4:$AT$2433,21,FALSE),0) -> 0 | X40: =IFERROR(VLOOKUP($A40,Filtro!$A$4:$AT$2433,22,FALSE),0) -> 0 | Y40: =IFERROR(VLOOKUP($A40,Filtro!$A$4:$AT$2433,23,FALSE),0) -> 0 | Z40: =IFERROR(VLOOKUP($A40,Filtro!$A$4:$AT$2433,24,FALSE),0) -> 0 | AA40: =IFERROR(VLOOKUP($A40,Filtro!$A$4:$AT$2433,25,FALSE),0) -> 0 | AB40: =IFERROR(VLOOKUP($A40,Filtro!$A$4:$AT$2433,26,FALSE),0) -> 168 | AC40: =IFERROR(VLOOKUP($A40,Filtro!$A$4:$AT$2433,27,FALSE),0) -> 4236 | AD40: =IFERROR(VLOOKUP($A40,Filtro!$A$4:$AT$2433,28,FALSE),0) -> 958 | AE40: =IFERROR(VLOOKUP($A40,Filtro!$A$4:$AT$2433,29,FALSE),0) -> 59 | AF40: =IFERROR(VLOOKUP($A40,Filtro!$A$4:$AT$2433,30,FALSE),0) -> 0 | AG40: =IFERROR(VLOOKUP($A40,Filtro!$A$4:$AT$2433,31,FALSE),0) -> 0 | AH40: =IFERROR(VLOOKUP($A40,Filtro!$A$4:$AT$2433,32,FALSE),0) -> 0 | AI40: =IFERROR(VLOOKUP($A40,Filtro!$A$4:$AT$2433,33,FALSE),0) -> 0 | AJ40: =IFERROR(VLOOKUP($A40,Filtro!$A$4:$AT$2433,34,FALSE),0) -> 0 | AK40: =IFERROR(VLOOKUP($A40,Filtro!$A$4:$AT$2433,35,FALSE),0) -> 0 | AL40: =IFERROR(VLOOKUP($A40,Filtro!$A$4:$AT$2433,36,FALSE),0) -> 0 | AM40: =IFERROR(VLOOKUP($A40,Filtro!$A$4:$AT$2433,37,FALSE),0) -> 0
C41: TOTAL ARANCEL MLE Y NO ARANCELADO | D41: =SUM(D36:D40) -> 79109 | E41: =SUM(E36:E40) -> 78471 | F41: =SUM(F36:F40) -> 78471 | G41: =SUM(G36:G40) -> 0 | H41: =SUM(H36:H40) -> 638 | AB41: =SUM(AB36:AB40) -> 2986 | AC41: 70156 | AD41: 958 | AE41: 581 | AF41: 0 | AG41: 0 | AH41: 0 | AI41: 0 | AJ41: 0 | AK41: 0
C42: TOTAL PRODUCCION | D42: =SUM(D35+D41) -> 379956 | E42: =SUM(E35+E41) -> 377656 | F42: =SUM(F35+F41) -> 377656 | G42: =SUM(G35+G41) -> 0 | H42: =SUM(H35+H41) -> 2300 | AB42: =SUM(AB35+AB41) -> 4469 | AC42: 339318 | AD42: 19726 | AE42: 1079 | AF42: 0 | AG42: 0 | AH42: 0 | AI42: 162 | AJ42: 0 | AK42: 0 | AL42: =SUM(AL35+AL41) -> 1,141,800 | AM42: =SUM(AM35+AM41) -> 368,728,460
C43: EDUCACION DE GRUPO
A44: 01010029 | B44: 0103001 | C44: Educación de grupo por médico | D44: =IFERROR(VLOOKUP($A44,Filtro!$A$4:$AT$2433,2,FALSE),0) -> 13 | E44: =IFERROR(VLOOKUP($A44,Filtro!$A$4:$AT$2433,3,FALSE),0) -> 13 | F44: =IFERROR(VLOOKUP($A44,Filtro!$A$4:$AT$2433,4,FALSE),0) -> 13 | G44: =IFERROR(VLOOKUP($A44,Filtro!$A$4:$AT$2433,5,FALSE),0) -> 0 | H44: =IFERROR(VLOOKUP($A44,Filtro!$A$4:$AT$2433,6,FALSE),0) -> 0 | I44: =IFERROR(VLOOKUP($A44,Filtro!$A$4:$AT$2433,7,FALSE),0) -> 0 | J44: =IFERROR(VLOOKUP($A44,Filtro!$A$4:$AT$2433,8,FALSE),0) -> 0 | K44: =IFERROR(VLOOKUP($A44,Filtro!$A$4:$AT$2433,9,FALSE),0) -> 0 | L44: =IFERROR(VLOOKUP($A44,Filtro!$A$4:$AT$2433,10,FALSE),0) -> 0 | M44: =IFERROR(VLOOKUP($A44,Filtro!$A$4:$AT$2433,11,FALSE),0) -> 0 | N44: =IFERROR(VLOOKUP($A44,Filtro!$A$4:$AT$2433,12,FALSE),0) -> 0 | O44: =IFERROR(VLOOKUP($A44,Filtro!$A$4:$AT$2433,13,FALSE),0) -> 0 | P44: =IFERROR(VLOOKUP($A44,Filtro!$A$4:$AT$2433,14,FALSE),0) -> 0 | Q44: =IFERROR(VLOOKUP($A44,Filtro!$A$4:$AT$2433,15,FALSE),0) -> 0 | R44: =IFERROR(VLOOKUP($A44,Filtro!$A$4:$AT$2433,16,FALSE),0) -> 0 | S44: =IFERROR(VLOOKUP($A44,Filtro!$A$4:$AT$2433,17,FALSE),0) -> 0 | T44: =IFERROR(VLOOKUP($A44,Filtro!$A$4:$AT$2433,18,FALSE),0) -> 0 | U44: =IFERROR(VLOOKUP($A44,Filtro!$A$4:$AT$2433,19,FALSE),0) -> 0 | V44: =IFERROR(VLOOKUP($A44,Filtro!$A$4:$AT$2433,20,FALSE),0) -> 0 | W44: =IFERROR(VLOOKUP($A44,Filtro!$A$4:$AT$2433,21,FALSE),0) -> 0 | X44: =IFERROR(VLOOKUP($A44,Filtro!$A$4:$AT$2433,22,FALSE),0) -> 0 | Y44: =IFERROR(VLOOKUP($A44,Filtro!$A$4:$AT$2433,23,FALSE),0) -> 0 | Z44: =IFERROR(VLOOKUP($A44,Filtro!$A$4:$AT$2433,24,FALSE),0) -> 0 | AA44: =IFERROR(VLOOKUP($A44,Filtro!$A$4:$AT$2433,25,FALSE),0) -> 0 | AB44: =IFERROR(VLOOKUP($A44,Filtro!$A$4:$AT$2433,26,FALSE),0) -> 5 | AC44: =IFERROR(VLOOKUP($A44,Filtro!$A$4:$AT$2433,27,FALSE),0) -> 8 | AD44: =IFERROR(VLOOKUP($A44,Filtro!$A$4:$AT$2433,28,FALSE),0) -> 0 | AE44: =IFERROR(VLOOKUP($A44,Filtro!$A$4:$AT$2433,29,FALSE),0) -> 0 | AF44: =IFERROR(VLOOKUP($A44,Filtro!$A$4:$AT$2433,30,FALSE),0) -> 0 | AG44: =IFERROR(VLOOKUP($A44,Filtro!$A$4:$AT$2433,31,FALSE),0) -> 0 | AH44: =IFERROR(VLOOKUP($A44,Filtro!$A$4:$AT$2433,32,FALSE),0) -> 0 | AI44: =IFERROR(VLOOKUP($A44,Filtro!$A$4:$AT$2433,33,FALSE),0) -> 0 | AJ44: =IFERROR(VLOOKUP($A44,Filtro!$A$4:$AT$2433,34,FALSE),0) -> 0 | AK44: =IFERROR(VLOOKUP($A44,Filtro!$A$4:$AT$2433,35,FALSE),0) -> 0 | AL44: =IFERROR(VLOOKUP($A44,Filtro!$A$4:$AT$2433,36,FALSE),0) -> 558,360 | AM44: =IFERROR(VLOOKUP($A44,Filtro!$A$4:$AT$2433,37,FALSE),0) -> 54990
A45: 01010030 | B45: 0103002 | C45: Educación de grupo por enfermera, matrona o nutricionista | D45: =IFERROR(VLOOKUP($A45,Filtro!$A$4:$AT$2433,2,FALSE),0) -> 4562 | E45: =IFERROR(VLOOKUP($A45,Filtro!$A$4:$AT$2433,3,FALSE),0) -> 4562 | F45: =IFERROR(VLOOKUP($A45,Filtro!$A$4:$AT$2433,4,FALSE),0) -> 3810 | G45: =IFERROR(VLOOKUP($A45,Filtro!$A$4:$AT$2433,5,FALSE),0) -> 752 | H45: =IFERROR(VLOOKUP($A45,Filtro!$A$4:$AT$2433,6,FALSE),0) -> 0 | I45: =IFERROR(VLOOKUP($A45,Filtro!$A$4:$AT$2433,7,FALSE),0) -> 0 | J45: =IFERROR(VLOOKUP($A45,Filtro!$A$4:$AT$2433,8,FALSE),0) -> 0 | K45: =IFERROR(VLOOKUP($A45,Filtro!$A$4:$AT$2433,9,FALSE),0) -> 0 | L45: =IFERROR(VLOOKUP($A45,Filtro!$A$4:$AT$2433,10,FALSE),0) -> 0 | M45: =IFERROR(VLOOKUP($A45,Filtro!$A$4:$AT$2433,11,FALSE),0) -> 0 | N45: =IFERROR(VLOOKUP($A45,Filtro!$A$4:$AT$2433,12,FALSE),0) -> 0 | O45: =IFERROR(VLOOKUP($A45,Filtro!$A$4:$AT$2433,13,FALSE),0) -> 0 | P45: =IFERROR(VLOOKUP($A45,Filtro!$A$4:$AT$2433,14,FALSE),0) -> 0 | Q45: =IFERROR(VLOOKUP($A45,Filtro!$A$4:$AT$2433,15,FALSE),0) -> 0 | R45: =IFERROR(VLOOKUP($A45,Filtro!$A$4:$AT$2433,16,FALSE),0) -> 0 | S45: =IFERROR(VLOOKUP($A45,Filtro!$A$4:$AT$2433,17,FALSE),0) -> 0 | T45: =IFERROR(VLOOKUP($A45,Filtro!$A$4:$AT$2433,18,FALSE),0) -> 0 | U45: =IFERROR(VLOOKUP($A45,Filtro!$A$4:$AT$2433,19,FALSE),0) -> 0 | V45: =IFERROR(VLOOKUP($A45,Filtro!$A$4:$AT$2433,20,FALSE),0) -> 0 | W45: =IFERROR(VLOOKUP($A45,Filtro!$A$4:$AT$2433,21,FALSE),0) -> 0 | X45: =IFERROR(VLOOKUP($A45,Filtro!$A$4:$AT$2433,22,FALSE),0) -> 0 | Y45: =IFERROR(VLOOKUP($A45,Filtro!$A$4:$AT$2433,23,FALSE),0) -> 0 | Z45: =IFERROR(VLOOKUP($A45,Filtro!$A$4:$AT$2433,24,FALSE),0) -> 0 | AA45: =IFERROR(VLOOKUP($A45,Filtro!$A$4:$AT$2433,25,FALSE),0) -> 0 | AB45: =IFERROR(VLOOKUP($A45,Filtro!$A$4:$AT$2433,26,FALSE),0) -> 2855 | AC45: =IFERROR(VLOOKUP($A45,Filtro!$A$4:$AT$2433,27,FALSE),0) -> 1693 | AD45: =IFERROR(VLOOKUP($A45,Filtro!$A$4:$AT$2433,28,FALSE),0) -> 0 | AE45: =IFERROR(VLOOKUP($A45,Filtro!$A$4:$AT$2433,29,FALSE),0) -> 0 | AF45: =IFERROR(VLOOKUP($A45,Filtro!$A$4:$AT$2433,30,FALSE),0) -> 0 | AG45: =IFERROR(VLOOKUP($A45,Filtro!$A$4:$AT$2433,31,FALSE),0) -> 0 | AH45: =IFERROR(VLOOKUP($A45,Filtro!$A$4:$AT$2433,32,FALSE),0) -> 0 | AI45: =IFERROR(VLOOKUP($A45,Filtro!$A$4:$AT$2433,33,FALSE),0) -> 0 | AJ45: =IFERROR(VLOOKUP($A45,Filtro!$A$4:$AT$2433,34,FALSE),0) -> 0 | AK45: =IFERROR(VLOOKUP($A45,Filtro!$A$4:$AT$2433,35,FALSE),0) -> 0 | AL45: =IFERROR(VLOOKUP($A45,Filtro!$A$4:$AT$2433,36,FALSE),0) -> 307,560 | AM45: =IFERROR(VLOOKUP($A45,Filtro!$A$4:$AT$2433,37,FALSE),0) -> 8877300
A46: 01010031 | B46: 0103003 | C46: Educación de grupo por asistente social | D46: =IFERROR(VLOOKUP($A46,Filtro!$A$4:$AT$2433,2,FALSE),0) -> 697 | E46: =IFERROR(VLOOKUP($A46,Filtro!$A$4:$AT$2433,3,FALSE),0) -> 697 | F46: =IFERROR(VLOOKUP($A46,Filtro!$A$4:$AT$2433,4,FALSE),0) -> 697 | G46: =IFERROR(VLOOKUP($A46,Filtro!$A$4:$AT$2433,5,FALSE),0) -> 0 | H46: =IFERROR(VLOOKUP($A46,Filtro!$A$4:$AT$2433,6,FALSE),0) -> 0 | I46: =IFERROR(VLOOKUP($A46,Filtro!$A$4:$AT$2433,7,FALSE),0) -> 0 | J46: =IFERROR(VLOOKUP($A46,Filtro!$A$4:$AT$2433,8,FALSE),0) -> 0 | K46: =IFERROR(VLOOKUP($A46,Filtro!$A$4:$AT$2433,9,FALSE),0) -> 0 | L46: =IFERROR(VLOOKUP($A46,Filtro!$A$4:$AT$2433,10,FALSE),0) -> 0 | M46: =IFERROR(VLOOKUP($A46,Filtro!$A$4:$AT$2433,11,FALSE),0) -> 0 | N46: =IFERROR(VLOOKUP($A46,Filtro!$A$4:$AT$2433,12,FALSE),0) -> 0 | O46: =IFERROR(VLOOKUP($A46,Filtro!$A$4:$AT$2433,13,FALSE),0) -> 0 | P46: =IFERROR(VLOOKUP($A46,Filtro!$A$4:$AT$2433,14,FALSE),0) -> 0 | Q46: =IFERROR(VLOOKUP($A46,Filtro!$A$4:$AT$2433,15,FALSE),0) -> 0 | R46: =IFERROR(VLOOKUP($A46,Filtro!$A$4:$AT$2433,16,FALSE),0) -> 0 | S46: =IFERROR(VLOOKUP($A46,Filtro!$A$4:$AT$2433,17,FALSE),0) -> 0 | T46: =IFERROR(VLOOKUP($A46,Filtro!$A$4:$AT$2433,18,FALSE),0) -> 0 | U46: =IFERROR(VLOOKUP($A46,Filtro!$A$4:$AT$2433,19,FALSE),0) -> 0 | V46: =IFERROR(VLOOKUP($A46,Filtro!$A$4:$AT$2433,20,FALSE),0) -> 0 | W46: =IFERROR(VLOOKUP($A46,Filtro!$A$4:$AT$2433,21,FALSE),0) -> 0 | X46: =IFERROR(VLOOKUP($A46,Filtro!$A$4:$AT$2433,22,FALSE),0) -> 0 | Y46: =IFERROR(VLOOKUP($A46,Filtro!$A$4:$AT$2433,23,FALSE),0) -> 0 | Z46: =IFERROR(VLOOKUP($A46,Filtro!$A$4:$AT$2433,24,FALSE),0) -> 0 | AA46: =IFERROR(VLOOKUP($A46,Filtro!$A$4:$AT$2433,25,FALSE),0) -> 0 | AB46: =IFERROR(VLOOKUP($A46,Filtro!$A$4:$AT$2433,26,FALSE),0) -> 0 | AC46: =IFERROR(VLOOKUP($A46,Filtro!$A$4:$AT$2433,27,FALSE),0) -> 697 | AD46: =IFERROR(VLOOKUP($A46,Filtro!$A$4:$AT$2433,28,FALSE),0) -> 0 | AE46: =IFERROR(VLOOKUP($A46,Filtro!$A$4:$AT$2433,29,FALSE),0) -> 51 | AF46: =IFERROR(VLOOKUP($A46,Filtro!$A$4:$AT$2433,30,FALSE),0) -> 0 | AG46: =IFERROR(VLOOKUP($A46,Filtro!$A$4:$AT$2433,31,FALSE),0) -> 0 | AH46: =IFERROR(VLOOKUP($A46,Filtro!$A$4:$AT$2433,32,FALSE),0) -> 0 | AI46: =IFERROR(VLOOKUP($A46,Filtro!$A$4:$AT$2433,33,FALSE),0) -> 0 | AJ46: =IFERROR(VLOOKUP($A46,Filtro!$A$4:$AT$2433,34,FALSE),0) -> 0 | AK46: =IFERROR(VLOOKUP($A46,Filtro!$A$4:$AT$2433,35,FALSE),0) -> 0 | AL46: =IFERROR(VLOOKUP($A46,Filtro!$A$4:$AT$2433,36,FALSE),0) -> 307,560 | AM46: =IFERROR(VLOOKUP($A46,Filtro!$A$4:$AT$2433,37,FALSE),0) -> 1624010
A47: 01010032 | B47: 0103004 | C47: Educación de grupo por auxiliar de enfermería | D47: =IFERROR(VLOOKUP($A47,Filtro!$A$4:$AT$2433,2,FALSE),0) -> 8 | E47: =IFERROR(VLOOKUP($A47,Filtro!$A$4:$AT$2433,3,FALSE),0) -> 8 | F47: =IFERROR(VLOOKUP($A47,Filtro!$A$4:$AT$2433,4,FALSE),0) -> 8 | G47: =IFERROR(VLOOKUP($A47,Filtro!$A$4:$AT$2433,5,FALSE),0) -> 0 | H47: =IFERROR(VLOOKUP($A47,Filtro!$A$4:$AT$2433,6,FALSE),0) -> 0 | I47: =IFERROR(VLOOKUP($A47,Filtro!$A$4:$AT$2433,7,FALSE),0) -> 0 | J47: =IFERROR(VLOOKUP($A47,Filtro!$A$4:$AT$2433,8,FALSE),0) -> 0 | K47: =IFERROR(VLOOKUP($A47,Filtro!$A$4:$AT$2433,9,FALSE),0) -> 0 | L47: =IFERROR(VLOOKUP($A47,Filtro!$A$4:$AT$2433,10,FALSE),0) -> 0 | M47: =IFERROR(VLOOKUP($A47,Filtro!$A$4:$AT$2433,11,FALSE),0) -> 0 | N47: =IFERROR(VLOOKUP($A47,Filtro!$A$4:$AT$2433,12,FALSE),0) -> 0 | O47: =IFERROR(VLOOKUP($A47,Filtro!$A$4:$AT$2433,13,FALSE),0) -> 0 | P47: =IFERROR(VLOOKUP($A47,Filtro!$A$4:$AT$2433,14,FALSE),0) -> 0 | Q47: =IFERROR(VLOOKUP($A47,Filtro!$A$4:$AT$2433,15,FALSE),0) -> 0 | R47: =IFERROR(VLOOKUP($A47,Filtro!$A$4:$AT$2433,16,FALSE),0) -> 0 | S47: =IFERROR(VLOOKUP($A47,Filtro!$A$4:$AT$2433,17,FALSE),0) -> 0 | T47: =IFERROR(VLOOKUP($A47,Filtro!$A$4:$AT$2433,18,FALSE),0) -> 0 | U47: =IFERROR(VLOOKUP($A47,Filtro!$A$4:$AT$2433,19,FALSE),0) -> 0 | V47: =IFERROR(VLOOKUP($A47,Filtro!$A$4:$AT$2433,20,FALSE),0) -> 0 | W47: =IFERROR(VLOOKUP($A47,Filtro!$A$4:$AT$2433,21,FALSE),0) -> 0 | X47: =IFERROR(VLOOKUP($A47,Filtro!$A$4:$AT$2433,22,FALSE),0) -> 0 | Y47: =IFERROR(VLOOKUP($A47,Filtro!$A$4:$AT$2433,23,FALSE),0) -> 0 | Z47: =IFERROR(VLOOKUP($A47,Filtro!$A$4:$AT$2433,24,FALSE),0) -> 0 | AA47: =IFERROR(VLOOKUP($A47,Filtro!$A$4:$AT$2433,25,FALSE),0) -> 0 | AB47: =IFERROR(VLOOKUP($A47,Filtro!$A$4:$AT$2433,26,FALSE),0) -> 8 | AC47: =IFERROR(VLOOKUP($A47,Filtro!$A$4:$AT$2433,27,FALSE),0) -> 0 | AD47: =IFERROR(VLOOKUP($A47,Filtro!$A$4:$AT$2433,28,FALSE),0) -> 0 | AE47: =IFERROR(VLOOKUP($A47,Filtro!$A$4:$AT$2433,29,FALSE),0) -> 0 | AF47: =IFERROR(VLOOKUP($A47,Filtro!$A$4:$AT$2433,30,FALSE),0) -> 0 | AG47: =IFERROR(VLOOKUP($A47,Filtro!$A$4:$AT$2433,31,FALSE),0) -> 0 | AH47: =IFERROR(VLOOKUP($A47,Filtro!$A$4:$AT$2433,32,FALSE),0) -> 0 | AI47: =IFERROR(VLOOKUP($A47,Filtro!$A$4:$AT$2433,33,FALSE),0) -> 0 | AJ47: =IFERROR(VLOOKUP($A47,Filtro!$A$4:$AT$2433,34,FALSE),0) -> 0 | AK47: =IFERROR(VLOOKUP($A47,Filtro!$A$4:$AT$2433,35,FALSE),0) -> 0 | AL47: =IFERROR(VLOOKUP($A47,Filtro!$A$4:$AT$2433,36,FALSE),0) -> 93,720 | AM47: =IFERROR(VLOOKUP($A47,Filtro!$A$4:$AT$2433,37,FALSE),0) -> 5680
C48: TOTAL ARANCEL MAI | D48: =SUM(D44:D47) -> 5280 | E48: =SUM(E44:E47) -> 5280 | F48: =SUM(F44:F47) -> 4528 | G48: =SUM(G44:G47) -> 752 | H48: =SUM(H44:H47) -> 0 | AB48: =SUM(AB44:AB47) -> 2868 | AC48: 2398 | AD48: 0 | AE48: 51 | AF48: 0 | AG48: 0 | AH48: 0 | AI48: 0 | AJ48: 0 | AK48: 0 | AL48: =SUM(AL44:AL47) -> 1,267,200 | AM48: =SUM(AM44:AM47) -> 10561980
A49: 01010033 | C49: Educación de grupo por otro integrante del equipo de salud | D49: =IFERROR(VLOOKUP($A49,Filtro!$A$4:$AT$2433,2,FALSE),0) -> 286 | E49: =IFERROR(VLOOKUP($A49,Filtro!$A$4:$AT$2433,3,FALSE),0) -> 286 | F49: =IFERROR(VLOOKUP($A49,Filtro!$A$4:$AT$2433,4,FALSE),0) -> 286 | G49: =IFERROR(VLOOKUP($A49,Filtro!$A$4:$AT$2433,5,FALSE),0) -> 0 | H49: =IFERROR(VLOOKUP($A49,Filtro!$A$4:$AT$2433,6,FALSE),0) -> 0 | I49: =IFERROR(VLOOKUP($A49,Filtro!$A$4:$AT$2433,7,FALSE),0) -> 0 | J49: =IFERROR(VLOOKUP($A49,Filtro!$A$4:$AT$2433,8,FALSE),0) -> 0 | K49: =IFERROR(VLOOKUP($A49,Filtro!$A$4:$AT$2433,9,FALSE),0) -> 0 | L49: =IFERROR(VLOOKUP($A49,Filtro!$A$4:$AT$2433,10,FALSE),0) -> 0 | M49: =IFERROR(VLOOKUP($A49,Filtro!$A$4:$AT$2433,11,FALSE),0) -> 0 | N49: =IFERROR(VLOOKUP($A49,Filtro!$A$4:$AT$2433,12,FALSE),0) -> 0 | O49: =IFERROR(VLOOKUP($A49,Filtro!$A$4:$AT$2433,13,FALSE),0) -> 0 | P49: =IFERROR(VLOOKUP($A49,Filtro!$A$4:$AT$2433,14,FALSE),0) -> 0 | Q49: =IFERROR(VLOOKUP($A49,Filtro!$A$4:$AT$2433,15,FALSE),0) -> 0 | R49: =IFERROR(VLOOKUP($A49,Filtro!$A$4:$AT$2433,16,FALSE),0) -> 0 | S49: =IFERROR(VLOOKUP($A49,Filtro!$A$4:$AT$2433,17,FALSE),0) -> 0 | T49: =IFERROR(VLOOKUP($A49,Filtro!$A$4:$AT$2433,18,FALSE),0) -> 0 | U49: =IFERROR(VLOOKUP($A49,Filtro!$A$4:$AT$2433,19,FALSE),0) -> 0 | V49: =IFERROR(VLOOKUP($A49,Filtro!$A$4:$AT$2433,20,FALSE),0) -> 0 | W49: =IFERROR(VLOOKUP($A49,Filtro!$A$4:$AT$2433,21,FALSE),0) -> 0 | X49: =IFERROR(VLOOKUP($A49,Filtro!$A$4:$AT$2433,22,FALSE),0) -> 0 | Y49: =IFERROR(VLOOKUP($A49,Filtro!$A$4:$AT$2433,23,FALSE),0) -> 0 | Z49: =IFERROR(VLOOKUP($A49,Filtro!$A$4:$AT$2433,24,FALSE),0) -> 0 | AA49: =IFERROR(VLOOKUP($A49,Filtro!$A$4:$AT$2433,25,FALSE),0) -> 0 | AB49: =IFERROR(VLOOKUP($A49,Filtro!$A$4:$AT$2433,26,FALSE),0) -> 0 | AC49: =IFERROR(VLOOKUP($A49,Filtro!$A$4:$AT$2433,27,FALSE),0) -> 134 | AD49: =IFERROR(VLOOKUP($A49,Filtro!$A$4:$AT$2433,28,FALSE),0) -> 0 | AE49: =IFERROR(VLOOKUP($A49,Filtro!$A$4:$AT$2433,29,FALSE),0) -> 0 | AF49: =IFERROR(VLOOKUP($A49,Filtro!$A$4:$AT$2433,30,FALSE),0) -> 0 | AG49: =IFERROR(VLOOKUP($A49,Filtro!$A$4:$AT$2433,31,FALSE),0) -> 0 | AH49: =IFERROR(VLOOKUP($A49,Filtro!$A$4:$AT$2433,32,FALSE),0) -> 0 | AI49: =IFERROR(VLOOKUP($A49,Filtro!$A$4:$AT$2433,33,FALSE),0) -> 0 | AJ49: =IFERROR(VLOOKUP($A49,Filtro!$A$4:$AT$2433,34,FALSE),0) -> 0 | AK49: =IFERROR(VLOOKUP($A49,Filtro!$A$4:$AT$2433,35,FALSE),0) -> 0 | AL49: =IFERROR(VLOOKUP($A49,Filtro!$A$4:$AT$2433,36,FALSE),0) -> 0 | AM49: =IFERROR(VLOOKUP($A49,Filtro!$A$4:$AT$2433,37,FALSE),0) -> 0
C50: TOTAL ARANCEL MLE Y NO ARANCELADO | D50: =D49 -> 286 | E50: =E49 -> 286 | F50: =F49 -> 286 | G50: =G49 -> 0 | H50: =H49 -> 0 | AB50: =AB49 -> 0 | AC50: 134 | AD50: 0 | AE50: 0 | AF50: 0 | AG50: 0 | AH50: 0 | AI50: 0 | AJ50: 0 | AK50: 0
C51: TOTAL PRODUCCION | D51: =SUM(D48+D50) -> 5566 | E51: =SUM(E48+E50) -> 5566 | F51: =SUM(F48+F50) -> 4814 | G51: =SUM(G48+G50) -> 752 | H51: =SUM(H48+H50) -> 0 | AB51: =SUM(AB48+AB50) -> 2868 | AC51: 2532 | AD51: 0 | AE51: 51 | AF51: 0 | AG51: 0 | AH51: 0 | AI51: 0 | AJ51: 0 | AK51: 0 | AL51: =SUM(AL48+AL50) -> 1,267,200 | AM51: =SUM(AM48+AM50) -> 10561980
C52: VISITAS DOMICILIARIAS
A53: 01010034 | B53: 0104001 | C53: Visita a domicilio por enfermera, matrona o nutricionista | D53: =IFERROR(VLOOKUP($A53,Filtro!$A$4:$AT$2433,2,FALSE),0) -> 16734 | E53: =IFERROR(VLOOKUP($A53,Filtro!$A$4:$AT$2433,3,FALSE),0) -> 16718 | F53: =IFERROR(VLOOKUP($A53,Filtro!$A$4:$AT$2433,4,FALSE),0) -> 16718 | G53: =IFERROR(VLOOKUP($A53,Filtro!$A$4:$AT$2433,5,FALSE),0) -> 0 | H53: =IFERROR(VLOOKUP($A53,Filtro!$A$4:$AT$2433,6,FALSE),0) -> 16 | I53: =IFERROR(VLOOKUP($A53,Filtro!$A$4:$AT$2433,7,FALSE),0) -> 0 | J53: =IFERROR(VLOOKUP($A53,Filtro!$A$4:$AT$2433,8,FALSE),0) -> 0 | K53: =IFERROR(VLOOKUP($A53,Filtro!$A$4:$AT$2433,9,FALSE),0) -> 0 | L53: =IFERROR(VLOOKUP($A53,Filtro!$A$4:$AT$2433,10,FALSE),0) -> 0 | M53: =IFERROR(VLOOKUP($A53,Filtro!$A$4:$AT$2433,11,FALSE),0) -> 0 | N53: =IFERROR(VLOOKUP($A53,Filtro!$A$4:$AT$2433,12,FALSE),0) -> 0 | O53: =IFERROR(VLOOKUP($A53,Filtro!$A$4:$AT$2433,13,FALSE),0) -> 0 | P53: =IFERROR(VLOOKUP($A53,Filtro!$A$4:$AT$2433,14,FALSE),0) -> 0 | Q53: =IFERROR(VLOOKUP($A53,Filtro!$A$4:$AT$2433,15,FALSE),0) -> 0 | R53: =IFERROR(VLOOKUP($A53,Filtro!$A$4:$AT$2433,16,FALSE),0) -> 0 | S53: =IFERROR(VLOOKUP($A53,Filtro!$A$4:$AT$2433,17,FALSE),0) -> 0 | T53: =IFERROR(VLOOKUP($A53,Filtro!$A$4:$AT$2433,18,FALSE),0) -> 0 | U53: =IFERROR(VLOOKUP($A53,Filtro!$A$4:$AT$2433,19,FALSE),0) -> 0 | V53: =IFERROR(VLOOKUP($A53,Filtro!$A$4:$AT$2433,20,FALSE),0) -> 0 | W53: =IFERROR(VLOOKUP($A53,Filtro!$A$4:$AT$2433,21,FALSE),0) -> 0 | X53: =IFERROR(VLOOKUP($A53,Filtro!$A$4:$AT$2433,22,FALSE),0) -> 0 | Y53: =IFERROR(VLOOKUP($A53,Filtro!$A$4:$AT$2433,23,FALSE),0) -> 0 | Z53: =IFERROR(VLOOKUP($A53,Filtro!$A$4:$AT$2433,24,FALSE),0) -> 0 | AA53: =IFERROR(VLOOKUP($A53,Filtro!$A$4:$AT$2433,25,FALSE),0) -> 0 | AB53: =IFERROR(VLOOKUP($A53,Filtro!$A$4:$AT$2433,26,FALSE),0) -> 1844 | AC53: =IFERROR(VLOOKUP($A53,Filtro!$A$4:$AT$2433,27,FALSE),0) -> 15331 | AD53: =IFERROR(VLOOKUP($A53,Filtro!$A$4:$AT$2433,28,FALSE),0) -> 0 | AE53: =IFERROR(VLOOKUP($A53,Filtro!$A$4:$AT$2433,29,FALSE),0) -> 0 | AF53: =IFERROR(VLOOKUP($A53,Filtro!$A$4:$AT$2433,30,FALSE),0) -> 0 | AG53: =IFERROR(VLOOKUP($A53,Filtro!$A$4:$AT$2433,31,FALSE),0) -> 0 | AH53: =IFERROR(VLOOKUP($A53,Filtro!$A$4:$AT$2433,32,FALSE),0) -> 0 | AI53: =IFERROR(VLOOKUP($A53,Filtro!$A$4:$AT$2433,33,FALSE),0) -> 0 | AJ53: =IFERROR(VLOOKUP($A53,Filtro!$A$4:$AT$2433,34,FALSE),0) -> 0 | AK53: =IFERROR(VLOOKUP($A53,Filtro!$A$4:$AT$2433,35,FALSE),0) -> 0 | AL53: =IFERROR(VLOOKUP($A53,Filtro!$A$4:$AT$2433,36,FALSE),0) -> 266,640 | AM53: =IFERROR(VLOOKUP($A53,Filtro!$A$4:$AT$2433,37,FALSE),0) -> 33770360
A54: 01010035 | B54: 0104002 | C54: Visita a domicilio por asistente social | D54: =IFERROR(VLOOKUP($A54,Filtro!$A$4:$AT$2433,2,FALSE),0) -> 2582 | E54: =IFERROR(VLOOKUP($A54,Filtro!$A$4:$AT$2433,3,FALSE),0) -> 2582 | F54: =IFERROR(VLOOKUP($A54,Filtro!$A$4:$AT$2433,4,FALSE),0) -> 2582 | G54: =IFERROR(VLOOKUP($A54,Filtro!$A$4:$AT$2433,5,FALSE),0) -> 0 | H54: =IFERROR(VLOOKUP($A54,Filtro!$A$4:$AT$2433,6,FALSE),0) -> 0 | I54: =IFERROR(VLOOKUP($A54,Filtro!$A$4:$AT$2433,7,FALSE),0) -> 0 | J54: =IFERROR(VLOOKUP($A54,Filtro!$A$4:$AT$2433,8,FALSE),0) -> 0 | K54: =IFERROR(VLOOKUP($A54,Filtro!$A$4:$AT$2433,9,FALSE),0) -> 0 | L54: =IFERROR(VLOOKUP($A54,Filtro!$A$4:$AT$2433,10,FALSE),0) -> 0 | M54: =IFERROR(VLOOKUP($A54,Filtro!$A$4:$AT$2433,11,FALSE),0) -> 0 | N54: =IFERROR(VLOOKUP($A54,Filtro!$A$4:$AT$2433,12,FALSE),0) -> 0 | O54: =IFERROR(VLOOKUP($A54,Filtro!$A$4:$AT$2433,13,FALSE),0) -> 0 | P54: =IFERROR(VLOOKUP($A54,Filtro!$A$4:$AT$2433,14,FALSE),0) -> 0 | Q54: =IFERROR(VLOOKUP($A54,Filtro!$A$4:$AT$2433,15,FALSE),0) -> 0 | R54: =IFERROR(VLOOKUP($A54,Filtro!$A$4:$AT$2433,16,FALSE),0) -> 0 | S54: =IFERROR(VLOOKUP($A54,Filtro!$A$4:$AT$2433,17,FALSE),0) -> 0 | T54: =IFERROR(VLOOKUP($A54,Filtro!$A$4:$AT$2433,18,FALSE),0) -> 0 | U54: =IFERROR(VLOOKUP($A54,Filtro!$A$4:$AT$2433,19,FALSE),0) -> 0 | V54: =IFERROR(VLOOKUP($A54,Filtro!$A$4:$AT$2433,20,FALSE),0) -> 0 | W54: =IFERROR(VLOOKUP($A54,Filtro!$A$4:$AT$2433,21,FALSE),0) -> 0 | X54: =IFERROR(VLOOKUP($A54,Filtro!$A$4:$AT$2433,22,FALSE),0) -> 0 | Y54: =IFERROR(VLOOKUP($A54,Filtro!$A$4:$AT$2433,23,FALSE),0) -> 0 | Z54: =IFERROR(VLOOKUP($A54,Filtro!$A$4:$AT$2433,24,FALSE),0) -> 0 | AA54: =IFERROR(VLOOKUP($A54,Filtro!$A$4:$AT$2433,25,FALSE),0) -> 0 | AB54: =IFERROR(VLOOKUP($A54,Filtro!$A$4:$AT$2433,26,FALSE),0) -> 0 | AC54: =IFERROR(VLOOKUP($A54,Filtro!$A$4:$AT$2433,27,FALSE),0) -> 2493 | AD54: =IFERROR(VLOOKUP($A54,Filtro!$A$4:$AT$2433,28,FALSE),0) -> 0 | AE54: =IFERROR(VLOOKUP($A54,Filtro!$A$4:$AT$2433,29,FALSE),0) -> 27 | AF54: =IFERROR(VLOOKUP($A54,Filtro!$A$4:$AT$2433,30,FALSE),0) -> 0 | AG54: =IFERROR(VLOOKUP($A54,Filtro!$A$4:$AT$2433,31,FALSE),0) -> 0 | AH54: =IFERROR(VLOOKUP($A54,Filtro!$A$4:$AT$2433,32,FALSE),0) -> 0 | AI54: =IFERROR(VLOOKUP($A54,Filtro!$A$4:$AT$2433,33,FALSE),0) -> 0 | AJ54: =IFERROR(VLOOKUP($A54,Filtro!$A$4:$AT$2433,34,FALSE),0) -> 0 | AK54: =IFERROR(VLOOKUP($A54,Filtro!$A$4:$AT$2433,35,FALSE),0) -> 0 | AL54: =IFERROR(VLOOKUP($A54,Filtro!$A$4:$AT$2433,36,FALSE),0) -> 266,640 | AM54: =IFERROR(VLOOKUP($A54,Filtro!$A$4:$AT$2433,37,FALSE),0) -> 5215640
A55: 01010036 | B55: 0104003 | C55: Visita a domicilio por auxiliar de enfermería | D55: =IFERROR(VLOOKUP($A55,Filtro!$A$4:$AT$2433,2,FALSE),0) -> 1238 | E55: =IFERROR(VLOOKUP($A55,Filtro!$A$4:$AT$2433,3,FALSE),0) -> 1238 | F55: =IFERROR(VLOOKUP($A55,Filtro!$A$4:$AT$2433,4,FALSE),0) -> 1238 | G55: =IFERROR(VLOOKUP($A55,Filtro!$A$4:$AT$2433,5,FALSE),0) -> 0 | H55: =IFERROR(VLOOKUP($A55,Filtro!$A$4:$AT$2433,6,FALSE),0) -> 0 | I55: =IFERROR(VLOOKUP($A55,Filtro!$A$4:$AT$2433,7,FALSE),0) -> 0 | J55: =IFERROR(VLOOKUP($A55,Filtro!$A$4:$AT$2433,8,FALSE),0) -> 0 | K55: =IFERROR(VLOOKUP($A55,Filtro!$A$4:$AT$2433,9,FALSE),0) -> 0 | L55: =IFERROR(VLOOKUP($A55,Filtro!$A$4:$AT$2433,10,FALSE),0) -> 0 | M55: =IFERROR(VLOOKUP($A55,Filtro!$A$4:$AT$2433,11,FALSE),0) -> 0 | N55: =IFERROR(VLOOKUP($A55,Filtro!$A$4:$AT$2433,12,FALSE),0) -> 0 | O55: =IFERROR(VLOOKUP($A55,Filtro!$A$4:$AT$2433,13,FALSE),0) -> 0 | P55: =IFERROR(VLOOKUP($A55,Filtro!$A$4:$AT$2433,14,FALSE),0) -> 0 | Q55: =IFERROR(VLOOKUP($A55,Filtro!$A$4:$AT$2433,15,FALSE),0) -> 0 | R55: =IFERROR(VLOOKUP($A55,Filtro!$A$4:$AT$2433,16,FALSE),0) -> 0 | S55: =IFERROR(VLOOKUP($A55,Filtro!$A$4:$AT$2433,17,FALSE),0) -> 0 | T55: =IFERROR(VLOOKUP($A55,Filtro!$A$4:$AT$2433,18,FALSE),0) -> 0 | U55: =IFERROR(VLOOKUP($A55,Filtro!$A$4:$AT$2433,19,FALSE),0) -> 0 | V55: =IFERROR(VLOOKUP($A55,Filtro!$A$4:$AT$2433,20,FALSE),0) -> 0 | W55: =IFERROR(VLOOKUP($A55,Filtro!$A$4:$AT$2433,21,FALSE),0) -> 0 | X55: =IFERROR(VLOOKUP($A55,Filtro!$A$4:$AT$2433,22,FALSE),0) -> 0 | Y55: =IFERROR(VLOOKUP($A55,Filtro!$A$4:$AT$2433,23,FALSE),0) -> 0 | Z55: =IFERROR(VLOOKUP($A55,Filtro!$A$4:$AT$2433,24,FALSE),0) -> 0 | AA55: =IFERROR(VLOOKUP($A55,Filtro!$A$4:$AT$2433,25,FALSE),0) -> 0 | AB55: =IFERROR(VLOOKUP($A55,Filtro!$A$4:$AT$2433,26,FALSE),0) -> 0 | AC55: =IFERROR(VLOOKUP($A55,Filtro!$A$4:$AT$2433,27,FALSE),0) -> 1150 | AD55: =IFERROR(VLOOKUP($A55,Filtro!$A$4:$AT$2433,28,FALSE),0) -> 0 | AE55: =IFERROR(VLOOKUP($A55,Filtro!$A$4:$AT$2433,29,FALSE),0) -> 0 | AF55: =IFERROR(VLOOKUP($A55,Filtro!$A$4:$AT$2433,30,FALSE),0) -> 0 | AG55: =IFERROR(VLOOKUP($A55,Filtro!$A$4:$AT$2433,31,FALSE),0) -> 0 | AH55: =IFERROR(VLOOKUP($A55,Filtro!$A$4:$AT$2433,32,FALSE),0) -> 0 | AI55: =IFERROR(VLOOKUP($A55,Filtro!$A$4:$AT$2433,33,FALSE),0) -> 0 | AJ55: =IFERROR(VLOOKUP($A55,Filtro!$A$4:$AT$2433,34,FALSE),0) -> 0 | AK55: =IFERROR(VLOOKUP($A55,Filtro!$A$4:$AT$2433,35,FALSE),0) -> 0 | AL55: =IFERROR(VLOOKUP($A55,Filtro!$A$4:$AT$2433,36,FALSE),0) -> 153,120 | AM55: =IFERROR(VLOOKUP($A55,Filtro!$A$4:$AT$2433,37,FALSE),0) -> 1436080
C56: TOTAL ARANCEL MAI | D56: =SUM(D53:D55) -> 20554 | E56: =SUM(E53:E55) -> 20538 | F56: =SUM(F53:F55) -> 20538 | G56: =SUM(G53:G55) -> 0 | H56: =SUM(H53:H55) -> 16 | AB56: =SUM(AB53:AB55) -> 1844 | AC56: 18974 | AD56: 0 | AE56: 27 | AF56: 0 | AG56: 0 | AH56: 0 | AI56: 0 | AJ56: 0 | AK56: 0 | AL56: =SUM(AL53:AL55) -> 686,400 | AM56: =SUM(AM53:AM55) -> 40422080
A57: 01010037 | C57: Visita a domicilio por otro integrante del equipo de salud | D57: =IFERROR(VLOOKUP($A57,Filtro!$A$4:$AT$2433,2,FALSE),0) -> 755 | E57: =IFERROR(VLOOKUP($A57,Filtro!$A$4:$AT$2433,3,FALSE),0) -> 755 | F57: =IFERROR(VLOOKUP($A57,Filtro!$A$4:$AT$2433,4,FALSE),0) -> 755 | G57: =IFERROR(VLOOKUP($A57,Filtro!$A$4:$AT$2433,5,FALSE),0) -> 0 | H57: =IFERROR(VLOOKUP($A57,Filtro!$A$4:$AT$2433,6,FALSE),0) -> 0 | I57: =IFERROR(VLOOKUP($A57,Filtro!$A$4:$AT$2433,7,FALSE),0) -> 0 | J57: =IFERROR(VLOOKUP($A57,Filtro!$A$4:$AT$2433,8,FALSE),0) -> 0 | K57: =IFERROR(VLOOKUP($A57,Filtro!$A$4:$AT$2433,9,FALSE),0) -> 0 | L57: =IFERROR(VLOOKUP($A57,Filtro!$A$4:$AT$2433,10,FALSE),0) -> 0 | M57: =IFERROR(VLOOKUP($A57,Filtro!$A$4:$AT$2433,11,FALSE),0) -> 0 | N57: =IFERROR(VLOOKUP($A57,Filtro!$A$4:$AT$2433,12,FALSE),0) -> 0 | O57: =IFERROR(VLOOKUP($A57,Filtro!$A$4:$AT$2433,13,FALSE),0) -> 0 | P57: =IFERROR(VLOOKUP($A57,Filtro!$A$4:$AT$2433,14,FALSE),0) -> 0 | Q57: =IFERROR(VLOOKUP($A57,Filtro!$A$4:$AT$2433,15,FALSE),0) -> 0 | R57: =IFERROR(VLOOKUP($A57,Filtro!$A$4:$AT$2433,16,FALSE),0) -> 0 | S57: =IFERROR(VLOOKUP($A57,Filtro!$A$4:$AT$2433,17,FALSE),0) -> 0 | T57: =IFERROR(VLOOKUP($A57,Filtro!$A$4:$AT$2433,18,FALSE),0) -> 0 | U57: =IFERROR(VLOOKUP($A57,Filtro!$A$4:$AT$2433,19,FALSE),0) -> 0 | V57: =IFERROR(VLOOKUP($A57,Filtro!$A$4:$AT$2433,20,FALSE),0) -> 0 | W57: =IFERROR(VLOOKUP($A57,Filtro!$A$4:$AT$2433,21,FALSE),0) -> 0 | X57: =IFERROR(VLOOKUP($A57,Filtro!$A$4:$AT$2433,22,FALSE),0) -> 0 | Y57: =IFERROR(VLOOKUP($A57,Filtro!$A$4:$AT$2433,23,FALSE),0) -> 0 | Z57: =IFERROR(VLOOKUP($A57,Filtro!$A$4:$AT$2433,24,FALSE),0) -> 0 | AA57: =IFERROR(VLOOKUP($A57,Filtro!$A$4:$AT$2433,25,FALSE),0) -> 0 | AB57: =IFERROR(VLOOKUP($A57,Filtro!$A$4:$AT$2433,26,FALSE),0) -> 0 | AC57: =IFERROR(VLOOKUP($A57,Filtro!$A$4:$AT$2433,27,FALSE),0) -> 398 | AD57: =IFERROR(VLOOKUP($A57,Filtro!$A$4:$AT$2433,28,FALSE),0) -> 0 | AE57: =IFERROR(VLOOKUP($A57,Filtro!$A$4:$AT$2433,29,FALSE),0) -> 0 | AF57: =IFERROR(VLOOKUP($A57,Filtro!$A$4:$AT$2433,30,FALSE),0) -> 0 | AG57: =IFERROR(VLOOKUP($A57,Filtro!$A$4:$AT$2433,31,FALSE),0) -> 0 | AH57: =IFERROR(VLOOKUP($A57,Filtro!$A$4:$AT$2433,32,FALSE),0) -> 0 | AI57: =IFERROR(VLOOKUP($A57,Filtro!$A$4:$AT$2433,33,FALSE),0) -> 0 | AJ57: =IFERROR(VLOOKUP($A57,Filtro!$A$4:$AT$2433,34,FALSE),0) -> 0 | AK57: =IFERROR(VLOOKUP($A57,Filtro!$A$4:$AT$2433,35,FALSE),0) -> 0 | AL57: =IFERROR(VLOOKUP($A57,Filtro!$A$4:$AT$2433,36,FALSE),0) -> 0 | AM57: =IFERROR(VLOOKUP($A57,Filtro!$A$4:$AT$2433,37,FALSE),0) -> 0
A58: 01010038 | C58: Visita domiciaria por otro profesional y técnicos paramédico | D58: =IFERROR(VLOOKUP($A58,Filtro!$A$4:$AT$2433,2,FALSE),0) -> 298 | E58: =IFERROR(VLOOKUP($A58,Filtro!$A$4:$AT$2433,3,FALSE),0) -> 298 | F58: =IFERROR(VLOOKUP($A58,Filtro!$A$4:$AT$2433,4,FALSE),0) -> 298 | G58: =IFERROR(VLOOKUP($A58,Filtro!$A$4:$AT$2433,5,FALSE),0) -> 0 | H58: =IFERROR(VLOOKUP($A58,Filtro!$A$4:$AT$2433,6,FALSE),0) -> 0 | I58: =IFERROR(VLOOKUP($A58,Filtro!$A$4:$AT$2433,7,FALSE),0) -> 0 | J58: =IFERROR(VLOOKUP($A58,Filtro!$A$4:$AT$2433,8,FALSE),0) -> 0 | K58: =IFERROR(VLOOKUP($A58,Filtro!$A$4:$AT$2433,9,FALSE),0) -> 0 | L58: =IFERROR(VLOOKUP($A58,Filtro!$A$4:$AT$2433,10,FALSE),0) -> 0 | M58: =IFERROR(VLOOKUP($A58,Filtro!$A$4:$AT$2433,11,FALSE),0) -> 0 | N58: =IFERROR(VLOOKUP($A58,Filtro!$A$4:$AT$2433,12,FALSE),0) -> 0 | O58: =IFERROR(VLOOKUP($A58,Filtro!$A$4:$AT$2433,13,FALSE),0) -> 0 | P58: =IFERROR(VLOOKUP($A58,Filtro!$A$4:$AT$2433,14,FALSE),0) -> 0 | Q58: =IFERROR(VLOOKUP($A58,Filtro!$A$4:$AT$2433,15,FALSE),0) -> 0 | R58: =IFERROR(VLOOKUP($A58,Filtro!$A$4:$AT$2433,16,FALSE),0) -> 0 | S58: =IFERROR(VLOOKUP($A58,Filtro!$A$4:$AT$2433,17,FALSE),0) -> 0 | T58: =IFERROR(VLOOKUP($A58,Filtro!$A$4:$AT$2433,18,FALSE),0) -> 0 | U58: =IFERROR(VLOOKUP($A58,Filtro!$A$4:$AT$2433,19,FALSE),0) -> 0 | V58: =IFERROR(VLOOKUP($A58,Filtro!$A$4:$AT$2433,20,FALSE),0) -> 0 | W58: =IFERROR(VLOOKUP($A58,Filtro!$A$4:$AT$2433,21,FALSE),0) -> 0 | X58: =IFERROR(VLOOKUP($A58,Filtro!$A$4:$AT$2433,22,FALSE),0) -> 0 | Y58: =IFERROR(VLOOKUP($A58,Filtro!$A$4:$AT$2433,23,FALSE),0) -> 0 | Z58: =IFERROR(VLOOKUP($A58,Filtro!$A$4:$AT$2433,24,FALSE),0) -> 0 | AA58: =IFERROR(VLOOKUP($A58,Filtro!$A$4:$AT$2433,25,FALSE),0) -> 0 | AB58: =IFERROR(VLOOKUP($A58,Filtro!$A$4:$AT$2433,26,FALSE),0) -> 0 | AC58: =IFERROR(VLOOKUP($A58,Filtro!$A$4:$AT$2433,27,FALSE),0) -> 227 | AD58: =IFERROR(VLOOKUP($A58,Filtro!$A$4:$AT$2433,28,FALSE),0) -> 0 | AE58: =IFERROR(VLOOKUP($A58,Filtro!$A$4:$AT$2433,29,FALSE),0) -> 0 | AF58: =IFERROR(VLOOKUP($A58,Filtro!$A$4:$AT$2433,30,FALSE),0) -> 0 | AG58: =IFERROR(VLOOKUP($A58,Filtro!$A$4:$AT$2433,31,FALSE),0) -> 0 | AH58: =IFERROR(VLOOKUP($A58,Filtro!$A$4:$AT$2433,32,FALSE),0) -> 0 | AI58: =IFERROR(VLOOKUP($A58,Filtro!$A$4:$AT$2433,33,FALSE),0) -> 0 | AJ58: =IFERROR(VLOOKUP($A58,Filtro!$A$4:$AT$2433,34,FALSE),0) -> 0 | AK58: =IFERROR(VLOOKUP($A58,Filtro!$A$4:$AT$2433,35,FALSE),0) -> 0 | AL58: =IFERROR(VLOOKUP($A58,Filtro!$A$4:$AT$2433,36,FALSE),0) -> 0 | AM58: =IFERROR(VLOOKUP($A58,Filtro!$A$4:$AT$2433,37,FALSE),0) -> 0
C59: TOTAL ARANCEL MLE Y NO ARANCELADO | D59: =SUM(D57:D58) -> 1053 | E59: =SUM(E57:E58) -> 1053 | F59: =SUM(F57:F58) -> 1053 | G59: =SUM(G57:G58) -> 0 | H59: =SUM(H57:H58) -> 0 | AB59: =SUM(AB57:AB58) -> 0 | AC59: 625 | AD59: 0 | AE59: 0 | AF59: 0 | AG59: 0 | AH59: 0 | AI59: 0 | AJ59: 0 | AK59: 0
C60: TOTAL PRODUCCION | D60: =SUM(D56+D59) -> 21607 | E60: =SUM(E56+E59) -> 21591 | F60: =SUM(F56+F59) -> 21591 | G60: =SUM(G56+G59) -> 0 | H60: =SUM(H56+H59) -> 16 | AB60: =SUM(AB56+AB59) -> 1844 | AC60: 19599 | AD60: 0 | AE60: 27 | AF60: 0 | AG60: 0 | AH60: 0 | AI60: 0 | AJ60: 0 | AK60: 0 | AL60: =SUM(AL56+AL59) -> 686,400 | AM60: =SUM(AM56+AM59) -> 40422080
C61: VACUNACION Y DESPARASITACION
A62: 01010039 | B62: 0105001 | C62: Vacunaciones (sólo considera administración) | D62: =IFERROR(VLOOKUP($A62,Filtro!$A$4:$AT$2433,2,FALSE),0) -> 37555 | E62: =IFERROR(VLOOKUP($A62,Filtro!$A$4:$AT$2433,3,FALSE),0) -> 37555 | F62: =IFERROR(VLOOKUP($A62,Filtro!$A$4:$AT$2433,4,FALSE),0) -> 37555 | G62: =IFERROR(VLOOKUP($A62,Filtro!$A$4:$AT$2433,5,FALSE),0) -> 0 | H62: =IFERROR(VLOOKUP($A62,Filtro!$A$4:$AT$2433,6,FALSE),0) -> 0 | I62: =IFERROR(VLOOKUP($A62,Filtro!$A$4:$AT$2433,7,FALSE),0) -> 0 | J62: =IFERROR(VLOOKUP($A62,Filtro!$A$4:$AT$2433,8,FALSE),0) -> 0 | K62: =IFERROR(VLOOKUP($A62,Filtro!$A$4:$AT$2433,9,FALSE),0) -> 0 | L62: =IFERROR(VLOOKUP($A62,Filtro!$A$4:$AT$2433,10,FALSE),0) -> 0 | M62: =IFERROR(VLOOKUP($A62,Filtro!$A$4:$AT$2433,11,FALSE),0) -> 0 | N62: =IFERROR(VLOOKUP($A62,Filtro!$A$4:$AT$2433,12,FALSE),0) -> 0 | O62: =IFERROR(VLOOKUP($A62,Filtro!$A$4:$AT$2433,13,FALSE),0) -> 0 | P62: =IFERROR(VLOOKUP($A62,Filtro!$A$4:$AT$2433,14,FALSE),0) -> 0 | Q62: =IFERROR(VLOOKUP($A62,Filtro!$A$4:$AT$2433,15,FALSE),0) -> 0 | R62: =IFERROR(VLOOKUP($A62,Filtro!$A$4:$AT$2433,16,FALSE),0) -> 0 | S62: =IFERROR(VLOOKUP($A62,Filtro!$A$4:$AT$2433,17,FALSE),0) -> 0 | T62: =IFERROR(VLOOKUP($A62,Filtro!$A$4:$AT$2433,18,FALSE),0) -> 0 | U62: =IFERROR(VLOOKUP($A62,Filtro!$A$4:$AT$2433,19,FALSE),0) -> 0 | V62: =IFERROR(VLOOKUP($A62,Filtro!$A$4:$AT$2433,20,FALSE),0) -> 0 | W62: =IFERROR(VLOOKUP($A62,Filtro!$A$4:$AT$2433,21,FALSE),0) -> 0 | X62: =IFERROR(VLOOKUP($A62,Filtro!$A$4:$AT$2433,22,FALSE),0) -> 0 | Y62: =IFERROR(VLOOKUP($A62,Filtro!$A$4:$AT$2433,23,FALSE),0) -> 0 | Z62: =IFERROR(VLOOKUP($A62,Filtro!$A$4:$AT$2433,24,FALSE),0) -> 0 | AA62: =IFERROR(VLOOKUP($A62,Filtro!$A$4:$AT$2433,25,FALSE),0) -> 0 | AB62: =IFERROR(VLOOKUP($A62,Filtro!$A$4:$AT$2433,26,FALSE),0) -> 2838 | AC62: =IFERROR(VLOOKUP($A62,Filtro!$A$4:$AT$2433,27,FALSE),0) -> 28741 | AD62: =IFERROR(VLOOKUP($A62,Filtro!$A$4:$AT$2433,28,FALSE),0) -> 1286 | AE62: =IFERROR(VLOOKUP($A62,Filtro!$A$4:$AT$2433,29,FALSE),0) -> 0 | AF62: =IFERROR(VLOOKUP($A62,Filtro!$A$4:$AT$2433,30,FALSE),0) -> 0 | AG62: =IFERROR(VLOOKUP($A62,Filtro!$A$4:$AT$2433,31,FALSE),0) -> 0 | AH62: =IFERROR(VLOOKUP($A62,Filtro!$A$4:$AT$2433,32,FALSE),0) -> 0 | AI62: =IFERROR(VLOOKUP($A62,Filtro!$A$4:$AT$2433,33,FALSE),0) -> 0 | AJ62: =IFERROR(VLOOKUP($A62,Filtro!$A$4:$AT$2433,34,FALSE),0) -> 0 | AK62: =IFERROR(VLOOKUP($A62,Filtro!$A$4:$AT$2433,35,FALSE),0) -> 0 | AL62: =IFERROR(VLOOKUP($A62,Filtro!$A$4:$AT$2433,36,FALSE),0) -> 116,160 | AM62: =IFERROR(VLOOKUP($A62,Filtro!$A$4:$AT$2433,37,FALSE),0) -> 33048400
A63: 01010040 | B63: 0105002 | C63: Desparasitación sarna (cada persona) | D63: =IFERROR(VLOOKUP($A63,Filtro!$A$4:$AT$2433,2,FALSE),0) -> 0 | E63: =IFERROR(VLOOKUP($A63,Filtro!$A$4:$AT$2433,3,FALSE),0) -> 0 | F63: =IFERROR(VLOOKUP($A63,Filtro!$A$4:$AT$2433,4,FALSE),0) -> 0 | G63: =IFERROR(VLOOKUP($A63,Filtro!$A$4:$AT$2433,5,FALSE),0) -> 0 | H63: =IFERROR(VLOOKUP($A63,Filtro!$A$4:$AT$2433,6,FALSE),0) -> 0 | I63: =IFERROR(VLOOKUP($A63,Filtro!$A$4:$AT$2433,7,FALSE),0) -> 0 | J63: =IFERROR(VLOOKUP($A63,Filtro!$A$4:$AT$2433,8,FALSE),0) -> 0 | K63: =IFERROR(VLOOKUP($A63,Filtro!$A$4:$AT$2433,9,FALSE),0) -> 0 | L63: =IFERROR(VLOOKUP($A63,Filtro!$A$4:$AT$2433,10,FALSE),0) -> 0 | M63: =IFERROR(VLOOKUP($A63,Filtro!$A$4:$AT$2433,11,FALSE),0) -> 0 | N63: =IFERROR(VLOOKUP($A63,Filtro!$A$4:$AT$2433,12,FALSE),0) -> 0 | O63: =IFERROR(VLOOKUP($A63,Filtro!$A$4:$AT$2433,13,FALSE),0) -> 0 | P63: =IFERROR(VLOOKUP($A63,Filtro!$A$4:$AT$2433,14,FALSE),0) -> 0 | Q63: =IFERROR(VLOOKUP($A63,Filtro!$A$4:$AT$2433,15,FALSE),0) -> 0 | R63: =IFERROR(VLOOKUP($A63,Filtro!$A$4:$AT$2433,16,FALSE),0) -> 0 | S63: =IFERROR(VLOOKUP($A63,Filtro!$A$4:$AT$2433,17,FALSE),0) -> 0 | T63: =IFERROR(VLOOKUP($A63,Filtro!$A$4:$AT$2433,18,FALSE),0) -> 0 | U63: =IFERROR(VLOOKUP($A63,Filtro!$A$4:$AT$2433,19,FALSE),0) -> 0 | V63: =IFERROR(VLOOKUP($A63,Filtro!$A$4:$AT$2433,20,FALSE),0) -> 0 | W63: =IFERROR(VLOOKUP($A63,Filtro!$A$4:$AT$2433,21,FALSE),0) -> 0 | X63: =IFERROR(VLOOKUP($A63,Filtro!$A$4:$AT$2433,22,FALSE),0) -> 0 | Y63: =IFERROR(VLOOKUP($A63,Filtro!$A$4:$AT$2433,23,FALSE),0) -> 0 | Z63: =IFERROR(VLOOKUP($A63,Filtro!$A$4:$AT$2433,24,FALSE),0) -> 0 | AA63: =IFERROR(VLOOKUP($A63,Filtro!$A$4:$AT$2433,25,FALSE),0) -> 0 | AB63: =IFERROR(VLOOKUP($A63,Filtro!$A$4:$AT$2433,26,FALSE),0) -> 0 | AC63: =IFERROR(VLOOKUP($A63,Filtro!$A$4:$AT$2433,27,FALSE),0) -> 0 | AD63: =IFERROR(VLOOKUP($A63,Filtro!$A$4:$AT$2433,28,FALSE),0) -> 0 | AE63: =IFERROR(VLOOKUP($A63,Filtro!$A$4:$AT$2433,29,FALSE),0) -> 0 | AF63: =IFERROR(VLOOKUP($A63,Filtro!$A$4:$AT$2433,30,FALSE),0) -> 0 | AG63: =IFERROR(VLOOKUP($A63,Filtro!$A$4:$AT$2433,31,FALSE),0) -> 0 | AH63: =IFERROR(VLOOKUP($A63,Filtro!$A$4:$AT$2433,32,FALSE),0) -> 0 | AI63: =IFERROR(VLOOKUP($A63,Filtro!$A$4:$AT$2433,33,FALSE),0) -> 0 | AJ63: =IFERROR(VLOOKUP($A63,Filtro!$A$4:$AT$2433,34,FALSE),0) -> 0 | AK63: =IFERROR(VLOOKUP($A63,Filtro!$A$4:$AT$2433,35,FALSE),0) -> 0 | AL63: =IFERROR(VLOOKUP($A63,Filtro!$A$4:$AT$2433,36,FALSE),0) -> 13,200 | AM63: =IFERROR(VLOOKUP($A63,Filtro!$A$4:$AT$2433,37,FALSE),0) -> 0
A64: 01010041 | B64: 0105003 | C64: Desparasitación pediculosis (cada persona) | D64: =IFERROR(VLOOKUP($A64,Filtro!$A$4:$AT$2433,2,FALSE),0) -> 0 | E64: =IFERROR(VLOOKUP($A64,Filtro!$A$4:$AT$2433,3,FALSE),0) -> 0 | F64: =IFERROR(VLOOKUP($A64,Filtro!$A$4:$AT$2433,4,FALSE),0) -> 0 | G64: =IFERROR(VLOOKUP($A64,Filtro!$A$4:$AT$2433,5,FALSE),0) -> 0 | H64: =IFERROR(VLOOKUP($A64,Filtro!$A$4:$AT$2433,6,FALSE),0) -> 0 | I64: =IFERROR(VLOOKUP($A64,Filtro!$A$4:$AT$2433,7,FALSE),0) -> 0 | J64: =IFERROR(VLOOKUP($A64,Filtro!$A$4:$AT$2433,8,FALSE),0) -> 0 | K64: =IFERROR(VLOOKUP($A64,Filtro!$A$4:$AT$2433,9,FALSE),0) -> 0 | L64: =IFERROR(VLOOKUP($A64,Filtro!$A$4:$AT$2433,10,FALSE),0) -> 0 | M64: =IFERROR(VLOOKUP($A64,Filtro!$A$4:$AT$2433,11,FALSE),0) -> 0 | N64: =IFERROR(VLOOKUP($A64,Filtro!$A$4:$AT$2433,12,FALSE),0) -> 0 | O64: =IFERROR(VLOOKUP($A64,Filtro!$A$4:$AT$2433,13,FALSE),0) -> 0 | P64: =IFERROR(VLOOKUP($A64,Filtro!$A$4:$AT$2433,14,FALSE),0) -> 0 | Q64: =IFERROR(VLOOKUP($A64,Filtro!$A$4:$AT$2433,15,FALSE),0) -> 0 | R64: =IFERROR(VLOOKUP($A64,Filtro!$A$4:$AT$2433,16,FALSE),0) -> 0 | S64: =IFERROR(VLOOKUP($A64,Filtro!$A$4:$AT$2433,17,FALSE),0) -> 0 | T64: =IFERROR(VLOOKUP($A64,Filtro!$A$4:$AT$2433,18,FALSE),0) -> 0 | U64: =IFERROR(VLOOKUP($A64,Filtro!$A$4:$AT$2433,19,FALSE),0) -> 0 | V64: =IFERROR(VLOOKUP($A64,Filtro!$A$4:$AT$2433,20,FALSE),0) -> 0 | W64: =IFERROR(VLOOKUP($A64,Filtro!$A$4:$AT$2433,21,FALSE),0) -> 0 | X64: =IFERROR(VLOOKUP($A64,Filtro!$A$4:$AT$2433,22,FALSE),0) -> 0 | Y64: =IFERROR(VLOOKUP($A64,Filtro!$A$4:$AT$2433,23,FALSE),0) -> 0 | Z64: =IFERROR(VLOOKUP($A64,Filtro!$A$4:$AT$2433,24,FALSE),0) -> 0 | AA64: =IFERROR(VLOOKUP($A64,Filtro!$A$4:$AT$2433,25,FALSE),0) -> 0 | AB64: =IFERROR(VLOOKUP($A64,Filtro!$A$4:$AT$2433,26,FALSE),0) -> 0 | AC64: =IFERROR(VLOOKUP($A64,Filtro!$A$4:$AT$2433,27,FALSE),0) -> 0 | AD64: =IFERROR(VLOOKUP($A64,Filtro!$A$4:$AT$2433,28,FALSE),0) -> 0 | AE64: =IFERROR(VLOOKUP($A64,Filtro!$A$4:$AT$2433,29,FALSE),0) -> 0 | AF64: =IFERROR(VLOOKUP($A64,Filtro!$A$4:$AT$2433,30,FALSE),0) -> 0 | AG64: =IFERROR(VLOOKUP($A64,Filtro!$A$4:$AT$2433,31,FALSE),0) -> 0 | AH64: =IFERROR(VLOOKUP($A64,Filtro!$A$4:$AT$2433,32,FALSE),0) -> 0 | AI64: =IFERROR(VLOOKUP($A64,Filtro!$A$4:$AT$2433,33,FALSE),0) -> 0 | AJ64: =IFERROR(VLOOKUP($A64,Filtro!$A$4:$AT$2433,34,FALSE),0) -> 0 | AK64: =IFERROR(VLOOKUP($A64,Filtro!$A$4:$AT$2433,35,FALSE),0) -> 0 | AL64: =IFERROR(VLOOKUP($A64,Filtro!$A$4:$AT$2433,36,FALSE),0) -> 13,200 | AM64: =IFERROR(VLOOKUP($A64,Filtro!$A$4:$AT$2433,37,FALSE),0) -> 0
C65: TOTAL | D65: =SUM(D62:D64) -> 37555 | E65: =SUM(E62:E64) -> 37555 | F65: =SUM(F62:F64) -> 37555 | G65: =SUM(G62:G64) -> 0 | H65: =SUM(H62:H64) -> 0 | AB65: =SUM(AB62:AB64) -> 2838 | AC65: 28741 | AD65: 1286 | AE65: 0 | AF65: 0 | AG65: 0 | AH65: 0 | AI65: 0 | AJ65: 0 | AK65: 0 | AL65: =SUM(AL62:AL64) -> 142,560 | AM65: =SUM(AM62:AM64) -> 33048400
C66: MISCELANEOS
A67: 01010042 | B67: 0106002 | C67: Curación simple ambulatoria | D67: =IFERROR(VLOOKUP($A67,Filtro!$A$4:$AT$2433,2,FALSE),0) -> 32989 | E67: =IFERROR(VLOOKUP($A67,Filtro!$A$4:$AT$2433,3,FALSE),0) -> 32852 | F67: =IFERROR(VLOOKUP($A67,Filtro!$A$4:$AT$2433,4,FALSE),0) -> 32849 | G67: =IFERROR(VLOOKUP($A67,Filtro!$A$4:$AT$2433,5,FALSE),0) -> 3 | H67: =IFERROR(VLOOKUP($A67,Filtro!$A$4:$AT$2433,6,FALSE),0) -> 137 | I67: =IFERROR(VLOOKUP($A67,Filtro!$A$4:$AT$2433,7,FALSE),0) -> 0 | J67: =IFERROR(VLOOKUP($A67,Filtro!$A$4:$AT$2433,8,FALSE),0) -> 0 | K67: =IFERROR(VLOOKUP($A67,Filtro!$A$4:$AT$2433,9,FALSE),0) -> 0 | L67: =IFERROR(VLOOKUP($A67,Filtro!$A$4:$AT$2433,10,FALSE),0) -> 0 | M67: =IFERROR(VLOOKUP($A67,Filtro!$A$4:$AT$2433,11,FALSE),0) -> 0 | N67: =IFERROR(VLOOKUP($A67,Filtro!$A$4:$AT$2433,12,FALSE),0) -> 0 | O67: =IFERROR(VLOOKUP($A67,Filtro!$A$4:$AT$2433,13,FALSE),0) -> 0 | P67: =IFERROR(VLOOKUP($A67,Filtro!$A$4:$AT$2433,14,FALSE),0) -> 0 | Q67: =IFERROR(VLOOKUP($A67,Filtro!$A$4:$AT$2433,15,FALSE),0) -> 0 | R67: =IFERROR(VLOOKUP($A67,Filtro!$A$4:$AT$2433,16,FALSE),0) -> 0 | S67: =IFERROR(VLOOKUP($A67,Filtro!$A$4:$AT$2433,17,FALSE),0) -> 0 | T67: =IFERROR(VLOOKUP($A67,Filtro!$A$4:$AT$2433,18,FALSE),0) -> 0 | U67: =IFERROR(VLOOKUP($A67,Filtro!$A$4:$AT$2433,19,FALSE),0) -> 0 | V67: =IFERROR(VLOOKUP($A67,Filtro!$A$4:$AT$2433,20,FALSE),0) -> 0 | W67: =IFERROR(VLOOKUP($A67,Filtro!$A$4:$AT$2433,21,FALSE),0) -> 0 | X67: =IFERROR(VLOOKUP($A67,Filtro!$A$4:$AT$2433,22,FALSE),0) -> 0 | Y67: =IFERROR(VLOOKUP($A67,Filtro!$A$4:$AT$2433,23,FALSE),0) -> 0 | Z67: =IFERROR(VLOOKUP($A67,Filtro!$A$4:$AT$2433,24,FALSE),0) -> 0 | AA67: =IFERROR(VLOOKUP($A67,Filtro!$A$4:$AT$2433,25,FALSE),0) -> 0 | AB67: =IFERROR(VLOOKUP($A67,Filtro!$A$4:$AT$2433,26,FALSE),0) -> 551 | AC67: =IFERROR(VLOOKUP($A67,Filtro!$A$4:$AT$2433,27,FALSE),0) -> 24628 | AD67: =IFERROR(VLOOKUP($A67,Filtro!$A$4:$AT$2433,28,FALSE),0) -> 5567 | AE67: =IFERROR(VLOOKUP($A67,Filtro!$A$4:$AT$2433,29,FALSE),0) -> 0 | AF67: =IFERROR(VLOOKUP($A67,Filtro!$A$4:$AT$2433,30,FALSE),0) -> 0 | AG67: =IFERROR(VLOOKUP($A67,Filtro!$A$4:$AT$2433,31,FALSE),0) -> 0 | AH67: =IFERROR(VLOOKUP($A67,Filtro!$A$4:$AT$2433,32,FALSE),0) -> 0 | AI67: =IFERROR(VLOOKUP($A67,Filtro!$A$4:$AT$2433,33,FALSE),0) -> 0 | AJ67: =IFERROR(VLOOKUP($A67,Filtro!$A$4:$AT$2433,34,FALSE),0) -> 0 | AK67: =IFERROR(VLOOKUP($A67,Filtro!$A$4:$AT$2433,35,FALSE),0) -> 0 | AL67: =IFERROR(VLOOKUP($A67,Filtro!$A$4:$AT$2433,36,FALSE),0) -> 101,640 | AM67: =IFERROR(VLOOKUP($A67,Filtro!$A$4:$AT$2433,37,FALSE),0) -> 25293730
A68: 01010043 | B68: 0106005 | C68: Autocontrol pacientes Diabetico insulino dependiente (D.I.D. mensual) | D68: =IFERROR(VLOOKUP($A68,Filtro!$A$4:$AT$2433,2,FALSE),0) -> 14523 | E68: =IFERROR(VLOOKUP($A68,Filtro!$A$4:$AT$2433,3,FALSE),0) -> 14523 | F68: =IFERROR(VLOOKUP($A68,Filtro!$A$4:$AT$2433,4,FALSE),0) -> 14523 | G68: =IFERROR(VLOOKUP($A68,Filtro!$A$4:$AT$2433,5,FALSE),0) -> 0 | H68: =IFERROR(VLOOKUP($A68,Filtro!$A$4:$AT$2433,6,FALSE),0) -> 0 | I68: =IFERROR(VLOOKUP($A68,Filtro!$A$4:$AT$2433,7,FALSE),0) -> 0 | J68: =IFERROR(VLOOKUP($A68,Filtro!$A$4:$AT$2433,8,FALSE),0) -> 0 | K68: =IFERROR(VLOOKUP($A68,Filtro!$A$4:$AT$2433,9,FALSE),0) -> 0 | L68: =IFERROR(VLOOKUP($A68,Filtro!$A$4:$AT$2433,10,FALSE),0) -> 0 | M68: =IFERROR(VLOOKUP($A68,Filtro!$A$4:$AT$2433,11,FALSE),0) -> 0 | N68: =IFERROR(VLOOKUP($A68,Filtro!$A$4:$AT$2433,12,FALSE),0) -> 0 | O68: =IFERROR(VLOOKUP($A68,Filtro!$A$4:$AT$2433,13,FALSE),0) -> 0 | P68: =IFERROR(VLOOKUP($A68,Filtro!$A$4:$AT$2433,14,FALSE),0) -> 0 | Q68: =IFERROR(VLOOKUP($A68,Filtro!$A$4:$AT$2433,15,FALSE),0) -> 0 | R68: =IFERROR(VLOOKUP($A68,Filtro!$A$4:$AT$2433,16,FALSE),0) -> 0 | S68: =IFERROR(VLOOKUP($A68,Filtro!$A$4:$AT$2433,17,FALSE),0) -> 0 | T68: =IFERROR(VLOOKUP($A68,Filtro!$A$4:$AT$2433,18,FALSE),0) -> 0 | U68: =IFERROR(VLOOKUP($A68,Filtro!$A$4:$AT$2433,19,FALSE),0) -> 0 | V68: =IFERROR(VLOOKUP($A68,Filtro!$A$4:$AT$2433,20,FALSE),0) -> 0 | W68: =IFERROR(VLOOKUP($A68,Filtro!$A$4:$AT$2433,21,FALSE),0) -> 0 | X68: =IFERROR(VLOOKUP($A68,Filtro!$A$4:$AT$2433,22,FALSE),0) -> 0 | Y68: =IFERROR(VLOOKUP($A68,Filtro!$A$4:$AT$2433,23,FALSE),0) -> 0 | Z68: =IFERROR(VLOOKUP($A68,Filtro!$A$4:$AT$2433,24,FALSE),0) -> 0 | AA68: =IFERROR(VLOOKUP($A68,Filtro!$A$4:$AT$2433,25,FALSE),0) -> 0 | AB68: =IFERROR(VLOOKUP($A68,Filtro!$A$4:$AT$2433,26,FALSE),0) -> 0 | AC68: =IFERROR(VLOOKUP($A68,Filtro!$A$4:$AT$2433,27,FALSE),0) -> 14504 | AD68: =IFERROR(VLOOKUP($A68,Filtro!$A$4:$AT$2433,28,FALSE),0) -> 0 | AE68: =IFERROR(VLOOKUP($A68,Filtro!$A$4:$AT$2433,29,FALSE),0) -> 0 | AF68: =IFERROR(VLOOKUP($A68,Filtro!$A$4:$AT$2433,30,FALSE),0) -> 0 | AG68: =IFERROR(VLOOKUP($A68,Filtro!$A$4:$AT$2433,31,FALSE),0) -> 0 | AH68: =IFERROR(VLOOKUP($A68,Filtro!$A$4:$AT$2433,32,FALSE),0) -> 0 | AI68: =IFERROR(VLOOKUP($A68,Filtro!$A$4:$AT$2433,33,FALSE),0) -> 0 | AJ68: =IFERROR(VLOOKUP($A68,Filtro!$A$4:$AT$2433,34,FALSE),0) -> 0 | AK68: =IFERROR(VLOOKUP($A68,Filtro!$A$4:$AT$2433,35,FALSE),0) -> 0 | AL68: =IFERROR(VLOOKUP($A68,Filtro!$A$4:$AT$2433,36,FALSE),0) -> 2,308,680 | AM68: =IFERROR(VLOOKUP($A68,Filtro!$A$4:$AT$2433,37,FALSE),0) -> 254007270
A69: 01010044 | B69: 0106006 | C69: Oxigenoterapia domiciliaria (pacientes oxígeno dependientes) | D69: =IFERROR(VLOOKUP($A69,Filtro!$A$4:$AT$2433,2,FALSE),0) -> 534 | E69: =IFERROR(VLOOKUP($A69,Filtro!$A$4:$AT$2433,3,FALSE),0) -> 534 | F69: =IFERROR(VLOOKUP($A69,Filtro!$A$4:$AT$2433,4,FALSE),0) -> 534 | G69: =IFERROR(VLOOKUP($A69,Filtro!$A$4:$AT$2433,5,FALSE),0) -> 0 | H69: =IFERROR(VLOOKUP($A69,Filtro!$A$4:$AT$2433,6,FALSE),0) -> 0 | I69: =IFERROR(VLOOKUP($A69,Filtro!$A$4:$AT$2433,7,FALSE),0) -> 0 | J69: =IFERROR(VLOOKUP($A69,Filtro!$A$4:$AT$2433,8,FALSE),0) -> 0 | K69: =IFERROR(VLOOKUP($A69,Filtro!$A$4:$AT$2433,9,FALSE),0) -> 0 | L69: =IFERROR(VLOOKUP($A69,Filtro!$A$4:$AT$2433,10,FALSE),0) -> 0 | M69: =IFERROR(VLOOKUP($A69,Filtro!$A$4:$AT$2433,11,FALSE),0) -> 0 | N69: =IFERROR(VLOOKUP($A69,Filtro!$A$4:$AT$2433,12,FALSE),0) -> 0 | O69: =IFERROR(VLOOKUP($A69,Filtro!$A$4:$AT$2433,13,FALSE),0) -> 0 | P69: =IFERROR(VLOOKUP($A69,Filtro!$A$4:$AT$2433,14,FALSE),0) -> 0 | Q69: =IFERROR(VLOOKUP($A69,Filtro!$A$4:$AT$2433,15,FALSE),0) -> 0 | R69: =IFERROR(VLOOKUP($A69,Filtro!$A$4:$AT$2433,16,FALSE),0) -> 0 | S69: =IFERROR(VLOOKUP($A69,Filtro!$A$4:$AT$2433,17,FALSE),0) -> 0 | T69: =IFERROR(VLOOKUP($A69,Filtro!$A$4:$AT$2433,18,FALSE),0) -> 0 | U69: =IFERROR(VLOOKUP($A69,Filtro!$A$4:$AT$2433,19,FALSE),0) -> 0 | V69: =IFERROR(VLOOKUP($A69,Filtro!$A$4:$AT$2433,20,FALSE),0) -> 0 | W69: =IFERROR(VLOOKUP($A69,Filtro!$A$4:$AT$2433,21,FALSE),0) -> 0 | X69: =IFERROR(VLOOKUP($A69,Filtro!$A$4:$AT$2433,22,FALSE),0) -> 0 | Y69: =IFERROR(VLOOKUP($A69,Filtro!$A$4:$AT$2433,23,FALSE),0) -> 0 | Z69: =IFERROR(VLOOKUP($A69,Filtro!$A$4:$AT$2433,24,FALSE),0) -> 0 | AA69: =IFERROR(VLOOKUP($A69,Filtro!$A$4:$AT$2433,25,FALSE),0) -> 0 | AB69: =IFERROR(VLOOKUP($A69,Filtro!$A$4:$AT$2433,26,FALSE),0) -> 0 | AC69: =IFERROR(VLOOKUP($A69,Filtro!$A$4:$AT$2433,27,FALSE),0) -> 425 | AD69: =IFERROR(VLOOKUP($A69,Filtro!$A$4:$AT$2433,28,FALSE),0) -> 0 | AE69: =IFERROR(VLOOKUP($A69,Filtro!$A$4:$AT$2433,29,FALSE),0) -> 0 | AF69: =IFERROR(VLOOKUP($A69,Filtro!$A$4:$AT$2433,30,FALSE),0) -> 0 | AG69: =IFERROR(VLOOKUP($A69,Filtro!$A$4:$AT$2433,31,FALSE),0) -> 0 | AH69: =IFERROR(VLOOKUP($A69,Filtro!$A$4:$AT$2433,32,FALSE),0) -> 0 | AI69: =IFERROR(VLOOKUP($A69,Filtro!$A$4:$AT$2433,33,FALSE),0) -> 0 | AJ69: =IFERROR(VLOOKUP($A69,Filtro!$A$4:$AT$2433,34,FALSE),0) -> 0 | AK69: =IFERROR(VLOOKUP($A69,Filtro!$A$4:$AT$2433,35,FALSE),0) -> 0 | AL69: =IFERROR(VLOOKUP($A69,Filtro!$A$4:$AT$2433,36,FALSE),0) -> 5,302,440 | AM69: =IFERROR(VLOOKUP($A69,Filtro!$A$4:$AT$2433,37,FALSE),0) -> 21450780
A70: 01010045 | B70: 0106004 | C70: Despacho de recetas a crónicos | D70: =IFERROR(VLOOKUP($A70,Filtro!$A$4:$AT$2433,2,FALSE),0) -> 469142 | E70: =IFERROR(VLOOKUP($A70,Filtro!$A$4:$AT$2433,3,FALSE),0) -> 469142 | F70: =IFERROR(VLOOKUP($A70,Filtro!$A$4:$AT$2433,4,FALSE),0) -> 469142 | G70: =IFERROR(VLOOKUP($A70,Filtro!$A$4:$AT$2433,5,FALSE),0) -> 0 | H70: =IFERROR(VLOOKUP($A70,Filtro!$A$4:$AT$2433,6,FALSE),0) -> 0 | I70: =IFERROR(VLOOKUP($A70,Filtro!$A$4:$AT$2433,7,FALSE),0) -> 0 | J70: =IFERROR(VLOOKUP($A70,Filtro!$A$4:$AT$2433,8,FALSE),0) -> 0 | K70: =IFERROR(VLOOKUP($A70,Filtro!$A$4:$AT$2433,9,FALSE),0) -> 0 | L70: =IFERROR(VLOOKUP($A70,Filtro!$A$4:$AT$2433,10,FALSE),0) -> 0 | M70: =IFERROR(VLOOKUP($A70,Filtro!$A$4:$AT$2433,11,FALSE),0) -> 0 | N70: =IFERROR(VLOOKUP($A70,Filtro!$A$4:$AT$2433,12,FALSE),0) -> 0 | O70: =IFERROR(VLOOKUP($A70,Filtro!$A$4:$AT$2433,13,FALSE),0) -> 0 | P70: =IFERROR(VLOOKUP($A70,Filtro!$A$4:$AT$2433,14,FALSE),0) -> 0 | Q70: =IFERROR(VLOOKUP($A70,Filtro!$A$4:$AT$2433,15,FALSE),0) -> 0 | R70: =IFERROR(VLOOKUP($A70,Filtro!$A$4:$AT$2433,16,FALSE),0) -> 0 | S70: =IFERROR(VLOOKUP($A70,Filtro!$A$4:$AT$2433,17,FALSE),0) -> 0 | T70: =IFERROR(VLOOKUP($A70,Filtro!$A$4:$AT$2433,18,FALSE),0) -> 0 | U70: =IFERROR(VLOOKUP($A70,Filtro!$A$4:$AT$2433,19,FALSE),0) -> 0 | V70: =IFERROR(VLOOKUP($A70,Filtro!$A$4:$AT$2433,20,FALSE),0) -> 0 | W70: =IFERROR(VLOOKUP($A70,Filtro!$A$4:$AT$2433,21,FALSE),0) -> 0 | X70: =IFERROR(VLOOKUP($A70,Filtro!$A$4:$AT$2433,22,FALSE),0) -> 0 | Y70: =IFERROR(VLOOKUP($A70,Filtro!$A$4:$AT$2433,23,FALSE),0) -> 0 | Z70: =IFERROR(VLOOKUP($A70,Filtro!$A$4:$AT$2433,24,FALSE),0) -> 0 | AA70: =IFERROR(VLOOKUP($A70,Filtro!$A$4:$AT$2433,25,FALSE),0) -> 0 | AB70: =IFERROR(VLOOKUP($A70,Filtro!$A$4:$AT$2433,26,FALSE),0) -> 0 | AC70: =IFERROR(VLOOKUP($A70,Filtro!$A$4:$AT$2433,27,FALSE),0) -> 443374 | AD70: =IFERROR(VLOOKUP($A70,Filtro!$A$4:$AT$2433,28,FALSE),0) -> 0 | AE70: =IFERROR(VLOOKUP($A70,Filtro!$A$4:$AT$2433,29,FALSE),0) -> 0 | AF70: =IFERROR(VLOOKUP($A70,Filtro!$A$4:$AT$2433,30,FALSE),0) -> 0 | AG70: =IFERROR(VLOOKUP($A70,Filtro!$A$4:$AT$2433,31,FALSE),0) -> 0 | AH70: =IFERROR(VLOOKUP($A70,Filtro!$A$4:$AT$2433,32,FALSE),0) -> 0 | AI70: =IFERROR(VLOOKUP($A70,Filtro!$A$4:$AT$2433,33,FALSE),0) -> 0 | AJ70: =IFERROR(VLOOKUP($A70,Filtro!$A$4:$AT$2433,34,FALSE),0) -> 0 | AK70: =IFERROR(VLOOKUP($A70,Filtro!$A$4:$AT$2433,35,FALSE),0) -> 0 | AL70: =IFERROR(VLOOKUP($A70,Filtro!$A$4:$AT$2433,36,FALSE),0) -> 307,560 | AM70: =IFERROR(VLOOKUP($A70,Filtro!$A$4:$AT$2433,37,FALSE),0) -> 1093100860
A71: 01010046 | B71: 0106001 | C71: Abreu | D71: =IFERROR(VLOOKUP($A71,Filtro!$A$4:$AT$2433,2,FALSE),0) -> 351 | E71: =IFERROR(VLOOKUP($A71,Filtro!$A$4:$AT$2433,3,FALSE),0) -> 351 | F71: =IFERROR(VLOOKUP($A71,Filtro!$A$4:$AT$2433,4,FALSE),0) -> 351 | G71: =IFERROR(VLOOKUP($A71,Filtro!$A$4:$AT$2433,5,FALSE),0) -> 0 | H71: =IFERROR(VLOOKUP($A71,Filtro!$A$4:$AT$2433,6,FALSE),0) -> 0 | I71: =IFERROR(VLOOKUP($A71,Filtro!$A$4:$AT$2433,7,FALSE),0) -> 0 | J71: =IFERROR(VLOOKUP($A71,Filtro!$A$4:$AT$2433,8,FALSE),0) -> 0 | K71: =IFERROR(VLOOKUP($A71,Filtro!$A$4:$AT$2433,9,FALSE),0) -> 0 | L71: =IFERROR(VLOOKUP($A71,Filtro!$A$4:$AT$2433,10,FALSE),0) -> 0 | M71: =IFERROR(VLOOKUP($A71,Filtro!$A$4:$AT$2433,11,FALSE),0) -> 0 | N71: =IFERROR(VLOOKUP($A71,Filtro!$A$4:$AT$2433,12,FALSE),0) -> 0 | O71: =IFERROR(VLOOKUP($A71,Filtro!$A$4:$AT$2433,13,FALSE),0) -> 0 | P71: =IFERROR(VLOOKUP($A71,Filtro!$A$4:$AT$2433,14,FALSE),0) -> 0 | Q71: =IFERROR(VLOOKUP($A71,Filtro!$A$4:$AT$2433,15,FALSE),0) -> 0 | R71: =IFERROR(VLOOKUP($A71,Filtro!$A$4:$AT$2433,16,FALSE),0) -> 0 | S71: =IFERROR(VLOOKUP($A71,Filtro!$A$4:$AT$2433,17,FALSE),0) -> 0 | T71: =IFERROR(VLOOKUP($A71,Filtro!$A$4:$AT$2433,18,FALSE),0) -> 0 | U71: =IFERROR(VLOOKUP($A71,Filtro!$A$4:$AT$2433,19,FALSE),0) -> 0 | V71: =IFERROR(VLOOKUP($A71,Filtro!$A$4:$AT$2433,20,FALSE),0) -> 0 | W71: =IFERROR(VLOOKUP($A71,Filtro!$A$4:$AT$2433,21,FALSE),0) -> 0 | X71: =IFERROR(VLOOKUP($A71,Filtro!$A$4:$AT$2433,22,FALSE),0) -> 0 | Y71: =IFERROR(VLOOKUP($A71,Filtro!$A$4:$AT$2433,23,FALSE),0) -> 0 | Z71: =IFERROR(VLOOKUP($A71,Filtro!$A$4:$AT$2433,24,FALSE),0) -> 0 | AA71: =IFERROR(VLOOKUP($A71,Filtro!$A$4:$AT$2433,25,FALSE),0) -> 0 | AB71: =IFERROR(VLOOKUP($A71,Filtro!$A$4:$AT$2433,26,FALSE),0) -> 0 | AC71: =IFERROR(VLOOKUP($A71,Filtro!$A$4:$AT$2433,27,FALSE),0) -> 351 | AD71: =IFERROR(VLOOKUP($A71,Filtro!$A$4:$AT$2433,28,FALSE),0) -> 0 | AE71: =IFERROR(VLOOKUP($A71,Filtro!$A$4:$AT$2433,29,FALSE),0) -> 0 | AF71: =IFERROR(VLOOKUP($A71,Filtro!$A$4:$AT$2433,30,FALSE),0) -> 0 | AG71: =IFERROR(VLOOKUP($A71,Filtro!$A$4:$AT$2433,31,FALSE),0) -> 0 | AH71: =IFERROR(VLOOKUP($A71,Filtro!$A$4:$AT$2433,32,FALSE),0) -> 0 | AI71: =IFERROR(VLOOKUP($A71,Filtro!$A$4:$AT$2433,33,FALSE),0) -> 0 | AJ71: =IFERROR(VLOOKUP($A71,Filtro!$A$4:$AT$2433,34,FALSE),0) -> 0 | AK71: =IFERROR(VLOOKUP($A71,Filtro!$A$4:$AT$2433,35,FALSE),0) -> 0 | AL71: =IFERROR(VLOOKUP($A71,Filtro!$A$4:$AT$2433,36,FALSE),0) -> 207,240 | AM71: =IFERROR(VLOOKUP($A71,Filtro!$A$4:$AT$2433,37,FALSE),0) -> 551070
C72: TOTAL ARANCEL MAI | D72: =SUM(D67:D71) -> 517539 | E72: =SUM(E67:E71) -> 517402 | F72: =SUM(F67:F71) -> 517399 | G72: =SUM(G67:G71) -> 3 | H72: =SUM(H67:H71) -> 137 | AB72: =SUM(AB67:AB71) -> 551 | AC72: 483282 | AD72: 5567 | AE72: 0 | AF72: 0 | AG72: 0 | AH72: 0 | AI72: 0 | AJ72: 0 | AK72: 0 | AL72: =SUM(AL67:AL70) -> 8,020,320 | AM72: =SUM(AM67:AM70) -> 1393852640
A73: 01010047 | C73: Procedimientos de podología
C74: TOTAL ARANCEL MLE Y NO ARANCELADO | D74: =D73 -> 0 | E74: =E73 -> 0 | F74: =F73 -> 0 | G74: =G73 -> 0 | H74: =H73 -> 0 | AB74: =AB73 -> 0 | AC74: 0 | AD74: 0 | AE74: 0 | AF74: 0 | AG74: 0 | AH74: 0 | AI74: 0 | AJ74: 0 | AK74: 0
C75: TOTAL PRODUCCION | D75: =SUM(D72+D74) -> 517539 | E75: =SUM(E72+E74) -> 517402 | F75: =SUM(F72+F74) -> 517399 | G75: =SUM(G72+G74) -> 3 | H75: =SUM(H72+H74) -> 137 | AB75: =SUM(AB72+AB74) -> 551 | AC75: 483282 | AD75: 5567 | AE75: 0 | AF75: 0 | AG75: 0 | AH75: 0 | AI75: 0 | AJ75: =SUM(AJ72+AJ74) -> 0 | AK75: =SUM(AK72+AK74) -> 0 | AL75: =SUM(AL72+AL74) -> 8,020,320 | AM75: =SUM(AM72+AM74) -> 1393852640
C76: OTRAS MISCELANEOS
A77: 01010048 | B77: 5099048 | C77: Hemoglucotest instantáneo | D77: =IFERROR(VLOOKUP($A77,Filtro!$A$4:$AT$2433,2,FALSE),0) -> 191837 | E77: =IFERROR(VLOOKUP($A77,Filtro!$A$4:$AT$2433,3,FALSE),0) -> 191837 | F77: =IFERROR(VLOOKUP($A77,Filtro!$A$4:$AT$2433,4,FALSE),0) -> 191834 | G77: =IFERROR(VLOOKUP($A77,Filtro!$A$4:$AT$2433,5,FALSE),0) -> 3 | H77: =IFERROR(VLOOKUP($A77,Filtro!$A$4:$AT$2433,6,FALSE),0) -> 0 | I77: =IFERROR(VLOOKUP($A77,Filtro!$A$4:$AT$2433,7,FALSE),0) -> 0 | J77: =IFERROR(VLOOKUP($A77,Filtro!$A$4:$AT$2433,8,FALSE),0) -> 0 | K77: =IFERROR(VLOOKUP($A77,Filtro!$A$4:$AT$2433,9,FALSE),0) -> 0 | L77: =IFERROR(VLOOKUP($A77,Filtro!$A$4:$AT$2433,10,FALSE),0) -> 0 | M77: =IFERROR(VLOOKUP($A77,Filtro!$A$4:$AT$2433,11,FALSE),0) -> 0 | N77: =IFERROR(VLOOKUP($A77,Filtro!$A$4:$AT$2433,12,FALSE),0) -> 0 | O77: =IFERROR(VLOOKUP($A77,Filtro!$A$4:$AT$2433,13,FALSE),0) -> 0 | P77: =IFERROR(VLOOKUP($A77,Filtro!$A$4:$AT$2433,14,FALSE),0) -> 0 | Q77: =IFERROR(VLOOKUP($A77,Filtro!$A$4:$AT$2433,15,FALSE),0) -> 0 | R77: =IFERROR(VLOOKUP($A77,Filtro!$A$4:$AT$2433,16,FALSE),0) -> 0 | S77: =IFERROR(VLOOKUP($A77,Filtro!$A$4:$AT$2433,17,FALSE),0) -> 0 | T77: =IFERROR(VLOOKUP($A77,Filtro!$A$4:$AT$2433,18,FALSE),0) -> 0 | U77: =IFERROR(VLOOKUP($A77,Filtro!$A$4:$AT$2433,19,FALSE),0) -> 0 | V77: =IFERROR(VLOOKUP($A77,Filtro!$A$4:$AT$2433,20,FALSE),0) -> 0 | W77: =IFERROR(VLOOKUP($A77,Filtro!$A$4:$AT$2433,21,FALSE),0) -> 0 | X77: =IFERROR(VLOOKUP($A77,Filtro!$A$4:$AT$2433,22,FALSE),0) -> 0 | Y77: =IFERROR(VLOOKUP($A77,Filtro!$A$4:$AT$2433,23,FALSE),0) -> 0 | Z77: =IFERROR(VLOOKUP($A77,Filtro!$A$4:$AT$2433,24,FALSE),0) -> 0 | AA77: =IFERROR(VLOOKUP($A77,Filtro!$A$4:$AT$2433,25,FALSE),0) -> 0 | AB77: =IFERROR(VLOOKUP($A77,Filtro!$A$4:$AT$2433,26,FALSE),0) -> 61860 | AC77: =IFERROR(VLOOKUP($A77,Filtro!$A$4:$AT$2433,27,FALSE),0) -> 111234 | AD77: =IFERROR(VLOOKUP($A77,Filtro!$A$4:$AT$2433,28,FALSE),0) -> 18743 | AE77: =IFERROR(VLOOKUP($A77,Filtro!$A$4:$AT$2433,29,FALSE),0) -> 0 | AF77: =IFERROR(VLOOKUP($A77,Filtro!$A$4:$AT$2433,30,FALSE),0) -> 0 | AG77: =IFERROR(VLOOKUP($A77,Filtro!$A$4:$AT$2433,31,FALSE),0) -> 0 | AH77: =IFERROR(VLOOKUP($A77,Filtro!$A$4:$AT$2433,32,FALSE),0) -> 0 | AI77: =IFERROR(VLOOKUP($A77,Filtro!$A$4:$AT$2433,33,FALSE),0) -> 0 | AJ77: =IFERROR(VLOOKUP($A77,Filtro!$A$4:$AT$2433,34,FALSE),0) -> 0 | AK77: =IFERROR(VLOOKUP($A77,Filtro!$A$4:$AT$2433,35,FALSE),0) -> 0 | AL77: =IFERROR(VLOOKUP($A77,Filtro!$A$4:$AT$2433,36,FALSE),0) -> 0 | AM77: =IFERROR(VLOOKUP($A77,Filtro!$A$4:$AT$2433,37,FALSE),0) -> 0
A78: 01010049 | B78: 5099008 | C78: Actividad Básica | D78: =IFERROR(VLOOKUP($A78,Filtro!$A$4:$AT$2433,2,FALSE),0) -> 0 | E78: =IFERROR(VLOOKUP($A78,Filtro!$A$4:$AT$2433,3,FALSE),0) -> 0 | F78: =IFERROR(VLOOKUP($A78,Filtro!$A$4:$AT$2433,4,FALSE),0) -> 0 | G78: =IFERROR(VLOOKUP($A78,Filtro!$A$4:$AT$2433,5,FALSE),0) -> 0 | H78: =IFERROR(VLOOKUP($A78,Filtro!$A$4:$AT$2433,6,FALSE),0) -> 0 | I78: =IFERROR(VLOOKUP($A78,Filtro!$A$4:$AT$2433,7,FALSE),0) -> 0 | J78: =IFERROR(VLOOKUP($A78,Filtro!$A$4:$AT$2433,8,FALSE),0) -> 0 | K78: =IFERROR(VLOOKUP($A78,Filtro!$A$4:$AT$2433,9,FALSE),0) -> 0 | L78: =IFERROR(VLOOKUP($A78,Filtro!$A$4:$AT$2433,10,FALSE),0) -> 0 | M78: =IFERROR(VLOOKUP($A78,Filtro!$A$4:$AT$2433,11,FALSE),0) -> 0 | N78: =IFERROR(VLOOKUP($A78,Filtro!$A$4:$AT$2433,12,FALSE),0) -> 0 | O78: =IFERROR(VLOOKUP($A78,Filtro!$A$4:$AT$2433,13,FALSE),0) -> 0 | P78: =IFERROR(VLOOKUP($A78,Filtro!$A$4:$AT$2433,14,FALSE),0) -> 0 | Q78: =IFERROR(VLOOKUP($A78,Filtro!$A$4:$AT$2433,15,FALSE),0) -> 0 | R78: =IFERROR(VLOOKUP($A78,Filtro!$A$4:$AT$2433,16,FALSE),0) -> 0 | S78: =IFERROR(VLOOKUP($A78,Filtro!$A$4:$AT$2433,17,FALSE),0) -> 0 | T78: =IFERROR(VLOOKUP($A78,Filtro!$A$4:$AT$2433,18,FALSE),0) -> 0 | U78: =IFERROR(VLOOKUP($A78,Filtro!$A$4:$AT$2433,19,FALSE),0) -> 0 | V78: =IFERROR(VLOOKUP($A78,Filtro!$A$4:$AT$2433,20,FALSE),0) -> 0 | W78: =IFERROR(VLOOKUP($A78,Filtro!$A$4:$AT$2433,21,FALSE),0) -> 0 | X78: =IFERROR(VLOOKUP($A78,Filtro!$A$4:$AT$2433,22,FALSE),0) -> 0 | Y78: =IFERROR(VLOOKUP($A78,Filtro!$A$4:$AT$2433,23,FALSE),0) -> 0 | Z78: =IFERROR(VLOOKUP($A78,Filtro!$A$4:$AT$2433,24,FALSE),0) -> 0 | AA78: =IFERROR(VLOOKUP($A78,Filtro!$A$4:$AT$2433,25,FALSE),0) -> 0 | AB78: =IFERROR(VLOOKUP($A78,Filtro!$A$4:$AT$2433,26,FALSE),0) -> 0 | AC78: =IFERROR(VLOOKUP($A78,Filtro!$A$4:$AT$2433,27,FALSE),0) -> 0 | AD78: =IFERROR(VLOOKUP($A78,Filtro!$A$4:$AT$2433,28,FALSE),0) -> 0 | AE78: =IFERROR(VLOOKUP($A78,Filtro!$A$4:$AT$2433,29,FALSE),0) -> 0 | AF78: =IFERROR(VLOOKUP($A78,Filtro!$A$4:$AT$2433,30,FALSE),0) -> 0 | AG78: =IFERROR(VLOOKUP($A78,Filtro!$A$4:$AT$2433,31,FALSE),0) -> 0 | AH78: =IFERROR(VLOOKUP($A78,Filtro!$A$4:$AT$2433,32,FALSE),0) -> 0 | AI78: =IFERROR(VLOOKUP($A78,Filtro!$A$4:$AT$2433,33,FALSE),0) -> 0 | AJ78: =IFERROR(VLOOKUP($A78,Filtro!$A$4:$AT$2433,34,FALSE),0) -> 0 | AK78: =IFERROR(VLOOKUP($A78,Filtro!$A$4:$AT$2433,35,FALSE),0) -> 0 | AL78: =IFERROR(VLOOKUP($A78,Filtro!$A$4:$AT$2433,36,FALSE),0) -> 0 | AM78: =IFERROR(VLOOKUP($A78,Filtro!$A$4:$AT$2433,37,FALSE),0) -> 0
A79: 01010050 | B79: 5099009 | C79: Actividad Terapeutica | D79: =IFERROR(VLOOKUP($A79,Filtro!$A$4:$AT$2433,2,FALSE),0) -> 92 | E79: =IFERROR(VLOOKUP($A79,Filtro!$A$4:$AT$2433,3,FALSE),0) -> 92 | F79: =IFERROR(VLOOKUP($A79,Filtro!$A$4:$AT$2433,4,FALSE),0) -> 92 | G79: =IFERROR(VLOOKUP($A79,Filtro!$A$4:$AT$2433,5,FALSE),0) -> 0 | H79: =IFERROR(VLOOKUP($A79,Filtro!$A$4:$AT$2433,6,FALSE),0) -> 0 | I79: =IFERROR(VLOOKUP($A79,Filtro!$A$4:$AT$2433,7,FALSE),0) -> 0 | J79: =IFERROR(VLOOKUP($A79,Filtro!$A$4:$AT$2433,8,FALSE),0) -> 0 | K79: =IFERROR(VLOOKUP($A79,Filtro!$A$4:$AT$2433,9,FALSE),0) -> 0 | L79: =IFERROR(VLOOKUP($A79,Filtro!$A$4:$AT$2433,10,FALSE),0) -> 0 | M79: =IFERROR(VLOOKUP($A79,Filtro!$A$4:$AT$2433,11,FALSE),0) -> 0 | N79: =IFERROR(VLOOKUP($A79,Filtro!$A$4:$AT$2433,12,FALSE),0) -> 0 | O79: =IFERROR(VLOOKUP($A79,Filtro!$A$4:$AT$2433,13,FALSE),0) -> 0 | P79: =IFERROR(VLOOKUP($A79,Filtro!$A$4:$AT$2433,14,FALSE),0) -> 0 | Q79: =IFERROR(VLOOKUP($A79,Filtro!$A$4:$AT$2433,15,FALSE),0) -> 0 | R79: =IFERROR(VLOOKUP($A79,Filtro!$A$4:$AT$2433,16,FALSE),0) -> 0 | S79: =IFERROR(VLOOKUP($A79,Filtro!$A$4:$AT$2433,17,FALSE),0) -> 0 | T79: =IFERROR(VLOOKUP($A79,Filtro!$A$4:$AT$2433,18,FALSE),0) -> 0 | U79: =IFERROR(VLOOKUP($A79,Filtro!$A$4:$AT$2433,19,FALSE),0) -> 0 | V79: =IFERROR(VLOOKUP($A79,Filtro!$A$4:$AT$2433,20,FALSE),0) -> 0 | W79: =IFERROR(VLOOKUP($A79,Filtro!$A$4:$AT$2433,21,FALSE),0) -> 0 | X79: =IFERROR(VLOOKUP($A79,Filtro!$A$4:$AT$2433,22,FALSE),0) -> 0 | Y79: =IFERROR(VLOOKUP($A79,Filtro!$A$4:$AT$2433,23,FALSE),0) -> 0 | Z79: =IFERROR(VLOOKUP($A79,Filtro!$A$4:$AT$2433,24,FALSE),0) -> 0 | AA79: =IFERROR(VLOOKUP($A79,Filtro!$A$4:$AT$2433,25,FALSE),0) -> 0 | AB79: =IFERROR(VLOOKUP($A79,Filtro!$A$4:$AT$2433,26,FALSE),0) -> 0 | AC79: =IFERROR(VLOOKUP($A79,Filtro!$A$4:$AT$2433,27,FALSE),0) -> 92 | AD79: =IFERROR(VLOOKUP($A79,Filtro!$A$4:$AT$2433,28,FALSE),0) -> 0 | AE79: =IFERROR(VLOOKUP($A79,Filtro!$A$4:$AT$2433,29,FALSE),0) -> 0 | AF79: =IFERROR(VLOOKUP($A79,Filtro!$A$4:$AT$2433,30,FALSE),0) -> 0 | AG79: =IFERROR(VLOOKUP($A79,Filtro!$A$4:$AT$2433,31,FALSE),0) -> 0 | AH79: =IFERROR(VLOOKUP($A79,Filtro!$A$4:$AT$2433,32,FALSE),0) -> 0 | AI79: =IFERROR(VLOOKUP($A79,Filtro!$A$4:$AT$2433,33,FALSE),0) -> 0 | AJ79: =IFERROR(VLOOKUP($A79,Filtro!$A$4:$AT$2433,34,FALSE),0) -> 0 | AK79: =IFERROR(VLOOKUP($A79,Filtro!$A$4:$AT$2433,35,FALSE),0) -> 0 | AL79: =IFERROR(VLOOKUP($A79,Filtro!$A$4:$AT$2433,36,FALSE),0) -> 0 | AM79: =IFERROR(VLOOKUP($A79,Filtro!$A$4:$AT$2433,37,FALSE),0) -> 0
A80: 01010051 | B80: 5099010 | C80: Evaluacion Actividad | D80: =IFERROR(VLOOKUP($A80,Filtro!$A$4:$AT$2433,2,FALSE),0) -> 0 | E80: =IFERROR(VLOOKUP($A80,Filtro!$A$4:$AT$2433,3,FALSE),0) -> 0 | F80: =IFERROR(VLOOKUP($A80,Filtro!$A$4:$AT$2433,4,FALSE),0) -> 0 | G80: =IFERROR(VLOOKUP($A80,Filtro!$A$4:$AT$2433,5,FALSE),0) -> 0 | H80: =IFERROR(VLOOKUP($A80,Filtro!$A$4:$AT$2433,6,FALSE),0) -> 0 | I80: =IFERROR(VLOOKUP($A80,Filtro!$A$4:$AT$2433,7,FALSE),0) -> 0 | J80: =IFERROR(VLOOKUP($A80,Filtro!$A$4:$AT$2433,8,FALSE),0) -> 0 | K80: =IFERROR(VLOOKUP($A80,Filtro!$A$4:$AT$2433,9,FALSE),0) -> 0 | L80: =IFERROR(VLOOKUP($A80,Filtro!$A$4:$AT$2433,10,FALSE),0) -> 0 | M80: =IFERROR(VLOOKUP($A80,Filtro!$A$4:$AT$2433,11,FALSE),0) -> 0 | N80: =IFERROR(VLOOKUP($A80,Filtro!$A$4:$AT$2433,12,FALSE),0) -> 0 | O80: =IFERROR(VLOOKUP($A80,Filtro!$A$4:$AT$2433,13,FALSE),0) -> 0 | P80: =IFERROR(VLOOKUP($A80,Filtro!$A$4:$AT$2433,14,FALSE),0) -> 0 | Q80: =IFERROR(VLOOKUP($A80,Filtro!$A$4:$AT$2433,15,FALSE),0) -> 0 | R80: =IFERROR(VLOOKUP($A80,Filtro!$A$4:$AT$2433,16,FALSE),0) -> 0 | S80: =IFERROR(VLOOKUP($A80,Filtro!$A$4:$AT$2433,17,FALSE),0) -> 0 | T80: =IFERROR(VLOOKUP($A80,Filtro!$A$4:$AT$2433,18,FALSE),0) -> 0 | U80: =IFERROR(VLOOKUP($A80,Filtro!$A$4:$AT$2433,19,FALSE),0) -> 0 | V80: =IFERROR(VLOOKUP($A80,Filtro!$A$4:$AT$2433,20,FALSE),0) -> 0 | W80: =IFERROR(VLOOKUP($A80,Filtro!$A$4:$AT$2433,21,FALSE),0) -> 0 | X80: =IFERROR(VLOOKUP($A80,Filtro!$A$4:$AT$2433,22,FALSE),0) -> 0 | Y80: =IFERROR(VLOOKUP($A80,Filtro!$A$4:$AT$2433,23,FALSE),0) -> 0 | Z80: =IFERROR(VLOOKUP($A80,Filtro!$A$4:$AT$2433,24,FALSE),0) -> 0 | AA80: =IFERROR(VLOOKUP($A80,Filtro!$A$4:$AT$2433,25,FALSE),0) -> 0 | AB80: =IFERROR(VLOOKUP($A80,Filtro!$A$4:$AT$2433,26,FALSE),0) -> 0 | AC80: =IFERROR(VLOOKUP($A80,Filtro!$A$4:$AT$2433,27,FALSE),0) -> 0 | AD80: =IFERROR(VLOOKUP($A80,Filtro!$A$4:$AT$2433,28,FALSE),0) -> 0 | AE80: =IFERROR(VLOOKUP($A80,Filtro!$A$4:$AT$2433,29,FALSE),0) -> 0 | AF80: =IFERROR(VLOOKUP($A80,Filtro!$A$4:$AT$2433,30,FALSE),0) -> 0 | AG80: =IFERROR(VLOOKUP($A80,Filtro!$A$4:$AT$2433,31,FALSE),0) -> 0 | AH80: =IFERROR(VLOOKUP($A80,Filtro!$A$4:$AT$2433,32,FALSE),0) -> 0 | AI80: =IFERROR(VLOOKUP($A80,Filtro!$A$4:$AT$2433,33,FALSE),0) -> 0 | AJ80: =IFERROR(VLOOKUP($A80,Filtro!$A$4:$AT$2433,34,FALSE),0) -> 0 | AK80: =IFERROR(VLOOKUP($A80,Filtro!$A$4:$AT$2433,35,FALSE),0) -> 0 | AL80: =IFERROR(VLOOKUP($A80,Filtro!$A$4:$AT$2433,36,FALSE),0) -> 0 | AM80: =IFERROR(VLOOKUP($A80,Filtro!$A$4:$AT$2433,37,FALSE),0) -> 0
A81: 01010052 | B81: 5099011 | C81: Evaluacion prevocacional | D81: =IFERROR(VLOOKUP($A81,Filtro!$A$4:$AT$2433,2,FALSE),0) -> 0 | E81: =IFERROR(VLOOKUP($A81,Filtro!$A$4:$AT$2433,3,FALSE),0) -> 0 | F81: =IFERROR(VLOOKUP($A81,Filtro!$A$4:$AT$2433,4,FALSE),0) -> 0 | G81: =IFERROR(VLOOKUP($A81,Filtro!$A$4:$AT$2433,5,FALSE),0) -> 0 | H81: =IFERROR(VLOOKUP($A81,Filtro!$A$4:$AT$2433,6,FALSE),0) -> 0 | I81: =IFERROR(VLOOKUP($A81,Filtro!$A$4:$AT$2433,7,FALSE),0) -> 0 | J81: =IFERROR(VLOOKUP($A81,Filtro!$A$4:$AT$2433,8,FALSE),0) -> 0 | K81: =IFERROR(VLOOKUP($A81,Filtro!$A$4:$AT$2433,9,FALSE),0) -> 0 | L81: =IFERROR(VLOOKUP($A81,Filtro!$A$4:$AT$2433,10,FALSE),0) -> 0 | M81: =IFERROR(VLOOKUP($A81,Filtro!$A$4:$AT$2433,11,FALSE),0) -> 0 | N81: =IFERROR(VLOOKUP($A81,Filtro!$A$4:$AT$2433,12,FALSE),0) -> 0 | O81: =IFERROR(VLOOKUP($A81,Filtro!$A$4:$AT$2433,13,FALSE),0) -> 0 | P81: =IFERROR(VLOOKUP($A81,Filtro!$A$4:$AT$2433,14,FALSE),0) -> 0 | Q81: =IFERROR(VLOOKUP($A81,Filtro!$A$4:$AT$2433,15,FALSE),0) -> 0 | R81: =IFERROR(VLOOKUP($A81,Filtro!$A$4:$AT$2433,16,FALSE),0) -> 0 | S81: =IFERROR(VLOOKUP($A81,Filtro!$A$4:$AT$2433,17,FALSE),0) -> 0 | T81: =IFERROR(VLOOKUP($A81,Filtro!$A$4:$AT$2433,18,FALSE),0) -> 0 | U81: =IFERROR(VLOOKUP($A81,Filtro!$A$4:$AT$2433,19,FALSE),0) -> 0 | V81: =IFERROR(VLOOKUP($A81,Filtro!$A$4:$AT$2433,20,FALSE),0) -> 0 | W81: =IFERROR(VLOOKUP($A81,Filtro!$A$4:$AT$2433,21,FALSE),0) -> 0 | X81: =IFERROR(VLOOKUP($A81,Filtro!$A$4:$AT$2433,22,FALSE),0) -> 0 | Y81: =IFERROR(VLOOKUP($A81,Filtro!$A$4:$AT$2433,23,FALSE),0) -> 0 | Z81: =IFERROR(VLOOKUP($A81,Filtro!$A$4:$AT$2433,24,FALSE),0) -> 0 | AA81: =IFERROR(VLOOKUP($A81,Filtro!$A$4:$AT$2433,25,FALSE),0) -> 0 | AB81: =IFERROR(VLOOKUP($A81,Filtro!$A$4:$AT$2433,26,FALSE),0) -> 0 | AC81: =IFERROR(VLOOKUP($A81,Filtro!$A$4:$AT$2433,27,FALSE),0) -> 0 | AD81: =IFERROR(VLOOKUP($A81,Filtro!$A$4:$AT$2433,28,FALSE),0) -> 0 | AE81: =IFERROR(VLOOKUP($A81,Filtro!$A$4:$AT$2433,29,FALSE),0) -> 0 | AF81: =IFERROR(VLOOKUP($A81,Filtro!$A$4:$AT$2433,30,FALSE),0) -> 0 | AG81: =IFERROR(VLOOKUP($A81,Filtro!$A$4:$AT$2433,31,FALSE),0) -> 0 | AH81: =IFERROR(VLOOKUP($A81,Filtro!$A$4:$AT$2433,32,FALSE),0) -> 0 | AI81: =IFERROR(VLOOKUP($A81,Filtro!$A$4:$AT$2433,33,FALSE),0) -> 0 | AJ81: =IFERROR(VLOOKUP($A81,Filtro!$A$4:$AT$2433,34,FALSE),0) -> 0 | AK81: =IFERROR(VLOOKUP($A81,Filtro!$A$4:$AT$2433,35,FALSE),0) -> 0 | AL81: =IFERROR(VLOOKUP($A81,Filtro!$A$4:$AT$2433,36,FALSE),0) -> 0 | AM81: =IFERROR(VLOOKUP($A81,Filtro!$A$4:$AT$2433,37,FALSE),0) -> 0
A82: 01010053 | B82: 5099063 | C82: Evaluación cognitiva | D82: =IFERROR(VLOOKUP($A82,Filtro!$A$4:$AT$2433,2,FALSE),0) -> 0 | E82: =IFERROR(VLOOKUP($A82,Filtro!$A$4:$AT$2433,3,FALSE),0) -> 0 | F82: =IFERROR(VLOOKUP($A82,Filtro!$A$4:$AT$2433,4,FALSE),0) -> 0 | G82: =IFERROR(VLOOKUP($A82,Filtro!$A$4:$AT$2433,5,FALSE),0) -> 0 | H82: =IFERROR(VLOOKUP($A82,Filtro!$A$4:$AT$2433,6,FALSE),0) -> 0 | I82: =IFERROR(VLOOKUP($A82,Filtro!$A$4:$AT$2433,7,FALSE),0) -> 0 | J82: =IFERROR(VLOOKUP($A82,Filtro!$A$4:$AT$2433,8,FALSE),0) -> 0 | K82: =IFERROR(VLOOKUP($A82,Filtro!$A$4:$AT$2433,9,FALSE),0) -> 0 | L82: =IFERROR(VLOOKUP($A82,Filtro!$A$4:$AT$2433,10,FALSE),0) -> 0 | M82: =IFERROR(VLOOKUP($A82,Filtro!$A$4:$AT$2433,11,FALSE),0) -> 0 | N82: =IFERROR(VLOOKUP($A82,Filtro!$A$4:$AT$2433,12,FALSE),0) -> 0 | O82: =IFERROR(VLOOKUP($A82,Filtro!$A$4:$AT$2433,13,FALSE),0) -> 0 | P82: =IFERROR(VLOOKUP($A82,Filtro!$A$4:$AT$2433,14,FALSE),0) -> 0 | Q82: =IFERROR(VLOOKUP($A82,Filtro!$A$4:$AT$2433,15,FALSE),0) -> 0 | R82: =IFERROR(VLOOKUP($A82,Filtro!$A$4:$AT$2433,16,FALSE),0) -> 0 | S82: =IFERROR(VLOOKUP($A82,Filtro!$A$4:$AT$2433,17,FALSE),0) -> 0 | T82: =IFERROR(VLOOKUP($A82,Filtro!$A$4:$AT$2433,18,FALSE),0) -> 0 | U82: =IFERROR(VLOOKUP($A82,Filtro!$A$4:$AT$2433,19,FALSE),0) -> 0 | V82: =IFERROR(VLOOKUP($A82,Filtro!$A$4:$AT$2433,20,FALSE),0) -> 0 | W82: =IFERROR(VLOOKUP($A82,Filtro!$A$4:$AT$2433,21,FALSE),0) -> 0 | X82: =IFERROR(VLOOKUP($A82,Filtro!$A$4:$AT$2433,22,FALSE),0) -> 0 | Y82: =IFERROR(VLOOKUP($A82,Filtro!$A$4:$AT$2433,23,FALSE),0) -> 0 | Z82: =IFERROR(VLOOKUP($A82,Filtro!$A$4:$AT$2433,24,FALSE),0) -> 0 | AA82: =IFERROR(VLOOKUP($A82,Filtro!$A$4:$AT$2433,25,FALSE),0) -> 0 | AB82: =IFERROR(VLOOKUP($A82,Filtro!$A$4:$AT$2433,26,FALSE),0) -> 0 | AC82: =IFERROR(VLOOKUP($A82,Filtro!$A$4:$AT$2433,27,FALSE),0) -> 0 | AD82: =IFERROR(VLOOKUP($A82,Filtro!$A$4:$AT$2433,28,FALSE),0) -> 0 | AE82: =IFERROR(VLOOKUP($A82,Filtro!$A$4:$AT$2433,29,FALSE),0) -> 0 | AF82: =IFERROR(VLOOKUP($A82,Filtro!$A$4:$AT$2433,30,FALSE),0) -> 0 | AG82: =IFERROR(VLOOKUP($A82,Filtro!$A$4:$AT$2433,31,FALSE),0) -> 0 | AH82: =IFERROR(VLOOKUP($A82,Filtro!$A$4:$AT$2433,32,FALSE),0) -> 0 | AI82: =IFERROR(VLOOKUP($A82,Filtro!$A$4:$AT$2433,33,FALSE),0) -> 0 | AJ82: =IFERROR(VLOOKUP($A82,Filtro!$A$4:$AT$2433,34,FALSE),0) -> 0 | AK82: =IFERROR(VLOOKUP($A82,Filtro!$A$4:$AT$2433,35,FALSE),0) -> 0 | AL82: =IFERROR(VLOOKUP($A82,Filtro!$A$4:$AT$2433,36,FALSE),0) -> 0 | AM82: =IFERROR(VLOOKUP($A82,Filtro!$A$4:$AT$2433,37,FALSE),0) -> 0
A83: 01010054 | B83: 5099064 | C83: Estimulación cognitiva | D83: =IFERROR(VLOOKUP($A83,Filtro!$A$4:$AT$2433,2,FALSE),0) -> 0 | E83: =IFERROR(VLOOKUP($A83,Filtro!$A$4:$AT$2433,3,FALSE),0) -> 0 | F83: =IFERROR(VLOOKUP($A83,Filtro!$A$4:$AT$2433,4,FALSE),0) -> 0 | G83: =IFERROR(VLOOKUP($A83,Filtro!$A$4:$AT$2433,5,FALSE),0) -> 0 | H83: =IFERROR(VLOOKUP($A83,Filtro!$A$4:$AT$2433,6,FALSE),0) -> 0 | I83: =IFERROR(VLOOKUP($A83,Filtro!$A$4:$AT$2433,7,FALSE),0) -> 0 | J83: =IFERROR(VLOOKUP($A83,Filtro!$A$4:$AT$2433,8,FALSE),0) -> 0 | K83: =IFERROR(VLOOKUP($A83,Filtro!$A$4:$AT$2433,9,FALSE),0) -> 0 | L83: =IFERROR(VLOOKUP($A83,Filtro!$A$4:$AT$2433,10,FALSE),0) -> 0 | M83: =IFERROR(VLOOKUP($A83,Filtro!$A$4:$AT$2433,11,FALSE),0) -> 0 | N83: =IFERROR(VLOOKUP($A83,Filtro!$A$4:$AT$2433,12,FALSE),0) -> 0 | O83: =IFERROR(VLOOKUP($A83,Filtro!$A$4:$AT$2433,13,FALSE),0) -> 0 | P83: =IFERROR(VLOOKUP($A83,Filtro!$A$4:$AT$2433,14,FALSE),0) -> 0 | Q83: =IFERROR(VLOOKUP($A83,Filtro!$A$4:$AT$2433,15,FALSE),0) -> 0 | R83: =IFERROR(VLOOKUP($A83,Filtro!$A$4:$AT$2433,16,FALSE),0) -> 0 | S83: =IFERROR(VLOOKUP($A83,Filtro!$A$4:$AT$2433,17,FALSE),0) -> 0 | T83: =IFERROR(VLOOKUP($A83,Filtro!$A$4:$AT$2433,18,FALSE),0) -> 0 | U83: =IFERROR(VLOOKUP($A83,Filtro!$A$4:$AT$2433,19,FALSE),0) -> 0 | V83: =IFERROR(VLOOKUP($A83,Filtro!$A$4:$AT$2433,20,FALSE),0) -> 0 | W83: =IFERROR(VLOOKUP($A83,Filtro!$A$4:$AT$2433,21,FALSE),0) -> 0 | X83: =IFERROR(VLOOKUP($A83,Filtro!$A$4:$AT$2433,22,FALSE),0) -> 0 | Y83: =IFERROR(VLOOKUP($A83,Filtro!$A$4:$AT$2433,23,FALSE),0) -> 0 | Z83: =IFERROR(VLOOKUP($A83,Filtro!$A$4:$AT$2433,24,FALSE),0) -> 0 | AA83: =IFERROR(VLOOKUP($A83,Filtro!$A$4:$AT$2433,25,FALSE),0) -> 0 | AB83: =IFERROR(VLOOKUP($A83,Filtro!$A$4:$AT$2433,26,FALSE),0) -> 0 | AC83: =IFERROR(VLOOKUP($A83,Filtro!$A$4:$AT$2433,27,FALSE),0) -> 0 | AD83: =IFERROR(VLOOKUP($A83,Filtro!$A$4:$AT$2433,28,FALSE),0) -> 0 | AE83: =IFERROR(VLOOKUP($A83,Filtro!$A$4:$AT$2433,29,FALSE),0) -> 0 | AF83: =IFERROR(VLOOKUP($A83,Filtro!$A$4:$AT$2433,30,FALSE),0) -> 0 | AG83: =IFERROR(VLOOKUP($A83,Filtro!$A$4:$AT$2433,31,FALSE),0) -> 0 | AH83: =IFERROR(VLOOKUP($A83,Filtro!$A$4:$AT$2433,32,FALSE),0) -> 0 | AI83: =IFERROR(VLOOKUP($A83,Filtro!$A$4:$AT$2433,33,FALSE),0) -> 0 | AJ83: =IFERROR(VLOOKUP($A83,Filtro!$A$4:$AT$2433,34,FALSE),0) -> 0 | AK83: =IFERROR(VLOOKUP($A83,Filtro!$A$4:$AT$2433,35,FALSE),0) -> 0 | AL83: =IFERROR(VLOOKUP($A83,Filtro!$A$4:$AT$2433,36,FALSE),0) -> 0 | AM83: =IFERROR(VLOOKUP($A83,Filtro!$A$4:$AT$2433,37,FALSE),0) -> 0
A84: 01010055 | B84: 5099111 | C84: Curacion avanzada de herida | D84: =IFERROR(VLOOKUP($A84,Filtro!$A$4:$AT$2433,2,FALSE),0) -> 9553 | E84: =IFERROR(VLOOKUP($A84,Filtro!$A$4:$AT$2433,3,FALSE),0) -> 9549 | F84: =IFERROR(VLOOKUP($A84,Filtro!$A$4:$AT$2433,4,FALSE),0) -> 9531 | G84: =IFERROR(VLOOKUP($A84,Filtro!$A$4:$AT$2433,5,FALSE),0) -> 18 | H84: =IFERROR(VLOOKUP($A84,Filtro!$A$4:$AT$2433,6,FALSE),0) -> 4 | I84: =IFERROR(VLOOKUP($A84,Filtro!$A$4:$AT$2433,7,FALSE),0) -> 0 | J84: =IFERROR(VLOOKUP($A84,Filtro!$A$4:$AT$2433,8,FALSE),0) -> 0 | K84: =IFERROR(VLOOKUP($A84,Filtro!$A$4:$AT$2433,9,FALSE),0) -> 0 | L84: =IFERROR(VLOOKUP($A84,Filtro!$A$4:$AT$2433,10,FALSE),0) -> 0 | M84: =IFERROR(VLOOKUP($A84,Filtro!$A$4:$AT$2433,11,FALSE),0) -> 0 | N84: =IFERROR(VLOOKUP($A84,Filtro!$A$4:$AT$2433,12,FALSE),0) -> 0 | O84: =IFERROR(VLOOKUP($A84,Filtro!$A$4:$AT$2433,13,FALSE),0) -> 0 | P84: =IFERROR(VLOOKUP($A84,Filtro!$A$4:$AT$2433,14,FALSE),0) -> 0 | Q84: =IFERROR(VLOOKUP($A84,Filtro!$A$4:$AT$2433,15,FALSE),0) -> 0 | R84: =IFERROR(VLOOKUP($A84,Filtro!$A$4:$AT$2433,16,FALSE),0) -> 0 | S84: =IFERROR(VLOOKUP($A84,Filtro!$A$4:$AT$2433,17,FALSE),0) -> 0 | T84: =IFERROR(VLOOKUP($A84,Filtro!$A$4:$AT$2433,18,FALSE),0) -> 0 | U84: =IFERROR(VLOOKUP($A84,Filtro!$A$4:$AT$2433,19,FALSE),0) -> 0 | V84: =IFERROR(VLOOKUP($A84,Filtro!$A$4:$AT$2433,20,FALSE),0) -> 0 | W84: =IFERROR(VLOOKUP($A84,Filtro!$A$4:$AT$2433,21,FALSE),0) -> 0 | X84: =IFERROR(VLOOKUP($A84,Filtro!$A$4:$AT$2433,22,FALSE),0) -> 0 | Y84: =IFERROR(VLOOKUP($A84,Filtro!$A$4:$AT$2433,23,FALSE),0) -> 0 | Z84: =IFERROR(VLOOKUP($A84,Filtro!$A$4:$AT$2433,24,FALSE),0) -> 0 | AA84: =IFERROR(VLOOKUP($A84,Filtro!$A$4:$AT$2433,25,FALSE),0) -> 0 | AB84: =IFERROR(VLOOKUP($A84,Filtro!$A$4:$AT$2433,26,FALSE),0) -> 723 | AC84: =IFERROR(VLOOKUP($A84,Filtro!$A$4:$AT$2433,27,FALSE),0) -> 7667 | AD84: =IFERROR(VLOOKUP($A84,Filtro!$A$4:$AT$2433,28,FALSE),0) -> 1037 | AE84: =IFERROR(VLOOKUP($A84,Filtro!$A$4:$AT$2433,29,FALSE),0) -> 0 | AF84: =IFERROR(VLOOKUP($A84,Filtro!$A$4:$AT$2433,30,FALSE),0) -> 0 | AG84: =IFERROR(VLOOKUP($A84,Filtro!$A$4:$AT$2433,31,FALSE),0) -> 0 | AH84: =IFERROR(VLOOKUP($A84,Filtro!$A$4:$AT$2433,32,FALSE),0) -> 0 | AI84: =IFERROR(VLOOKUP($A84,Filtro!$A$4:$AT$2433,33,FALSE),0) -> 0 | AJ84: =IFERROR(VLOOKUP($A84,Filtro!$A$4:$AT$2433,34,FALSE),0) -> 0 | AK84: =IFERROR(VLOOKUP($A84,Filtro!$A$4:$AT$2433,35,FALSE),0) -> 0 | AL84: =IFERROR(VLOOKUP($A84,Filtro!$A$4:$AT$2433,36,FALSE),0) -> 0 | AM84: =IFERROR(VLOOKUP($A84,Filtro!$A$4:$AT$2433,37,FALSE),0) -> 0
A85: 01010056 | B85: 0102701 | C85: Evaluación Motriz Funcional | D85: =IFERROR(VLOOKUP($A85,Filtro!$A$4:$AT$2433,2,FALSE),0) -> 0 | E85: =IFERROR(VLOOKUP($A85,Filtro!$A$4:$AT$2433,3,FALSE),0) -> 0 | F85: =IFERROR(VLOOKUP($A85,Filtro!$A$4:$AT$2433,4,FALSE),0) -> 0 | G85: =IFERROR(VLOOKUP($A85,Filtro!$A$4:$AT$2433,5,FALSE),0) -> 0 | H85: =IFERROR(VLOOKUP($A85,Filtro!$A$4:$AT$2433,6,FALSE),0) -> 0 | I85: =IFERROR(VLOOKUP($A85,Filtro!$A$4:$AT$2433,7,FALSE),0) -> 0 | J85: =IFERROR(VLOOKUP($A85,Filtro!$A$4:$AT$2433,8,FALSE),0) -> 0 | K85: =IFERROR(VLOOKUP($A85,Filtro!$A$4:$AT$2433,9,FALSE),0) -> 0 | L85: =IFERROR(VLOOKUP($A85,Filtro!$A$4:$AT$2433,10,FALSE),0) -> 0 | M85: =IFERROR(VLOOKUP($A85,Filtro!$A$4:$AT$2433,11,FALSE),0) -> 0 | N85: =IFERROR(VLOOKUP($A85,Filtro!$A$4:$AT$2433,12,FALSE),0) -> 0 | O85: =IFERROR(VLOOKUP($A85,Filtro!$A$4:$AT$2433,13,FALSE),0) -> 0 | P85: =IFERROR(VLOOKUP($A85,Filtro!$A$4:$AT$2433,14,FALSE),0) -> 0 | Q85: =IFERROR(VLOOKUP($A85,Filtro!$A$4:$AT$2433,15,FALSE),0) -> 0 | R85: =IFERROR(VLOOKUP($A85,Filtro!$A$4:$AT$2433,16,FALSE),0) -> 0 | S85: =IFERROR(VLOOKUP($A85,Filtro!$A$4:$AT$2433,17,FALSE),0) -> 0 | T85: =IFERROR(VLOOKUP($A85,Filtro!$A$4:$AT$2433,18,FALSE),0) -> 0 | U85: =IFERROR(VLOOKUP($A85,Filtro!$A$4:$AT$2433,19,FALSE),0) -> 0 | V85: =IFERROR(VLOOKUP($A85,Filtro!$A$4:$AT$2433,20,FALSE),0) -> 0 | W85: =IFERROR(VLOOKUP($A85,Filtro!$A$4:$AT$2433,21,FALSE),0) -> 0 | X85: =IFERROR(VLOOKUP($A85,Filtro!$A$4:$AT$2433,22,FALSE),0) -> 0 | Y85: =IFERROR(VLOOKUP($A85,Filtro!$A$4:$AT$2433,23,FALSE),0) -> 0 | Z85: =IFERROR(VLOOKUP($A85,Filtro!$A$4:$AT$2433,24,FALSE),0) -> 0 | AA85: =IFERROR(VLOOKUP($A85,Filtro!$A$4:$AT$2433,25,FALSE),0) -> 0 | AB85: =IFERROR(VLOOKUP($A85,Filtro!$A$4:$AT$2433,26,FALSE),0) -> 0 | AC85: =IFERROR(VLOOKUP($A85,Filtro!$A$4:$AT$2433,27,FALSE),0) -> 0 | AD85: =IFERROR(VLOOKUP($A85,Filtro!$A$4:$AT$2433,28,FALSE),0) -> 0 | AE85: =IFERROR(VLOOKUP($A85,Filtro!$A$4:$AT$2433,29,FALSE),0) -> 0 | AF85: =IFERROR(VLOOKUP($A85,Filtro!$A$4:$AT$2433,30,FALSE),0) -> 0 | AG85: =IFERROR(VLOOKUP($A85,Filtro!$A$4:$AT$2433,31,FALSE),0) -> 0 | AH85: =IFERROR(VLOOKUP($A85,Filtro!$A$4:$AT$2433,32,FALSE),0) -> 0 | AI85: =IFERROR(VLOOKUP($A85,Filtro!$A$4:$AT$2433,33,FALSE),0) -> 0 | AJ85: =IFERROR(VLOOKUP($A85,Filtro!$A$4:$AT$2433,34,FALSE),0) -> 0 | AK85: =IFERROR(VLOOKUP($A85,Filtro!$A$4:$AT$2433,35,FALSE),0) -> 0 | AL85: =IFERROR(VLOOKUP($A85,Filtro!$A$4:$AT$2433,36,FALSE),0) -> 0 | AM85: =IFERROR(VLOOKUP($A85,Filtro!$A$4:$AT$2433,37,FALSE),0) -> 0
A86: 01010057 | B86: 0102702 | C86: Evaluación cognitiva-perceptual | D86: =IFERROR(VLOOKUP($A86,Filtro!$A$4:$AT$2433,2,FALSE),0) -> 0 | E86: =IFERROR(VLOOKUP($A86,Filtro!$A$4:$AT$2433,3,FALSE),0) -> 0 | F86: =IFERROR(VLOOKUP($A86,Filtro!$A$4:$AT$2433,4,FALSE),0) -> 0 | G86: =IFERROR(VLOOKUP($A86,Filtro!$A$4:$AT$2433,5,FALSE),0) -> 0 | H86: =IFERROR(VLOOKUP($A86,Filtro!$A$4:$AT$2433,6,FALSE),0) -> 0 | I86: =IFERROR(VLOOKUP($A86,Filtro!$A$4:$AT$2433,7,FALSE),0) -> 0 | J86: =IFERROR(VLOOKUP($A86,Filtro!$A$4:$AT$2433,8,FALSE),0) -> 0 | K86: =IFERROR(VLOOKUP($A86,Filtro!$A$4:$AT$2433,9,FALSE),0) -> 0 | L86: =IFERROR(VLOOKUP($A86,Filtro!$A$4:$AT$2433,10,FALSE),0) -> 0 | M86: =IFERROR(VLOOKUP($A86,Filtro!$A$4:$AT$2433,11,FALSE),0) -> 0 | N86: =IFERROR(VLOOKUP($A86,Filtro!$A$4:$AT$2433,12,FALSE),0) -> 0 | O86: =IFERROR(VLOOKUP($A86,Filtro!$A$4:$AT$2433,13,FALSE),0) -> 0 | P86: =IFERROR(VLOOKUP($A86,Filtro!$A$4:$AT$2433,14,FALSE),0) -> 0 | Q86: =IFERROR(VLOOKUP($A86,Filtro!$A$4:$AT$2433,15,FALSE),0) -> 0 | R86: =IFERROR(VLOOKUP($A86,Filtro!$A$4:$AT$2433,16,FALSE),0) -> 0 | S86: =IFERROR(VLOOKUP($A86,Filtro!$A$4:$AT$2433,17,FALSE),0) -> 0 | T86: =IFERROR(VLOOKUP($A86,Filtro!$A$4:$AT$2433,18,FALSE),0) -> 0 | U86: =IFERROR(VLOOKUP($A86,Filtro!$A$4:$AT$2433,19,FALSE),0) -> 0 | V86: =IFERROR(VLOOKUP($A86,Filtro!$A$4:$AT$2433,20,FALSE),0) -> 0 | W86: =IFERROR(VLOOKUP($A86,Filtro!$A$4:$AT$2433,21,FALSE),0) -> 0 | X86: =IFERROR(VLOOKUP($A86,Filtro!$A$4:$AT$2433,22,FALSE),0) -> 0 | Y86: =IFERROR(VLOOKUP($A86,Filtro!$A$4:$AT$2433,23,FALSE),0) -> 0 | Z86: =IFERROR(VLOOKUP($A86,Filtro!$A$4:$AT$2433,24,FALSE),0) -> 0 | AA86: =IFERROR(VLOOKUP($A86,Filtro!$A$4:$AT$2433,25,FALSE),0) -> 0 | AB86: =IFERROR(VLOOKUP($A86,Filtro!$A$4:$AT$2433,26,FALSE),0) -> 0 | AC86: =IFERROR(VLOOKUP($A86,Filtro!$A$4:$AT$2433,27,FALSE),0) -> 0 | AD86: =IFERROR(VLOOKUP($A86,Filtro!$A$4:$AT$2433,28,FALSE),0) -> 0 | AE86: =IFERROR(VLOOKUP($A86,Filtro!$A$4:$AT$2433,29,FALSE),0) -> 0 | AF86: =IFERROR(VLOOKUP($A86,Filtro!$A$4:$AT$2433,30,FALSE),0) -> 0 | AG86: =IFERROR(VLOOKUP($A86,Filtro!$A$4:$AT$2433,31,FALSE),0) -> 0 | AH86: =IFERROR(VLOOKUP($A86,Filtro!$A$4:$AT$2433,32,FALSE),0) -> 0 | AI86: =IFERROR(VLOOKUP($A86,Filtro!$A$4:$AT$2433,33,FALSE),0) -> 0 | AJ86: =IFERROR(VLOOKUP($A86,Filtro!$A$4:$AT$2433,34,FALSE),0) -> 0 | AK86: =IFERROR(VLOOKUP($A86,Filtro!$A$4:$AT$2433,35,FALSE),0) -> 0 | AL86: =IFERROR(VLOOKUP($A86,Filtro!$A$4:$AT$2433,36,FALSE),0) -> 0 | AM86: =IFERROR(VLOOKUP($A86,Filtro!$A$4:$AT$2433,37,FALSE),0) -> 0
A87: 01010058 | B87: 0102703 | C87: Evaluación independencia en actividades de la vida diaria | D87: =IFERROR(VLOOKUP($A87,Filtro!$A$4:$AT$2433,2,FALSE),0) -> 0 | E87: =IFERROR(VLOOKUP($A87,Filtro!$A$4:$AT$2433,3,FALSE),0) -> 0 | F87: =IFERROR(VLOOKUP($A87,Filtro!$A$4:$AT$2433,4,FALSE),0) -> 0 | G87: =IFERROR(VLOOKUP($A87,Filtro!$A$4:$AT$2433,5,FALSE),0) -> 0 | H87: =IFERROR(VLOOKUP($A87,Filtro!$A$4:$AT$2433,6,FALSE),0) -> 0 | I87: =IFERROR(VLOOKUP($A87,Filtro!$A$4:$AT$2433,7,FALSE),0) -> 0 | J87: =IFERROR(VLOOKUP($A87,Filtro!$A$4:$AT$2433,8,FALSE),0) -> 0 | K87: =IFERROR(VLOOKUP($A87,Filtro!$A$4:$AT$2433,9,FALSE),0) -> 0 | L87: =IFERROR(VLOOKUP($A87,Filtro!$A$4:$AT$2433,10,FALSE),0) -> 0 | M87: =IFERROR(VLOOKUP($A87,Filtro!$A$4:$AT$2433,11,FALSE),0) -> 0 | N87: =IFERROR(VLOOKUP($A87,Filtro!$A$4:$AT$2433,12,FALSE),0) -> 0 | O87: =IFERROR(VLOOKUP($A87,Filtro!$A$4:$AT$2433,13,FALSE),0) -> 0 | P87: =IFERROR(VLOOKUP($A87,Filtro!$A$4:$AT$2433,14,FALSE),0) -> 0 | Q87: =IFERROR(VLOOKUP($A87,Filtro!$A$4:$AT$2433,15,FALSE),0) -> 0 | R87: =IFERROR(VLOOKUP($A87,Filtro!$A$4:$AT$2433,16,FALSE),0) -> 0 | S87: =IFERROR(VLOOKUP($A87,Filtro!$A$4:$AT$2433,17,FALSE),0) -> 0 | T87: =IFERROR(VLOOKUP($A87,Filtro!$A$4:$AT$2433,18,FALSE),0) -> 0 | U87: =IFERROR(VLOOKUP($A87,Filtro!$A$4:$AT$2433,19,FALSE),0) -> 0 | V87: =IFERROR(VLOOKUP($A87,Filtro!$A$4:$AT$2433,20,FALSE),0) -> 0 | W87: =IFERROR(VLOOKUP($A87,Filtro!$A$4:$AT$2433,21,FALSE),0) -> 0 | X87: =IFERROR(VLOOKUP($A87,Filtro!$A$4:$AT$2433,22,FALSE),0) -> 0 | Y87: =IFERROR(VLOOKUP($A87,Filtro!$A$4:$AT$2433,23,FALSE),0) -> 0 | Z87: =IFERROR(VLOOKUP($A87,Filtro!$A$4:$AT$2433,24,FALSE),0) -> 0 | AA87: =IFERROR(VLOOKUP($A87,Filtro!$A$4:$AT$2433,25,FALSE),0) -> 0 | AB87: =IFERROR(VLOOKUP($A87,Filtro!$A$4:$AT$2433,26,FALSE),0) -> 0 | AC87: =IFERROR(VLOOKUP($A87,Filtro!$A$4:$AT$2433,27,FALSE),0) -> 0 | AD87: =IFERROR(VLOOKUP($A87,Filtro!$A$4:$AT$2433,28,FALSE),0) -> 0 | AE87: =IFERROR(VLOOKUP($A87,Filtro!$A$4:$AT$2433,29,FALSE),0) -> 0 | AF87: =IFERROR(VLOOKUP($A87,Filtro!$A$4:$AT$2433,30,FALSE),0) -> 0 | AG87: =IFERROR(VLOOKUP($A87,Filtro!$A$4:$AT$2433,31,FALSE),0) -> 0 | AH87: =IFERROR(VLOOKUP($A87,Filtro!$A$4:$AT$2433,32,FALSE),0) -> 0 | AI87: =IFERROR(VLOOKUP($A87,Filtro!$A$4:$AT$2433,33,FALSE),0) -> 0 | AJ87: =IFERROR(VLOOKUP($A87,Filtro!$A$4:$AT$2433,34,FALSE),0) -> 0 | AK87: =IFERROR(VLOOKUP($A87,Filtro!$A$4:$AT$2433,35,FALSE),0) -> 0 | AL87: =IFERROR(VLOOKUP($A87,Filtro!$A$4:$AT$2433,36,FALSE),0) -> 0 | AM87: =IFERROR(VLOOKUP($A87,Filtro!$A$4:$AT$2433,37,FALSE),0) -> 0
A88: 01010059 | B88: 0102704 | C88: Evaluación barreras arquitectónicas | D88: =IFERROR(VLOOKUP($A88,Filtro!$A$4:$AT$2433,2,FALSE),0) -> 0 | E88: =IFERROR(VLOOKUP($A88,Filtro!$A$4:$AT$2433,3,FALSE),0) -> 0 | F88: =IFERROR(VLOOKUP($A88,Filtro!$A$4:$AT$2433,4,FALSE),0) -> 0 | G88: =IFERROR(VLOOKUP($A88,Filtro!$A$4:$AT$2433,5,FALSE),0) -> 0 | H88: =IFERROR(VLOOKUP($A88,Filtro!$A$4:$AT$2433,6,FALSE),0) -> 0 | I88: =IFERROR(VLOOKUP($A88,Filtro!$A$4:$AT$2433,7,FALSE),0) -> 0 | J88: =IFERROR(VLOOKUP($A88,Filtro!$A$4:$AT$2433,8,FALSE),0) -> 0 | K88: =IFERROR(VLOOKUP($A88,Filtro!$A$4:$AT$2433,9,FALSE),0) -> 0 | L88: =IFERROR(VLOOKUP($A88,Filtro!$A$4:$AT$2433,10,FALSE),0) -> 0 | M88: =IFERROR(VLOOKUP($A88,Filtro!$A$4:$AT$2433,11,FALSE),0) -> 0 | N88: =IFERROR(VLOOKUP($A88,Filtro!$A$4:$AT$2433,12,FALSE),0) -> 0 | O88: =IFERROR(VLOOKUP($A88,Filtro!$A$4:$AT$2433,13,FALSE),0) -> 0 | P88: =IFERROR(VLOOKUP($A88,Filtro!$A$4:$AT$2433,14,FALSE),0) -> 0 | Q88: =IFERROR(VLOOKUP($A88,Filtro!$A$4:$AT$2433,15,FALSE),0) -> 0 | R88: =IFERROR(VLOOKUP($A88,Filtro!$A$4:$AT$2433,16,FALSE),0) -> 0 | S88: =IFERROR(VLOOKUP($A88,Filtro!$A$4:$AT$2433,17,FALSE),0) -> 0 | T88: =IFERROR(VLOOKUP($A88,Filtro!$A$4:$AT$2433,18,FALSE),0) -> 0 | U88: =IFERROR(VLOOKUP($A88,Filtro!$A$4:$AT$2433,19,FALSE),0) -> 0 | V88: =IFERROR(VLOOKUP($A88,Filtro!$A$4:$AT$2433,20,FALSE),0) -> 0 | W88: =IFERROR(VLOOKUP($A88,Filtro!$A$4:$AT$2433,21,FALSE),0) -> 0 | X88: =IFERROR(VLOOKUP($A88,Filtro!$A$4:$AT$2433,22,FALSE),0) -> 0 | Y88: =IFERROR(VLOOKUP($A88,Filtro!$A$4:$AT$2433,23,FALSE),0) -> 0 | Z88: =IFERROR(VLOOKUP($A88,Filtro!$A$4:$AT$2433,24,FALSE),0) -> 0 | AA88: =IFERROR(VLOOKUP($A88,Filtro!$A$4:$AT$2433,25,FALSE),0) -> 0 | AB88: =IFERROR(VLOOKUP($A88,Filtro!$A$4:$AT$2433,26,FALSE),0) -> 0 | AC88: =IFERROR(VLOOKUP($A88,Filtro!$A$4:$AT$2433,27,FALSE),0) -> 0 | AD88: =IFERROR(VLOOKUP($A88,Filtro!$A$4:$AT$2433,28,FALSE),0) -> 0 | AE88: =IFERROR(VLOOKUP($A88,Filtro!$A$4:$AT$2433,29,FALSE),0) -> 0 | AF88: =IFERROR(VLOOKUP($A88,Filtro!$A$4:$AT$2433,30,FALSE),0) -> 0 | AG88: =IFERROR(VLOOKUP($A88,Filtro!$A$4:$AT$2433,31,FALSE),0) -> 0 | AH88: =IFERROR(VLOOKUP($A88,Filtro!$A$4:$AT$2433,32,FALSE),0) -> 0 | AI88: =IFERROR(VLOOKUP($A88,Filtro!$A$4:$AT$2433,33,FALSE),0) -> 0 | AJ88: =IFERROR(VLOOKUP($A88,Filtro!$A$4:$AT$2433,34,FALSE),0) -> 0 | AK88: =IFERROR(VLOOKUP($A88,Filtro!$A$4:$AT$2433,35,FALSE),0) -> 0 | AL88: =IFERROR(VLOOKUP($A88,Filtro!$A$4:$AT$2433,36,FALSE),0) -> 0 | AM88: =IFERROR(VLOOKUP($A88,Filtro!$A$4:$AT$2433,37,FALSE),0) -> 0
A89: 01010060 | B89: 0102705 | C89: Evaluación puesto de trabajo | D89: =IFERROR(VLOOKUP($A89,Filtro!$A$4:$AT$2433,2,FALSE),0) -> 0 | E89: =IFERROR(VLOOKUP($A89,Filtro!$A$4:$AT$2433,3,FALSE),0) -> 0 | F89: =IFERROR(VLOOKUP($A89,Filtro!$A$4:$AT$2433,4,FALSE),0) -> 0 | G89: =IFERROR(VLOOKUP($A89,Filtro!$A$4:$AT$2433,5,FALSE),0) -> 0 | H89: =IFERROR(VLOOKUP($A89,Filtro!$A$4:$AT$2433,6,FALSE),0) -> 0 | I89: =IFERROR(VLOOKUP($A89,Filtro!$A$4:$AT$2433,7,FALSE),0) -> 0 | J89: =IFERROR(VLOOKUP($A89,Filtro!$A$4:$AT$2433,8,FALSE),0) -> 0 | K89: =IFERROR(VLOOKUP($A89,Filtro!$A$4:$AT$2433,9,FALSE),0) -> 0 | L89: =IFERROR(VLOOKUP($A89,Filtro!$A$4:$AT$2433,10,FALSE),0) -> 0 | M89: =IFERROR(VLOOKUP($A89,Filtro!$A$4:$AT$2433,11,FALSE),0) -> 0 | N89: =IFERROR(VLOOKUP($A89,Filtro!$A$4:$AT$2433,12,FALSE),0) -> 0 | O89: =IFERROR(VLOOKUP($A89,Filtro!$A$4:$AT$2433,13,FALSE),0) -> 0 | P89: =IFERROR(VLOOKUP($A89,Filtro!$A$4:$AT$2433,14,FALSE),0) -> 0 | Q89: =IFERROR(VLOOKUP($A89,Filtro!$A$4:$AT$2433,15,FALSE),0) -> 0 | R89: =IFERROR(VLOOKUP($A89,Filtro!$A$4:$AT$2433,16,FALSE),0) -> 0 | S89: =IFERROR(VLOOKUP($A89,Filtro!$A$4:$AT$2433,17,FALSE),0) -> 0 | T89: =IFERROR(VLOOKUP($A89,Filtro!$A$4:$AT$2433,18,FALSE),0) -> 0 | U89: =IFERROR(VLOOKUP($A89,Filtro!$A$4:$AT$2433,19,FALSE),0) -> 0 | V89: =IFERROR(VLOOKUP($A89,Filtro!$A$4:$AT$2433,20,FALSE),0) -> 0 | W89: =IFERROR(VLOOKUP($A89,Filtro!$A$4:$AT$2433,21,FALSE),0) -> 0 | X89: =IFERROR(VLOOKUP($A89,Filtro!$A$4:$AT$2433,22,FALSE),0) -> 0 | Y89: =IFERROR(VLOOKUP($A89,Filtro!$A$4:$AT$2433,23,FALSE),0) -> 0 | Z89: =IFERROR(VLOOKUP($A89,Filtro!$A$4:$AT$2433,24,FALSE),0) -> 0 | AA89: =IFERROR(VLOOKUP($A89,Filtro!$A$4:$AT$2433,25,FALSE),0) -> 0 | AB89: =IFERROR(VLOOKUP($A89,Filtro!$A$4:$AT$2433,26,FALSE),0) -> 0 | AC89: =IFERROR(VLOOKUP($A89,Filtro!$A$4:$AT$2433,27,FALSE),0) -> 0 | AD89: =IFERROR(VLOOKUP($A89,Filtro!$A$4:$AT$2433,28,FALSE),0) -> 0 | AE89: =IFERROR(VLOOKUP($A89,Filtro!$A$4:$AT$2433,29,FALSE),0) -> 0 | AF89: =IFERROR(VLOOKUP($A89,Filtro!$A$4:$AT$2433,30,FALSE),0) -> 0 | AG89: =IFERROR(VLOOKUP($A89,Filtro!$A$4:$AT$2433,31,FALSE),0) -> 0 | AH89: =IFERROR(VLOOKUP($A89,Filtro!$A$4:$AT$2433,32,FALSE),0) -> 0 | AI89: =IFERROR(VLOOKUP($A89,Filtro!$A$4:$AT$2433,33,FALSE),0) -> 0 | AJ89: =IFERROR(VLOOKUP($A89,Filtro!$A$4:$AT$2433,34,FALSE),0) -> 0 | AK89: =IFERROR(VLOOKUP($A89,Filtro!$A$4:$AT$2433,35,FALSE),0) -> 0 | AL89: =IFERROR(VLOOKUP($A89,Filtro!$A$4:$AT$2433,36,FALSE),0) -> 0 | AM89: =IFERROR(VLOOKUP($A89,Filtro!$A$4:$AT$2433,37,FALSE),0) -> 0
A90: 01010061 | B90: 0102706 | C90: Evaluación del desarrollo Psicomotor | D90: =IFERROR(VLOOKUP($A90,Filtro!$A$4:$AT$2433,2,FALSE),0) -> 468 | E90: =IFERROR(VLOOKUP($A90,Filtro!$A$4:$AT$2433,3,FALSE),0) -> 468 | F90: =IFERROR(VLOOKUP($A90,Filtro!$A$4:$AT$2433,4,FALSE),0) -> 468 | G90: =IFERROR(VLOOKUP($A90,Filtro!$A$4:$AT$2433,5,FALSE),0) -> 0 | H90: =IFERROR(VLOOKUP($A90,Filtro!$A$4:$AT$2433,6,FALSE),0) -> 0 | I90: =IFERROR(VLOOKUP($A90,Filtro!$A$4:$AT$2433,7,FALSE),0) -> 0 | J90: =IFERROR(VLOOKUP($A90,Filtro!$A$4:$AT$2433,8,FALSE),0) -> 0 | K90: =IFERROR(VLOOKUP($A90,Filtro!$A$4:$AT$2433,9,FALSE),0) -> 0 | L90: =IFERROR(VLOOKUP($A90,Filtro!$A$4:$AT$2433,10,FALSE),0) -> 0 | M90: =IFERROR(VLOOKUP($A90,Filtro!$A$4:$AT$2433,11,FALSE),0) -> 0 | N90: =IFERROR(VLOOKUP($A90,Filtro!$A$4:$AT$2433,12,FALSE),0) -> 0 | O90: =IFERROR(VLOOKUP($A90,Filtro!$A$4:$AT$2433,13,FALSE),0) -> 0 | P90: =IFERROR(VLOOKUP($A90,Filtro!$A$4:$AT$2433,14,FALSE),0) -> 0 | Q90: =IFERROR(VLOOKUP($A90,Filtro!$A$4:$AT$2433,15,FALSE),0) -> 0 | R90: =IFERROR(VLOOKUP($A90,Filtro!$A$4:$AT$2433,16,FALSE),0) -> 0 | S90: =IFERROR(VLOOKUP($A90,Filtro!$A$4:$AT$2433,17,FALSE),0) -> 0 | T90: =IFERROR(VLOOKUP($A90,Filtro!$A$4:$AT$2433,18,FALSE),0) -> 0 | U90: =IFERROR(VLOOKUP($A90,Filtro!$A$4:$AT$2433,19,FALSE),0) -> 0 | V90: =IFERROR(VLOOKUP($A90,Filtro!$A$4:$AT$2433,20,FALSE),0) -> 0 | W90: =IFERROR(VLOOKUP($A90,Filtro!$A$4:$AT$2433,21,FALSE),0) -> 0 | X90: =IFERROR(VLOOKUP($A90,Filtro!$A$4:$AT$2433,22,FALSE),0) -> 0 | Y90: =IFERROR(VLOOKUP($A90,Filtro!$A$4:$AT$2433,23,FALSE),0) -> 0 | Z90: =IFERROR(VLOOKUP($A90,Filtro!$A$4:$AT$2433,24,FALSE),0) -> 0 | AA90: =IFERROR(VLOOKUP($A90,Filtro!$A$4:$AT$2433,25,FALSE),0) -> 0 | AB90: =IFERROR(VLOOKUP($A90,Filtro!$A$4:$AT$2433,26,FALSE),0) -> 0 | AC90: =IFERROR(VLOOKUP($A90,Filtro!$A$4:$AT$2433,27,FALSE),0) -> 355 | AD90: =IFERROR(VLOOKUP($A90,Filtro!$A$4:$AT$2433,28,FALSE),0) -> 0 | AE90: =IFERROR(VLOOKUP($A90,Filtro!$A$4:$AT$2433,29,FALSE),0) -> 0 | AF90: =IFERROR(VLOOKUP($A90,Filtro!$A$4:$AT$2433,30,FALSE),0) -> 0 | AG90: =IFERROR(VLOOKUP($A90,Filtro!$A$4:$AT$2433,31,FALSE),0) -> 0 | AH90: =IFERROR(VLOOKUP($A90,Filtro!$A$4:$AT$2433,32,FALSE),0) -> 0 | AI90: =IFERROR(VLOOKUP($A90,Filtro!$A$4:$AT$2433,33,FALSE),0) -> 0 | AJ90: =IFERROR(VLOOKUP($A90,Filtro!$A$4:$AT$2433,34,FALSE),0) -> 0 | AK90: =IFERROR(VLOOKUP($A90,Filtro!$A$4:$AT$2433,35,FALSE),0) -> 0 | AL90: =IFERROR(VLOOKUP($A90,Filtro!$A$4:$AT$2433,36,FALSE),0) -> 0 | AM90: =IFERROR(VLOOKUP($A90,Filtro!$A$4:$AT$2433,37,FALSE),0) -> 0
A91: 01010062 | B91: 0102707 | C91: Reentrenamiento de las funciones cognitiva-perceptual | D91: =IFERROR(VLOOKUP($A91,Filtro!$A$4:$AT$2433,2,FALSE),0) -> 0 | E91: =IFERROR(VLOOKUP($A91,Filtro!$A$4:$AT$2433,3,FALSE),0) -> 0 | F91: =IFERROR(VLOOKUP($A91,Filtro!$A$4:$AT$2433,4,FALSE),0) -> 0 | G91: =IFERROR(VLOOKUP($A91,Filtro!$A$4:$AT$2433,5,FALSE),0) -> 0 | H91: =IFERROR(VLOOKUP($A91,Filtro!$A$4:$AT$2433,6,FALSE),0) -> 0 | I91: =IFERROR(VLOOKUP($A91,Filtro!$A$4:$AT$2433,7,FALSE),0) -> 0 | J91: =IFERROR(VLOOKUP($A91,Filtro!$A$4:$AT$2433,8,FALSE),0) -> 0 | K91: =IFERROR(VLOOKUP($A91,Filtro!$A$4:$AT$2433,9,FALSE),0) -> 0 | L91: =IFERROR(VLOOKUP($A91,Filtro!$A$4:$AT$2433,10,FALSE),0) -> 0 | M91: =IFERROR(VLOOKUP($A91,Filtro!$A$4:$AT$2433,11,FALSE),0) -> 0 | N91: =IFERROR(VLOOKUP($A91,Filtro!$A$4:$AT$2433,12,FALSE),0) -> 0 | O91: =IFERROR(VLOOKUP($A91,Filtro!$A$4:$AT$2433,13,FALSE),0) -> 0 | P91: =IFERROR(VLOOKUP($A91,Filtro!$A$4:$AT$2433,14,FALSE),0) -> 0 | Q91: =IFERROR(VLOOKUP($A91,Filtro!$A$4:$AT$2433,15,FALSE),0) -> 0 | R91: =IFERROR(VLOOKUP($A91,Filtro!$A$4:$AT$2433,16,FALSE),0) -> 0 | S91: =IFERROR(VLOOKUP($A91,Filtro!$A$4:$AT$2433,17,FALSE),0) -> 0 | T91: =IFERROR(VLOOKUP($A91,Filtro!$A$4:$AT$2433,18,FALSE),0) -> 0 | U91: =IFERROR(VLOOKUP($A91,Filtro!$A$4:$AT$2433,19,FALSE),0) -> 0 | V91: =IFERROR(VLOOKUP($A91,Filtro!$A$4:$AT$2433,20,FALSE),0) -> 0 | W91: =IFERROR(VLOOKUP($A91,Filtro!$A$4:$AT$2433,21,FALSE),0) -> 0 | X91: =IFERROR(VLOOKUP($A91,Filtro!$A$4:$AT$2433,22,FALSE),0) -> 0 | Y91: =IFERROR(VLOOKUP($A91,Filtro!$A$4:$AT$2433,23,FALSE),0) -> 0 | Z91: =IFERROR(VLOOKUP($A91,Filtro!$A$4:$AT$2433,24,FALSE),0) -> 0 | AA91: =IFERROR(VLOOKUP($A91,Filtro!$A$4:$AT$2433,25,FALSE),0) -> 0 | AB91: =IFERROR(VLOOKUP($A91,Filtro!$A$4:$AT$2433,26,FALSE),0) -> 0 | AC91: =IFERROR(VLOOKUP($A91,Filtro!$A$4:$AT$2433,27,FALSE),0) -> 0 | AD91: =IFERROR(VLOOKUP($A91,Filtro!$A$4:$AT$2433,28,FALSE),0) -> 0 | AE91: =IFERROR(VLOOKUP($A91,Filtro!$A$4:$AT$2433,29,FALSE),0) -> 0 | AF91: =IFERROR(VLOOKUP($A91,Filtro!$A$4:$AT$2433,30,FALSE),0) -> 0 | AG91: =IFERROR(VLOOKUP($A91,Filtro!$A$4:$AT$2433,31,FALSE),0) -> 0 | AH91: =IFERROR(VLOOKUP($A91,Filtro!$A$4:$AT$2433,32,FALSE),0) -> 0 | AI91: =IFERROR(VLOOKUP($A91,Filtro!$A$4:$AT$2433,33,FALSE),0) -> 0 | AJ91: =IFERROR(VLOOKUP($A91,Filtro!$A$4:$AT$2433,34,FALSE),0) -> 0 | AK91: =IFERROR(VLOOKUP($A91,Filtro!$A$4:$AT$2433,35,FALSE),0) -> 0 | AL91: =IFERROR(VLOOKUP($A91,Filtro!$A$4:$AT$2433,36,FALSE),0) -> 0 | AM91: =IFERROR(VLOOKUP($A91,Filtro!$A$4:$AT$2433,37,FALSE),0) -> 0
A92: 01010063 | B92: 0102708 | C92: Reentrenamiento de las actividades de la vida diaria | D92: =IFERROR(VLOOKUP($A92,Filtro!$A$4:$AT$2433,2,FALSE),0) -> 0 | E92: =IFERROR(VLOOKUP($A92,Filtro!$A$4:$AT$2433,3,FALSE),0) -> 0 | F92: =IFERROR(VLOOKUP($A92,Filtro!$A$4:$AT$2433,4,FALSE),0) -> 0 | G92: =IFERROR(VLOOKUP($A92,Filtro!$A$4:$AT$2433,5,FALSE),0) -> 0 | H92: =IFERROR(VLOOKUP($A92,Filtro!$A$4:$AT$2433,6,FALSE),0) -> 0 | I92: =IFERROR(VLOOKUP($A92,Filtro!$A$4:$AT$2433,7,FALSE),0) -> 0 | J92: =IFERROR(VLOOKUP($A92,Filtro!$A$4:$AT$2433,8,FALSE),0) -> 0 | K92: =IFERROR(VLOOKUP($A92,Filtro!$A$4:$AT$2433,9,FALSE),0) -> 0 | L92: =IFERROR(VLOOKUP($A92,Filtro!$A$4:$AT$2433,10,FALSE),0) -> 0 | M92: =IFERROR(VLOOKUP($A92,Filtro!$A$4:$AT$2433,11,FALSE),0) -> 0 | N92: =IFERROR(VLOOKUP($A92,Filtro!$A$4:$AT$2433,12,FALSE),0) -> 0 | O92: =IFERROR(VLOOKUP($A92,Filtro!$A$4:$AT$2433,13,FALSE),0) -> 0 | P92: =IFERROR(VLOOKUP($A92,Filtro!$A$4:$AT$2433,14,FALSE),0) -> 0 | Q92: =IFERROR(VLOOKUP($A92,Filtro!$A$4:$AT$2433,15,FALSE),0) -> 0 | R92: =IFERROR(VLOOKUP($A92,Filtro!$A$4:$AT$2433,16,FALSE),0) -> 0 | S92: =IFERROR(VLOOKUP($A92,Filtro!$A$4:$AT$2433,17,FALSE),0) -> 0 | T92: =IFERROR(VLOOKUP($A92,Filtro!$A$4:$AT$2433,18,FALSE),0) -> 0 | U92: =IFERROR(VLOOKUP($A92,Filtro!$A$4:$AT$2433,19,FALSE),0) -> 0 | V92: =IFERROR(VLOOKUP($A92,Filtro!$A$4:$AT$2433,20,FALSE),0) -> 0 | W92: =IFERROR(VLOOKUP($A92,Filtro!$A$4:$AT$2433,21,FALSE),0) -> 0 | X92: =IFERROR(VLOOKUP($A92,Filtro!$A$4:$AT$2433,22,FALSE),0) -> 0 | Y92: =IFERROR(VLOOKUP($A92,Filtro!$A$4:$AT$2433,23,FALSE),0) -> 0 | Z92: =IFERROR(VLOOKUP($A92,Filtro!$A$4:$AT$2433,24,FALSE),0) -> 0 | AA92: =IFERROR(VLOOKUP($A92,Filtro!$A$4:$AT$2433,25,FALSE),0) -> 0 | AB92: =IFERROR(VLOOKUP($A92,Filtro!$A$4:$AT$2433,26,FALSE),0) -> 0 | AC92: =IFERROR(VLOOKUP($A92,Filtro!$A$4:$AT$2433,27,FALSE),0) -> 0 | AD92: =IFERROR(VLOOKUP($A92,Filtro!$A$4:$AT$2433,28,FALSE),0) -> 0 | AE92: =IFERROR(VLOOKUP($A92,Filtro!$A$4:$AT$2433,29,FALSE),0) -> 0 | AF92: =IFERROR(VLOOKUP($A92,Filtro!$A$4:$AT$2433,30,FALSE),0) -> 0 | AG92: =IFERROR(VLOOKUP($A92,Filtro!$A$4:$AT$2433,31,FALSE),0) -> 0 | AH92: =IFERROR(VLOOKUP($A92,Filtro!$A$4:$AT$2433,32,FALSE),0) -> 0 | AI92: =IFERROR(VLOOKUP($A92,Filtro!$A$4:$AT$2433,33,FALSE),0) -> 0 | AJ92: =IFERROR(VLOOKUP($A92,Filtro!$A$4:$AT$2433,34,FALSE),0) -> 0 | AK92: =IFERROR(VLOOKUP($A92,Filtro!$A$4:$AT$2433,35,FALSE),0) -> 0 | AL92: =IFERROR(VLOOKUP($A92,Filtro!$A$4:$AT$2433,36,FALSE),0) -> 0 | AM92: =IFERROR(VLOOKUP($A92,Filtro!$A$4:$AT$2433,37,FALSE),0) -> 0
A93: 01010064 | B93: 0102709 | C93: Reentrenamiento laboral | D93: =IFERROR(VLOOKUP($A93,Filtro!$A$4:$AT$2433,2,FALSE),0) -> 0 | E93: =IFERROR(VLOOKUP($A93,Filtro!$A$4:$AT$2433,3,FALSE),0) -> 0 | F93: =IFERROR(VLOOKUP($A93,Filtro!$A$4:$AT$2433,4,FALSE),0) -> 0 | G93: =IFERROR(VLOOKUP($A93,Filtro!$A$4:$AT$2433,5,FALSE),0) -> 0 | H93: =IFERROR(VLOOKUP($A93,Filtro!$A$4:$AT$2433,6,FALSE),0) -> 0 | I93: =IFERROR(VLOOKUP($A93,Filtro!$A$4:$AT$2433,7,FALSE),0) -> 0 | J93: =IFERROR(VLOOKUP($A93,Filtro!$A$4:$AT$2433,8,FALSE),0) -> 0 | K93: =IFERROR(VLOOKUP($A93,Filtro!$A$4:$AT$2433,9,FALSE),0) -> 0 | L93: =IFERROR(VLOOKUP($A93,Filtro!$A$4:$AT$2433,10,FALSE),0) -> 0 | M93: =IFERROR(VLOOKUP($A93,Filtro!$A$4:$AT$2433,11,FALSE),0) -> 0 | N93: =IFERROR(VLOOKUP($A93,Filtro!$A$4:$AT$2433,12,FALSE),0) -> 0 | O93: =IFERROR(VLOOKUP($A93,Filtro!$A$4:$AT$2433,13,FALSE),0) -> 0 | P93: =IFERROR(VLOOKUP($A93,Filtro!$A$4:$AT$2433,14,FALSE),0) -> 0 | Q93: =IFERROR(VLOOKUP($A93,Filtro!$A$4:$AT$2433,15,FALSE),0) -> 0 | R93: =IFERROR(VLOOKUP($A93,Filtro!$A$4:$AT$2433,16,FALSE),0) -> 0 | S93: =IFERROR(VLOOKUP($A93,Filtro!$A$4:$AT$2433,17,FALSE),0) -> 0 | T93: =IFERROR(VLOOKUP($A93,Filtro!$A$4:$AT$2433,18,FALSE),0) -> 0 | U93: =IFERROR(VLOOKUP($A93,Filtro!$A$4:$AT$2433,19,FALSE),0) -> 0 | V93: =IFERROR(VLOOKUP($A93,Filtro!$A$4:$AT$2433,20,FALSE),0) -> 0 | W93: =IFERROR(VLOOKUP($A93,Filtro!$A$4:$AT$2433,21,FALSE),0) -> 0 | X93: =IFERROR(VLOOKUP($A93,Filtro!$A$4:$AT$2433,22,FALSE),0) -> 0 | Y93: =IFERROR(VLOOKUP($A93,Filtro!$A$4:$AT$2433,23,FALSE),0) -> 0 | Z93: =IFERROR(VLOOKUP($A93,Filtro!$A$4:$AT$2433,24,FALSE),0) -> 0 | AA93: =IFERROR(VLOOKUP($A93,Filtro!$A$4:$AT$2433,25,FALSE),0) -> 0 | AB93: =IFERROR(VLOOKUP($A93,Filtro!$A$4:$AT$2433,26,FALSE),0) -> 0 | AC93: =IFERROR(VLOOKUP($A93,Filtro!$A$4:$AT$2433,27,FALSE),0) -> 0 | AD93: =IFERROR(VLOOKUP($A93,Filtro!$A$4:$AT$2433,28,FALSE),0) -> 0 | AE93: =IFERROR(VLOOKUP($A93,Filtro!$A$4:$AT$2433,29,FALSE),0) -> 0 | AF93: =IFERROR(VLOOKUP($A93,Filtro!$A$4:$AT$2433,30,FALSE),0) -> 0 | AG93: =IFERROR(VLOOKUP($A93,Filtro!$A$4:$AT$2433,31,FALSE),0) -> 0 | AH93: =IFERROR(VLOOKUP($A93,Filtro!$A$4:$AT$2433,32,FALSE),0) -> 0 | AI93: =IFERROR(VLOOKUP($A93,Filtro!$A$4:$AT$2433,33,FALSE),0) -> 0 | AJ93: =IFERROR(VLOOKUP($A93,Filtro!$A$4:$AT$2433,34,FALSE),0) -> 0 | AK93: =IFERROR(VLOOKUP($A93,Filtro!$A$4:$AT$2433,35,FALSE),0) -> 0 | AL93: =IFERROR(VLOOKUP($A93,Filtro!$A$4:$AT$2433,36,FALSE),0) -> 0 | AM93: =IFERROR(VLOOKUP($A93,Filtro!$A$4:$AT$2433,37,FALSE),0) -> 0
A94: 01010065 | C94: Comité junta médica | D94: =IFERROR(VLOOKUP($A94,Filtro!$A$4:$AT$2433,2,FALSE),0) -> 452 | E94: =IFERROR(VLOOKUP($A94,Filtro!$A$4:$AT$2433,3,FALSE),0) -> 452 | F94: =IFERROR(VLOOKUP($A94,Filtro!$A$4:$AT$2433,4,FALSE),0) -> 452 | G94: =IFERROR(VLOOKUP($A94,Filtro!$A$4:$AT$2433,5,FALSE),0) -> 0 | H94: =IFERROR(VLOOKUP($A94,Filtro!$A$4:$AT$2433,6,FALSE),0) -> 0 | I94: =IFERROR(VLOOKUP($A94,Filtro!$A$4:$AT$2433,7,FALSE),0) -> 0 | J94: =IFERROR(VLOOKUP($A94,Filtro!$A$4:$AT$2433,8,FALSE),0) -> 0 | K94: =IFERROR(VLOOKUP($A94,Filtro!$A$4:$AT$2433,9,FALSE),0) -> 0 | L94: =IFERROR(VLOOKUP($A94,Filtro!$A$4:$AT$2433,10,FALSE),0) -> 0 | M94: =IFERROR(VLOOKUP($A94,Filtro!$A$4:$AT$2433,11,FALSE),0) -> 0 | N94: =IFERROR(VLOOKUP($A94,Filtro!$A$4:$AT$2433,12,FALSE),0) -> 0 | O94: =IFERROR(VLOOKUP($A94,Filtro!$A$4:$AT$2433,13,FALSE),0) -> 0 | P94: =IFERROR(VLOOKUP($A94,Filtro!$A$4:$AT$2433,14,FALSE),0) -> 0 | Q94: =IFERROR(VLOOKUP($A94,Filtro!$A$4:$AT$2433,15,FALSE),0) -> 0 | R94: =IFERROR(VLOOKUP($A94,Filtro!$A$4:$AT$2433,16,FALSE),0) -> 0 | S94: =IFERROR(VLOOKUP($A94,Filtro!$A$4:$AT$2433,17,FALSE),0) -> 0 | T94: =IFERROR(VLOOKUP($A94,Filtro!$A$4:$AT$2433,18,FALSE),0) -> 0 | U94: =IFERROR(VLOOKUP($A94,Filtro!$A$4:$AT$2433,19,FALSE),0) -> 0 | V94: =IFERROR(VLOOKUP($A94,Filtro!$A$4:$AT$2433,20,FALSE),0) -> 0 | W94: =IFERROR(VLOOKUP($A94,Filtro!$A$4:$AT$2433,21,FALSE),0) -> 0 | X94: =IFERROR(VLOOKUP($A94,Filtro!$A$4:$AT$2433,22,FALSE),0) -> 0 | Y94: =IFERROR(VLOOKUP($A94,Filtro!$A$4:$AT$2433,23,FALSE),0) -> 0 | Z94: =IFERROR(VLOOKUP($A94,Filtro!$A$4:$AT$2433,24,FALSE),0) -> 0 | AA94: =IFERROR(VLOOKUP($A94,Filtro!$A$4:$AT$2433,25,FALSE),0) -> 0 | AB94: =IFERROR(VLOOKUP($A94,Filtro!$A$4:$AT$2433,26,FALSE),0) -> 0 | AC94: =IFERROR(VLOOKUP($A94,Filtro!$A$4:$AT$2433,27,FALSE),0) -> 452 | AD94: =IFERROR(VLOOKUP($A94,Filtro!$A$4:$AT$2433,28,FALSE),0) -> 0 | AE94: =IFERROR(VLOOKUP($A94,Filtro!$A$4:$AT$2433,29,FALSE),0) -> 0 | AF94: =IFERROR(VLOOKUP($A94,Filtro!$A$4:$AT$2433,30,FALSE),0) -> 0 | AG94: =IFERROR(VLOOKUP($A94,Filtro!$A$4:$AT$2433,31,FALSE),0) -> 0 | AH94: =IFERROR(VLOOKUP($A94,Filtro!$A$4:$AT$2433,32,FALSE),0) -> 0 | AI94: =IFERROR(VLOOKUP($A94,Filtro!$A$4:$AT$2433,33,FALSE),0) -> 0 | AJ94: =IFERROR(VLOOKUP($A94,Filtro!$A$4:$AT$2433,34,FALSE),0) -> 0 | AK94: =IFERROR(VLOOKUP($A94,Filtro!$A$4:$AT$2433,35,FALSE),0) -> 0 | AL94: =IFERROR(VLOOKUP($A94,Filtro!$A$4:$AT$2433,36,FALSE),0) -> 0 | AM94: =IFERROR(VLOOKUP($A94,Filtro!$A$4:$AT$2433,37,FALSE),0) -> 0
A95: 01010066 | C95: Consultorías médicas de especialidades | D95: =IFERROR(VLOOKUP($A95,Filtro!$A$4:$AT$2433,2,FALSE),0) -> 0 | E95: =IFERROR(VLOOKUP($A95,Filtro!$A$4:$AT$2433,3,FALSE),0) -> 0 | F95: =IFERROR(VLOOKUP($A95,Filtro!$A$4:$AT$2433,4,FALSE),0) -> 0 | G95: =IFERROR(VLOOKUP($A95,Filtro!$A$4:$AT$2433,5,FALSE),0) -> 0 | H95: =IFERROR(VLOOKUP($A95,Filtro!$A$4:$AT$2433,6,FALSE),0) -> 0 | I95: =IFERROR(VLOOKUP($A95,Filtro!$A$4:$AT$2433,7,FALSE),0) -> 0 | J95: =IFERROR(VLOOKUP($A95,Filtro!$A$4:$AT$2433,8,FALSE),0) -> 0 | K95: =IFERROR(VLOOKUP($A95,Filtro!$A$4:$AT$2433,9,FALSE),0) -> 0 | L95: =IFERROR(VLOOKUP($A95,Filtro!$A$4:$AT$2433,10,FALSE),0) -> 0 | M95: =IFERROR(VLOOKUP($A95,Filtro!$A$4:$AT$2433,11,FALSE),0) -> 0 | N95: =IFERROR(VLOOKUP($A95,Filtro!$A$4:$AT$2433,12,FALSE),0) -> 0 | O95: =IFERROR(VLOOKUP($A95,Filtro!$A$4:$AT$2433,13,FALSE),0) -> 0 | P95: =IFERROR(VLOOKUP($A95,Filtro!$A$4:$AT$2433,14,FALSE),0) -> 0 | Q95: =IFERROR(VLOOKUP($A95,Filtro!$A$4:$AT$2433,15,FALSE),0) -> 0 | R95: =IFERROR(VLOOKUP($A95,Filtro!$A$4:$AT$2433,16,FALSE),0) -> 0 | S95: =IFERROR(VLOOKUP($A95,Filtro!$A$4:$AT$2433,17,FALSE),0) -> 0 | T95: =IFERROR(VLOOKUP($A95,Filtro!$A$4:$AT$2433,18,FALSE),0) -> 0 | U95: =IFERROR(VLOOKUP($A95,Filtro!$A$4:$AT$2433,19,FALSE),0) -> 0 | V95: =IFERROR(VLOOKUP($A95,Filtro!$A$4:$AT$2433,20,FALSE),0) -> 0 | W95: =IFERROR(VLOOKUP($A95,Filtro!$A$4:$AT$2433,21,FALSE),0) -> 0 | X95: =IFERROR(VLOOKUP($A95,Filtro!$A$4:$AT$2433,22,FALSE),0) -> 0 | Y95: =IFERROR(VLOOKUP($A95,Filtro!$A$4:$AT$2433,23,FALSE),0) -> 0 | Z95: =IFERROR(VLOOKUP($A95,Filtro!$A$4:$AT$2433,24,FALSE),0) -> 0 | AA95: =IFERROR(VLOOKUP($A95,Filtro!$A$4:$AT$2433,25,FALSE),0) -> 0 | AB95: =IFERROR(VLOOKUP($A95,Filtro!$A$4:$AT$2433,26,FALSE),0) -> 0 | AC95: =IFERROR(VLOOKUP($A95,Filtro!$A$4:$AT$2433,27,FALSE),0) -> 0 | AD95: =IFERROR(VLOOKUP($A95,Filtro!$A$4:$AT$2433,28,FALSE),0) -> 0 | AE95: =IFERROR(VLOOKUP($A95,Filtro!$A$4:$AT$2433,29,FALSE),0) -> 0 | AF95: =IFERROR(VLOOKUP($A95,Filtro!$A$4:$AT$2433,30,FALSE),0) -> 0 | AG95: =IFERROR(VLOOKUP($A95,Filtro!$A$4:$AT$2433,31,FALSE),0) -> 0 | AH95: =IFERROR(VLOOKUP($A95,Filtro!$A$4:$AT$2433,32,FALSE),0) -> 0 | AI95: =IFERROR(VLOOKUP($A95,Filtro!$A$4:$AT$2433,33,FALSE),0) -> 0 | AJ95: =IFERROR(VLOOKUP($A95,Filtro!$A$4:$AT$2433,34,FALSE),0) -> 0 | AK95: =IFERROR(VLOOKUP($A95,Filtro!$A$4:$AT$2433,35,FALSE),0) -> 0 | AL95: =IFERROR(VLOOKUP($A95,Filtro!$A$4:$AT$2433,36,FALSE),0) -> 0 | AM95: =IFERROR(VLOOKUP($A95,Filtro!$A$4:$AT$2433,37,FALSE),0) -> 0
A96: 01010067 | C96: Consultorías odontólogos | D96: =IFERROR(VLOOKUP($A96,Filtro!$A$4:$AT$2433,2,FALSE),0) -> 0 | E96: =IFERROR(VLOOKUP($A96,Filtro!$A$4:$AT$2433,3,FALSE),0) -> 0 | F96: =IFERROR(VLOOKUP($A96,Filtro!$A$4:$AT$2433,4,FALSE),0) -> 0 | G96: =IFERROR(VLOOKUP($A96,Filtro!$A$4:$AT$2433,5,FALSE),0) -> 0 | H96: =IFERROR(VLOOKUP($A96,Filtro!$A$4:$AT$2433,6,FALSE),0) -> 0 | I96: =IFERROR(VLOOKUP($A96,Filtro!$A$4:$AT$2433,7,FALSE),0) -> 0 | J96: =IFERROR(VLOOKUP($A96,Filtro!$A$4:$AT$2433,8,FALSE),0) -> 0 | K96: =IFERROR(VLOOKUP($A96,Filtro!$A$4:$AT$2433,9,FALSE),0) -> 0 | L96: =IFERROR(VLOOKUP($A96,Filtro!$A$4:$AT$2433,10,FALSE),0) -> 0 | M96: =IFERROR(VLOOKUP($A96,Filtro!$A$4:$AT$2433,11,FALSE),0) -> 0 | N96: =IFERROR(VLOOKUP($A96,Filtro!$A$4:$AT$2433,12,FALSE),0) -> 0 | O96: =IFERROR(VLOOKUP($A96,Filtro!$A$4:$AT$2433,13,FALSE),0) -> 0 | P96: =IFERROR(VLOOKUP($A96,Filtro!$A$4:$AT$2433,14,FALSE),0) -> 0 | Q96: =IFERROR(VLOOKUP($A96,Filtro!$A$4:$AT$2433,15,FALSE),0) -> 0 | R96: =IFERROR(VLOOKUP($A96,Filtro!$A$4:$AT$2433,16,FALSE),0) -> 0 | S96: =IFERROR(VLOOKUP($A96,Filtro!$A$4:$AT$2433,17,FALSE),0) -> 0 | T96: =IFERROR(VLOOKUP($A96,Filtro!$A$4:$AT$2433,18,FALSE),0) -> 0 | U96: =IFERROR(VLOOKUP($A96,Filtro!$A$4:$AT$2433,19,FALSE),0) -> 0 | V96: =IFERROR(VLOOKUP($A96,Filtro!$A$4:$AT$2433,20,FALSE),0) -> 0 | W96: =IFERROR(VLOOKUP($A96,Filtro!$A$4:$AT$2433,21,FALSE),0) -> 0 | X96: =IFERROR(VLOOKUP($A96,Filtro!$A$4:$AT$2433,22,FALSE),0) -> 0 | Y96: =IFERROR(VLOOKUP($A96,Filtro!$A$4:$AT$2433,23,FALSE),0) -> 0 | Z96: =IFERROR(VLOOKUP($A96,Filtro!$A$4:$AT$2433,24,FALSE),0) -> 0 | AA96: =IFERROR(VLOOKUP($A96,Filtro!$A$4:$AT$2433,25,FALSE),0) -> 0 | AB96: =IFERROR(VLOOKUP($A96,Filtro!$A$4:$AT$2433,26,FALSE),0) -> 0 | AC96: =IFERROR(VLOOKUP($A96,Filtro!$A$4:$AT$2433,27,FALSE),0) -> 0 | AD96: =IFERROR(VLOOKUP($A96,Filtro!$A$4:$AT$2433,28,FALSE),0) -> 0 | AE96: =IFERROR(VLOOKUP($A96,Filtro!$A$4:$AT$2433,29,FALSE),0) -> 0 | AF96: =IFERROR(VLOOKUP($A96,Filtro!$A$4:$AT$2433,30,FALSE),0) -> 0 | AG96: =IFERROR(VLOOKUP($A96,Filtro!$A$4:$AT$2433,31,FALSE),0) -> 0 | AH96: =IFERROR(VLOOKUP($A96,Filtro!$A$4:$AT$2433,32,FALSE),0) -> 0 | AI96: =IFERROR(VLOOKUP($A96,Filtro!$A$4:$AT$2433,33,FALSE),0) -> 0 | AJ96: =IFERROR(VLOOKUP($A96,Filtro!$A$4:$AT$2433,34,FALSE),0) -> 0 | AK96: =IFERROR(VLOOKUP($A96,Filtro!$A$4:$AT$2433,35,FALSE),0) -> 0 | AL96: =IFERROR(VLOOKUP($A96,Filtro!$A$4:$AT$2433,36,FALSE),0) -> 0 | AM96: =IFERROR(VLOOKUP($A96,Filtro!$A$4:$AT$2433,37,FALSE),0) -> 0
A97: 01010068 | C97: Consejerias Individual por profesional de salud | D97: =IFERROR(VLOOKUP($A97,Filtro!$A$4:$AT$2433,2,FALSE),0) -> 21729 | E97: =IFERROR(VLOOKUP($A97,Filtro!$A$4:$AT$2433,3,FALSE),0) -> 21729 | F97: =IFERROR(VLOOKUP($A97,Filtro!$A$4:$AT$2433,4,FALSE),0) -> 21719 | G97: =IFERROR(VLOOKUP($A97,Filtro!$A$4:$AT$2433,5,FALSE),0) -> 10 | H97: =IFERROR(VLOOKUP($A97,Filtro!$A$4:$AT$2433,6,FALSE),0) -> 0 | I97: =IFERROR(VLOOKUP($A97,Filtro!$A$4:$AT$2433,7,FALSE),0) -> 0 | J97: =IFERROR(VLOOKUP($A97,Filtro!$A$4:$AT$2433,8,FALSE),0) -> 0 | K97: =IFERROR(VLOOKUP($A97,Filtro!$A$4:$AT$2433,9,FALSE),0) -> 0 | L97: =IFERROR(VLOOKUP($A97,Filtro!$A$4:$AT$2433,10,FALSE),0) -> 0 | M97: =IFERROR(VLOOKUP($A97,Filtro!$A$4:$AT$2433,11,FALSE),0) -> 0 | N97: =IFERROR(VLOOKUP($A97,Filtro!$A$4:$AT$2433,12,FALSE),0) -> 0 | O97: =IFERROR(VLOOKUP($A97,Filtro!$A$4:$AT$2433,13,FALSE),0) -> 0 | P97: =IFERROR(VLOOKUP($A97,Filtro!$A$4:$AT$2433,14,FALSE),0) -> 0 | Q97: =IFERROR(VLOOKUP($A97,Filtro!$A$4:$AT$2433,15,FALSE),0) -> 0 | R97: =IFERROR(VLOOKUP($A97,Filtro!$A$4:$AT$2433,16,FALSE),0) -> 0 | S97: =IFERROR(VLOOKUP($A97,Filtro!$A$4:$AT$2433,17,FALSE),0) -> 0 | T97: =IFERROR(VLOOKUP($A97,Filtro!$A$4:$AT$2433,18,FALSE),0) -> 0 | U97: =IFERROR(VLOOKUP($A97,Filtro!$A$4:$AT$2433,19,FALSE),0) -> 0 | V97: =IFERROR(VLOOKUP($A97,Filtro!$A$4:$AT$2433,20,FALSE),0) -> 0 | W97: =IFERROR(VLOOKUP($A97,Filtro!$A$4:$AT$2433,21,FALSE),0) -> 0 | X97: =IFERROR(VLOOKUP($A97,Filtro!$A$4:$AT$2433,22,FALSE),0) -> 0 | Y97: =IFERROR(VLOOKUP($A97,Filtro!$A$4:$AT$2433,23,FALSE),0) -> 0 | Z97: =IFERROR(VLOOKUP($A97,Filtro!$A$4:$AT$2433,24,FALSE),0) -> 0 | AA97: =IFERROR(VLOOKUP($A97,Filtro!$A$4:$AT$2433,25,FALSE),0) -> 0 | AB97: =IFERROR(VLOOKUP($A97,Filtro!$A$4:$AT$2433,26,FALSE),0) -> 822 | AC97: =IFERROR(VLOOKUP($A97,Filtro!$A$4:$AT$2433,27,FALSE),0) -> 17116 | AD97: =IFERROR(VLOOKUP($A97,Filtro!$A$4:$AT$2433,28,FALSE),0) -> 0 | AE97: =IFERROR(VLOOKUP($A97,Filtro!$A$4:$AT$2433,29,FALSE),0) -> 0 | AF97: =IFERROR(VLOOKUP($A97,Filtro!$A$4:$AT$2433,30,FALSE),0) -> 0 | AG97: =IFERROR(VLOOKUP($A97,Filtro!$A$4:$AT$2433,31,FALSE),0) -> 0 | AH97: =IFERROR(VLOOKUP($A97,Filtro!$A$4:$AT$2433,32,FALSE),0) -> 0 | AI97: =IFERROR(VLOOKUP($A97,Filtro!$A$4:$AT$2433,33,FALSE),0) -> 0 | AJ97: =IFERROR(VLOOKUP($A97,Filtro!$A$4:$AT$2433,34,FALSE),0) -> 0 | AK97: =IFERROR(VLOOKUP($A97,Filtro!$A$4:$AT$2433,35,FALSE),0) -> 0 | AL97: =IFERROR(VLOOKUP($A97,Filtro!$A$4:$AT$2433,36,FALSE),0) -> 0 | AM97: =IFERROR(VLOOKUP($A97,Filtro!$A$4:$AT$2433,37,FALSE),0) -> 0
A98: 01010069 | C98: Consejerias Familiar por profesionales de salud | D98: =IFERROR(VLOOKUP($A98,Filtro!$A$4:$AT$2433,2,FALSE),0) -> 2000 | E98: =IFERROR(VLOOKUP($A98,Filtro!$A$4:$AT$2433,3,FALSE),0) -> 2000 | F98: =IFERROR(VLOOKUP($A98,Filtro!$A$4:$AT$2433,4,FALSE),0) -> 2000 | G98: =IFERROR(VLOOKUP($A98,Filtro!$A$4:$AT$2433,5,FALSE),0) -> 0 | H98: =IFERROR(VLOOKUP($A98,Filtro!$A$4:$AT$2433,6,FALSE),0) -> 0 | I98: =IFERROR(VLOOKUP($A98,Filtro!$A$4:$AT$2433,7,FALSE),0) -> 0 | J98: =IFERROR(VLOOKUP($A98,Filtro!$A$4:$AT$2433,8,FALSE),0) -> 0 | K98: =IFERROR(VLOOKUP($A98,Filtro!$A$4:$AT$2433,9,FALSE),0) -> 0 | L98: =IFERROR(VLOOKUP($A98,Filtro!$A$4:$AT$2433,10,FALSE),0) -> 0 | M98: =IFERROR(VLOOKUP($A98,Filtro!$A$4:$AT$2433,11,FALSE),0) -> 0 | N98: =IFERROR(VLOOKUP($A98,Filtro!$A$4:$AT$2433,12,FALSE),0) -> 0 | O98: =IFERROR(VLOOKUP($A98,Filtro!$A$4:$AT$2433,13,FALSE),0) -> 0 | P98: =IFERROR(VLOOKUP($A98,Filtro!$A$4:$AT$2433,14,FALSE),0) -> 0 | Q98: =IFERROR(VLOOKUP($A98,Filtro!$A$4:$AT$2433,15,FALSE),0) -> 0 | R98: =IFERROR(VLOOKUP($A98,Filtro!$A$4:$AT$2433,16,FALSE),0) -> 0 | S98: =IFERROR(VLOOKUP($A98,Filtro!$A$4:$AT$2433,17,FALSE),0) -> 0 | T98: =IFERROR(VLOOKUP($A98,Filtro!$A$4:$AT$2433,18,FALSE),0) -> 0 | U98: =IFERROR(VLOOKUP($A98,Filtro!$A$4:$AT$2433,19,FALSE),0) -> 0 | V98: =IFERROR(VLOOKUP($A98,Filtro!$A$4:$AT$2433,20,FALSE),0) -> 0 | W98: =IFERROR(VLOOKUP($A98,Filtro!$A$4:$AT$2433,21,FALSE),0) -> 0 | X98: =IFERROR(VLOOKUP($A98,Filtro!$A$4:$AT$2433,22,FALSE),0) -> 0 | Y98: =IFERROR(VLOOKUP($A98,Filtro!$A$4:$AT$2433,23,FALSE),0) -> 0 | Z98: =IFERROR(VLOOKUP($A98,Filtro!$A$4:$AT$2433,24,FALSE),0) -> 0 | AA98: =IFERROR(VLOOKUP($A98,Filtro!$A$4:$AT$2433,25,FALSE),0) -> 0 | AB98: =IFERROR(VLOOKUP($A98,Filtro!$A$4:$AT$2433,26,FALSE),0) -> 0 | AC98: =IFERROR(VLOOKUP($A98,Filtro!$A$4:$AT$2433,27,FALSE),0) -> 1999 | AD98: =IFERROR(VLOOKUP($A98,Filtro!$A$4:$AT$2433,28,FALSE),0) -> 0 | AE98: =IFERROR(VLOOKUP($A98,Filtro!$A$4:$AT$2433,29,FALSE),0) -> 0 | AF98: =IFERROR(VLOOKUP($A98,Filtro!$A$4:$AT$2433,30,FALSE),0) -> 0 | AG98: =IFERROR(VLOOKUP($A98,Filtro!$A$4:$AT$2433,31,FALSE),0) -> 0 | AH98: =IFERROR(VLOOKUP($A98,Filtro!$A$4:$AT$2433,32,FALSE),0) -> 0 | AI98: =IFERROR(VLOOKUP($A98,Filtro!$A$4:$AT$2433,33,FALSE),0) -> 0 | AJ98: =IFERROR(VLOOKUP($A98,Filtro!$A$4:$AT$2433,34,FALSE),0) -> 0 | AK98: =IFERROR(VLOOKUP($A98,Filtro!$A$4:$AT$2433,35,FALSE),0) -> 0 | AL98: =IFERROR(VLOOKUP($A98,Filtro!$A$4:$AT$2433,36,FALSE),0) -> 0 | AM98: =IFERROR(VLOOKUP($A98,Filtro!$A$4:$AT$2433,37,FALSE),0) -> 0
A99: 01010070 | C99: Instalación de clips en lesiones sangrantes | D99: =IFERROR(VLOOKUP($A99,Filtro!$A$4:$AT$2433,2,FALSE),0) -> 0 | E99: =IFERROR(VLOOKUP($A99,Filtro!$A$4:$AT$2433,3,FALSE),0) -> 0 | F99: =IFERROR(VLOOKUP($A99,Filtro!$A$4:$AT$2433,4,FALSE),0) -> 0 | G99: =IFERROR(VLOOKUP($A99,Filtro!$A$4:$AT$2433,5,FALSE),0) -> 0 | H99: =IFERROR(VLOOKUP($A99,Filtro!$A$4:$AT$2433,6,FALSE),0) -> 0 | I99: =IFERROR(VLOOKUP($A99,Filtro!$A$4:$AT$2433,7,FALSE),0) -> 0 | J99: =IFERROR(VLOOKUP($A99,Filtro!$A$4:$AT$2433,8,FALSE),0) -> 0 | K99: =IFERROR(VLOOKUP($A99,Filtro!$A$4:$AT$2433,9,FALSE),0) -> 0 | L99: =IFERROR(VLOOKUP($A99,Filtro!$A$4:$AT$2433,10,FALSE),0) -> 0 | M99: =IFERROR(VLOOKUP($A99,Filtro!$A$4:$AT$2433,11,FALSE),0) -> 0 | N99: =IFERROR(VLOOKUP($A99,Filtro!$A$4:$AT$2433,12,FALSE),0) -> 0 | O99: =IFERROR(VLOOKUP($A99,Filtro!$A$4:$AT$2433,13,FALSE),0) -> 0 | P99: =IFERROR(VLOOKUP($A99,Filtro!$A$4:$AT$2433,14,FALSE),0) -> 0 | Q99: =IFERROR(VLOOKUP($A99,Filtro!$A$4:$AT$2433,15,FALSE),0) -> 0 | R99: =IFERROR(VLOOKUP($A99,Filtro!$A$4:$AT$2433,16,FALSE),0) -> 0 | S99: =IFERROR(VLOOKUP($A99,Filtro!$A$4:$AT$2433,17,FALSE),0) -> 0 | T99: =IFERROR(VLOOKUP($A99,Filtro!$A$4:$AT$2433,18,FALSE),0) -> 0 | U99: =IFERROR(VLOOKUP($A99,Filtro!$A$4:$AT$2433,19,FALSE),0) -> 0 | V99: =IFERROR(VLOOKUP($A99,Filtro!$A$4:$AT$2433,20,FALSE),0) -> 0 | W99: =IFERROR(VLOOKUP($A99,Filtro!$A$4:$AT$2433,21,FALSE),0) -> 0 | X99: =IFERROR(VLOOKUP($A99,Filtro!$A$4:$AT$2433,22,FALSE),0) -> 0 | Y99: =IFERROR(VLOOKUP($A99,Filtro!$A$4:$AT$2433,23,FALSE),0) -> 0 | Z99: =IFERROR(VLOOKUP($A99,Filtro!$A$4:$AT$2433,24,FALSE),0) -> 0 | AA99: =IFERROR(VLOOKUP($A99,Filtro!$A$4:$AT$2433,25,FALSE),0) -> 0 | AB99: =IFERROR(VLOOKUP($A99,Filtro!$A$4:$AT$2433,26,FALSE),0) -> 0 | AC99: =IFERROR(VLOOKUP($A99,Filtro!$A$4:$AT$2433,27,FALSE),0) -> 0 | AD99: =IFERROR(VLOOKUP($A99,Filtro!$A$4:$AT$2433,28,FALSE),0) -> 0 | AE99: =IFERROR(VLOOKUP($A99,Filtro!$A$4:$AT$2433,29,FALSE),0) -> 0 | AF99: =IFERROR(VLOOKUP($A99,Filtro!$A$4:$AT$2433,30,FALSE),0) -> 0 | AG99: =IFERROR(VLOOKUP($A99,Filtro!$A$4:$AT$2433,31,FALSE),0) -> 0 | AH99: =IFERROR(VLOOKUP($A99,Filtro!$A$4:$AT$2433,32,FALSE),0) -> 0 | AI99: =IFERROR(VLOOKUP($A99,Filtro!$A$4:$AT$2433,33,FALSE),0) -> 0 | AJ99: =IFERROR(VLOOKUP($A99,Filtro!$A$4:$AT$2433,34,FALSE),0) -> 0 | AK99: =IFERROR(VLOOKUP($A99,Filtro!$A$4:$AT$2433,35,FALSE),0) -> 0 | AL99: =IFERROR(VLOOKUP($A99,Filtro!$A$4:$AT$2433,36,FALSE),0) -> 0 | AM99: =IFERROR(VLOOKUP($A99,Filtro!$A$4:$AT$2433,37,FALSE),0) -> 0
A100: 01010071 | C100: Instalación vendaje compresivo (Coban) | D100: =IFERROR(VLOOKUP($A100,Filtro!$A$4:$AT$2433,2,FALSE),0) -> 13 | E100: =IFERROR(VLOOKUP($A100,Filtro!$A$4:$AT$2433,3,FALSE),0) -> 13 | F100: =IFERROR(VLOOKUP($A100,Filtro!$A$4:$AT$2433,4,FALSE),0) -> 13 | G100: =IFERROR(VLOOKUP($A100,Filtro!$A$4:$AT$2433,5,FALSE),0) -> 0 | H100: =IFERROR(VLOOKUP($A100,Filtro!$A$4:$AT$2433,6,FALSE),0) -> 0 | I100: =IFERROR(VLOOKUP($A100,Filtro!$A$4:$AT$2433,7,FALSE),0) -> 0 | J100: =IFERROR(VLOOKUP($A100,Filtro!$A$4:$AT$2433,8,FALSE),0) -> 0 | K100: =IFERROR(VLOOKUP($A100,Filtro!$A$4:$AT$2433,9,FALSE),0) -> 0 | L100: =IFERROR(VLOOKUP($A100,Filtro!$A$4:$AT$2433,10,FALSE),0) -> 0 | M100: =IFERROR(VLOOKUP($A100,Filtro!$A$4:$AT$2433,11,FALSE),0) -> 0 | N100: =IFERROR(VLOOKUP($A100,Filtro!$A$4:$AT$2433,12,FALSE),0) -> 0 | O100: =IFERROR(VLOOKUP($A100,Filtro!$A$4:$AT$2433,13,FALSE),0) -> 0 | P100: =IFERROR(VLOOKUP($A100,Filtro!$A$4:$AT$2433,14,FALSE),0) -> 0 | Q100: =IFERROR(VLOOKUP($A100,Filtro!$A$4:$AT$2433,15,FALSE),0) -> 0 | R100: =IFERROR(VLOOKUP($A100,Filtro!$A$4:$AT$2433,16,FALSE),0) -> 0 | S100: =IFERROR(VLOOKUP($A100,Filtro!$A$4:$AT$2433,17,FALSE),0) -> 0 | T100: =IFERROR(VLOOKUP($A100,Filtro!$A$4:$AT$2433,18,FALSE),0) -> 0 | U100: =IFERROR(VLOOKUP($A100,Filtro!$A$4:$AT$2433,19,FALSE),0) -> 0 | V100: =IFERROR(VLOOKUP($A100,Filtro!$A$4:$AT$2433,20,FALSE),0) -> 0 | W100: =IFERROR(VLOOKUP($A100,Filtro!$A$4:$AT$2433,21,FALSE),0) -> 0 | X100: =IFERROR(VLOOKUP($A100,Filtro!$A$4:$AT$2433,22,FALSE),0) -> 0 | Y100: =IFERROR(VLOOKUP($A100,Filtro!$A$4:$AT$2433,23,FALSE),0) -> 0 | Z100: =IFERROR(VLOOKUP($A100,Filtro!$A$4:$AT$2433,24,FALSE),0) -> 0 | AA100: =IFERROR(VLOOKUP($A100,Filtro!$A$4:$AT$2433,25,FALSE),0) -> 0 | AB100: =IFERROR(VLOOKUP($A100,Filtro!$A$4:$AT$2433,26,FALSE),0) -> 13 | AC100: =IFERROR(VLOOKUP($A100,Filtro!$A$4:$AT$2433,27,FALSE),0) -> 0 | AD100: =IFERROR(VLOOKUP($A100,Filtro!$A$4:$AT$2433,28,FALSE),0) -> 0 | AE100: =IFERROR(VLOOKUP($A100,Filtro!$A$4:$AT$2433,29,FALSE),0) -> 0 | AF100: =IFERROR(VLOOKUP($A100,Filtro!$A$4:$AT$2433,30,FALSE),0) -> 0 | AG100: =IFERROR(VLOOKUP($A100,Filtro!$A$4:$AT$2433,31,FALSE),0) -> 0 | AH100: =IFERROR(VLOOKUP($A100,Filtro!$A$4:$AT$2433,32,FALSE),0) -> 0 | AI100: =IFERROR(VLOOKUP($A100,Filtro!$A$4:$AT$2433,33,FALSE),0) -> 0 | AJ100: =IFERROR(VLOOKUP($A100,Filtro!$A$4:$AT$2433,34,FALSE),0) -> 0 | AK100: =IFERROR(VLOOKUP($A100,Filtro!$A$4:$AT$2433,35,FALSE),0) -> 0 | AL100: =IFERROR(VLOOKUP($A100,Filtro!$A$4:$AT$2433,36,FALSE),0) -> 0 | AM100: =IFERROR(VLOOKUP($A100,Filtro!$A$4:$AT$2433,37,FALSE),0) -> 0
C101: TOTAL | D101: =SUM(D77:D100) -> 226144 | E101: =SUM(E77:E100) -> 226140 | F101: =SUM(F77:F100) -> 226109 | G101: =SUM(G77:G100) -> 31 | H101: =SUM(H77:H100) -> 4 | AB101: =SUM(AB77:AB100) -> 63418 | AC101: 138915 | AD101: 19780 | AE101: 0 | AF101: 0 | AG101: 0 | AH101: 0 | AI101: 0 | AJ101: 0 | AK101: 0
C102: Trasplantes
A103: 01010072 | C103: Estudio receptor donante cadáver | D103: =IFERROR(VLOOKUP($A103,Filtro!$A$4:$AT$2433,2,FALSE),0) -> 2 | E103: =IFERROR(VLOOKUP($A103,Filtro!$A$4:$AT$2433,3,FALSE),0) -> 2 | F103: =IFERROR(VLOOKUP($A103,Filtro!$A$4:$AT$2433,4,FALSE),0) -> 2 | G103: =IFERROR(VLOOKUP($A103,Filtro!$A$4:$AT$2433,5,FALSE),0) -> 0 | H103: =IFERROR(VLOOKUP($A103,Filtro!$A$4:$AT$2433,6,FALSE),0) -> 0 | I103: =IFERROR(VLOOKUP($A103,Filtro!$A$4:$AT$2433,7,FALSE),0) -> 0 | J103: =IFERROR(VLOOKUP($A103,Filtro!$A$4:$AT$2433,8,FALSE),0) -> 0 | K103: =IFERROR(VLOOKUP($A103,Filtro!$A$4:$AT$2433,9,FALSE),0) -> 0 | L103: =IFERROR(VLOOKUP($A103,Filtro!$A$4:$AT$2433,10,FALSE),0) -> 0 | M103: =IFERROR(VLOOKUP($A103,Filtro!$A$4:$AT$2433,11,FALSE),0) -> 0 | N103: =IFERROR(VLOOKUP($A103,Filtro!$A$4:$AT$2433,12,FALSE),0) -> 0 | O103: =IFERROR(VLOOKUP($A103,Filtro!$A$4:$AT$2433,13,FALSE),0) -> 0 | P103: =IFERROR(VLOOKUP($A103,Filtro!$A$4:$AT$2433,14,FALSE),0) -> 0 | Q103: =IFERROR(VLOOKUP($A103,Filtro!$A$4:$AT$2433,15,FALSE),0) -> 0 | R103: =IFERROR(VLOOKUP($A103,Filtro!$A$4:$AT$2433,16,FALSE),0) -> 0 | S103: =IFERROR(VLOOKUP($A103,Filtro!$A$4:$AT$2433,17,FALSE),0) -> 0 | T103: =IFERROR(VLOOKUP($A103,Filtro!$A$4:$AT$2433,18,FALSE),0) -> 0 | U103: =IFERROR(VLOOKUP($A103,Filtro!$A$4:$AT$2433,19,FALSE),0) -> 0 | V103: =IFERROR(VLOOKUP($A103,Filtro!$A$4:$AT$2433,20,FALSE),0) -> 0 | W103: =IFERROR(VLOOKUP($A103,Filtro!$A$4:$AT$2433,21,FALSE),0) -> 0 | X103: =IFERROR(VLOOKUP($A103,Filtro!$A$4:$AT$2433,22,FALSE),0) -> 0 | Y103: =IFERROR(VLOOKUP($A103,Filtro!$A$4:$AT$2433,23,FALSE),0) -> 0 | Z103: =IFERROR(VLOOKUP($A103,Filtro!$A$4:$AT$2433,24,FALSE),0) -> 0 | AA103: =IFERROR(VLOOKUP($A103,Filtro!$A$4:$AT$2433,25,FALSE),0) -> 0 | AB103: =IFERROR(VLOOKUP($A103,Filtro!$A$4:$AT$2433,26,FALSE),0) -> 2 | AC103: =IFERROR(VLOOKUP($A103,Filtro!$A$4:$AT$2433,27,FALSE),0) -> 0 | AD103: =IFERROR(VLOOKUP($A103,Filtro!$A$4:$AT$2433,28,FALSE),0) -> 0 | AE103: =IFERROR(VLOOKUP($A103,Filtro!$A$4:$AT$2433,29,FALSE),0) -> 0 | AF103: =IFERROR(VLOOKUP($A103,Filtro!$A$4:$AT$2433,30,FALSE),0) -> 0 | AG103: =IFERROR(VLOOKUP($A103,Filtro!$A$4:$AT$2433,31,FALSE),0) -> 0 | AH103: =IFERROR(VLOOKUP($A103,Filtro!$A$4:$AT$2433,32,FALSE),0) -> 0 | AI103: =IFERROR(VLOOKUP($A103,Filtro!$A$4:$AT$2433,33,FALSE),0) -> 0 | AJ103: =IFERROR(VLOOKUP($A103,Filtro!$A$4:$AT$2433,34,FALSE),0) -> 0 | AK103: =IFERROR(VLOOKUP($A103,Filtro!$A$4:$AT$2433,35,FALSE),0) -> 0 | AL103: =IFERROR(VLOOKUP($A103,Filtro!$A$4:$AT$2433,36,FALSE),0) -> 0 | AM103: =IFERROR(VLOOKUP($A103,Filtro!$A$4:$AT$2433,37,FALSE),0) -> 0
A104: 01010073 | C104: Estudio receptor donante vivo | D104: =IFERROR(VLOOKUP($A104,Filtro!$A$4:$AT$2433,2,FALSE),0) -> 9 | E104: =IFERROR(VLOOKUP($A104,Filtro!$A$4:$AT$2433,3,FALSE),0) -> 9 | F104: =IFERROR(VLOOKUP($A104,Filtro!$A$4:$AT$2433,4,FALSE),0) -> 9 | G104: =IFERROR(VLOOKUP($A104,Filtro!$A$4:$AT$2433,5,FALSE),0) -> 0 | H104: =IFERROR(VLOOKUP($A104,Filtro!$A$4:$AT$2433,6,FALSE),0) -> 0 | I104: =IFERROR(VLOOKUP($A104,Filtro!$A$4:$AT$2433,7,FALSE),0) -> 0 | J104: =IFERROR(VLOOKUP($A104,Filtro!$A$4:$AT$2433,8,FALSE),0) -> 0 | K104: =IFERROR(VLOOKUP($A104,Filtro!$A$4:$AT$2433,9,FALSE),0) -> 0 | L104: =IFERROR(VLOOKUP($A104,Filtro!$A$4:$AT$2433,10,FALSE),0) -> 0 | M104: =IFERROR(VLOOKUP($A104,Filtro!$A$4:$AT$2433,11,FALSE),0) -> 0 | N104: =IFERROR(VLOOKUP($A104,Filtro!$A$4:$AT$2433,12,FALSE),0) -> 0 | O104: =IFERROR(VLOOKUP($A104,Filtro!$A$4:$AT$2433,13,FALSE),0) -> 0 | P104: =IFERROR(VLOOKUP($A104,Filtro!$A$4:$AT$2433,14,FALSE),0) -> 0 | Q104: =IFERROR(VLOOKUP($A104,Filtro!$A$4:$AT$2433,15,FALSE),0) -> 0 | R104: =IFERROR(VLOOKUP($A104,Filtro!$A$4:$AT$2433,16,FALSE),0) -> 0 | S104: =IFERROR(VLOOKUP($A104,Filtro!$A$4:$AT$2433,17,FALSE),0) -> 0 | T104: =IFERROR(VLOOKUP($A104,Filtro!$A$4:$AT$2433,18,FALSE),0) -> 0 | U104: =IFERROR(VLOOKUP($A104,Filtro!$A$4:$AT$2433,19,FALSE),0) -> 0 | V104: =IFERROR(VLOOKUP($A104,Filtro!$A$4:$AT$2433,20,FALSE),0) -> 0 | W104: =IFERROR(VLOOKUP($A104,Filtro!$A$4:$AT$2433,21,FALSE),0) -> 0 | X104: =IFERROR(VLOOKUP($A104,Filtro!$A$4:$AT$2433,22,FALSE),0) -> 0 | Y104: =IFERROR(VLOOKUP($A104,Filtro!$A$4:$AT$2433,23,FALSE),0) -> 0 | Z104: =IFERROR(VLOOKUP($A104,Filtro!$A$4:$AT$2433,24,FALSE),0) -> 0 | AA104: =IFERROR(VLOOKUP($A104,Filtro!$A$4:$AT$2433,25,FALSE),0) -> 0 | AB104: =IFERROR(VLOOKUP($A104,Filtro!$A$4:$AT$2433,26,FALSE),0) -> 9 | AC104: =IFERROR(VLOOKUP($A104,Filtro!$A$4:$AT$2433,27,FALSE),0) -> 0 | AD104: =IFERROR(VLOOKUP($A104,Filtro!$A$4:$AT$2433,28,FALSE),0) -> 0 | AE104: =IFERROR(VLOOKUP($A104,Filtro!$A$4:$AT$2433,29,FALSE),0) -> 0 | AF104: =IFERROR(VLOOKUP($A104,Filtro!$A$4:$AT$2433,30,FALSE),0) -> 0 | AG104: =IFERROR(VLOOKUP($A104,Filtro!$A$4:$AT$2433,31,FALSE),0) -> 0 | AH104: =IFERROR(VLOOKUP($A104,Filtro!$A$4:$AT$2433,32,FALSE),0) -> 0 | AI104: =IFERROR(VLOOKUP($A104,Filtro!$A$4:$AT$2433,33,FALSE),0) -> 0 | AJ104: =IFERROR(VLOOKUP($A104,Filtro!$A$4:$AT$2433,34,FALSE),0) -> 0 | AK104: =IFERROR(VLOOKUP($A104,Filtro!$A$4:$AT$2433,35,FALSE),0) -> 0 | AL104: =IFERROR(VLOOKUP($A104,Filtro!$A$4:$AT$2433,36,FALSE),0) -> 0 | AM104: =IFERROR(VLOOKUP($A104,Filtro!$A$4:$AT$2433,37,FALSE),0) -> 0
A105: 01010074 | C105: Estudio receptores corazón-pulmón | D105: =IFERROR(VLOOKUP($A105,Filtro!$A$4:$AT$2433,2,FALSE),0) -> 0 | E105: =IFERROR(VLOOKUP($A105,Filtro!$A$4:$AT$2433,3,FALSE),0) -> 0 | F105: =IFERROR(VLOOKUP($A105,Filtro!$A$4:$AT$2433,4,FALSE),0) -> 0 | G105: =IFERROR(VLOOKUP($A105,Filtro!$A$4:$AT$2433,5,FALSE),0) -> 0 | H105: =IFERROR(VLOOKUP($A105,Filtro!$A$4:$AT$2433,6,FALSE),0) -> 0 | I105: =IFERROR(VLOOKUP($A105,Filtro!$A$4:$AT$2433,7,FALSE),0) -> 0 | J105: =IFERROR(VLOOKUP($A105,Filtro!$A$4:$AT$2433,8,FALSE),0) -> 0 | K105: =IFERROR(VLOOKUP($A105,Filtro!$A$4:$AT$2433,9,FALSE),0) -> 0 | L105: =IFERROR(VLOOKUP($A105,Filtro!$A$4:$AT$2433,10,FALSE),0) -> 0 | M105: =IFERROR(VLOOKUP($A105,Filtro!$A$4:$AT$2433,11,FALSE),0) -> 0 | N105: =IFERROR(VLOOKUP($A105,Filtro!$A$4:$AT$2433,12,FALSE),0) -> 0 | O105: =IFERROR(VLOOKUP($A105,Filtro!$A$4:$AT$2433,13,FALSE),0) -> 0 | P105: =IFERROR(VLOOKUP($A105,Filtro!$A$4:$AT$2433,14,FALSE),0) -> 0 | Q105: =IFERROR(VLOOKUP($A105,Filtro!$A$4:$AT$2433,15,FALSE),0) -> 0 | R105: =IFERROR(VLOOKUP($A105,Filtro!$A$4:$AT$2433,16,FALSE),0) -> 0 | S105: =IFERROR(VLOOKUP($A105,Filtro!$A$4:$AT$2433,17,FALSE),0) -> 0 | T105: =IFERROR(VLOOKUP($A105,Filtro!$A$4:$AT$2433,18,FALSE),0) -> 0 | U105: =IFERROR(VLOOKUP($A105,Filtro!$A$4:$AT$2433,19,FALSE),0) -> 0 | V105: =IFERROR(VLOOKUP($A105,Filtro!$A$4:$AT$2433,20,FALSE),0) -> 0 | W105: =IFERROR(VLOOKUP($A105,Filtro!$A$4:$AT$2433,21,FALSE),0) -> 0 | X105: =IFERROR(VLOOKUP($A105,Filtro!$A$4:$AT$2433,22,FALSE),0) -> 0 | Y105: =IFERROR(VLOOKUP($A105,Filtro!$A$4:$AT$2433,23,FALSE),0) -> 0 | Z105: =IFERROR(VLOOKUP($A105,Filtro!$A$4:$AT$2433,24,FALSE),0) -> 0 | AA105: =IFERROR(VLOOKUP($A105,Filtro!$A$4:$AT$2433,25,FALSE),0) -> 0 | AB105: =IFERROR(VLOOKUP($A105,Filtro!$A$4:$AT$2433,26,FALSE),0) -> 0 | AC105: =IFERROR(VLOOKUP($A105,Filtro!$A$4:$AT$2433,27,FALSE),0) -> 0 | AD105: =IFERROR(VLOOKUP($A105,Filtro!$A$4:$AT$2433,28,FALSE),0) -> 0 | AE105: =IFERROR(VLOOKUP($A105,Filtro!$A$4:$AT$2433,29,FALSE),0) -> 0 | AF105: =IFERROR(VLOOKUP($A105,Filtro!$A$4:$AT$2433,30,FALSE),0) -> 0 | AG105: =IFERROR(VLOOKUP($A105,Filtro!$A$4:$AT$2433,31,FALSE),0) -> 0 | AH105: =IFERROR(VLOOKUP($A105,Filtro!$A$4:$AT$2433,32,FALSE),0) -> 0 | AI105: =IFERROR(VLOOKUP($A105,Filtro!$A$4:$AT$2433,33,FALSE),0) -> 0 | AJ105: =IFERROR(VLOOKUP($A105,Filtro!$A$4:$AT$2433,34,FALSE),0) -> 0 | AK105: =IFERROR(VLOOKUP($A105,Filtro!$A$4:$AT$2433,35,FALSE),0) -> 0 | AL105: =IFERROR(VLOOKUP($A105,Filtro!$A$4:$AT$2433,36,FALSE),0) -> 0 | AM105: =IFERROR(VLOOKUP($A105,Filtro!$A$4:$AT$2433,37,FALSE),0) -> 0
A106: 01010075 | C106: Estudio pacientes trasplante medula ósea | D106: =IFERROR(VLOOKUP($A106,Filtro!$A$4:$AT$2433,2,FALSE),0) -> 0 | E106: =IFERROR(VLOOKUP($A106,Filtro!$A$4:$AT$2433,3,FALSE),0) -> 0 | F106: =IFERROR(VLOOKUP($A106,Filtro!$A$4:$AT$2433,4,FALSE),0) -> 0 | G106: =IFERROR(VLOOKUP($A106,Filtro!$A$4:$AT$2433,5,FALSE),0) -> 0 | H106: =IFERROR(VLOOKUP($A106,Filtro!$A$4:$AT$2433,6,FALSE),0) -> 0 | I106: =IFERROR(VLOOKUP($A106,Filtro!$A$4:$AT$2433,7,FALSE),0) -> 0 | J106: =IFERROR(VLOOKUP($A106,Filtro!$A$4:$AT$2433,8,FALSE),0) -> 0 | K106: =IFERROR(VLOOKUP($A106,Filtro!$A$4:$AT$2433,9,FALSE),0) -> 0 | L106: =IFERROR(VLOOKUP($A106,Filtro!$A$4:$AT$2433,10,FALSE),0) -> 0 | M106: =IFERROR(VLOOKUP($A106,Filtro!$A$4:$AT$2433,11,FALSE),0) -> 0 | N106: =IFERROR(VLOOKUP($A106,Filtro!$A$4:$AT$2433,12,FALSE),0) -> 0 | O106: =IFERROR(VLOOKUP($A106,Filtro!$A$4:$AT$2433,13,FALSE),0) -> 0 | P106: =IFERROR(VLOOKUP($A106,Filtro!$A$4:$AT$2433,14,FALSE),0) -> 0 | Q106: =IFERROR(VLOOKUP($A106,Filtro!$A$4:$AT$2433,15,FALSE),0) -> 0 | R106: =IFERROR(VLOOKUP($A106,Filtro!$A$4:$AT$2433,16,FALSE),0) -> 0 | S106: =IFERROR(VLOOKUP($A106,Filtro!$A$4:$AT$2433,17,FALSE),0) -> 0 | T106: =IFERROR(VLOOKUP($A106,Filtro!$A$4:$AT$2433,18,FALSE),0) -> 0 | U106: =IFERROR(VLOOKUP($A106,Filtro!$A$4:$AT$2433,19,FALSE),0) -> 0 | V106: =IFERROR(VLOOKUP($A106,Filtro!$A$4:$AT$2433,20,FALSE),0) -> 0 | W106: =IFERROR(VLOOKUP($A106,Filtro!$A$4:$AT$2433,21,FALSE),0) -> 0 | X106: =IFERROR(VLOOKUP($A106,Filtro!$A$4:$AT$2433,22,FALSE),0) -> 0 | Y106: =IFERROR(VLOOKUP($A106,Filtro!$A$4:$AT$2433,23,FALSE),0) -> 0 | Z106: =IFERROR(VLOOKUP($A106,Filtro!$A$4:$AT$2433,24,FALSE),0) -> 0 | AA106: =IFERROR(VLOOKUP($A106,Filtro!$A$4:$AT$2433,25,FALSE),0) -> 0 | AB106: =IFERROR(VLOOKUP($A106,Filtro!$A$4:$AT$2433,26,FALSE),0) -> 0 | AC106: =IFERROR(VLOOKUP($A106,Filtro!$A$4:$AT$2433,27,FALSE),0) -> 0 | AD106: =IFERROR(VLOOKUP($A106,Filtro!$A$4:$AT$2433,28,FALSE),0) -> 0 | AE106: =IFERROR(VLOOKUP($A106,Filtro!$A$4:$AT$2433,29,FALSE),0) -> 0 | AF106: =IFERROR(VLOOKUP($A106,Filtro!$A$4:$AT$2433,30,FALSE),0) -> 0 | AG106: =IFERROR(VLOOKUP($A106,Filtro!$A$4:$AT$2433,31,FALSE),0) -> 0 | AH106: =IFERROR(VLOOKUP($A106,Filtro!$A$4:$AT$2433,32,FALSE),0) -> 0 | AI106: =IFERROR(VLOOKUP($A106,Filtro!$A$4:$AT$2433,33,FALSE),0) -> 0 | AJ106: =IFERROR(VLOOKUP($A106,Filtro!$A$4:$AT$2433,34,FALSE),0) -> 0 | AK106: =IFERROR(VLOOKUP($A106,Filtro!$A$4:$AT$2433,35,FALSE),0) -> 0 | AL106: =IFERROR(VLOOKUP($A106,Filtro!$A$4:$AT$2433,36,FALSE),0) -> 0 | AM106: =IFERROR(VLOOKUP($A106,Filtro!$A$4:$AT$2433,37,FALSE),0) -> 0
A107: 01010076 | C107: Trasplante de medula autólogo | D107: =IFERROR(VLOOKUP($A107,Filtro!$A$4:$AT$2433,2,FALSE),0) -> 0 | E107: =IFERROR(VLOOKUP($A107,Filtro!$A$4:$AT$2433,3,FALSE),0) -> 0 | F107: =IFERROR(VLOOKUP($A107,Filtro!$A$4:$AT$2433,4,FALSE),0) -> 0 | G107: =IFERROR(VLOOKUP($A107,Filtro!$A$4:$AT$2433,5,FALSE),0) -> 0 | H107: =IFERROR(VLOOKUP($A107,Filtro!$A$4:$AT$2433,6,FALSE),0) -> 0 | I107: =IFERROR(VLOOKUP($A107,Filtro!$A$4:$AT$2433,7,FALSE),0) -> 0 | J107: =IFERROR(VLOOKUP($A107,Filtro!$A$4:$AT$2433,8,FALSE),0) -> 0 | K107: =IFERROR(VLOOKUP($A107,Filtro!$A$4:$AT$2433,9,FALSE),0) -> 0 | L107: =IFERROR(VLOOKUP($A107,Filtro!$A$4:$AT$2433,10,FALSE),0) -> 0 | M107: =IFERROR(VLOOKUP($A107,Filtro!$A$4:$AT$2433,11,FALSE),0) -> 0 | N107: =IFERROR(VLOOKUP($A107,Filtro!$A$4:$AT$2433,12,FALSE),0) -> 0 | O107: =IFERROR(VLOOKUP($A107,Filtro!$A$4:$AT$2433,13,FALSE),0) -> 0 | P107: =IFERROR(VLOOKUP($A107,Filtro!$A$4:$AT$2433,14,FALSE),0) -> 0 | Q107: =IFERROR(VLOOKUP($A107,Filtro!$A$4:$AT$2433,15,FALSE),0) -> 0 | R107: =IFERROR(VLOOKUP($A107,Filtro!$A$4:$AT$2433,16,FALSE),0) -> 0 | S107: =IFERROR(VLOOKUP($A107,Filtro!$A$4:$AT$2433,17,FALSE),0) -> 0 | T107: =IFERROR(VLOOKUP($A107,Filtro!$A$4:$AT$2433,18,FALSE),0) -> 0 | U107: =IFERROR(VLOOKUP($A107,Filtro!$A$4:$AT$2433,19,FALSE),0) -> 0 | V107: =IFERROR(VLOOKUP($A107,Filtro!$A$4:$AT$2433,20,FALSE),0) -> 0 | W107: =IFERROR(VLOOKUP($A107,Filtro!$A$4:$AT$2433,21,FALSE),0) -> 0 | X107: =IFERROR(VLOOKUP($A107,Filtro!$A$4:$AT$2433,22,FALSE),0) -> 0 | Y107: =IFERROR(VLOOKUP($A107,Filtro!$A$4:$AT$2433,23,FALSE),0) -> 0 | Z107: =IFERROR(VLOOKUP($A107,Filtro!$A$4:$AT$2433,24,FALSE),0) -> 0 | AA107: =IFERROR(VLOOKUP($A107,Filtro!$A$4:$AT$2433,25,FALSE),0) -> 0 | AB107: =IFERROR(VLOOKUP($A107,Filtro!$A$4:$AT$2433,26,FALSE),0) -> 0 | AC107: =IFERROR(VLOOKUP($A107,Filtro!$A$4:$AT$2433,27,FALSE),0) -> 0 | AD107: =IFERROR(VLOOKUP($A107,Filtro!$A$4:$AT$2433,28,FALSE),0) -> 0 | AE107: =IFERROR(VLOOKUP($A107,Filtro!$A$4:$AT$2433,29,FALSE),0) -> 0 | AF107: =IFERROR(VLOOKUP($A107,Filtro!$A$4:$AT$2433,30,FALSE),0) -> 0 | AG107: =IFERROR(VLOOKUP($A107,Filtro!$A$4:$AT$2433,31,FALSE),0) -> 0 | AH107: =IFERROR(VLOOKUP($A107,Filtro!$A$4:$AT$2433,32,FALSE),0) -> 0 | AI107: =IFERROR(VLOOKUP($A107,Filtro!$A$4:$AT$2433,33,FALSE),0) -> 0 | AJ107: =IFERROR(VLOOKUP($A107,Filtro!$A$4:$AT$2433,34,FALSE),0) -> 0 | AK107: =IFERROR(VLOOKUP($A107,Filtro!$A$4:$AT$2433,35,FALSE),0) -> 0 | AL107: =IFERROR(VLOOKUP($A107,Filtro!$A$4:$AT$2433,36,FALSE),0) -> 0 | AM107: =IFERROR(VLOOKUP($A107,Filtro!$A$4:$AT$2433,37,FALSE),0) -> 0
A108: 01010077 | C108: Trasplante de medula alógeno | D108: =IFERROR(VLOOKUP($A108,Filtro!$A$4:$AT$2433,2,FALSE),0) -> 0 | E108: =IFERROR(VLOOKUP($A108,Filtro!$A$4:$AT$2433,3,FALSE),0) -> 0 | F108: =IFERROR(VLOOKUP($A108,Filtro!$A$4:$AT$2433,4,FALSE),0) -> 0 | G108: =IFERROR(VLOOKUP($A108,Filtro!$A$4:$AT$2433,5,FALSE),0) -> 0 | H108: =IFERROR(VLOOKUP($A108,Filtro!$A$4:$AT$2433,6,FALSE),0) -> 0 | I108: =IFERROR(VLOOKUP($A108,Filtro!$A$4:$AT$2433,7,FALSE),0) -> 0 | J108: =IFERROR(VLOOKUP($A108,Filtro!$A$4:$AT$2433,8,FALSE),0) -> 0 | K108: =IFERROR(VLOOKUP($A108,Filtro!$A$4:$AT$2433,9,FALSE),0) -> 0 | L108: =IFERROR(VLOOKUP($A108,Filtro!$A$4:$AT$2433,10,FALSE),0) -> 0 | M108: =IFERROR(VLOOKUP($A108,Filtro!$A$4:$AT$2433,11,FALSE),0) -> 0 | N108: =IFERROR(VLOOKUP($A108,Filtro!$A$4:$AT$2433,12,FALSE),0) -> 0 | O108: =IFERROR(VLOOKUP($A108,Filtro!$A$4:$AT$2433,13,FALSE),0) -> 0 | P108: =IFERROR(VLOOKUP($A108,Filtro!$A$4:$AT$2433,14,FALSE),0) -> 0 | Q108: =IFERROR(VLOOKUP($A108,Filtro!$A$4:$AT$2433,15,FALSE),0) -> 0 | R108: =IFERROR(VLOOKUP($A108,Filtro!$A$4:$AT$2433,16,FALSE),0) -> 0 | S108: =IFERROR(VLOOKUP($A108,Filtro!$A$4:$AT$2433,17,FALSE),0) -> 0 | T108: =IFERROR(VLOOKUP($A108,Filtro!$A$4:$AT$2433,18,FALSE),0) -> 0 | U108: =IFERROR(VLOOKUP($A108,Filtro!$A$4:$AT$2433,19,FALSE),0) -> 0 | V108: =IFERROR(VLOOKUP($A108,Filtro!$A$4:$AT$2433,20,FALSE),0) -> 0 | W108: =IFERROR(VLOOKUP($A108,Filtro!$A$4:$AT$2433,21,FALSE),0) -> 0 | X108: =IFERROR(VLOOKUP($A108,Filtro!$A$4:$AT$2433,22,FALSE),0) -> 0 | Y108: =IFERROR(VLOOKUP($A108,Filtro!$A$4:$AT$2433,23,FALSE),0) -> 0 | Z108: =IFERROR(VLOOKUP($A108,Filtro!$A$4:$AT$2433,24,FALSE),0) -> 0 | AA108: =IFERROR(VLOOKUP($A108,Filtro!$A$4:$AT$2433,25,FALSE),0) -> 0 | AB108: =IFERROR(VLOOKUP($A108,Filtro!$A$4:$AT$2433,26,FALSE),0) -> 0 | AC108: =IFERROR(VLOOKUP($A108,Filtro!$A$4:$AT$2433,27,FALSE),0) -> 0 | AD108: =IFERROR(VLOOKUP($A108,Filtro!$A$4:$AT$2433,28,FALSE),0) -> 0 | AE108: =IFERROR(VLOOKUP($A108,Filtro!$A$4:$AT$2433,29,FALSE),0) -> 0 | AF108: =IFERROR(VLOOKUP($A108,Filtro!$A$4:$AT$2433,30,FALSE),0) -> 0 | AG108: =IFERROR(VLOOKUP($A108,Filtro!$A$4:$AT$2433,31,FALSE),0) -> 0 | AH108: =IFERROR(VLOOKUP($A108,Filtro!$A$4:$AT$2433,32,FALSE),0) -> 0 | AI108: =IFERROR(VLOOKUP($A108,Filtro!$A$4:$AT$2433,33,FALSE),0) -> 0 | AJ108: =IFERROR(VLOOKUP($A108,Filtro!$A$4:$AT$2433,34,FALSE),0) -> 0 | AK108: =IFERROR(VLOOKUP($A108,Filtro!$A$4:$AT$2433,35,FALSE),0) -> 0 | AL108: =IFERROR(VLOOKUP($A108,Filtro!$A$4:$AT$2433,36,FALSE),0) -> 0 | AM108: =IFERROR(VLOOKUP($A108,Filtro!$A$4:$AT$2433,37,FALSE),0) -> 0
A109: 01010078 | C109: Trasplante medula de cordón | D109: =IFERROR(VLOOKUP($A109,Filtro!$A$4:$AT$2433,2,FALSE),0) -> 0 | E109: =IFERROR(VLOOKUP($A109,Filtro!$A$4:$AT$2433,3,FALSE),0) -> 0 | F109: =IFERROR(VLOOKUP($A109,Filtro!$A$4:$AT$2433,4,FALSE),0) -> 0 | G109: =IFERROR(VLOOKUP($A109,Filtro!$A$4:$AT$2433,5,FALSE),0) -> 0 | H109: =IFERROR(VLOOKUP($A109,Filtro!$A$4:$AT$2433,6,FALSE),0) -> 0 | I109: =IFERROR(VLOOKUP($A109,Filtro!$A$4:$AT$2433,7,FALSE),0) -> 0 | J109: =IFERROR(VLOOKUP($A109,Filtro!$A$4:$AT$2433,8,FALSE),0) -> 0 | K109: =IFERROR(VLOOKUP($A109,Filtro!$A$4:$AT$2433,9,FALSE),0) -> 0 | L109: =IFERROR(VLOOKUP($A109,Filtro!$A$4:$AT$2433,10,FALSE),0) -> 0 | M109: =IFERROR(VLOOKUP($A109,Filtro!$A$4:$AT$2433,11,FALSE),0) -> 0 | N109: =IFERROR(VLOOKUP($A109,Filtro!$A$4:$AT$2433,12,FALSE),0) -> 0 | O109: =IFERROR(VLOOKUP($A109,Filtro!$A$4:$AT$2433,13,FALSE),0) -> 0 | P109: =IFERROR(VLOOKUP($A109,Filtro!$A$4:$AT$2433,14,FALSE),0) -> 0 | Q109: =IFERROR(VLOOKUP($A109,Filtro!$A$4:$AT$2433,15,FALSE),0) -> 0 | R109: =IFERROR(VLOOKUP($A109,Filtro!$A$4:$AT$2433,16,FALSE),0) -> 0 | S109: =IFERROR(VLOOKUP($A109,Filtro!$A$4:$AT$2433,17,FALSE),0) -> 0 | T109: =IFERROR(VLOOKUP($A109,Filtro!$A$4:$AT$2433,18,FALSE),0) -> 0 | U109: =IFERROR(VLOOKUP($A109,Filtro!$A$4:$AT$2433,19,FALSE),0) -> 0 | V109: =IFERROR(VLOOKUP($A109,Filtro!$A$4:$AT$2433,20,FALSE),0) -> 0 | W109: =IFERROR(VLOOKUP($A109,Filtro!$A$4:$AT$2433,21,FALSE),0) -> 0 | X109: =IFERROR(VLOOKUP($A109,Filtro!$A$4:$AT$2433,22,FALSE),0) -> 0 | Y109: =IFERROR(VLOOKUP($A109,Filtro!$A$4:$AT$2433,23,FALSE),0) -> 0 | Z109: =IFERROR(VLOOKUP($A109,Filtro!$A$4:$AT$2433,24,FALSE),0) -> 0 | AA109: =IFERROR(VLOOKUP($A109,Filtro!$A$4:$AT$2433,25,FALSE),0) -> 0 | AB109: =IFERROR(VLOOKUP($A109,Filtro!$A$4:$AT$2433,26,FALSE),0) -> 0 | AC109: =IFERROR(VLOOKUP($A109,Filtro!$A$4:$AT$2433,27,FALSE),0) -> 0 | AD109: =IFERROR(VLOOKUP($A109,Filtro!$A$4:$AT$2433,28,FALSE),0) -> 0 | AE109: =IFERROR(VLOOKUP($A109,Filtro!$A$4:$AT$2433,29,FALSE),0) -> 0 | AF109: =IFERROR(VLOOKUP($A109,Filtro!$A$4:$AT$2433,30,FALSE),0) -> 0 | AG109: =IFERROR(VLOOKUP($A109,Filtro!$A$4:$AT$2433,31,FALSE),0) -> 0 | AH109: =IFERROR(VLOOKUP($A109,Filtro!$A$4:$AT$2433,32,FALSE),0) -> 0 | AI109: =IFERROR(VLOOKUP($A109,Filtro!$A$4:$AT$2433,33,FALSE),0) -> 0 | AJ109: =IFERROR(VLOOKUP($A109,Filtro!$A$4:$AT$2433,34,FALSE),0) -> 0 | AK109: =IFERROR(VLOOKUP($A109,Filtro!$A$4:$AT$2433,35,FALSE),0) -> 0 | AL109: =IFERROR(VLOOKUP($A109,Filtro!$A$4:$AT$2433,36,FALSE),0) -> 0 | AM109: =IFERROR(VLOOKUP($A109,Filtro!$A$4:$AT$2433,37,FALSE),0) -> 0
A110: 01010079 | C110: Trasplante medula aploidentico | D110: =IFERROR(VLOOKUP($A110,Filtro!$A$4:$AT$2433,2,FALSE),0) -> 0 | E110: =IFERROR(VLOOKUP($A110,Filtro!$A$4:$AT$2433,3,FALSE),0) -> 0 | F110: =IFERROR(VLOOKUP($A110,Filtro!$A$4:$AT$2433,4,FALSE),0) -> 0 | G110: =IFERROR(VLOOKUP($A110,Filtro!$A$4:$AT$2433,5,FALSE),0) -> 0 | H110: =IFERROR(VLOOKUP($A110,Filtro!$A$4:$AT$2433,6,FALSE),0) -> 0 | I110: =IFERROR(VLOOKUP($A110,Filtro!$A$4:$AT$2433,7,FALSE),0) -> 0 | J110: =IFERROR(VLOOKUP($A110,Filtro!$A$4:$AT$2433,8,FALSE),0) -> 0 | K110: =IFERROR(VLOOKUP($A110,Filtro!$A$4:$AT$2433,9,FALSE),0) -> 0 | L110: =IFERROR(VLOOKUP($A110,Filtro!$A$4:$AT$2433,10,FALSE),0) -> 0 | M110: =IFERROR(VLOOKUP($A110,Filtro!$A$4:$AT$2433,11,FALSE),0) -> 0 | N110: =IFERROR(VLOOKUP($A110,Filtro!$A$4:$AT$2433,12,FALSE),0) -> 0 | O110: =IFERROR(VLOOKUP($A110,Filtro!$A$4:$AT$2433,13,FALSE),0) -> 0 | P110: =IFERROR(VLOOKUP($A110,Filtro!$A$4:$AT$2433,14,FALSE),0) -> 0 | Q110: =IFERROR(VLOOKUP($A110,Filtro!$A$4:$AT$2433,15,FALSE),0) -> 0 | R110: =IFERROR(VLOOKUP($A110,Filtro!$A$4:$AT$2433,16,FALSE),0) -> 0 | S110: =IFERROR(VLOOKUP($A110,Filtro!$A$4:$AT$2433,17,FALSE),0) -> 0 | T110: =IFERROR(VLOOKUP($A110,Filtro!$A$4:$AT$2433,18,FALSE),0) -> 0 | U110: =IFERROR(VLOOKUP($A110,Filtro!$A$4:$AT$2433,19,FALSE),0) -> 0 | V110: =IFERROR(VLOOKUP($A110,Filtro!$A$4:$AT$2433,20,FALSE),0) -> 0 | W110: =IFERROR(VLOOKUP($A110,Filtro!$A$4:$AT$2433,21,FALSE),0) -> 0 | X110: =IFERROR(VLOOKUP($A110,Filtro!$A$4:$AT$2433,22,FALSE),0) -> 0 | Y110: =IFERROR(VLOOKUP($A110,Filtro!$A$4:$AT$2433,23,FALSE),0) -> 0 | Z110: =IFERROR(VLOOKUP($A110,Filtro!$A$4:$AT$2433,24,FALSE),0) -> 0 | AA110: =IFERROR(VLOOKUP($A110,Filtro!$A$4:$AT$2433,25,FALSE),0) -> 0 | AB110: =IFERROR(VLOOKUP($A110,Filtro!$A$4:$AT$2433,26,FALSE),0) -> 0 | AC110: =IFERROR(VLOOKUP($A110,Filtro!$A$4:$AT$2433,27,FALSE),0) -> 0 | AD110: =IFERROR(VLOOKUP($A110,Filtro!$A$4:$AT$2433,28,FALSE),0) -> 0 | AE110: =IFERROR(VLOOKUP($A110,Filtro!$A$4:$AT$2433,29,FALSE),0) -> 0 | AF110: =IFERROR(VLOOKUP($A110,Filtro!$A$4:$AT$2433,30,FALSE),0) -> 0 | AG110: =IFERROR(VLOOKUP($A110,Filtro!$A$4:$AT$2433,31,FALSE),0) -> 0 | AH110: =IFERROR(VLOOKUP($A110,Filtro!$A$4:$AT$2433,32,FALSE),0) -> 0 | AI110: =IFERROR(VLOOKUP($A110,Filtro!$A$4:$AT$2433,33,FALSE),0) -> 0 | AJ110: =IFERROR(VLOOKUP($A110,Filtro!$A$4:$AT$2433,34,FALSE),0) -> 0 | AK110: =IFERROR(VLOOKUP($A110,Filtro!$A$4:$AT$2433,35,FALSE),0) -> 0 | AL110: =IFERROR(VLOOKUP($A110,Filtro!$A$4:$AT$2433,36,FALSE),0) -> 0 | AM110: =IFERROR(VLOOKUP($A110,Filtro!$A$4:$AT$2433,37,FALSE),0) -> 0
A111: 01010080 | C111: Trasplante de córnea (incluye procuramiento y seguimiento por un año) | D111: =IFERROR(VLOOKUP($A111,Filtro!$A$4:$AT$2433,2,FALSE),0) -> 0 | E111: =IFERROR(VLOOKUP($A111,Filtro!$A$4:$AT$2433,3,FALSE),0) -> 0 | F111: =IFERROR(VLOOKUP($A111,Filtro!$A$4:$AT$2433,4,FALSE),0) -> 0 | G111: =IFERROR(VLOOKUP($A111,Filtro!$A$4:$AT$2433,5,FALSE),0) -> 0 | H111: =IFERROR(VLOOKUP($A111,Filtro!$A$4:$AT$2433,6,FALSE),0) -> 0 | I111: =IFERROR(VLOOKUP($A111,Filtro!$A$4:$AT$2433,7,FALSE),0) -> 0 | J111: =IFERROR(VLOOKUP($A111,Filtro!$A$4:$AT$2433,8,FALSE),0) -> 0 | K111: =IFERROR(VLOOKUP($A111,Filtro!$A$4:$AT$2433,9,FALSE),0) -> 0 | L111: =IFERROR(VLOOKUP($A111,Filtro!$A$4:$AT$2433,10,FALSE),0) -> 0 | M111: =IFERROR(VLOOKUP($A111,Filtro!$A$4:$AT$2433,11,FALSE),0) -> 0 | N111: =IFERROR(VLOOKUP($A111,Filtro!$A$4:$AT$2433,12,FALSE),0) -> 0 | O111: =IFERROR(VLOOKUP($A111,Filtro!$A$4:$AT$2433,13,FALSE),0) -> 0 | P111: =IFERROR(VLOOKUP($A111,Filtro!$A$4:$AT$2433,14,FALSE),0) -> 0 | Q111: =IFERROR(VLOOKUP($A111,Filtro!$A$4:$AT$2433,15,FALSE),0) -> 0 | R111: =IFERROR(VLOOKUP($A111,Filtro!$A$4:$AT$2433,16,FALSE),0) -> 0 | S111: =IFERROR(VLOOKUP($A111,Filtro!$A$4:$AT$2433,17,FALSE),0) -> 0 | T111: =IFERROR(VLOOKUP($A111,Filtro!$A$4:$AT$2433,18,FALSE),0) -> 0 | U111: =IFERROR(VLOOKUP($A111,Filtro!$A$4:$AT$2433,19,FALSE),0) -> 0 | V111: =IFERROR(VLOOKUP($A111,Filtro!$A$4:$AT$2433,20,FALSE),0) -> 0 | W111: =IFERROR(VLOOKUP($A111,Filtro!$A$4:$AT$2433,21,FALSE),0) -> 0 | X111: =IFERROR(VLOOKUP($A111,Filtro!$A$4:$AT$2433,22,FALSE),0) -> 0 | Y111: =IFERROR(VLOOKUP($A111,Filtro!$A$4:$AT$2433,23,FALSE),0) -> 0 | Z111: =IFERROR(VLOOKUP($A111,Filtro!$A$4:$AT$2433,24,FALSE),0) -> 0 | AA111: =IFERROR(VLOOKUP($A111,Filtro!$A$4:$AT$2433,25,FALSE),0) -> 0 | AB111: =IFERROR(VLOOKUP($A111,Filtro!$A$4:$AT$2433,26,FALSE),0) -> 0 | AC111: =IFERROR(VLOOKUP($A111,Filtro!$A$4:$AT$2433,27,FALSE),0) -> 0 | AD111: =IFERROR(VLOOKUP($A111,Filtro!$A$4:$AT$2433,28,FALSE),0) -> 0 | AE111: =IFERROR(VLOOKUP($A111,Filtro!$A$4:$AT$2433,29,FALSE),0) -> 0 | AF111: =IFERROR(VLOOKUP($A111,Filtro!$A$4:$AT$2433,30,FALSE),0) -> 0 | AG111: =IFERROR(VLOOKUP($A111,Filtro!$A$4:$AT$2433,31,FALSE),0) -> 0 | AH111: =IFERROR(VLOOKUP($A111,Filtro!$A$4:$AT$2433,32,FALSE),0) -> 0 | AI111: =IFERROR(VLOOKUP($A111,Filtro!$A$4:$AT$2433,33,FALSE),0) -> 0 | AJ111: =IFERROR(VLOOKUP($A111,Filtro!$A$4:$AT$2433,34,FALSE),0) -> 0 | AK111: =IFERROR(VLOOKUP($A111,Filtro!$A$4:$AT$2433,35,FALSE),0) -> 0 | AL111: =IFERROR(VLOOKUP($A111,Filtro!$A$4:$AT$2433,36,FALSE),0) -> 0 | AM111: =IFERROR(VLOOKUP($A111,Filtro!$A$4:$AT$2433,37,FALSE),0) -> 0
A112: 01010081 | C112: Soporte pretrasplante hepático extracorporeo por sesión | D112: =IFERROR(VLOOKUP($A112,Filtro!$A$4:$AT$2433,2,FALSE),0) -> 0 | E112: =IFERROR(VLOOKUP($A112,Filtro!$A$4:$AT$2433,3,FALSE),0) -> 0 | F112: =IFERROR(VLOOKUP($A112,Filtro!$A$4:$AT$2433,4,FALSE),0) -> 0 | G112: =IFERROR(VLOOKUP($A112,Filtro!$A$4:$AT$2433,5,FALSE),0) -> 0 | H112: =IFERROR(VLOOKUP($A112,Filtro!$A$4:$AT$2433,6,FALSE),0) -> 0 | I112: =IFERROR(VLOOKUP($A112,Filtro!$A$4:$AT$2433,7,FALSE),0) -> 0 | J112: =IFERROR(VLOOKUP($A112,Filtro!$A$4:$AT$2433,8,FALSE),0) -> 0 | K112: =IFERROR(VLOOKUP($A112,Filtro!$A$4:$AT$2433,9,FALSE),0) -> 0 | L112: =IFERROR(VLOOKUP($A112,Filtro!$A$4:$AT$2433,10,FALSE),0) -> 0 | M112: =IFERROR(VLOOKUP($A112,Filtro!$A$4:$AT$2433,11,FALSE),0) -> 0 | N112: =IFERROR(VLOOKUP($A112,Filtro!$A$4:$AT$2433,12,FALSE),0) -> 0 | O112: =IFERROR(VLOOKUP($A112,Filtro!$A$4:$AT$2433,13,FALSE),0) -> 0 | P112: =IFERROR(VLOOKUP($A112,Filtro!$A$4:$AT$2433,14,FALSE),0) -> 0 | Q112: =IFERROR(VLOOKUP($A112,Filtro!$A$4:$AT$2433,15,FALSE),0) -> 0 | R112: =IFERROR(VLOOKUP($A112,Filtro!$A$4:$AT$2433,16,FALSE),0) -> 0 | S112: =IFERROR(VLOOKUP($A112,Filtro!$A$4:$AT$2433,17,FALSE),0) -> 0 | T112: =IFERROR(VLOOKUP($A112,Filtro!$A$4:$AT$2433,18,FALSE),0) -> 0 | U112: =IFERROR(VLOOKUP($A112,Filtro!$A$4:$AT$2433,19,FALSE),0) -> 0 | V112: =IFERROR(VLOOKUP($A112,Filtro!$A$4:$AT$2433,20,FALSE),0) -> 0 | W112: =IFERROR(VLOOKUP($A112,Filtro!$A$4:$AT$2433,21,FALSE),0) -> 0 | X112: =IFERROR(VLOOKUP($A112,Filtro!$A$4:$AT$2433,22,FALSE),0) -> 0 | Y112: =IFERROR(VLOOKUP($A112,Filtro!$A$4:$AT$2433,23,FALSE),0) -> 0 | Z112: =IFERROR(VLOOKUP($A112,Filtro!$A$4:$AT$2433,24,FALSE),0) -> 0 | AA112: =IFERROR(VLOOKUP($A112,Filtro!$A$4:$AT$2433,25,FALSE),0) -> 0 | AB112: =IFERROR(VLOOKUP($A112,Filtro!$A$4:$AT$2433,26,FALSE),0) -> 0 | AC112: =IFERROR(VLOOKUP($A112,Filtro!$A$4:$AT$2433,27,FALSE),0) -> 0 | AD112: =IFERROR(VLOOKUP($A112,Filtro!$A$4:$AT$2433,28,FALSE),0) -> 0 | AE112: =IFERROR(VLOOKUP($A112,Filtro!$A$4:$AT$2433,29,FALSE),0) -> 0 | AF112: =IFERROR(VLOOKUP($A112,Filtro!$A$4:$AT$2433,30,FALSE),0) -> 0 | AG112: =IFERROR(VLOOKUP($A112,Filtro!$A$4:$AT$2433,31,FALSE),0) -> 0 | AH112: =IFERROR(VLOOKUP($A112,Filtro!$A$4:$AT$2433,32,FALSE),0) -> 0 | AI112: =IFERROR(VLOOKUP($A112,Filtro!$A$4:$AT$2433,33,FALSE),0) -> 0 | AJ112: =IFERROR(VLOOKUP($A112,Filtro!$A$4:$AT$2433,34,FALSE),0) -> 0 | AK112: =IFERROR(VLOOKUP($A112,Filtro!$A$4:$AT$2433,35,FALSE),0) -> 0 | AL112: =IFERROR(VLOOKUP($A112,Filtro!$A$4:$AT$2433,36,FALSE),0) -> 0 | AM112: =IFERROR(VLOOKUP($A112,Filtro!$A$4:$AT$2433,37,FALSE),0) -> 0
A113: 01010082 | C113: Mantención donante cadáver (pulmón, corazón o hígado) (muerte cerebral)
C114: TOTAL | D114: =SUM(D103:D113) -> 11 | E114: =SUM(E103:E113) -> 11 | F114: =SUM(F103:F113) -> 11 | G114: =SUM(G103:G113) -> 0 | H114: =SUM(H103:H113) -> 0 | AB114: =SUM(AB103:AB113) -> 11 | AC114: =SUM(AC103:AC113) -> 0 | AD114: 0 | AE114: 0 | AF114: 0 | AG114: 0 | AH114: 0 | AI114: 0 | AJ114: 0 | AK114: 0
C115: ATENCION CERRADA
A116: 01010083 | B116: 0203001 | C116: Día cama hospitalización integral medicina, cirugía, pediatría, obstetricia-ginecología y especialidades (sala 3 camas o más) (Hosp. Alta Complejidad) | D116: =IFERROR(VLOOKUP($A116,Filtro!$A$4:$AT$2433,2,FALSE),0) -> 195667 | E116: =IFERROR(VLOOKUP($A116,Filtro!$A$4:$AT$2433,3,FALSE),0) -> 189761 | F116: =IFERROR(VLOOKUP($A116,Filtro!$A$4:$AT$2433,4,FALSE),0) -> 186678 | G116: =IFERROR(VLOOKUP($A116,Filtro!$A$4:$AT$2433,5,FALSE),0) -> 3083 | H116: =IFERROR(VLOOKUP($A116,Filtro!$A$4:$AT$2433,6,FALSE),0) -> 5906 | I116: =IFERROR(VLOOKUP($A116,Filtro!$A$4:$AT$2433,7,FALSE),0) -> 0 | J116: =IFERROR(VLOOKUP($A116,Filtro!$A$4:$AT$2433,8,FALSE),0) -> 0 | K116: =IFERROR(VLOOKUP($A116,Filtro!$A$4:$AT$2433,9,FALSE),0) -> 0 | L116: =IFERROR(VLOOKUP($A116,Filtro!$A$4:$AT$2433,10,FALSE),0) -> 0 | M116: =IFERROR(VLOOKUP($A116,Filtro!$A$4:$AT$2433,11,FALSE),0) -> 0 | N116: =IFERROR(VLOOKUP($A116,Filtro!$A$4:$AT$2433,12,FALSE),0) -> 0 | O116: =IFERROR(VLOOKUP($A116,Filtro!$A$4:$AT$2433,13,FALSE),0) -> 0 | P116: =IFERROR(VLOOKUP($A116,Filtro!$A$4:$AT$2433,14,FALSE),0) -> 0 | Q116: =IFERROR(VLOOKUP($A116,Filtro!$A$4:$AT$2433,15,FALSE),0) -> 0 | R116: =IFERROR(VLOOKUP($A116,Filtro!$A$4:$AT$2433,16,FALSE),0) -> 0 | S116: =IFERROR(VLOOKUP($A116,Filtro!$A$4:$AT$2433,17,FALSE),0) -> 0 | T116: =IFERROR(VLOOKUP($A116,Filtro!$A$4:$AT$2433,18,FALSE),0) -> 0 | U116: =IFERROR(VLOOKUP($A116,Filtro!$A$4:$AT$2433,19,FALSE),0) -> 0 | V116: =IFERROR(VLOOKUP($A116,Filtro!$A$4:$AT$2433,20,FALSE),0) -> 0 | W116: =IFERROR(VLOOKUP($A116,Filtro!$A$4:$AT$2433,21,FALSE),0) -> 0 | X116: =IFERROR(VLOOKUP($A116,Filtro!$A$4:$AT$2433,22,FALSE),0) -> 0 | Y116: =IFERROR(VLOOKUP($A116,Filtro!$A$4:$AT$2433,23,FALSE),0) -> 0 | Z116: =IFERROR(VLOOKUP($A116,Filtro!$A$4:$AT$2433,24,FALSE),0) -> 0 | AA116: =IFERROR(VLOOKUP($A116,Filtro!$A$4:$AT$2433,25,FALSE),0) -> 0 | AB116: =IFERROR(VLOOKUP($A116,Filtro!$A$4:$AT$2433,26,FALSE),0) -> 133692 | AC116: =IFERROR(VLOOKUP($A116,Filtro!$A$4:$AT$2433,27,FALSE),0) -> 6821 | AD116: =IFERROR(VLOOKUP($A116,Filtro!$A$4:$AT$2433,28,FALSE),0) -> 0 | AE116: =IFERROR(VLOOKUP($A116,Filtro!$A$4:$AT$2433,29,FALSE),0) -> 0 | AF116: =IFERROR(VLOOKUP($A116,Filtro!$A$4:$AT$2433,30,FALSE),0) -> 0 | AG116: =IFERROR(VLOOKUP($A116,Filtro!$A$4:$AT$2433,31,FALSE),0) -> 0 | AH116: =IFERROR(VLOOKUP($A116,Filtro!$A$4:$AT$2433,32,FALSE),0) -> 0 | AI116: =IFERROR(VLOOKUP($A116,Filtro!$A$4:$AT$2433,33,FALSE),0) -> 0 | AJ116: =IFERROR(VLOOKUP($A116,Filtro!$A$4:$AT$2433,34,FALSE),0) -> 0 | AK116: =IFERROR(VLOOKUP($A116,Filtro!$A$4:$AT$2433,35,FALSE),0) -> 0 | AL116: =IFERROR(VLOOKUP($A116,Filtro!$A$4:$AT$2433,36,FALSE),0) -> 5,072,760 | AM116: =IFERROR(VLOOKUP($A116,Filtro!$A$4:$AT$2433,37,FALSE),0) -> 7174035540
A117: 01010084 | B117: 0203102 | C117: Día cama hospitalización integral medicina, cirugía, pediatría, obstetricia-ginecología y especialidades (sala 3 camas o más) (Hosp. Mediana Complejidad) | D117: =IFERROR(VLOOKUP($A117,Filtro!$A$4:$AT$2433,2,FALSE),0) -> 10300 | E117: =IFERROR(VLOOKUP($A117,Filtro!$A$4:$AT$2433,3,FALSE),0) -> 10168 | F117: =IFERROR(VLOOKUP($A117,Filtro!$A$4:$AT$2433,4,FALSE),0) -> 10003 | G117: =IFERROR(VLOOKUP($A117,Filtro!$A$4:$AT$2433,5,FALSE),0) -> 165 | H117: =IFERROR(VLOOKUP($A117,Filtro!$A$4:$AT$2433,6,FALSE),0) -> 132 | I117: =IFERROR(VLOOKUP($A117,Filtro!$A$4:$AT$2433,7,FALSE),0) -> 0 | J117: =IFERROR(VLOOKUP($A117,Filtro!$A$4:$AT$2433,8,FALSE),0) -> 0 | K117: =IFERROR(VLOOKUP($A117,Filtro!$A$4:$AT$2433,9,FALSE),0) -> 0 | L117: =IFERROR(VLOOKUP($A117,Filtro!$A$4:$AT$2433,10,FALSE),0) -> 0 | M117: =IFERROR(VLOOKUP($A117,Filtro!$A$4:$AT$2433,11,FALSE),0) -> 0 | N117: =IFERROR(VLOOKUP($A117,Filtro!$A$4:$AT$2433,12,FALSE),0) -> 0 | O117: =IFERROR(VLOOKUP($A117,Filtro!$A$4:$AT$2433,13,FALSE),0) -> 0 | P117: =IFERROR(VLOOKUP($A117,Filtro!$A$4:$AT$2433,14,FALSE),0) -> 0 | Q117: =IFERROR(VLOOKUP($A117,Filtro!$A$4:$AT$2433,15,FALSE),0) -> 0 | R117: =IFERROR(VLOOKUP($A117,Filtro!$A$4:$AT$2433,16,FALSE),0) -> 0 | S117: =IFERROR(VLOOKUP($A117,Filtro!$A$4:$AT$2433,17,FALSE),0) -> 0 | T117: =IFERROR(VLOOKUP($A117,Filtro!$A$4:$AT$2433,18,FALSE),0) -> 0 | U117: =IFERROR(VLOOKUP($A117,Filtro!$A$4:$AT$2433,19,FALSE),0) -> 0 | V117: =IFERROR(VLOOKUP($A117,Filtro!$A$4:$AT$2433,20,FALSE),0) -> 0 | W117: =IFERROR(VLOOKUP($A117,Filtro!$A$4:$AT$2433,21,FALSE),0) -> 0 | X117: =IFERROR(VLOOKUP($A117,Filtro!$A$4:$AT$2433,22,FALSE),0) -> 0 | Y117: =IFERROR(VLOOKUP($A117,Filtro!$A$4:$AT$2433,23,FALSE),0) -> 0 | Z117: =IFERROR(VLOOKUP($A117,Filtro!$A$4:$AT$2433,24,FALSE),0) -> 0 | AA117: =IFERROR(VLOOKUP($A117,Filtro!$A$4:$AT$2433,25,FALSE),0) -> 0 | AB117: =IFERROR(VLOOKUP($A117,Filtro!$A$4:$AT$2433,26,FALSE),0) -> 9752 | AC117: =IFERROR(VLOOKUP($A117,Filtro!$A$4:$AT$2433,27,FALSE),0) -> 0 | AD117: =IFERROR(VLOOKUP($A117,Filtro!$A$4:$AT$2433,28,FALSE),0) -> 548 | AE117: =IFERROR(VLOOKUP($A117,Filtro!$A$4:$AT$2433,29,FALSE),0) -> 0 | AF117: =IFERROR(VLOOKUP($A117,Filtro!$A$4:$AT$2433,30,FALSE),0) -> 0 | AG117: =IFERROR(VLOOKUP($A117,Filtro!$A$4:$AT$2433,31,FALSE),0) -> 0 | AH117: =IFERROR(VLOOKUP($A117,Filtro!$A$4:$AT$2433,32,FALSE),0) -> 0 | AI117: =IFERROR(VLOOKUP($A117,Filtro!$A$4:$AT$2433,33,FALSE),0) -> 0 | AJ117: =IFERROR(VLOOKUP($A117,Filtro!$A$4:$AT$2433,34,FALSE),0) -> 0 | AK117: =IFERROR(VLOOKUP($A117,Filtro!$A$4:$AT$2433,35,FALSE),0) -> 0 | AL117: =IFERROR(VLOOKUP($A117,Filtro!$A$4:$AT$2433,36,FALSE),0) -> 4,670,160 | AM117: =IFERROR(VLOOKUP($A117,Filtro!$A$4:$AT$2433,37,FALSE),0) -> 353906140
A118: 01010085 | B118: 0203103 | C118: Día cama hospitalización integral medicina, cirugía, pediatría, obstetricia-ginecología y especialidades (sala 3 camas o más) (Hosp. Baja Complejidad) | D118: =IFERROR(VLOOKUP($A118,Filtro!$A$4:$AT$2433,2,FALSE),0) -> 22165 | E118: =IFERROR(VLOOKUP($A118,Filtro!$A$4:$AT$2433,3,FALSE),0) -> 22150 | F118: =IFERROR(VLOOKUP($A118,Filtro!$A$4:$AT$2433,4,FALSE),0) -> 22150 | G118: =IFERROR(VLOOKUP($A118,Filtro!$A$4:$AT$2433,5,FALSE),0) -> 0 | H118: =IFERROR(VLOOKUP($A118,Filtro!$A$4:$AT$2433,6,FALSE),0) -> 15 | I118: =IFERROR(VLOOKUP($A118,Filtro!$A$4:$AT$2433,7,FALSE),0) -> 0 | J118: =IFERROR(VLOOKUP($A118,Filtro!$A$4:$AT$2433,8,FALSE),0) -> 0 | K118: =IFERROR(VLOOKUP($A118,Filtro!$A$4:$AT$2433,9,FALSE),0) -> 0 | L118: =IFERROR(VLOOKUP($A118,Filtro!$A$4:$AT$2433,10,FALSE),0) -> 0 | M118: =IFERROR(VLOOKUP($A118,Filtro!$A$4:$AT$2433,11,FALSE),0) -> 0 | N118: =IFERROR(VLOOKUP($A118,Filtro!$A$4:$AT$2433,12,FALSE),0) -> 0 | O118: =IFERROR(VLOOKUP($A118,Filtro!$A$4:$AT$2433,13,FALSE),0) -> 0 | P118: =IFERROR(VLOOKUP($A118,Filtro!$A$4:$AT$2433,14,FALSE),0) -> 0 | Q118: =IFERROR(VLOOKUP($A118,Filtro!$A$4:$AT$2433,15,FALSE),0) -> 0 | R118: =IFERROR(VLOOKUP($A118,Filtro!$A$4:$AT$2433,16,FALSE),0) -> 0 | S118: =IFERROR(VLOOKUP($A118,Filtro!$A$4:$AT$2433,17,FALSE),0) -> 0 | T118: =IFERROR(VLOOKUP($A118,Filtro!$A$4:$AT$2433,18,FALSE),0) -> 0 | U118: =IFERROR(VLOOKUP($A118,Filtro!$A$4:$AT$2433,19,FALSE),0) -> 0 | V118: =IFERROR(VLOOKUP($A118,Filtro!$A$4:$AT$2433,20,FALSE),0) -> 0 | W118: =IFERROR(VLOOKUP($A118,Filtro!$A$4:$AT$2433,21,FALSE),0) -> 0 | X118: =IFERROR(VLOOKUP($A118,Filtro!$A$4:$AT$2433,22,FALSE),0) -> 0 | Y118: =IFERROR(VLOOKUP($A118,Filtro!$A$4:$AT$2433,23,FALSE),0) -> 0 | Z118: =IFERROR(VLOOKUP($A118,Filtro!$A$4:$AT$2433,24,FALSE),0) -> 0 | AA118: =IFERROR(VLOOKUP($A118,Filtro!$A$4:$AT$2433,25,FALSE),0) -> 0 | AB118: =IFERROR(VLOOKUP($A118,Filtro!$A$4:$AT$2433,26,FALSE),0) -> 17040 | AC118: =IFERROR(VLOOKUP($A118,Filtro!$A$4:$AT$2433,27,FALSE),0) -> 1250 | AD118: =IFERROR(VLOOKUP($A118,Filtro!$A$4:$AT$2433,28,FALSE),0) -> 613 | AE118: =IFERROR(VLOOKUP($A118,Filtro!$A$4:$AT$2433,29,FALSE),0) -> 0 | AF118: =IFERROR(VLOOKUP($A118,Filtro!$A$4:$AT$2433,30,FALSE),0) -> 0 | AG118: =IFERROR(VLOOKUP($A118,Filtro!$A$4:$AT$2433,31,FALSE),0) -> 0 | AH118: =IFERROR(VLOOKUP($A118,Filtro!$A$4:$AT$2433,32,FALSE),0) -> 0 | AI118: =IFERROR(VLOOKUP($A118,Filtro!$A$4:$AT$2433,33,FALSE),0) -> 0 | AJ118: =IFERROR(VLOOKUP($A118,Filtro!$A$4:$AT$2433,34,FALSE),0) -> 0 | AK118: =IFERROR(VLOOKUP($A118,Filtro!$A$4:$AT$2433,35,FALSE),0) -> 0 | AL118: =IFERROR(VLOOKUP($A118,Filtro!$A$4:$AT$2433,36,FALSE),0) -> 3,892,680 | AM118: =IFERROR(VLOOKUP($A118,Filtro!$A$4:$AT$2433,37,FALSE),0) -> 653203500
A119: 01010086 | B119: 0203002 | C119: Día cama hospitalización integral adulto en Unidad de Cuidado Intensivo (U.C.I.) | D119: =IFERROR(VLOOKUP($A119,Filtro!$A$4:$AT$2433,2,FALSE),0) -> 7107 | E119: =IFERROR(VLOOKUP($A119,Filtro!$A$4:$AT$2433,3,FALSE),0) -> 6994 | F119: =IFERROR(VLOOKUP($A119,Filtro!$A$4:$AT$2433,4,FALSE),0) -> 6994 | G119: =IFERROR(VLOOKUP($A119,Filtro!$A$4:$AT$2433,5,FALSE),0) -> 0 | H119: =IFERROR(VLOOKUP($A119,Filtro!$A$4:$AT$2433,6,FALSE),0) -> 113 | I119: =IFERROR(VLOOKUP($A119,Filtro!$A$4:$AT$2433,7,FALSE),0) -> 0 | J119: =IFERROR(VLOOKUP($A119,Filtro!$A$4:$AT$2433,8,FALSE),0) -> 0 | K119: =IFERROR(VLOOKUP($A119,Filtro!$A$4:$AT$2433,9,FALSE),0) -> 0 | L119: =IFERROR(VLOOKUP($A119,Filtro!$A$4:$AT$2433,10,FALSE),0) -> 0 | M119: =IFERROR(VLOOKUP($A119,Filtro!$A$4:$AT$2433,11,FALSE),0) -> 0 | N119: =IFERROR(VLOOKUP($A119,Filtro!$A$4:$AT$2433,12,FALSE),0) -> 0 | O119: =IFERROR(VLOOKUP($A119,Filtro!$A$4:$AT$2433,13,FALSE),0) -> 0 | P119: =IFERROR(VLOOKUP($A119,Filtro!$A$4:$AT$2433,14,FALSE),0) -> 0 | Q119: =IFERROR(VLOOKUP($A119,Filtro!$A$4:$AT$2433,15,FALSE),0) -> 0 | R119: =IFERROR(VLOOKUP($A119,Filtro!$A$4:$AT$2433,16,FALSE),0) -> 0 | S119: =IFERROR(VLOOKUP($A119,Filtro!$A$4:$AT$2433,17,FALSE),0) -> 0 | T119: =IFERROR(VLOOKUP($A119,Filtro!$A$4:$AT$2433,18,FALSE),0) -> 0 | U119: =IFERROR(VLOOKUP($A119,Filtro!$A$4:$AT$2433,19,FALSE),0) -> 0 | V119: =IFERROR(VLOOKUP($A119,Filtro!$A$4:$AT$2433,20,FALSE),0) -> 0 | W119: =IFERROR(VLOOKUP($A119,Filtro!$A$4:$AT$2433,21,FALSE),0) -> 0 | X119: =IFERROR(VLOOKUP($A119,Filtro!$A$4:$AT$2433,22,FALSE),0) -> 0 | Y119: =IFERROR(VLOOKUP($A119,Filtro!$A$4:$AT$2433,23,FALSE),0) -> 0 | Z119: =IFERROR(VLOOKUP($A119,Filtro!$A$4:$AT$2433,24,FALSE),0) -> 0 | AA119: =IFERROR(VLOOKUP($A119,Filtro!$A$4:$AT$2433,25,FALSE),0) -> 0 | AB119: =IFERROR(VLOOKUP($A119,Filtro!$A$4:$AT$2433,26,FALSE),0) -> 3965 | AC119: =IFERROR(VLOOKUP($A119,Filtro!$A$4:$AT$2433,27,FALSE),0) -> 223 | AD119: =IFERROR(VLOOKUP($A119,Filtro!$A$4:$AT$2433,28,FALSE),0) -> 0 | AE119: =IFERROR(VLOOKUP($A119,Filtro!$A$4:$AT$2433,29,FALSE),0) -> 0 | AF119: =IFERROR(VLOOKUP($A119,Filtro!$A$4:$AT$2433,30,FALSE),0) -> 0 | AG119: =IFERROR(VLOOKUP($A119,Filtro!$A$4:$AT$2433,31,FALSE),0) -> 0 | AH119: =IFERROR(VLOOKUP($A119,Filtro!$A$4:$AT$2433,32,FALSE),0) -> 0 | AI119: =IFERROR(VLOOKUP($A119,Filtro!$A$4:$AT$2433,33,FALSE),0) -> 0 | AJ119: =IFERROR(VLOOKUP($A119,Filtro!$A$4:$AT$2433,34,FALSE),0) -> 0 | AK119: =IFERROR(VLOOKUP($A119,Filtro!$A$4:$AT$2433,35,FALSE),0) -> 0 | AL119: =IFERROR(VLOOKUP($A119,Filtro!$A$4:$AT$2433,36,FALSE),0) -> 21,088,320 | AM119: =IFERROR(VLOOKUP($A119,Filtro!$A$4:$AT$2433,37,FALSE),0) -> 1117361440
A120: 01010087 | B120: 0203003 | C120: Día cama hospitalización integral pediátrica en Unidad de Cuidado Intensivo (U.C.I). | D120: =IFERROR(VLOOKUP($A120,Filtro!$A$4:$AT$2433,2,FALSE),0) -> 679 | E120: =IFERROR(VLOOKUP($A120,Filtro!$A$4:$AT$2433,3,FALSE),0) -> 645 | F120: =IFERROR(VLOOKUP($A120,Filtro!$A$4:$AT$2433,4,FALSE),0) -> 645 | G120: =IFERROR(VLOOKUP($A120,Filtro!$A$4:$AT$2433,5,FALSE),0) -> 0 | H120: =IFERROR(VLOOKUP($A120,Filtro!$A$4:$AT$2433,6,FALSE),0) -> 34 | I120: =IFERROR(VLOOKUP($A120,Filtro!$A$4:$AT$2433,7,FALSE),0) -> 0 | J120: =IFERROR(VLOOKUP($A120,Filtro!$A$4:$AT$2433,8,FALSE),0) -> 0 | K120: =IFERROR(VLOOKUP($A120,Filtro!$A$4:$AT$2433,9,FALSE),0) -> 0 | L120: =IFERROR(VLOOKUP($A120,Filtro!$A$4:$AT$2433,10,FALSE),0) -> 0 | M120: =IFERROR(VLOOKUP($A120,Filtro!$A$4:$AT$2433,11,FALSE),0) -> 0 | N120: =IFERROR(VLOOKUP($A120,Filtro!$A$4:$AT$2433,12,FALSE),0) -> 0 | O120: =IFERROR(VLOOKUP($A120,Filtro!$A$4:$AT$2433,13,FALSE),0) -> 0 | P120: =IFERROR(VLOOKUP($A120,Filtro!$A$4:$AT$2433,14,FALSE),0) -> 0 | Q120: =IFERROR(VLOOKUP($A120,Filtro!$A$4:$AT$2433,15,FALSE),0) -> 0 | R120: =IFERROR(VLOOKUP($A120,Filtro!$A$4:$AT$2433,16,FALSE),0) -> 0 | S120: =IFERROR(VLOOKUP($A120,Filtro!$A$4:$AT$2433,17,FALSE),0) -> 0 | T120: =IFERROR(VLOOKUP($A120,Filtro!$A$4:$AT$2433,18,FALSE),0) -> 0 | U120: =IFERROR(VLOOKUP($A120,Filtro!$A$4:$AT$2433,19,FALSE),0) -> 0 | V120: =IFERROR(VLOOKUP($A120,Filtro!$A$4:$AT$2433,20,FALSE),0) -> 0 | W120: =IFERROR(VLOOKUP($A120,Filtro!$A$4:$AT$2433,21,FALSE),0) -> 0 | X120: =IFERROR(VLOOKUP($A120,Filtro!$A$4:$AT$2433,22,FALSE),0) -> 0 | Y120: =IFERROR(VLOOKUP($A120,Filtro!$A$4:$AT$2433,23,FALSE),0) -> 0 | Z120: =IFERROR(VLOOKUP($A120,Filtro!$A$4:$AT$2433,24,FALSE),0) -> 0 | AA120: =IFERROR(VLOOKUP($A120,Filtro!$A$4:$AT$2433,25,FALSE),0) -> 0 | AB120: =IFERROR(VLOOKUP($A120,Filtro!$A$4:$AT$2433,26,FALSE),0) -> 576 | AC120: =IFERROR(VLOOKUP($A120,Filtro!$A$4:$AT$2433,27,FALSE),0) -> 103 | AD120: =IFERROR(VLOOKUP($A120,Filtro!$A$4:$AT$2433,28,FALSE),0) -> 0 | AE120: =IFERROR(VLOOKUP($A120,Filtro!$A$4:$AT$2433,29,FALSE),0) -> 0 | AF120: =IFERROR(VLOOKUP($A120,Filtro!$A$4:$AT$2433,30,FALSE),0) -> 0 | AG120: =IFERROR(VLOOKUP($A120,Filtro!$A$4:$AT$2433,31,FALSE),0) -> 0 | AH120: =IFERROR(VLOOKUP($A120,Filtro!$A$4:$AT$2433,32,FALSE),0) -> 0 | AI120: =IFERROR(VLOOKUP($A120,Filtro!$A$4:$AT$2433,33,FALSE),0) -> 0 | AJ120: =IFERROR(VLOOKUP($A120,Filtro!$A$4:$AT$2433,34,FALSE),0) -> 0 | AK120: =IFERROR(VLOOKUP($A120,Filtro!$A$4:$AT$2433,35,FALSE),0) -> 0 | AL120: =IFERROR(VLOOKUP($A120,Filtro!$A$4:$AT$2433,36,FALSE),0) -> 21,088,320 | AM120: =IFERROR(VLOOKUP($A120,Filtro!$A$4:$AT$2433,37,FALSE),0) -> 103045200
A121: 01010088 | B121: 0203004 | C121: Día cama hospitalización integral neonatal en Unidad de Cuidado Intensivo (U.C.I.) | D121: =IFERROR(VLOOKUP($A121,Filtro!$A$4:$AT$2433,2,FALSE),0) -> 2915 | E121: =IFERROR(VLOOKUP($A121,Filtro!$A$4:$AT$2433,3,FALSE),0) -> 2905 | F121: =IFERROR(VLOOKUP($A121,Filtro!$A$4:$AT$2433,4,FALSE),0) -> 2905 | G121: =IFERROR(VLOOKUP($A121,Filtro!$A$4:$AT$2433,5,FALSE),0) -> 0 | H121: =IFERROR(VLOOKUP($A121,Filtro!$A$4:$AT$2433,6,FALSE),0) -> 10 | I121: =IFERROR(VLOOKUP($A121,Filtro!$A$4:$AT$2433,7,FALSE),0) -> 0 | J121: =IFERROR(VLOOKUP($A121,Filtro!$A$4:$AT$2433,8,FALSE),0) -> 0 | K121: =IFERROR(VLOOKUP($A121,Filtro!$A$4:$AT$2433,9,FALSE),0) -> 0 | L121: =IFERROR(VLOOKUP($A121,Filtro!$A$4:$AT$2433,10,FALSE),0) -> 0 | M121: =IFERROR(VLOOKUP($A121,Filtro!$A$4:$AT$2433,11,FALSE),0) -> 0 | N121: =IFERROR(VLOOKUP($A121,Filtro!$A$4:$AT$2433,12,FALSE),0) -> 0 | O121: =IFERROR(VLOOKUP($A121,Filtro!$A$4:$AT$2433,13,FALSE),0) -> 0 | P121: =IFERROR(VLOOKUP($A121,Filtro!$A$4:$AT$2433,14,FALSE),0) -> 0 | Q121: =IFERROR(VLOOKUP($A121,Filtro!$A$4:$AT$2433,15,FALSE),0) -> 0 | R121: =IFERROR(VLOOKUP($A121,Filtro!$A$4:$AT$2433,16,FALSE),0) -> 0 | S121: =IFERROR(VLOOKUP($A121,Filtro!$A$4:$AT$2433,17,FALSE),0) -> 0 | T121: =IFERROR(VLOOKUP($A121,Filtro!$A$4:$AT$2433,18,FALSE),0) -> 0 | U121: =IFERROR(VLOOKUP($A121,Filtro!$A$4:$AT$2433,19,FALSE),0) -> 0 | V121: =IFERROR(VLOOKUP($A121,Filtro!$A$4:$AT$2433,20,FALSE),0) -> 0 | W121: =IFERROR(VLOOKUP($A121,Filtro!$A$4:$AT$2433,21,FALSE),0) -> 0 | X121: =IFERROR(VLOOKUP($A121,Filtro!$A$4:$AT$2433,22,FALSE),0) -> 0 | Y121: =IFERROR(VLOOKUP($A121,Filtro!$A$4:$AT$2433,23,FALSE),0) -> 0 | Z121: =IFERROR(VLOOKUP($A121,Filtro!$A$4:$AT$2433,24,FALSE),0) -> 0 | AA121: =IFERROR(VLOOKUP($A121,Filtro!$A$4:$AT$2433,25,FALSE),0) -> 0 | AB121: =IFERROR(VLOOKUP($A121,Filtro!$A$4:$AT$2433,26,FALSE),0) -> 959 | AC121: =IFERROR(VLOOKUP($A121,Filtro!$A$4:$AT$2433,27,FALSE),0) -> 0 | AD121: =IFERROR(VLOOKUP($A121,Filtro!$A$4:$AT$2433,28,FALSE),0) -> 0 | AE121: =IFERROR(VLOOKUP($A121,Filtro!$A$4:$AT$2433,29,FALSE),0) -> 0 | AF121: =IFERROR(VLOOKUP($A121,Filtro!$A$4:$AT$2433,30,FALSE),0) -> 0 | AG121: =IFERROR(VLOOKUP($A121,Filtro!$A$4:$AT$2433,31,FALSE),0) -> 0 | AH121: =IFERROR(VLOOKUP($A121,Filtro!$A$4:$AT$2433,32,FALSE),0) -> 0 | AI121: =IFERROR(VLOOKUP($A121,Filtro!$A$4:$AT$2433,33,FALSE),0) -> 0 | AJ121: =IFERROR(VLOOKUP($A121,Filtro!$A$4:$AT$2433,34,FALSE),0) -> 0 | AK121: =IFERROR(VLOOKUP($A121,Filtro!$A$4:$AT$2433,35,FALSE),0) -> 0 | AL121: =IFERROR(VLOOKUP($A121,Filtro!$A$4:$AT$2433,36,FALSE),0) -> 21,088,320 | AM121: =IFERROR(VLOOKUP($A121,Filtro!$A$4:$AT$2433,37,FALSE),0) -> 464102800
A122: 01010089 | B122: 0203005 | C122: Día cama hospitalización integral adulto en Unidad de Tratamiento Intermedio (U.T.I) | D122: =IFERROR(VLOOKUP($A122,Filtro!$A$4:$AT$2433,2,FALSE),0) -> 14682 | E122: =IFERROR(VLOOKUP($A122,Filtro!$A$4:$AT$2433,3,FALSE),0) -> 14584 | F122: =IFERROR(VLOOKUP($A122,Filtro!$A$4:$AT$2433,4,FALSE),0) -> 14584 | G122: =IFERROR(VLOOKUP($A122,Filtro!$A$4:$AT$2433,5,FALSE),0) -> 0 | H122: =IFERROR(VLOOKUP($A122,Filtro!$A$4:$AT$2433,6,FALSE),0) -> 98 | I122: =IFERROR(VLOOKUP($A122,Filtro!$A$4:$AT$2433,7,FALSE),0) -> 0 | J122: =IFERROR(VLOOKUP($A122,Filtro!$A$4:$AT$2433,8,FALSE),0) -> 0 | K122: =IFERROR(VLOOKUP($A122,Filtro!$A$4:$AT$2433,9,FALSE),0) -> 0 | L122: =IFERROR(VLOOKUP($A122,Filtro!$A$4:$AT$2433,10,FALSE),0) -> 0 | M122: =IFERROR(VLOOKUP($A122,Filtro!$A$4:$AT$2433,11,FALSE),0) -> 0 | N122: =IFERROR(VLOOKUP($A122,Filtro!$A$4:$AT$2433,12,FALSE),0) -> 0 | O122: =IFERROR(VLOOKUP($A122,Filtro!$A$4:$AT$2433,13,FALSE),0) -> 0 | P122: =IFERROR(VLOOKUP($A122,Filtro!$A$4:$AT$2433,14,FALSE),0) -> 0 | Q122: =IFERROR(VLOOKUP($A122,Filtro!$A$4:$AT$2433,15,FALSE),0) -> 0 | R122: =IFERROR(VLOOKUP($A122,Filtro!$A$4:$AT$2433,16,FALSE),0) -> 0 | S122: =IFERROR(VLOOKUP($A122,Filtro!$A$4:$AT$2433,17,FALSE),0) -> 0 | T122: =IFERROR(VLOOKUP($A122,Filtro!$A$4:$AT$2433,18,FALSE),0) -> 0 | U122: =IFERROR(VLOOKUP($A122,Filtro!$A$4:$AT$2433,19,FALSE),0) -> 0 | V122: =IFERROR(VLOOKUP($A122,Filtro!$A$4:$AT$2433,20,FALSE),0) -> 0 | W122: =IFERROR(VLOOKUP($A122,Filtro!$A$4:$AT$2433,21,FALSE),0) -> 0 | X122: =IFERROR(VLOOKUP($A122,Filtro!$A$4:$AT$2433,22,FALSE),0) -> 0 | Y122: =IFERROR(VLOOKUP($A122,Filtro!$A$4:$AT$2433,23,FALSE),0) -> 0 | Z122: =IFERROR(VLOOKUP($A122,Filtro!$A$4:$AT$2433,24,FALSE),0) -> 0 | AA122: =IFERROR(VLOOKUP($A122,Filtro!$A$4:$AT$2433,25,FALSE),0) -> 0 | AB122: =IFERROR(VLOOKUP($A122,Filtro!$A$4:$AT$2433,26,FALSE),0) -> 9642 | AC122: =IFERROR(VLOOKUP($A122,Filtro!$A$4:$AT$2433,27,FALSE),0) -> 334 | AD122: =IFERROR(VLOOKUP($A122,Filtro!$A$4:$AT$2433,28,FALSE),0) -> 0 | AE122: =IFERROR(VLOOKUP($A122,Filtro!$A$4:$AT$2433,29,FALSE),0) -> 0 | AF122: =IFERROR(VLOOKUP($A122,Filtro!$A$4:$AT$2433,30,FALSE),0) -> 0 | AG122: =IFERROR(VLOOKUP($A122,Filtro!$A$4:$AT$2433,31,FALSE),0) -> 0 | AH122: =IFERROR(VLOOKUP($A122,Filtro!$A$4:$AT$2433,32,FALSE),0) -> 0 | AI122: =IFERROR(VLOOKUP($A122,Filtro!$A$4:$AT$2433,33,FALSE),0) -> 0 | AJ122: =IFERROR(VLOOKUP($A122,Filtro!$A$4:$AT$2433,34,FALSE),0) -> 0 | AK122: =IFERROR(VLOOKUP($A122,Filtro!$A$4:$AT$2433,35,FALSE),0) -> 0 | AL122: =IFERROR(VLOOKUP($A122,Filtro!$A$4:$AT$2433,36,FALSE),0) -> 10,186,440 | AM122: =IFERROR(VLOOKUP($A122,Filtro!$A$4:$AT$2433,37,FALSE),0) -> 1125447280
A123: 01010090 | B123: 0203006 | C123: Día cama hospitalización integral pediátrica en Unidad de Tratamiento Intermedio (U.T.I) | D123: =IFERROR(VLOOKUP($A123,Filtro!$A$4:$AT$2433,2,FALSE),0) -> 3487 | E123: =IFERROR(VLOOKUP($A123,Filtro!$A$4:$AT$2433,3,FALSE),0) -> 3345 | F123: =IFERROR(VLOOKUP($A123,Filtro!$A$4:$AT$2433,4,FALSE),0) -> 3345 | G123: =IFERROR(VLOOKUP($A123,Filtro!$A$4:$AT$2433,5,FALSE),0) -> 0 | H123: =IFERROR(VLOOKUP($A123,Filtro!$A$4:$AT$2433,6,FALSE),0) -> 142 | I123: =IFERROR(VLOOKUP($A123,Filtro!$A$4:$AT$2433,7,FALSE),0) -> 0 | J123: =IFERROR(VLOOKUP($A123,Filtro!$A$4:$AT$2433,8,FALSE),0) -> 0 | K123: =IFERROR(VLOOKUP($A123,Filtro!$A$4:$AT$2433,9,FALSE),0) -> 0 | L123: =IFERROR(VLOOKUP($A123,Filtro!$A$4:$AT$2433,10,FALSE),0) -> 0 | M123: =IFERROR(VLOOKUP($A123,Filtro!$A$4:$AT$2433,11,FALSE),0) -> 0 | N123: =IFERROR(VLOOKUP($A123,Filtro!$A$4:$AT$2433,12,FALSE),0) -> 0 | O123: =IFERROR(VLOOKUP($A123,Filtro!$A$4:$AT$2433,13,FALSE),0) -> 0 | P123: =IFERROR(VLOOKUP($A123,Filtro!$A$4:$AT$2433,14,FALSE),0) -> 0 | Q123: =IFERROR(VLOOKUP($A123,Filtro!$A$4:$AT$2433,15,FALSE),0) -> 0 | R123: =IFERROR(VLOOKUP($A123,Filtro!$A$4:$AT$2433,16,FALSE),0) -> 0 | S123: =IFERROR(VLOOKUP($A123,Filtro!$A$4:$AT$2433,17,FALSE),0) -> 0 | T123: =IFERROR(VLOOKUP($A123,Filtro!$A$4:$AT$2433,18,FALSE),0) -> 0 | U123: =IFERROR(VLOOKUP($A123,Filtro!$A$4:$AT$2433,19,FALSE),0) -> 0 | V123: =IFERROR(VLOOKUP($A123,Filtro!$A$4:$AT$2433,20,FALSE),0) -> 0 | W123: =IFERROR(VLOOKUP($A123,Filtro!$A$4:$AT$2433,21,FALSE),0) -> 0 | X123: =IFERROR(VLOOKUP($A123,Filtro!$A$4:$AT$2433,22,FALSE),0) -> 0 | Y123: =IFERROR(VLOOKUP($A123,Filtro!$A$4:$AT$2433,23,FALSE),0) -> 0 | Z123: =IFERROR(VLOOKUP($A123,Filtro!$A$4:$AT$2433,24,FALSE),0) -> 0 | AA123: =IFERROR(VLOOKUP($A123,Filtro!$A$4:$AT$2433,25,FALSE),0) -> 0 | AB123: =IFERROR(VLOOKUP($A123,Filtro!$A$4:$AT$2433,26,FALSE),0) -> 2514 | AC123: =IFERROR(VLOOKUP($A123,Filtro!$A$4:$AT$2433,27,FALSE),0) -> 159 | AD123: =IFERROR(VLOOKUP($A123,Filtro!$A$4:$AT$2433,28,FALSE),0) -> 0 | AE123: =IFERROR(VLOOKUP($A123,Filtro!$A$4:$AT$2433,29,FALSE),0) -> 0 | AF123: =IFERROR(VLOOKUP($A123,Filtro!$A$4:$AT$2433,30,FALSE),0) -> 0 | AG123: =IFERROR(VLOOKUP($A123,Filtro!$A$4:$AT$2433,31,FALSE),0) -> 0 | AH123: =IFERROR(VLOOKUP($A123,Filtro!$A$4:$AT$2433,32,FALSE),0) -> 0 | AI123: =IFERROR(VLOOKUP($A123,Filtro!$A$4:$AT$2433,33,FALSE),0) -> 0 | AJ123: =IFERROR(VLOOKUP($A123,Filtro!$A$4:$AT$2433,34,FALSE),0) -> 0 | AK123: =IFERROR(VLOOKUP($A123,Filtro!$A$4:$AT$2433,35,FALSE),0) -> 0 | AL123: =IFERROR(VLOOKUP($A123,Filtro!$A$4:$AT$2433,36,FALSE),0) -> 10,186,440 | AM123: =IFERROR(VLOOKUP($A123,Filtro!$A$4:$AT$2433,37,FALSE),0) -> 258133650
A124: 01010091 | B124: 0203007 | C124: Día cama hospitalización integral neonatal en Unidad de Tratamiento Intermedio (U.T.I) | D124: =IFERROR(VLOOKUP($A124,Filtro!$A$4:$AT$2433,2,FALSE),0) -> 5430 | E124: =IFERROR(VLOOKUP($A124,Filtro!$A$4:$AT$2433,3,FALSE),0) -> 5368 | F124: =IFERROR(VLOOKUP($A124,Filtro!$A$4:$AT$2433,4,FALSE),0) -> 5368 | G124: =IFERROR(VLOOKUP($A124,Filtro!$A$4:$AT$2433,5,FALSE),0) -> 0 | H124: =IFERROR(VLOOKUP($A124,Filtro!$A$4:$AT$2433,6,FALSE),0) -> 62 | I124: =IFERROR(VLOOKUP($A124,Filtro!$A$4:$AT$2433,7,FALSE),0) -> 0 | J124: =IFERROR(VLOOKUP($A124,Filtro!$A$4:$AT$2433,8,FALSE),0) -> 0 | K124: =IFERROR(VLOOKUP($A124,Filtro!$A$4:$AT$2433,9,FALSE),0) -> 0 | L124: =IFERROR(VLOOKUP($A124,Filtro!$A$4:$AT$2433,10,FALSE),0) -> 0 | M124: =IFERROR(VLOOKUP($A124,Filtro!$A$4:$AT$2433,11,FALSE),0) -> 0 | N124: =IFERROR(VLOOKUP($A124,Filtro!$A$4:$AT$2433,12,FALSE),0) -> 0 | O124: =IFERROR(VLOOKUP($A124,Filtro!$A$4:$AT$2433,13,FALSE),0) -> 0 | P124: =IFERROR(VLOOKUP($A124,Filtro!$A$4:$AT$2433,14,FALSE),0) -> 0 | Q124: =IFERROR(VLOOKUP($A124,Filtro!$A$4:$AT$2433,15,FALSE),0) -> 0 | R124: =IFERROR(VLOOKUP($A124,Filtro!$A$4:$AT$2433,16,FALSE),0) -> 0 | S124: =IFERROR(VLOOKUP($A124,Filtro!$A$4:$AT$2433,17,FALSE),0) -> 0 | T124: =IFERROR(VLOOKUP($A124,Filtro!$A$4:$AT$2433,18,FALSE),0) -> 0 | U124: =IFERROR(VLOOKUP($A124,Filtro!$A$4:$AT$2433,19,FALSE),0) -> 0 | V124: =IFERROR(VLOOKUP($A124,Filtro!$A$4:$AT$2433,20,FALSE),0) -> 0 | W124: =IFERROR(VLOOKUP($A124,Filtro!$A$4:$AT$2433,21,FALSE),0) -> 0 | X124: =IFERROR(VLOOKUP($A124,Filtro!$A$4:$AT$2433,22,FALSE),0) -> 0 | Y124: =IFERROR(VLOOKUP($A124,Filtro!$A$4:$AT$2433,23,FALSE),0) -> 0 | Z124: =IFERROR(VLOOKUP($A124,Filtro!$A$4:$AT$2433,24,FALSE),0) -> 0 | AA124: =IFERROR(VLOOKUP($A124,Filtro!$A$4:$AT$2433,25,FALSE),0) -> 0 | AB124: =IFERROR(VLOOKUP($A124,Filtro!$A$4:$AT$2433,26,FALSE),0) -> 1985 | AC124: =IFERROR(VLOOKUP($A124,Filtro!$A$4:$AT$2433,27,FALSE),0) -> 0 | AD124: =IFERROR(VLOOKUP($A124,Filtro!$A$4:$AT$2433,28,FALSE),0) -> 0 | AE124: =IFERROR(VLOOKUP($A124,Filtro!$A$4:$AT$2433,29,FALSE),0) -> 0 | AF124: =IFERROR(VLOOKUP($A124,Filtro!$A$4:$AT$2433,30,FALSE),0) -> 0 | AG124: =IFERROR(VLOOKUP($A124,Filtro!$A$4:$AT$2433,31,FALSE),0) -> 0 | AH124: =IFERROR(VLOOKUP($A124,Filtro!$A$4:$AT$2433,32,FALSE),0) -> 0 | AI124: =IFERROR(VLOOKUP($A124,Filtro!$A$4:$AT$2433,33,FALSE),0) -> 0 | AJ124: =IFERROR(VLOOKUP($A124,Filtro!$A$4:$AT$2433,34,FALSE),0) -> 0 | AK124: =IFERROR(VLOOKUP($A124,Filtro!$A$4:$AT$2433,35,FALSE),0) -> 0 | AL124: =IFERROR(VLOOKUP($A124,Filtro!$A$4:$AT$2433,36,FALSE),0) -> 10,186,440 | AM124: =IFERROR(VLOOKUP($A124,Filtro!$A$4:$AT$2433,37,FALSE),0) -> 414248560
A125: 01010092 | B125: 0203008 | C125: Día cama hospitalización integral incubadora | D125: =IFERROR(VLOOKUP($A125,Filtro!$A$4:$AT$2433,2,FALSE),0) -> 1141 | E125: =IFERROR(VLOOKUP($A125,Filtro!$A$4:$AT$2433,3,FALSE),0) -> 1138 | F125: =IFERROR(VLOOKUP($A125,Filtro!$A$4:$AT$2433,4,FALSE),0) -> 1138 | G125: =IFERROR(VLOOKUP($A125,Filtro!$A$4:$AT$2433,5,FALSE),0) -> 0 | H125: =IFERROR(VLOOKUP($A125,Filtro!$A$4:$AT$2433,6,FALSE),0) -> 3 | I125: =IFERROR(VLOOKUP($A125,Filtro!$A$4:$AT$2433,7,FALSE),0) -> 0 | J125: =IFERROR(VLOOKUP($A125,Filtro!$A$4:$AT$2433,8,FALSE),0) -> 0 | K125: =IFERROR(VLOOKUP($A125,Filtro!$A$4:$AT$2433,9,FALSE),0) -> 0 | L125: =IFERROR(VLOOKUP($A125,Filtro!$A$4:$AT$2433,10,FALSE),0) -> 0 | M125: =IFERROR(VLOOKUP($A125,Filtro!$A$4:$AT$2433,11,FALSE),0) -> 0 | N125: =IFERROR(VLOOKUP($A125,Filtro!$A$4:$AT$2433,12,FALSE),0) -> 0 | O125: =IFERROR(VLOOKUP($A125,Filtro!$A$4:$AT$2433,13,FALSE),0) -> 0 | P125: =IFERROR(VLOOKUP($A125,Filtro!$A$4:$AT$2433,14,FALSE),0) -> 0 | Q125: =IFERROR(VLOOKUP($A125,Filtro!$A$4:$AT$2433,15,FALSE),0) -> 0 | R125: =IFERROR(VLOOKUP($A125,Filtro!$A$4:$AT$2433,16,FALSE),0) -> 0 | S125: =IFERROR(VLOOKUP($A125,Filtro!$A$4:$AT$2433,17,FALSE),0) -> 0 | T125: =IFERROR(VLOOKUP($A125,Filtro!$A$4:$AT$2433,18,FALSE),0) -> 0 | U125: =IFERROR(VLOOKUP($A125,Filtro!$A$4:$AT$2433,19,FALSE),0) -> 0 | V125: =IFERROR(VLOOKUP($A125,Filtro!$A$4:$AT$2433,20,FALSE),0) -> 0 | W125: =IFERROR(VLOOKUP($A125,Filtro!$A$4:$AT$2433,21,FALSE),0) -> 0 | X125: =IFERROR(VLOOKUP($A125,Filtro!$A$4:$AT$2433,22,FALSE),0) -> 0 | Y125: =IFERROR(VLOOKUP($A125,Filtro!$A$4:$AT$2433,23,FALSE),0) -> 0 | Z125: =IFERROR(VLOOKUP($A125,Filtro!$A$4:$AT$2433,24,FALSE),0) -> 0 | AA125: =IFERROR(VLOOKUP($A125,Filtro!$A$4:$AT$2433,25,FALSE),0) -> 0 | AB125: =IFERROR(VLOOKUP($A125,Filtro!$A$4:$AT$2433,26,FALSE),0) -> 1051 | AC125: =IFERROR(VLOOKUP($A125,Filtro!$A$4:$AT$2433,27,FALSE),0) -> 90 | AD125: =IFERROR(VLOOKUP($A125,Filtro!$A$4:$AT$2433,28,FALSE),0) -> 0 | AE125: =IFERROR(VLOOKUP($A125,Filtro!$A$4:$AT$2433,29,FALSE),0) -> 0 | AF125: =IFERROR(VLOOKUP($A125,Filtro!$A$4:$AT$2433,30,FALSE),0) -> 0 | AG125: =IFERROR(VLOOKUP($A125,Filtro!$A$4:$AT$2433,31,FALSE),0) -> 0 | AH125: =IFERROR(VLOOKUP($A125,Filtro!$A$4:$AT$2433,32,FALSE),0) -> 0 | AI125: =IFERROR(VLOOKUP($A125,Filtro!$A$4:$AT$2433,33,FALSE),0) -> 0 | AJ125: =IFERROR(VLOOKUP($A125,Filtro!$A$4:$AT$2433,34,FALSE),0) -> 0 | AK125: =IFERROR(VLOOKUP($A125,Filtro!$A$4:$AT$2433,35,FALSE),0) -> 0 | AL125: =IFERROR(VLOOKUP($A125,Filtro!$A$4:$AT$2433,36,FALSE),0) -> 9,138,360 | AM125: =IFERROR(VLOOKUP($A125,Filtro!$A$4:$AT$2433,37,FALSE),0) -> 78783740
A126: 01010093 | B126: 0203009 | C126: Día cama hospitalización integral psiquiatría crónicos | D126: =IFERROR(VLOOKUP($A126,Filtro!$A$4:$AT$2433,2,FALSE),0) -> 240 | E126: =IFERROR(VLOOKUP($A126,Filtro!$A$4:$AT$2433,3,FALSE),0) -> 240 | F126: =IFERROR(VLOOKUP($A126,Filtro!$A$4:$AT$2433,4,FALSE),0) -> 240 | G126: =IFERROR(VLOOKUP($A126,Filtro!$A$4:$AT$2433,5,FALSE),0) -> 0 | H126: =IFERROR(VLOOKUP($A126,Filtro!$A$4:$AT$2433,6,FALSE),0) -> 0 | I126: =IFERROR(VLOOKUP($A126,Filtro!$A$4:$AT$2433,7,FALSE),0) -> 0 | J126: =IFERROR(VLOOKUP($A126,Filtro!$A$4:$AT$2433,8,FALSE),0) -> 0 | K126: =IFERROR(VLOOKUP($A126,Filtro!$A$4:$AT$2433,9,FALSE),0) -> 0 | L126: =IFERROR(VLOOKUP($A126,Filtro!$A$4:$AT$2433,10,FALSE),0) -> 0 | M126: =IFERROR(VLOOKUP($A126,Filtro!$A$4:$AT$2433,11,FALSE),0) -> 0 | N126: =IFERROR(VLOOKUP($A126,Filtro!$A$4:$AT$2433,12,FALSE),0) -> 0 | O126: =IFERROR(VLOOKUP($A126,Filtro!$A$4:$AT$2433,13,FALSE),0) -> 0 | P126: =IFERROR(VLOOKUP($A126,Filtro!$A$4:$AT$2433,14,FALSE),0) -> 0 | Q126: =IFERROR(VLOOKUP($A126,Filtro!$A$4:$AT$2433,15,FALSE),0) -> 0 | R126: =IFERROR(VLOOKUP($A126,Filtro!$A$4:$AT$2433,16,FALSE),0) -> 0 | S126: =IFERROR(VLOOKUP($A126,Filtro!$A$4:$AT$2433,17,FALSE),0) -> 0 | T126: =IFERROR(VLOOKUP($A126,Filtro!$A$4:$AT$2433,18,FALSE),0) -> 0 | U126: =IFERROR(VLOOKUP($A126,Filtro!$A$4:$AT$2433,19,FALSE),0) -> 0 | V126: =IFERROR(VLOOKUP($A126,Filtro!$A$4:$AT$2433,20,FALSE),0) -> 0 | W126: =IFERROR(VLOOKUP($A126,Filtro!$A$4:$AT$2433,21,FALSE),0) -> 0 | X126: =IFERROR(VLOOKUP($A126,Filtro!$A$4:$AT$2433,22,FALSE),0) -> 0 | Y126: =IFERROR(VLOOKUP($A126,Filtro!$A$4:$AT$2433,23,FALSE),0) -> 0 | Z126: =IFERROR(VLOOKUP($A126,Filtro!$A$4:$AT$2433,24,FALSE),0) -> 0 | AA126: =IFERROR(VLOOKUP($A126,Filtro!$A$4:$AT$2433,25,FALSE),0) -> 0 | AB126: =IFERROR(VLOOKUP($A126,Filtro!$A$4:$AT$2433,26,FALSE),0) -> 240 | AC126: =IFERROR(VLOOKUP($A126,Filtro!$A$4:$AT$2433,27,FALSE),0) -> 0 | AD126: =IFERROR(VLOOKUP($A126,Filtro!$A$4:$AT$2433,28,FALSE),0) -> 0 | AE126: =IFERROR(VLOOKUP($A126,Filtro!$A$4:$AT$2433,29,FALSE),0) -> 0 | AF126: =IFERROR(VLOOKUP($A126,Filtro!$A$4:$AT$2433,30,FALSE),0) -> 0 | AG126: =IFERROR(VLOOKUP($A126,Filtro!$A$4:$AT$2433,31,FALSE),0) -> 0 | AH126: =IFERROR(VLOOKUP($A126,Filtro!$A$4:$AT$2433,32,FALSE),0) -> 0 | AI126: =IFERROR(VLOOKUP($A126,Filtro!$A$4:$AT$2433,33,FALSE),0) -> 0 | AJ126: =IFERROR(VLOOKUP($A126,Filtro!$A$4:$AT$2433,34,FALSE),0) -> 0 | AK126: =IFERROR(VLOOKUP($A126,Filtro!$A$4:$AT$2433,35,FALSE),0) -> 0 | AL126: =IFERROR(VLOOKUP($A126,Filtro!$A$4:$AT$2433,36,FALSE),0) -> 2,592,480 | AM126: =IFERROR(VLOOKUP($A126,Filtro!$A$4:$AT$2433,37,FALSE),0) -> 4713600
A127: 01010094 | B127: 0203109 | C127: Día cama hosp. integral psiquiatría corta estadía | D127: =IFERROR(VLOOKUP($A127,Filtro!$A$4:$AT$2433,2,FALSE),0) -> 2720 | E127: =IFERROR(VLOOKUP($A127,Filtro!$A$4:$AT$2433,3,FALSE),0) -> 2694 | F127: =IFERROR(VLOOKUP($A127,Filtro!$A$4:$AT$2433,4,FALSE),0) -> 2694 | G127: =IFERROR(VLOOKUP($A127,Filtro!$A$4:$AT$2433,5,FALSE),0) -> 0 | H127: =IFERROR(VLOOKUP($A127,Filtro!$A$4:$AT$2433,6,FALSE),0) -> 26 | I127: =IFERROR(VLOOKUP($A127,Filtro!$A$4:$AT$2433,7,FALSE),0) -> 0 | J127: =IFERROR(VLOOKUP($A127,Filtro!$A$4:$AT$2433,8,FALSE),0) -> 0 | K127: =IFERROR(VLOOKUP($A127,Filtro!$A$4:$AT$2433,9,FALSE),0) -> 0 | L127: =IFERROR(VLOOKUP($A127,Filtro!$A$4:$AT$2433,10,FALSE),0) -> 0 | M127: =IFERROR(VLOOKUP($A127,Filtro!$A$4:$AT$2433,11,FALSE),0) -> 0 | N127: =IFERROR(VLOOKUP($A127,Filtro!$A$4:$AT$2433,12,FALSE),0) -> 0 | O127: =IFERROR(VLOOKUP($A127,Filtro!$A$4:$AT$2433,13,FALSE),0) -> 0 | P127: =IFERROR(VLOOKUP($A127,Filtro!$A$4:$AT$2433,14,FALSE),0) -> 0 | Q127: =IFERROR(VLOOKUP($A127,Filtro!$A$4:$AT$2433,15,FALSE),0) -> 0 | R127: =IFERROR(VLOOKUP($A127,Filtro!$A$4:$AT$2433,16,FALSE),0) -> 0 | S127: =IFERROR(VLOOKUP($A127,Filtro!$A$4:$AT$2433,17,FALSE),0) -> 0 | T127: =IFERROR(VLOOKUP($A127,Filtro!$A$4:$AT$2433,18,FALSE),0) -> 0 | U127: =IFERROR(VLOOKUP($A127,Filtro!$A$4:$AT$2433,19,FALSE),0) -> 0 | V127: =IFERROR(VLOOKUP($A127,Filtro!$A$4:$AT$2433,20,FALSE),0) -> 0 | W127: =IFERROR(VLOOKUP($A127,Filtro!$A$4:$AT$2433,21,FALSE),0) -> 0 | X127: =IFERROR(VLOOKUP($A127,Filtro!$A$4:$AT$2433,22,FALSE),0) -> 0 | Y127: =IFERROR(VLOOKUP($A127,Filtro!$A$4:$AT$2433,23,FALSE),0) -> 0 | Z127: =IFERROR(VLOOKUP($A127,Filtro!$A$4:$AT$2433,24,FALSE),0) -> 0 | AA127: =IFERROR(VLOOKUP($A127,Filtro!$A$4:$AT$2433,25,FALSE),0) -> 0 | AB127: =IFERROR(VLOOKUP($A127,Filtro!$A$4:$AT$2433,26,FALSE),0) -> 2232 | AC127: =IFERROR(VLOOKUP($A127,Filtro!$A$4:$AT$2433,27,FALSE),0) -> 488 | AD127: =IFERROR(VLOOKUP($A127,Filtro!$A$4:$AT$2433,28,FALSE),0) -> 0 | AE127: =IFERROR(VLOOKUP($A127,Filtro!$A$4:$AT$2433,29,FALSE),0) -> 0 | AF127: =IFERROR(VLOOKUP($A127,Filtro!$A$4:$AT$2433,30,FALSE),0) -> 0 | AG127: =IFERROR(VLOOKUP($A127,Filtro!$A$4:$AT$2433,31,FALSE),0) -> 0 | AH127: =IFERROR(VLOOKUP($A127,Filtro!$A$4:$AT$2433,32,FALSE),0) -> 0 | AI127: =IFERROR(VLOOKUP($A127,Filtro!$A$4:$AT$2433,33,FALSE),0) -> 0 | AJ127: =IFERROR(VLOOKUP($A127,Filtro!$A$4:$AT$2433,34,FALSE),0) -> 0 | AK127: =IFERROR(VLOOKUP($A127,Filtro!$A$4:$AT$2433,35,FALSE),0) -> 0 | AL127: =IFERROR(VLOOKUP($A127,Filtro!$A$4:$AT$2433,36,FALSE),0) -> 4,064,280 | AM127: =IFERROR(VLOOKUP($A127,Filtro!$A$4:$AT$2433,37,FALSE),0) -> 82948260
A128: 01010095 | B128: 0203209 | C128: Día cama hosp. integral desintoxicación alcohol y drogas | D128: =IFERROR(VLOOKUP($A128,Filtro!$A$4:$AT$2433,2,FALSE),0) -> 0 | E128: =IFERROR(VLOOKUP($A128,Filtro!$A$4:$AT$2433,3,FALSE),0) -> 0 | F128: =IFERROR(VLOOKUP($A128,Filtro!$A$4:$AT$2433,4,FALSE),0) -> 0 | G128: =IFERROR(VLOOKUP($A128,Filtro!$A$4:$AT$2433,5,FALSE),0) -> 0 | H128: =IFERROR(VLOOKUP($A128,Filtro!$A$4:$AT$2433,6,FALSE),0) -> 0 | I128: =IFERROR(VLOOKUP($A128,Filtro!$A$4:$AT$2433,7,FALSE),0) -> 0 | J128: =IFERROR(VLOOKUP($A128,Filtro!$A$4:$AT$2433,8,FALSE),0) -> 0 | K128: =IFERROR(VLOOKUP($A128,Filtro!$A$4:$AT$2433,9,FALSE),0) -> 0 | L128: =IFERROR(VLOOKUP($A128,Filtro!$A$4:$AT$2433,10,FALSE),0) -> 0 | M128: =IFERROR(VLOOKUP($A128,Filtro!$A$4:$AT$2433,11,FALSE),0) -> 0 | N128: =IFERROR(VLOOKUP($A128,Filtro!$A$4:$AT$2433,12,FALSE),0) -> 0 | O128: =IFERROR(VLOOKUP($A128,Filtro!$A$4:$AT$2433,13,FALSE),0) -> 0 | P128: =IFERROR(VLOOKUP($A128,Filtro!$A$4:$AT$2433,14,FALSE),0) -> 0 | Q128: =IFERROR(VLOOKUP($A128,Filtro!$A$4:$AT$2433,15,FALSE),0) -> 0 | R128: =IFERROR(VLOOKUP($A128,Filtro!$A$4:$AT$2433,16,FALSE),0) -> 0 | S128: =IFERROR(VLOOKUP($A128,Filtro!$A$4:$AT$2433,17,FALSE),0) -> 0 | T128: =IFERROR(VLOOKUP($A128,Filtro!$A$4:$AT$2433,18,FALSE),0) -> 0 | U128: =IFERROR(VLOOKUP($A128,Filtro!$A$4:$AT$2433,19,FALSE),0) -> 0 | V128: =IFERROR(VLOOKUP($A128,Filtro!$A$4:$AT$2433,20,FALSE),0) -> 0 | W128: =IFERROR(VLOOKUP($A128,Filtro!$A$4:$AT$2433,21,FALSE),0) -> 0 | X128: =IFERROR(VLOOKUP($A128,Filtro!$A$4:$AT$2433,22,FALSE),0) -> 0 | Y128: =IFERROR(VLOOKUP($A128,Filtro!$A$4:$AT$2433,23,FALSE),0) -> 0 | Z128: =IFERROR(VLOOKUP($A128,Filtro!$A$4:$AT$2433,24,FALSE),0) -> 0 | AA128: =IFERROR(VLOOKUP($A128,Filtro!$A$4:$AT$2433,25,FALSE),0) -> 0 | AB128: =IFERROR(VLOOKUP($A128,Filtro!$A$4:$AT$2433,26,FALSE),0) -> 0 | AC128: =IFERROR(VLOOKUP($A128,Filtro!$A$4:$AT$2433,27,FALSE),0) -> 0 | AD128: =IFERROR(VLOOKUP($A128,Filtro!$A$4:$AT$2433,28,FALSE),0) -> 0 | AE128: =IFERROR(VLOOKUP($A128,Filtro!$A$4:$AT$2433,29,FALSE),0) -> 0 | AF128: =IFERROR(VLOOKUP($A128,Filtro!$A$4:$AT$2433,30,FALSE),0) -> 0 | AG128: =IFERROR(VLOOKUP($A128,Filtro!$A$4:$AT$2433,31,FALSE),0) -> 0 | AH128: =IFERROR(VLOOKUP($A128,Filtro!$A$4:$AT$2433,32,FALSE),0) -> 0 | AI128: =IFERROR(VLOOKUP($A128,Filtro!$A$4:$AT$2433,33,FALSE),0) -> 0 | AJ128: =IFERROR(VLOOKUP($A128,Filtro!$A$4:$AT$2433,34,FALSE),0) -> 0 | AK128: =IFERROR(VLOOKUP($A128,Filtro!$A$4:$AT$2433,35,FALSE),0) -> 0 | AL128: =IFERROR(VLOOKUP($A128,Filtro!$A$4:$AT$2433,36,FALSE),0) -> 4,229,280 | AM128: =IFERROR(VLOOKUP($A128,Filtro!$A$4:$AT$2433,37,FALSE),0) -> 0
C129: TOTAL | D129: =SUM(D116:D128) -> 266533 | E129: =SUM(E116:E128) -> 259992 | F129: =SUM(F116:F128) -> 256744 | G129: =SUM(G116:G128) -> 3248 | H129: =SUM(H116:H128) -> 6541 | AB129: =SUM(AB116:AB128) -> 183648 | AC129: =SUM(AC116:AC128) -> 9468 | AD129: 1161 | AE129: 0 | AF129: 0 | AG129: 0 | AH129: 0 | AI129: 0 | AJ129: 0 | AK129: 0 | AL129: 127,484,280 | AM129: 11829929710
C130: MISCELANEOS DIA CAMA
A131: 01010096 | B131: 0203010 | C131: Día cama integral psiquiátrico diurno | D131: =IFERROR(VLOOKUP($A131,Filtro!$A$4:$AT$2433,2,FALSE),0) -> 9704 | E131: =IFERROR(VLOOKUP($A131,Filtro!$A$4:$AT$2433,3,FALSE),0) -> 9704 | F131: =IFERROR(VLOOKUP($A131,Filtro!$A$4:$AT$2433,4,FALSE),0) -> 9704 | G131: =IFERROR(VLOOKUP($A131,Filtro!$A$4:$AT$2433,5,FALSE),0) -> 0 | H131: =IFERROR(VLOOKUP($A131,Filtro!$A$4:$AT$2433,6,FALSE),0) -> 0 | I131: =IFERROR(VLOOKUP($A131,Filtro!$A$4:$AT$2433,7,FALSE),0) -> 0 | J131: =IFERROR(VLOOKUP($A131,Filtro!$A$4:$AT$2433,8,FALSE),0) -> 0 | K131: =IFERROR(VLOOKUP($A131,Filtro!$A$4:$AT$2433,9,FALSE),0) -> 0 | L131: =IFERROR(VLOOKUP($A131,Filtro!$A$4:$AT$2433,10,FALSE),0) -> 0 | M131: =IFERROR(VLOOKUP($A131,Filtro!$A$4:$AT$2433,11,FALSE),0) -> 0 | N131: =IFERROR(VLOOKUP($A131,Filtro!$A$4:$AT$2433,12,FALSE),0) -> 0 | O131: =IFERROR(VLOOKUP($A131,Filtro!$A$4:$AT$2433,13,FALSE),0) -> 0 | P131: =IFERROR(VLOOKUP($A131,Filtro!$A$4:$AT$2433,14,FALSE),0) -> 0 | Q131: =IFERROR(VLOOKUP($A131,Filtro!$A$4:$AT$2433,15,FALSE),0) -> 0 | R131: =IFERROR(VLOOKUP($A131,Filtro!$A$4:$AT$2433,16,FALSE),0) -> 0 | S131: =IFERROR(VLOOKUP($A131,Filtro!$A$4:$AT$2433,17,FALSE),0) -> 0 | T131: =IFERROR(VLOOKUP($A131,Filtro!$A$4:$AT$2433,18,FALSE),0) -> 0 | U131: =IFERROR(VLOOKUP($A131,Filtro!$A$4:$AT$2433,19,FALSE),0) -> 0 | V131: =IFERROR(VLOOKUP($A131,Filtro!$A$4:$AT$2433,20,FALSE),0) -> 0 | W131: =IFERROR(VLOOKUP($A131,Filtro!$A$4:$AT$2433,21,FALSE),0) -> 0 | X131: =IFERROR(VLOOKUP($A131,Filtro!$A$4:$AT$2433,22,FALSE),0) -> 0 | Y131: =IFERROR(VLOOKUP($A131,Filtro!$A$4:$AT$2433,23,FALSE),0) -> 0 | Z131: =IFERROR(VLOOKUP($A131,Filtro!$A$4:$AT$2433,24,FALSE),0) -> 0 | AA131: =IFERROR(VLOOKUP($A131,Filtro!$A$4:$AT$2433,25,FALSE),0) -> 0 | AB131: =IFERROR(VLOOKUP($A131,Filtro!$A$4:$AT$2433,26,FALSE),0) -> 3518 | AC131: =IFERROR(VLOOKUP($A131,Filtro!$A$4:$AT$2433,27,FALSE),0) -> 6186 | AD131: =IFERROR(VLOOKUP($A131,Filtro!$A$4:$AT$2433,28,FALSE),0) -> 0 | AE131: =IFERROR(VLOOKUP($A131,Filtro!$A$4:$AT$2433,29,FALSE),0) -> 0 | AF131: =IFERROR(VLOOKUP($A131,Filtro!$A$4:$AT$2433,30,FALSE),0) -> 0 | AG131: =IFERROR(VLOOKUP($A131,Filtro!$A$4:$AT$2433,31,FALSE),0) -> 0 | AH131: =IFERROR(VLOOKUP($A131,Filtro!$A$4:$AT$2433,32,FALSE),0) -> 0 | AI131: =IFERROR(VLOOKUP($A131,Filtro!$A$4:$AT$2433,33,FALSE),0) -> 0 | AJ131: =IFERROR(VLOOKUP($A131,Filtro!$A$4:$AT$2433,34,FALSE),0) -> 0 | AK131: =IFERROR(VLOOKUP($A131,Filtro!$A$4:$AT$2433,35,FALSE),0) -> 0 | AL131: =IFERROR(VLOOKUP($A131,Filtro!$A$4:$AT$2433,36,FALSE),0) -> 1,705,440 | AM131: =IFERROR(VLOOKUP($A131,Filtro!$A$4:$AT$2433,37,FALSE),0) -> 125375680
A132: 01010097 | B132: 0203110 | C132: Día cama hospitalización integral psiquiatría mediana estadía | D132: =IFERROR(VLOOKUP($A132,Filtro!$A$4:$AT$2433,2,FALSE),0) -> 0 | E132: =IFERROR(VLOOKUP($A132,Filtro!$A$4:$AT$2433,3,FALSE),0) -> 0 | F132: =IFERROR(VLOOKUP($A132,Filtro!$A$4:$AT$2433,4,FALSE),0) -> 0 | G132: =IFERROR(VLOOKUP($A132,Filtro!$A$4:$AT$2433,5,FALSE),0) -> 0 | H132: =IFERROR(VLOOKUP($A132,Filtro!$A$4:$AT$2433,6,FALSE),0) -> 0 | I132: =IFERROR(VLOOKUP($A132,Filtro!$A$4:$AT$2433,7,FALSE),0) -> 0 | J132: =IFERROR(VLOOKUP($A132,Filtro!$A$4:$AT$2433,8,FALSE),0) -> 0 | K132: =IFERROR(VLOOKUP($A132,Filtro!$A$4:$AT$2433,9,FALSE),0) -> 0 | L132: =IFERROR(VLOOKUP($A132,Filtro!$A$4:$AT$2433,10,FALSE),0) -> 0 | M132: =IFERROR(VLOOKUP($A132,Filtro!$A$4:$AT$2433,11,FALSE),0) -> 0 | N132: =IFERROR(VLOOKUP($A132,Filtro!$A$4:$AT$2433,12,FALSE),0) -> 0 | O132: =IFERROR(VLOOKUP($A132,Filtro!$A$4:$AT$2433,13,FALSE),0) -> 0 | P132: =IFERROR(VLOOKUP($A132,Filtro!$A$4:$AT$2433,14,FALSE),0) -> 0 | Q132: =IFERROR(VLOOKUP($A132,Filtro!$A$4:$AT$2433,15,FALSE),0) -> 0 | R132: =IFERROR(VLOOKUP($A132,Filtro!$A$4:$AT$2433,16,FALSE),0) -> 0 | S132: =IFERROR(VLOOKUP($A132,Filtro!$A$4:$AT$2433,17,FALSE),0) -> 0 | T132: =IFERROR(VLOOKUP($A132,Filtro!$A$4:$AT$2433,18,FALSE),0) -> 0 | U132: =IFERROR(VLOOKUP($A132,Filtro!$A$4:$AT$2433,19,FALSE),0) -> 0 | V132: =IFERROR(VLOOKUP($A132,Filtro!$A$4:$AT$2433,20,FALSE),0) -> 0 | W132: =IFERROR(VLOOKUP($A132,Filtro!$A$4:$AT$2433,21,FALSE),0) -> 0 | X132: =IFERROR(VLOOKUP($A132,Filtro!$A$4:$AT$2433,22,FALSE),0) -> 0 | Y132: =IFERROR(VLOOKUP($A132,Filtro!$A$4:$AT$2433,23,FALSE),0) -> 0 | Z132: =IFERROR(VLOOKUP($A132,Filtro!$A$4:$AT$2433,24,FALSE),0) -> 0 | AA132: =IFERROR(VLOOKUP($A132,Filtro!$A$4:$AT$2433,25,FALSE),0) -> 0 | AB132: =IFERROR(VLOOKUP($A132,Filtro!$A$4:$AT$2433,26,FALSE),0) -> 0 | AC132: =IFERROR(VLOOKUP($A132,Filtro!$A$4:$AT$2433,27,FALSE),0) -> 0 | AD132: =IFERROR(VLOOKUP($A132,Filtro!$A$4:$AT$2433,28,FALSE),0) -> 0 | AE132: =IFERROR(VLOOKUP($A132,Filtro!$A$4:$AT$2433,29,FALSE),0) -> 0 | AF132: =IFERROR(VLOOKUP($A132,Filtro!$A$4:$AT$2433,30,FALSE),0) -> 0 | AG132: =IFERROR(VLOOKUP($A132,Filtro!$A$4:$AT$2433,31,FALSE),0) -> 0 | AH132: =IFERROR(VLOOKUP($A132,Filtro!$A$4:$AT$2433,32,FALSE),0) -> 0 | AI132: =IFERROR(VLOOKUP($A132,Filtro!$A$4:$AT$2433,33,FALSE),0) -> 0 | AJ132: =IFERROR(VLOOKUP($A132,Filtro!$A$4:$AT$2433,34,FALSE),0) -> 0 | AK132: =IFERROR(VLOOKUP($A132,Filtro!$A$4:$AT$2433,35,FALSE),0) -> 0 | AL132: =IFERROR(VLOOKUP($A132,Filtro!$A$4:$AT$2433,36,FALSE),0) -> 4,095,960 | AM132: =IFERROR(VLOOKUP($A132,Filtro!$A$4:$AT$2433,37,FALSE),0) -> 0
A133: 01010098 | B133: 0203011 | C133: Día cama integral de observación o día cama integral ambulatorio diurno | D133: =IFERROR(VLOOKUP($A133,Filtro!$A$4:$AT$2433,2,FALSE),0) -> 8308 | E133: =IFERROR(VLOOKUP($A133,Filtro!$A$4:$AT$2433,3,FALSE),0) -> 8273 | F133: =IFERROR(VLOOKUP($A133,Filtro!$A$4:$AT$2433,4,FALSE),0) -> 7982 | G133: =IFERROR(VLOOKUP($A133,Filtro!$A$4:$AT$2433,5,FALSE),0) -> 291 | H133: =IFERROR(VLOOKUP($A133,Filtro!$A$4:$AT$2433,6,FALSE),0) -> 35 | I133: =IFERROR(VLOOKUP($A133,Filtro!$A$4:$AT$2433,7,FALSE),0) -> 0 | J133: =IFERROR(VLOOKUP($A133,Filtro!$A$4:$AT$2433,8,FALSE),0) -> 0 | K133: =IFERROR(VLOOKUP($A133,Filtro!$A$4:$AT$2433,9,FALSE),0) -> 0 | L133: =IFERROR(VLOOKUP($A133,Filtro!$A$4:$AT$2433,10,FALSE),0) -> 0 | M133: =IFERROR(VLOOKUP($A133,Filtro!$A$4:$AT$2433,11,FALSE),0) -> 0 | N133: =IFERROR(VLOOKUP($A133,Filtro!$A$4:$AT$2433,12,FALSE),0) -> 0 | O133: =IFERROR(VLOOKUP($A133,Filtro!$A$4:$AT$2433,13,FALSE),0) -> 0 | P133: =IFERROR(VLOOKUP($A133,Filtro!$A$4:$AT$2433,14,FALSE),0) -> 0 | Q133: =IFERROR(VLOOKUP($A133,Filtro!$A$4:$AT$2433,15,FALSE),0) -> 0 | R133: =IFERROR(VLOOKUP($A133,Filtro!$A$4:$AT$2433,16,FALSE),0) -> 0 | S133: =IFERROR(VLOOKUP($A133,Filtro!$A$4:$AT$2433,17,FALSE),0) -> 0 | T133: =IFERROR(VLOOKUP($A133,Filtro!$A$4:$AT$2433,18,FALSE),0) -> 0 | U133: =IFERROR(VLOOKUP($A133,Filtro!$A$4:$AT$2433,19,FALSE),0) -> 0 | V133: =IFERROR(VLOOKUP($A133,Filtro!$A$4:$AT$2433,20,FALSE),0) -> 0 | W133: =IFERROR(VLOOKUP($A133,Filtro!$A$4:$AT$2433,21,FALSE),0) -> 0 | X133: =IFERROR(VLOOKUP($A133,Filtro!$A$4:$AT$2433,22,FALSE),0) -> 0 | Y133: =IFERROR(VLOOKUP($A133,Filtro!$A$4:$AT$2433,23,FALSE),0) -> 0 | Z133: =IFERROR(VLOOKUP($A133,Filtro!$A$4:$AT$2433,24,FALSE),0) -> 0 | AA133: =IFERROR(VLOOKUP($A133,Filtro!$A$4:$AT$2433,25,FALSE),0) -> 0 | AB133: =IFERROR(VLOOKUP($A133,Filtro!$A$4:$AT$2433,26,FALSE),0) -> 58 | AC133: =IFERROR(VLOOKUP($A133,Filtro!$A$4:$AT$2433,27,FALSE),0) -> 7756 | AD133: =IFERROR(VLOOKUP($A133,Filtro!$A$4:$AT$2433,28,FALSE),0) -> 494 | AE133: =IFERROR(VLOOKUP($A133,Filtro!$A$4:$AT$2433,29,FALSE),0) -> 0 | AF133: =IFERROR(VLOOKUP($A133,Filtro!$A$4:$AT$2433,30,FALSE),0) -> 0 | AG133: =IFERROR(VLOOKUP($A133,Filtro!$A$4:$AT$2433,31,FALSE),0) -> 0 | AH133: =IFERROR(VLOOKUP($A133,Filtro!$A$4:$AT$2433,32,FALSE),0) -> 0 | AI133: =IFERROR(VLOOKUP($A133,Filtro!$A$4:$AT$2433,33,FALSE),0) -> 0 | AJ133: =IFERROR(VLOOKUP($A133,Filtro!$A$4:$AT$2433,34,FALSE),0) -> 0 | AK133: =IFERROR(VLOOKUP($A133,Filtro!$A$4:$AT$2433,35,FALSE),0) -> 0 | AL133: =IFERROR(VLOOKUP($A133,Filtro!$A$4:$AT$2433,36,FALSE),0) -> 1,705,440 | AM133: =IFERROR(VLOOKUP($A133,Filtro!$A$4:$AT$2433,37,FALSE),0) -> 103127440
A134: 01010099 | B134: 0203111 | C134: Camilla de observación en servicio de urgencia | D134: =IFERROR(VLOOKUP($A134,Filtro!$A$4:$AT$2433,2,FALSE),0) -> 48955 | E134: =IFERROR(VLOOKUP($A134,Filtro!$A$4:$AT$2433,3,FALSE),0) -> 48927 | F134: =IFERROR(VLOOKUP($A134,Filtro!$A$4:$AT$2433,4,FALSE),0) -> 48927 | G134: =IFERROR(VLOOKUP($A134,Filtro!$A$4:$AT$2433,5,FALSE),0) -> 0 | H134: =IFERROR(VLOOKUP($A134,Filtro!$A$4:$AT$2433,6,FALSE),0) -> 28 | I134: =IFERROR(VLOOKUP($A134,Filtro!$A$4:$AT$2433,7,FALSE),0) -> 0 | J134: =IFERROR(VLOOKUP($A134,Filtro!$A$4:$AT$2433,8,FALSE),0) -> 0 | K134: =IFERROR(VLOOKUP($A134,Filtro!$A$4:$AT$2433,9,FALSE),0) -> 0 | L134: =IFERROR(VLOOKUP($A134,Filtro!$A$4:$AT$2433,10,FALSE),0) -> 0 | M134: =IFERROR(VLOOKUP($A134,Filtro!$A$4:$AT$2433,11,FALSE),0) -> 0 | N134: =IFERROR(VLOOKUP($A134,Filtro!$A$4:$AT$2433,12,FALSE),0) -> 0 | O134: =IFERROR(VLOOKUP($A134,Filtro!$A$4:$AT$2433,13,FALSE),0) -> 0 | P134: =IFERROR(VLOOKUP($A134,Filtro!$A$4:$AT$2433,14,FALSE),0) -> 0 | Q134: =IFERROR(VLOOKUP($A134,Filtro!$A$4:$AT$2433,15,FALSE),0) -> 0 | R134: =IFERROR(VLOOKUP($A134,Filtro!$A$4:$AT$2433,16,FALSE),0) -> 0 | S134: =IFERROR(VLOOKUP($A134,Filtro!$A$4:$AT$2433,17,FALSE),0) -> 0 | T134: =IFERROR(VLOOKUP($A134,Filtro!$A$4:$AT$2433,18,FALSE),0) -> 0 | U134: =IFERROR(VLOOKUP($A134,Filtro!$A$4:$AT$2433,19,FALSE),0) -> 0 | V134: =IFERROR(VLOOKUP($A134,Filtro!$A$4:$AT$2433,20,FALSE),0) -> 0 | W134: =IFERROR(VLOOKUP($A134,Filtro!$A$4:$AT$2433,21,FALSE),0) -> 0 | X134: =IFERROR(VLOOKUP($A134,Filtro!$A$4:$AT$2433,22,FALSE),0) -> 0 | Y134: =IFERROR(VLOOKUP($A134,Filtro!$A$4:$AT$2433,23,FALSE),0) -> 0 | Z134: =IFERROR(VLOOKUP($A134,Filtro!$A$4:$AT$2433,24,FALSE),0) -> 0 | AA134: =IFERROR(VLOOKUP($A134,Filtro!$A$4:$AT$2433,25,FALSE),0) -> 0 | AB134: =IFERROR(VLOOKUP($A134,Filtro!$A$4:$AT$2433,26,FALSE),0) -> 788 | AC134: =IFERROR(VLOOKUP($A134,Filtro!$A$4:$AT$2433,27,FALSE),0) -> 5187 | AD134: =IFERROR(VLOOKUP($A134,Filtro!$A$4:$AT$2433,28,FALSE),0) -> 42951 | AE134: =IFERROR(VLOOKUP($A134,Filtro!$A$4:$AT$2433,29,FALSE),0) -> 0 | AF134: =IFERROR(VLOOKUP($A134,Filtro!$A$4:$AT$2433,30,FALSE),0) -> 0 | AG134: =IFERROR(VLOOKUP($A134,Filtro!$A$4:$AT$2433,31,FALSE),0) -> 0 | AH134: =IFERROR(VLOOKUP($A134,Filtro!$A$4:$AT$2433,32,FALSE),0) -> 0 | AI134: =IFERROR(VLOOKUP($A134,Filtro!$A$4:$AT$2433,33,FALSE),0) -> 0 | AJ134: =IFERROR(VLOOKUP($A134,Filtro!$A$4:$AT$2433,34,FALSE),0) -> 0 | AK134: =IFERROR(VLOOKUP($A134,Filtro!$A$4:$AT$2433,35,FALSE),0) -> 0 | AL134: =IFERROR(VLOOKUP($A134,Filtro!$A$4:$AT$2433,36,FALSE),0) -> 752,400 | AM134: =IFERROR(VLOOKUP($A134,Filtro!$A$4:$AT$2433,37,FALSE),0) -> 278883900
A135: 01010100 | B135: 0203012 | C135: Día cama integral geriatría o crónicos | D135: =IFERROR(VLOOKUP($A135,Filtro!$A$4:$AT$2433,2,FALSE),0) -> 0 | E135: =IFERROR(VLOOKUP($A135,Filtro!$A$4:$AT$2433,3,FALSE),0) -> 0 | F135: =IFERROR(VLOOKUP($A135,Filtro!$A$4:$AT$2433,4,FALSE),0) -> 0 | G135: =IFERROR(VLOOKUP($A135,Filtro!$A$4:$AT$2433,5,FALSE),0) -> 0 | H135: =IFERROR(VLOOKUP($A135,Filtro!$A$4:$AT$2433,6,FALSE),0) -> 0 | I135: =IFERROR(VLOOKUP($A135,Filtro!$A$4:$AT$2433,7,FALSE),0) -> 0 | J135: =IFERROR(VLOOKUP($A135,Filtro!$A$4:$AT$2433,8,FALSE),0) -> 0 | K135: =IFERROR(VLOOKUP($A135,Filtro!$A$4:$AT$2433,9,FALSE),0) -> 0 | L135: =IFERROR(VLOOKUP($A135,Filtro!$A$4:$AT$2433,10,FALSE),0) -> 0 | M135: =IFERROR(VLOOKUP($A135,Filtro!$A$4:$AT$2433,11,FALSE),0) -> 0 | N135: =IFERROR(VLOOKUP($A135,Filtro!$A$4:$AT$2433,12,FALSE),0) -> 0 | O135: =IFERROR(VLOOKUP($A135,Filtro!$A$4:$AT$2433,13,FALSE),0) -> 0 | P135: =IFERROR(VLOOKUP($A135,Filtro!$A$4:$AT$2433,14,FALSE),0) -> 0 | Q135: =IFERROR(VLOOKUP($A135,Filtro!$A$4:$AT$2433,15,FALSE),0) -> 0 | R135: =IFERROR(VLOOKUP($A135,Filtro!$A$4:$AT$2433,16,FALSE),0) -> 0 | S135: =IFERROR(VLOOKUP($A135,Filtro!$A$4:$AT$2433,17,FALSE),0) -> 0 | T135: =IFERROR(VLOOKUP($A135,Filtro!$A$4:$AT$2433,18,FALSE),0) -> 0 | U135: =IFERROR(VLOOKUP($A135,Filtro!$A$4:$AT$2433,19,FALSE),0) -> 0 | V135: =IFERROR(VLOOKUP($A135,Filtro!$A$4:$AT$2433,20,FALSE),0) -> 0 | W135: =IFERROR(VLOOKUP($A135,Filtro!$A$4:$AT$2433,21,FALSE),0) -> 0 | X135: =IFERROR(VLOOKUP($A135,Filtro!$A$4:$AT$2433,22,FALSE),0) -> 0 | Y135: =IFERROR(VLOOKUP($A135,Filtro!$A$4:$AT$2433,23,FALSE),0) -> 0 | Z135: =IFERROR(VLOOKUP($A135,Filtro!$A$4:$AT$2433,24,FALSE),0) -> 0 | AA135: =IFERROR(VLOOKUP($A135,Filtro!$A$4:$AT$2433,25,FALSE),0) -> 0 | AB135: =IFERROR(VLOOKUP($A135,Filtro!$A$4:$AT$2433,26,FALSE),0) -> 0 | AC135: =IFERROR(VLOOKUP($A135,Filtro!$A$4:$AT$2433,27,FALSE),0) -> 0 | AD135: =IFERROR(VLOOKUP($A135,Filtro!$A$4:$AT$2433,28,FALSE),0) -> 0 | AE135: =IFERROR(VLOOKUP($A135,Filtro!$A$4:$AT$2433,29,FALSE),0) -> 0 | AF135: =IFERROR(VLOOKUP($A135,Filtro!$A$4:$AT$2433,30,FALSE),0) -> 0 | AG135: =IFERROR(VLOOKUP($A135,Filtro!$A$4:$AT$2433,31,FALSE),0) -> 0 | AH135: =IFERROR(VLOOKUP($A135,Filtro!$A$4:$AT$2433,32,FALSE),0) -> 0 | AI135: =IFERROR(VLOOKUP($A135,Filtro!$A$4:$AT$2433,33,FALSE),0) -> 0 | AJ135: =IFERROR(VLOOKUP($A135,Filtro!$A$4:$AT$2433,34,FALSE),0) -> 0 | AK135: =IFERROR(VLOOKUP($A135,Filtro!$A$4:$AT$2433,35,FALSE),0) -> 0 | AL135: =IFERROR(VLOOKUP($A135,Filtro!$A$4:$AT$2433,36,FALSE),0) -> 5,072,760 | AM135: =IFERROR(VLOOKUP($A135,Filtro!$A$4:$AT$2433,37,FALSE),0) -> 0
A136: 01010101 | B136: 0203013 | C136: Día estada en cámara hiperbárica | D136: =IFERROR(VLOOKUP($A136,Filtro!$A$4:$AT$2433,2,FALSE),0) -> 0 | E136: =IFERROR(VLOOKUP($A136,Filtro!$A$4:$AT$2433,3,FALSE),0) -> 0 | F136: =IFERROR(VLOOKUP($A136,Filtro!$A$4:$AT$2433,4,FALSE),0) -> 0 | G136: =IFERROR(VLOOKUP($A136,Filtro!$A$4:$AT$2433,5,FALSE),0) -> 0 | H136: =IFERROR(VLOOKUP($A136,Filtro!$A$4:$AT$2433,6,FALSE),0) -> 0 | I136: =IFERROR(VLOOKUP($A136,Filtro!$A$4:$AT$2433,7,FALSE),0) -> 0 | J136: =IFERROR(VLOOKUP($A136,Filtro!$A$4:$AT$2433,8,FALSE),0) -> 0 | K136: =IFERROR(VLOOKUP($A136,Filtro!$A$4:$AT$2433,9,FALSE),0) -> 0 | L136: =IFERROR(VLOOKUP($A136,Filtro!$A$4:$AT$2433,10,FALSE),0) -> 0 | M136: =IFERROR(VLOOKUP($A136,Filtro!$A$4:$AT$2433,11,FALSE),0) -> 0 | N136: =IFERROR(VLOOKUP($A136,Filtro!$A$4:$AT$2433,12,FALSE),0) -> 0 | O136: =IFERROR(VLOOKUP($A136,Filtro!$A$4:$AT$2433,13,FALSE),0) -> 0 | P136: =IFERROR(VLOOKUP($A136,Filtro!$A$4:$AT$2433,14,FALSE),0) -> 0 | Q136: =IFERROR(VLOOKUP($A136,Filtro!$A$4:$AT$2433,15,FALSE),0) -> 0 | R136: =IFERROR(VLOOKUP($A136,Filtro!$A$4:$AT$2433,16,FALSE),0) -> 0 | S136: =IFERROR(VLOOKUP($A136,Filtro!$A$4:$AT$2433,17,FALSE),0) -> 0 | T136: =IFERROR(VLOOKUP($A136,Filtro!$A$4:$AT$2433,18,FALSE),0) -> 0 | U136: =IFERROR(VLOOKUP($A136,Filtro!$A$4:$AT$2433,19,FALSE),0) -> 0 | V136: =IFERROR(VLOOKUP($A136,Filtro!$A$4:$AT$2433,20,FALSE),0) -> 0 | W136: =IFERROR(VLOOKUP($A136,Filtro!$A$4:$AT$2433,21,FALSE),0) -> 0 | X136: =IFERROR(VLOOKUP($A136,Filtro!$A$4:$AT$2433,22,FALSE),0) -> 0 | Y136: =IFERROR(VLOOKUP($A136,Filtro!$A$4:$AT$2433,23,FALSE),0) -> 0 | Z136: =IFERROR(VLOOKUP($A136,Filtro!$A$4:$AT$2433,24,FALSE),0) -> 0 | AA136: =IFERROR(VLOOKUP($A136,Filtro!$A$4:$AT$2433,25,FALSE),0) -> 0 | AB136: =IFERROR(VLOOKUP($A136,Filtro!$A$4:$AT$2433,26,FALSE),0) -> 0 | AC136: =IFERROR(VLOOKUP($A136,Filtro!$A$4:$AT$2433,27,FALSE),0) -> 0 | AD136: =IFERROR(VLOOKUP($A136,Filtro!$A$4:$AT$2433,28,FALSE),0) -> 0 | AE136: =IFERROR(VLOOKUP($A136,Filtro!$A$4:$AT$2433,29,FALSE),0) -> 0 | AF136: =IFERROR(VLOOKUP($A136,Filtro!$A$4:$AT$2433,30,FALSE),0) -> 0 | AG136: =IFERROR(VLOOKUP($A136,Filtro!$A$4:$AT$2433,31,FALSE),0) -> 0 | AH136: =IFERROR(VLOOKUP($A136,Filtro!$A$4:$AT$2433,32,FALSE),0) -> 0 | AI136: =IFERROR(VLOOKUP($A136,Filtro!$A$4:$AT$2433,33,FALSE),0) -> 0 | AJ136: =IFERROR(VLOOKUP($A136,Filtro!$A$4:$AT$2433,34,FALSE),0) -> 0 | AK136: =IFERROR(VLOOKUP($A136,Filtro!$A$4:$AT$2433,35,FALSE),0) -> 0 | AL136: =IFERROR(VLOOKUP($A136,Filtro!$A$4:$AT$2433,36,FALSE),0) -> 13,713,480 | AM136: =IFERROR(VLOOKUP($A136,Filtro!$A$4:$AT$2433,37,FALSE),0) -> 0
